Workbook

Sheet Things to Check
B3: Generic Macros
B4: EIS
B5: Date Formatting | E5: Shift CNTL B
B8: Other
B9: Find UDF

Sheet Contents
C2: Things to Check
D3: Generic Macros | F3: Colour Codes | K3: File Name: | M3: =IFERROR(File_name(),"") -> 
D4: EIS | G4: Inputs | I4: 1234567890
D5: Date Formatting | G5: Section Titles | I5: TITLE ROW | K5: Last Save Date | M5: =IFERROR(lastsaved(),"") -> 
D6: Other | G6: Sum Column | I6: 1000000000
D7: Find UDF | G7: True or 1 | I7: =1=1 -> TRUE | K7: Last Save By | M7: =IFERROR(last_save_by(),"") -> 
G8: False or 0 | I8: =1=2 -> FALSE
C9: Contents | G9: Other Sheet Links | I9: |||||||||||||||||||
C11: Summary
C13: Assumptions
D14: Time Assumptions
D15: Operating Assumptions
D16: Capital Expenditure Assumptions
D17: Operating Expense Assumptions
D18: Revenues
D19: Tax and Depreciation
D20: Financing
C22: Scenario
D23: General Assumptions
D24: Revenue Assumptions - Price per MWH
D25: Crisis Assumptions
C27: Operating Model
D28: Timeline
D29: Operations
D30: Capital Expenditures
D31: Operating Expense
D32: Revenues
D33: Free Cash Flow and Pre-tax Project IRR
D34: Taxes and Depreciation
D35: LCOE
C37: Financing Model
D38: Timeline
D39: CFADS and Debt Sizing from Sculpting
D40: Summary Sources and Uses
D41: Periodic Sources and Uses
D42: Debt Balance
D43: Taxes and CFADS
D44: Cash Flow Waterfall
D45: Graphs
D46: Range Names
C48: Operating Data

Sheet Summary
C1: Key Ratios
C2: Pre-tax Project IRR | F2: ='Operating Model'!G146 -> 0.07111256421
C3: After-tax Project IRR | F3: ='Operating Model'!G166 -> 0.05889262259
C4: Debt IRR | F4: ='Financing Model'!G202 -> 0.03651755154
C5: Equity IRR | F5: ='Financing Model'!G181 -> 0.09106610119
C7: Debt/Capital | F7: =F30/F32 -> 0.7286390025
C8: DSCR | F8: ='Financing Model'!G185 -> 1.450241216
C9: PLCR | F9: ='Financing Model'!G193 -> 1.784020624
C11: Target DSCR | F11: =Assumptions!F132 -> 1.45
C12: Tenure | F12: =Assumptions!F140 -> 20
C13: Cash Sweep | F13: =Assumptions!$F$157 -> 0
C14: Construction Period | F14: =Assumptions!$F$10 -> 5
C15: Merchant Case | F15: =Scenario!F20 -> 1
C16: Merchant Percent | F16: =Assumptions!$F$97 -> 1.35
C18: Value Drivers | T18: Controls
C19: EPC and Dev Cost/kWp (Euro/kW) | F19: =Assumptions!F61+Assumptions!F68 -> 767
C20: Levelised O&M per kWp (Real) | F20: =Assumptions!F72 -> 5 | R20: Scenario Case
C21: Annual Capacity Factor | F21: =Assumptions!J48 -> 0.2511187215
C22: Real LCOE (Euro/MWH) | F22: ='Operating Model'!G178 -> 34.16846368
C24: Uses and Sources | F24: Cost | G24: Cost/kW
C25: Development Cost | F25: =Assumptions!H68 -> 162000 | G25: =F25/Assumptions!F$20 -> 27
C26: EPC Cost | F26: =Assumptions!H61 -> 4440000 | G26: =F26/Assumptions!F$20 -> 740 | R26: Crisis Case
C27: Financing Cost | F27: ='Financing Model'!G55+'Financing Model'!G56+'Financing Model'!G57 -> 77513.82767 | G27: =F27/Assumptions!F$20 -> 12.91897128
C28: Total Cost | F28: =SUM(F25:F27) -> 4679513.828 | G28: =F28/Assumptions!F$20 -> 779.9189713 | R28: Probability Case
C30: Debt | F30: ='Financing Model'!G61 -> 3409676.288 | R30: Start Date
C31: Equity | F31: ='Financing Model'!G62 -> 1269837.54
C32: Total Sources | F32: =SUM(F30:F31) -> 4679513.828

Sheet Assumptions
B2: Time Assumptions
C3: Periods per Year in Model Pre-COD | E3: Months | F3: 1
C4: Periods per Year in Model Post-COD | E4: Months | F4: 3
C6: Start of Develompent | E6: Date | F6: =Scenario!H98 -> 2015-09-01
C7: Development Periods | E7: Periods | F7: 4
C8: Months | E8: Months | F8: =F7*F3 -> 4
C9: Financial Close | E9: Date | F9: =EDATE(F6,F8) -> 2016-01-01
C10: Construction | E10: Periods | F10: =Scenario!I16 -> 5
C11: Months | E11: Months | F11: =F10*F3 -> 5
C12: Total Pre-COD Periods | E12: Periods | F12: =F10+F7 -> 9
C14: Commercial Operation | E14: Date | F14: =EDATE(F9,F10) -> 2016-06-01
C15: Operation Period | E15: Years | F15: =Scenario!J16 -> 25
C16: Operation Period | E16: Periods | F16: =F15*12 -> 300
C17: Decommissioning | E17: Date | F17: =EDATE(F14,F16) -> 2041-06-01
B19: Operating Assumptions
C20: Capacity | E20: kW | F20: 6000
C21: Degradation | E21: % p.a. | F21: 0.005
C22: Gross kWh/kW | E22: Hrs | F22: =Scenario!G16 -> 2588
C23: Performance Ratio | E23: % | F23: =Scenario!H16/100 -> 0.85
C24: Net kWh/kW | E24: Hrs | F24: =F22*F23 -> 2199.8
C26: Standard Deviation/Average | E26: % | F26: 0.08
C27: Standard Deviation Amount | E27: Hrs | F27: =F24*F26 -> 175.984
C28: P50 | E28: 0.5 | F28: =NORMINV(E28,F24,F27) -> 2199.8
C29: P90 | E29: 0.1 | F29: =_xlfn.NORM.INV(E29,F24,F27) -> 1974.267429
C30: P99 | E30: 0.01 | F30: =_xlfn.NORM.INV(E30,F24,F27) -> 1790.399996
C32: Applied | E32: 1 | F32: =INDEX(F28:F30,$E$32) -> 2199.8
C33: Net Capacity Factor | E33: % | F33: =F32/8760 -> 0.2511187215
C35: Gross Production (P50) | E35: Month # | F35: Percent | G35: kWh/m2 | H35: Days | I35: Hours | J35: % CF
D36: January | E36: 1 | F36: 0.054 | G36: =$F$32*F36 -> 118.7892 | H36: 31 | I36: =H36*24 -> 744 | J36: =G36/I36 -> 0.1596629032
D37: February | E37: 2 | F37: 0.063 | G37: 138.5874 | H37: 28 | I37: 672 | J37: 0.20623125
D38: March | E38: 3 | F38: 0.089 | G38: 195.7822 | H38: 31 | I38: 744 | J38: 0.2631481183
D39: April | E39: 4 | F39: 0.094 | G39: 206.7812 | H39: 30 | I39: 720 | J39: 0.2871961111
D40: May | E40: 5 | F40: 0.106 | G40: 233.1788 | H40: 31 | I40: 744 | J40: 0.3134123656
D41: June | E41: 6 | F41: 0.109 | G41: 239.7782 | H41: 30 | I41: 720 | J41: 0.3330252778
D42: July | E42: 7 | F42: 0.12 | G42: 263.976 | H42: 31 | I42: 744 | J42: 0.3548064516
D43: August | E43: 8 | F43: 0.107 | G43: 235.3786 | H43: 31 | I43: 744 | J43: 0.316369086
D44: September | E44: 9 | F44: 0.0945 | G44: 207.8811 | H44: 30 | I44: 720 | J44: 0.28872375
D45: October | E45: 10 | F45: 0.0715 | G45: 157.2857 | H45: 31 | I45: 744 | J45: 0.2114055108
D46: November | E46: 11 | F46: 0.049 | G46: 107.7902 | H46: 30 | I46: 720 | J46: 0.1497086111
D47: December | E47: 12 | F47: 0.043 | G47: 94.5914 | H47: 31 | I47: 744 | J47: 0.1271389785
D48: Total | F48: 1 | G48: =SUM(G36:G47) -> 2199.8 | H48: =SUM(H36:H47) -> 365 | I48: =SUM(I36:I47) -> 8760 | J48: 0.2511187215
B51: Capital Expenditure Assumptions
F52: Euro/kW | G52: kWp | H52: Euro
C53: Engineering, Procurement and Construction
D54: Panel Cost | F54: =Scenario!E16 -> 190 | G54: =$F$20 -> 6000 | H54: =F54*G54 -> 1140000
D55: Racking and Tracking | F55: 340 | G55: 6000 | H55: 2040000
D56: Balance of System and Inverter | F56: =Scenario!F16 -> 100 | G56: 6000 | H56: 600000
D57: Site Work (assume ineligible) | F57: 30 | G57: 6000 | H57: 180000
D58: Special Ineligible | F58: 0 | G58: 6000 | H58: 0
D59: Battery | F59: 0 | G59: 6000 | H59: 0
D60: Misc. (Tax, Margin, Other) | F60: 80 | G60: 6000 | H60: 480000
D61: Total EPC | F61: =SUM(F54:F60) -> 740 | G61: 6000 | H61: 4440000
C63: Development Costs
D64: Legal | F64: 15 | G64: =$F$20 -> 6000 | H64: =F64*G64 -> 90000
D65: Accounting/Model/Appr | F65: 5 | G65: =$F$20 -> 6000 | H65: =F65*G65 -> 30000
D66: Independent Eng | F66: 3 | G66: =$F$20 -> 6000 | H66: =F66*G66 -> 18000
D67: Misc. | F67: 4 | G67: =$F$20 -> 6000 | H67: =F67*G67 -> 24000
D68: Total Transaction Costs | F68: =SUM(F64:F67) -> 27 | G68: =$F$20 -> 6000 | H68: =SUM(H64:H67) -> 162000
B71: Operating Expense Assumptions | F71: Amount | G71: Inflation | H71: Inflation Start
C72: O&M Fee | E72: Euro/kW-yr | F72: =Scenario!M16/10 -> 5 | G72: 0.015 | H72: =F14 -> 2016-06-01
C73: Battery O&M | E73: Euro/kW-yr | F73: 0 | G73: 0.015 | H73: =$H$72 -> 2016-06-01
C74: Administration Accounting Etc | E74: Euro/kW-yr | F74: 4.5 | G74: 0.005 | H74: 2016-06-01
C75: Insurance Cost | E75: Euro/kW-yr | F75: 2.8 | G75: 0 | H75: 2016-06-01
C76: Rent/Lease Expense | E76: Euro/Yr | F76: 30000 | G76: 0 | H76: 2016-06-01
C77: Property Taxes | E77: Euro/Yr | F77: 0 | G77: 0 | H77: 2016-06-01
C78: Utility Connection Cost | E78: Euro/Yr | F78: 0 | G78: 0 | H78: 2016-06-01
C79: Consumpation of Project | E79: % | F79: 0 | G79: 0 | H79: 2016-06-01
C81: Inverter Replacement
D82: First Inverter Replacement | E82: Years | F82: 80 | G82: 15
D83: Second Inverter Replacement | E83: Years | F83: 80 | G83: 30
D85: First Inverter Replacement Date | E85: Date | F85: =EDATE(F14,F82*12) -> 2096-06-01
D86: Second Inverter Replacement Date | E86: Date | F86: =EDATE(F14,F83*12) -> 2096-06-01
D88: First Inverter Replacement | E88: Euro/kW | F88: 34 | G88: 0 | H88: =$H$72 -> 2016-06-01
D89: Second Inverter Replacement | E89: Euro/kW | F89: 25 | G89: 0 | H89: =$H$72 -> 2016-06-01
B91: Revenues
D92: Fixed Revenue Flag | E92: Flag | F92: TRUE
D93: Inflation in Fixed Revenue | E93: Flag | F93: TRUE
D95: Fixed Revenue per MWH | E95: Euro/MWH | F95: 45
D97: Merchant Sensitivity | F97: =Scenario!$K$16/100 -> 1.35
F99: =Scenario!F23 -> 2015 | G99: =Scenario!G23 -> 2019 | H99: =Scenario!H23 -> 2020 | I99: =Scenario!I23 -> 2021 | J99: =Scenario!J23 -> 2022 | K99: =Scenario!K23 -> 2023 | L99: =Scenario!L23 -> 2024 | M99: =Scenario!M23 -> 2025 | N99: =Scenario!N23 -> 2026 | O99: =Scenario!O23 -> 2027 | P99: =Scenario!P23 -> 2028 | Q99: =Scenario!Q23 -> 2029 | R99: =Scenario!R23 -> 2030 | S99: =Scenario!S23 -> 2031 | T99: =Scenario!T23 -> 2032 | U99: =Scenario!U23 -> 2033 | V99: =Scenario!V23 -> 2034 | W99: =Scenario!W23 -> 2035 | X99: =Scenario!X23 -> 2036 | Y99: =Scenario!Y23 -> 2037 | Z99: =Scenario!Z23 -> 2038 | AA99: =Scenario!AA23 -> 2039 | AB99: =Scenario!AB23 -> 2040 | AC99: =Scenario!AC23 -> 2041 | AD99: =Scenario!AD23 -> 2042 | AE99: =Scenario!AE23 -> 2043 | AF99: =Scenario!AF23 -> 2044 | AG99: =Scenario!AG23 -> 2045 | AH99: =Scenario!AH23 -> 2046 | AI99: =Scenario!AI23 -> 2047 | AJ99: =Scenario!AJ23 -> 2048 | AK99: =Scenario!AK23 -> 2049 | AL99: =Scenario!AL23 -> 2050 | AM99: =Scenario!AM23 -> 2051 | AN99: =Scenario!AN23 -> 2052 | AO99: =Scenario!AO23 -> 2053 | AP99: =Scenario!AP23 -> 2054 | AQ99: =Scenario!AQ23 -> 2055 | AR99: =Scenario!AR23 -> 2056 | AS99: =Scenario!AS23 -> 2057 | AT99: =Scenario!AT23 -> 2058
D100: =Scenario!$D$30 -> Scenario 1 | E100: Euro/MWH | F100: =Scenario!F30 -> 21.99 | G100: =Scenario!G30 -> 22.74 | H100: =Scenario!H30 -> 23.26 | I100: =Scenario!I30 -> 23.36 | J100: =Scenario!J30 -> 25.07 | K100: =Scenario!K30 -> 28.07 | L100: =Scenario!L30 -> 28.97 | M100: =Scenario!M30 -> 29.12 | N100: =Scenario!N30 -> 30.45 | O100: =Scenario!O30 -> 32.05 | P100: =Scenario!P30 -> 34.17 | Q100: =Scenario!Q30 -> 36.17 | R100: =Scenario!R30 -> 37.52 | S100: =Scenario!S30 -> 38.25 | T100: =Scenario!T30 -> 40.38 | U100: =Scenario!U30 -> 41.76 | V100: =Scenario!V30 -> 44.81 | W100: =Scenario!W30 -> 47.35 | X100: =Scenario!X30 -> 50.16 | Y100: =Scenario!Y30 -> 52.83 | Z100: =Scenario!Z30 -> 53.61 | AA100: =Scenario!AA30 -> 54.04 | AB100: =Scenario!AB30 -> 54.52 | AC100: =Scenario!AC30 -> 55.38 | AD100: =Scenario!AD30 -> 55.64 | AE100: =Scenario!AE30 -> 55.91 | AF100: =Scenario!AF30 -> 56.6 | AG100: =Scenario!AG30 -> 58.73 | AH100: =Scenario!AH30 -> 58.15 | AI100: =Scenario!AI30 -> 59.83 | AJ100: =Scenario!AJ30 -> 61.0266 | AK100: =Scenario!AK30 -> 62.247132 | AL100: =Scenario!AL30 -> 63.49207464 | AM100: =Scenario!AM30 -> 64.76191613 | AN100: =Scenario!AN30 -> 66.05715446 | AO100: =Scenario!AO30 -> 67.37829754 | AP100: =Scenario!AP30 -> 68.7258635 | AQ100: =Scenario!AQ30 -> 70.10038077 | AR100: =Scenario!AR30 -> 71.50238838 | AS100: =Scenario!AS30 -> 72.93243615 | AT100: =Scenario!AT30 -> 74.39108487
D101: =Scenario!$D$30 -> Scenario 1 | E101: Euro/MWH | F101: =$F$97*F100 -> 29.6865 | G101: =$F$97*G100 -> 30.699 | H101: 31.401 | I101: 31.536 | J101: 33.8445 | K101: 37.8945 | L101: 39.1095 | M101: 39.312 | N101: 41.1075 | O101: 43.2675 | P101: 46.1295 | Q101: 48.8295 | R101: 50.652 | S101: 51.6375 | T101: 54.513 | U101: 56.376 | V101: 60.4935 | W101: 63.9225 | X101: 67.716 | Y101: 71.3205 | Z101: 72.3735 | AA101: 72.954 | AB101: 73.602 | AC101: 74.763 | AD101: 75.114 | AE101: 75.4785 | AF101: 76.41 | AG101: 79.2855 | AH101: 78.5025 | AI101: 80.7705 | AJ101: 82.38591 | AK101: 84.0336282 | AL101: 85.71430076 | AM101: 87.42858678 | AN101: 89.17715851 | AO101: 90.96070169 | AP101: 92.77991572 | AQ101: 94.63551403 | AR101: 96.52822431 | AS101: 98.4587888 | AT101: 100.4279646
D103: LCOE Nominal Discout Rate | E103: % | F103: 0.07
D104: Inflation for LOCE | E104: % | F104: 0.02
C106: Crisis Over-ride
D107: Apply Crisis Assumptions | E107: Flag | F107: FALSE
D108: Crisis Start | E108: Date | F108: 2020-03-01
D109: Crisis End | E109: Date | F109: 2022-03-01
E112: =YEAR(Assumptions!F6) -> 2015 | F112: 2020 | G112: =F112+1 -> 2021 | H112: =G112+1 -> 2022 | I112: 2023 | J112: 2024
D113: January | E113: =CHOOSE(Scenario!$E$33,Scenario!E37,Scenario!E53,Scenario!E69) -> 1 | F113: =CHOOSE(Scenario!$E$33,Scenario!F37,Scenario!F53,Scenario!F69) -> 1 | G113: =CHOOSE(Scenario!$E$33,Scenario!G37,Scenario!G53,Scenario!G69) -> 0.1 | H113: =CHOOSE(Scenario!$E$33,Scenario!H37,Scenario!H53,Scenario!H69) -> 0.2 | I113: =CHOOSE(Scenario!$E$33,Scenario!I37,Scenario!I53,Scenario!I69) -> 0.45 | J113: =CHOOSE(Scenario!$E$33,Scenario!J37,Scenario!J53,Scenario!J69) -> 1
D114: February | E114: =CHOOSE(Scenario!$E$33,Scenario!E38,Scenario!E54,Scenario!E70) -> 1 | F114: =CHOOSE(Scenario!$E$33,Scenario!F38,Scenario!F54,Scenario!F70) -> 1 | G114: =CHOOSE(Scenario!$E$33,Scenario!G38,Scenario!G54,Scenario!G70) -> 0.1 | H114: =CHOOSE(Scenario!$E$33,Scenario!H38,Scenario!H54,Scenario!H70) -> 0.2 | I114: =CHOOSE(Scenario!$E$33,Scenario!I38,Scenario!I54,Scenario!I70) -> 0.45 | J114: =CHOOSE(Scenario!$E$33,Scenario!J38,Scenario!J54,Scenario!J70) -> 1
D115: March | E115: =CHOOSE(Scenario!$E$33,Scenario!E39,Scenario!E55,Scenario!E71) -> 1 | F115: =CHOOSE(Scenario!$E$33,Scenario!F39,Scenario!F55,Scenario!F71) -> 0.5 | G115: =CHOOSE(Scenario!$E$33,Scenario!G39,Scenario!G55,Scenario!G71) -> 0.1 | H115: =CHOOSE(Scenario!$E$33,Scenario!H39,Scenario!H55,Scenario!H71) -> 0.2 | I115: =CHOOSE(Scenario!$E$33,Scenario!I39,Scenario!I55,Scenario!I71) -> 0.45 | J115: =CHOOSE(Scenario!$E$33,Scenario!J39,Scenario!J55,Scenario!J71) -> 1
D116: April | E116: =CHOOSE(Scenario!$E$33,Scenario!E40,Scenario!E56,Scenario!E72) -> 1 | F116: =CHOOSE(Scenario!$E$33,Scenario!F40,Scenario!F56,Scenario!F72) -> 0.02 | G116: =CHOOSE(Scenario!$E$33,Scenario!G40,Scenario!G56,Scenario!G72) -> 0.1 | H116: =CHOOSE(Scenario!$E$33,Scenario!H40,Scenario!H56,Scenario!H72) -> 0.2 | I116: =CHOOSE(Scenario!$E$33,Scenario!I40,Scenario!I56,Scenario!I72) -> 0.45 | J116: =CHOOSE(Scenario!$E$33,Scenario!J40,Scenario!J56,Scenario!J72) -> 1
D117: May | E117: =CHOOSE(Scenario!$E$33,Scenario!E41,Scenario!E57,Scenario!E73) -> 1 | F117: =CHOOSE(Scenario!$E$33,Scenario!F41,Scenario!F57,Scenario!F73) -> 0.02 | G117: =CHOOSE(Scenario!$E$33,Scenario!G41,Scenario!G57,Scenario!G73) -> 0.1 | H117: =CHOOSE(Scenario!$E$33,Scenario!H41,Scenario!H57,Scenario!H73) -> 0.2 | I117: =CHOOSE(Scenario!$E$33,Scenario!I41,Scenario!I57,Scenario!I73) -> 0.45 | J117: =CHOOSE(Scenario!$E$33,Scenario!J41,Scenario!J57,Scenario!J73) -> 1
D118: June | E118: =CHOOSE(Scenario!$E$33,Scenario!E42,Scenario!E58,Scenario!E74) -> 1 | F118: =CHOOSE(Scenario!$E$33,Scenario!F42,Scenario!F58,Scenario!F74) -> 0.02 | G118: =CHOOSE(Scenario!$E$33,Scenario!G42,Scenario!G58,Scenario!G74) -> 0.1 | H118: =CHOOSE(Scenario!$E$33,Scenario!H42,Scenario!H58,Scenario!H74) -> 0.2 | I118: =CHOOSE(Scenario!$E$33,Scenario!I42,Scenario!I58,Scenario!I74) -> 0.45 | J118: =CHOOSE(Scenario!$E$33,Scenario!J42,Scenario!J58,Scenario!J74) -> 1
D119: July | E119: =CHOOSE(Scenario!$E$33,Scenario!E43,Scenario!E59,Scenario!E75) -> 1 | F119: =CHOOSE(Scenario!$E$33,Scenario!F43,Scenario!F59,Scenario!F75) -> 0.02 | G119: =CHOOSE(Scenario!$E$33,Scenario!G43,Scenario!G59,Scenario!G75) -> 0.1 | H119: =CHOOSE(Scenario!$E$33,Scenario!H43,Scenario!H59,Scenario!H75) -> 0.3 | I119: =CHOOSE(Scenario!$E$33,Scenario!I43,Scenario!I59,Scenario!I75) -> 0.45 | J119: =CHOOSE(Scenario!$E$33,Scenario!J43,Scenario!J59,Scenario!J75) -> 1
D120: August | E120: =CHOOSE(Scenario!$E$33,Scenario!E44,Scenario!E60,Scenario!E76) -> 1 | F120: =CHOOSE(Scenario!$E$33,Scenario!F44,Scenario!F60,Scenario!F76) -> 0.02 | G120: =CHOOSE(Scenario!$E$33,Scenario!G44,Scenario!G60,Scenario!G76) -> 0.1 | H120: =CHOOSE(Scenario!$E$33,Scenario!H44,Scenario!H60,Scenario!H76) -> 0.3 | I120: =CHOOSE(Scenario!$E$33,Scenario!I44,Scenario!I60,Scenario!I76) -> 0.5 | J120: =CHOOSE(Scenario!$E$33,Scenario!J44,Scenario!J60,Scenario!J76) -> 1
D121: September | E121: =CHOOSE(Scenario!$E$33,Scenario!E45,Scenario!E61,Scenario!E77) -> 1 | F121: =CHOOSE(Scenario!$E$33,Scenario!F45,Scenario!F61,Scenario!F77) -> 0.05 | G121: =CHOOSE(Scenario!$E$33,Scenario!G45,Scenario!G61,Scenario!G77) -> 0.15 | H121: =CHOOSE(Scenario!$E$33,Scenario!H45,Scenario!H61,Scenario!H77) -> 0.3 | I121: =CHOOSE(Scenario!$E$33,Scenario!I45,Scenario!I61,Scenario!I77) -> 0.6 | J121: =CHOOSE(Scenario!$E$33,Scenario!J45,Scenario!J61,Scenario!J77) -> 1
D122: October | E122: =CHOOSE(Scenario!$E$33,Scenario!E46,Scenario!E62,Scenario!E78) -> 1 | F122: =CHOOSE(Scenario!$E$33,Scenario!F46,Scenario!F62,Scenario!F78) -> 0.1 | G122: =CHOOSE(Scenario!$E$33,Scenario!G46,Scenario!G62,Scenario!G78) -> 0.15 | H122: =CHOOSE(Scenario!$E$33,Scenario!H46,Scenario!H62,Scenario!H78) -> 0.3 | I122: =CHOOSE(Scenario!$E$33,Scenario!I46,Scenario!I62,Scenario!I78) -> 0.7 | J122: =CHOOSE(Scenario!$E$33,Scenario!J46,Scenario!J62,Scenario!J78) -> 1
D123: November | E123: =CHOOSE(Scenario!$E$33,Scenario!E47,Scenario!E63,Scenario!E79) -> 1 | F123: =CHOOSE(Scenario!$E$33,Scenario!F47,Scenario!F63,Scenario!F79) -> 0.1 | G123: =CHOOSE(Scenario!$E$33,Scenario!G47,Scenario!G63,Scenario!G79) -> 0.15 | H123: =CHOOSE(Scenario!$E$33,Scenario!H47,Scenario!H63,Scenario!H79) -> 0.4 | I123: =CHOOSE(Scenario!$E$33,Scenario!I47,Scenario!I63,Scenario!I79) -> 0.9 | J123: =CHOOSE(Scenario!$E$33,Scenario!J47,Scenario!J63,Scenario!J79) -> 1
D124: December | E124: =CHOOSE(Scenario!$E$33,Scenario!E48,Scenario!E64,Scenario!E80) -> 1 | F124: =CHOOSE(Scenario!$E$33,Scenario!F48,Scenario!F64,Scenario!F80) -> 0.1 | G124: =CHOOSE(Scenario!$E$33,Scenario!G48,Scenario!G64,Scenario!G80) -> 0.15 | H124: =CHOOSE(Scenario!$E$33,Scenario!H48,Scenario!H64,Scenario!H80) -> 0.4 | I124: =CHOOSE(Scenario!$E$33,Scenario!I48,Scenario!I64,Scenario!I80) -> 0.9 | J124: =CHOOSE(Scenario!$E$33,Scenario!J48,Scenario!J64,Scenario!J80) -> 1
B126: Tax and Depreciation
C127: Depreciation Life | E127: Years | F127: 10
C128: Tax Rate | E128: % | F128: 0.3
B130: Financing
C131: Debt Size
D132: Minimum DSCR | E132: x | F132: =G132/100 -> 1.45 | G132: 145
D133: Maximum Debt to Capital | E133: % | F133: 0.8
C135: Funding
D136: Equity Up-Front Funding | E136: % | F136: 0.4
D137: Equity Pro-Rata | E137: % | F137: =1-F136 -> 0.6
C139: Repayment
D140: Tenor | E140: Years | F140: =G140 -> 20 | G140: 20
D141: Start of Repayment | E141: Date | F141: =F14 -> 2016-06-01
D142: Maturity Date | E142: Date | F142: =EDATE(F14,F140*12) -> 2036-06-01
D143: Fixed Repayments | E143: Flag | F143: FALSE
C145: Interest and Fees
D146: Base Rate | E146: % p.a | F146: 0.018 | G146: 0.022
F147: =F6 -> 2015-09-01 | G147: =F14 -> 2016-06-01 | H147: =EDATE(G147,60) -> 2021-06-01 | I147: =EDATE(H147,60) -> 2026-06-01 | J147: 2031-06-01
D148: Credit Spread | E148: % p.a | F148: 0.015 | G148: 0.016 | H148: 0.0165 | I148: 0.0167 | J148: 0.017
D149: Credit Spread | E149: % p.a | F149: 0.015 | G149: 0.016 | H149: 0.017 | I149: 0.018 | J149: 0.019
D151: Up-Front Fee | E151: % | F151: 0.015
D152: Commitment Fee | E152: % | F152: 0.007
C154: DSRA Months | E154: Months | F154: 6
C156: Cash Sweep Start Date | E156: Date | F156: =F14 -> 2016-06-01
C157: Cash Sweep | E157: % | F157: =G157/100 -> 0 | G157: 0
F175: =D36 -> January | G175: =J36 -> 0.1596629032
F176: February | G176: 0.20623125
F177: March | G177: 0.2631481183
F178: April | G178: 0.2871961111
F179: May | G179: 0.3134123656
F180: June | G180: 0.3330252778
F181: July | G181: 0.3548064516
F182: August | G182: 0.316369086
F183: September | G183: 0.28872375
F184: October | G184: 0.2114055108
F185: November | G185: 0.1497086111
F186: December | G186: 0.1271389785
F187: Total | G187: 0.2511187215

Sheet Scenario
B2: General Assumptions
C3: Scenario Number | E3: 1
E5: Panel Cost | F5: Balance | G5: Yield | H5: Performace | I5: Construction | J5: Operating | K5: Merchant | L5: Merchant | M5: O&M per | N5: Lease
E6: Euro/kW | F6: of System | G6: kWh/kWp | H6: Ratio | I6: Periods | J6: Life | K6: Multiplier | L6: Code | M6: kWy | N6: Expense | Q6: Equity Irr | R6: =Summary!F5 -> 0.09106610119
C7: Base Case | E7: 190 | F7: 100 | G7: 2588 | H7: 0.85 | I7: 5 | J7: 25 | K7: 1.35 | L7: 1 | M7: 5 | N7: 20000
C8: Downside Case | E8: 220 | F8: 150 | G8: 2400 | H8: 0.82 | I8: 5 | J8: 22 | K8: 1.25 | L8: 1 | M8: 8 | N8: 30000
C9: Delay Case | E9: 190 | F9: 100 | G9: 2588 | H9: 0.85 | I9: 20 | J9: 25 | K9: 1.2 | L9: 1 | M9: 5 | N9: 20000
C10: California | E10: 400 | F10: 330 | G10: 2500 | H10: 0.85 | I10: 5 | J10: 30 | K10: 1.5 | L10: 3 | M10: 7.5 | N10: 40000
C11: Mexico | E11: 190 | F11: 100 | G11: 2600 | H11: 0.83 | I11: 5 | J11: 30 | K11: 1.1 | L11: 2 | M11: 5 | N11: 10000
C12: Middle East | E12: 180 | F12: 100 | G12: 2700 | H12: 0.8 | I12: 5 | J12: 30 | K12: 1.1 | L12: 2 | M12: 5 | N12: 0
C14: =INDEX(C7:C12,$E$3) -> Base Case | E14: =INDEX(E7:E12,$E$3) -> 190 | F14: =INDEX(F7:F12,$E$3) -> 100 | G14: =INDEX(G7:G12,$E$3) -> 2588 | H14: =INDEX(H7:H12,$E$3) -> 0.85 | I14: =INDEX(I7:I12,$E$3) -> 5 | J14: =INDEX(J7:J12,$E$3) -> 25 | K14: =INDEX(K7:K12,$E$3) -> 1.35 | L14: =INDEX(L7:L12,$E$3) -> 1 | M14: =INDEX(M7:M12,$E$3) -> 5 | N14: =INDEX(N7:N12,$E$3) -> 20000 | O14: Index
C16: Applied | E16: 190 | F16: 100 | G16: 2588 | H16: 85 | I16: 5 | J16: 25 | K16: 135 | L16: 1 | M16: 50 | N16: 20000 | O16: Applied
B18: Revenue Assumptions - Price per MWH
C20: Revenue Scenario Code | F20: =L16 -> 1
D22: Scenarios | E22: Euro/MWH
F23: =YEAR(Assumptions!F6) -> 2015 | G23: 2019 | H23: 2020 | I23: 2021 | J23: 2022 | K23: 2023 | L23: 2024 | M23: 2025 | N23: 2026 | O23: 2027 | P23: 2028 | Q23: 2029 | R23: 2030 | S23: 2031 | T23: 2032 | U23: 2033 | V23: 2034 | W23: 2035 | X23: 2036 | Y23: 2037 | Z23: 2038 | AA23: 2039 | AB23: 2040 | AC23: 2041 | AD23: 2042 | AE23: 2043 | AF23: 2044 | AG23: 2045 | AH23: 2046 | AI23: 2047 | AJ23: 2048 | AK23: 2049 | AL23: 2050 | AM23: 2051 | AN23: 2052 | AO23: 2053 | AP23: 2054 | AQ23: 2055 | AR23: 2056 | AS23: 2057 | AT23: 2058
D24: Scenario 1 | F24: 21.99 | G24: 22.74 | H24: 23.26 | I24: 23.36 | J24: 25.07 | K24: 28.07 | L24: 28.97 | M24: 29.12 | N24: 30.45 | O24: 32.05 | P24: 34.17 | Q24: 36.17 | R24: 37.52 | S24: 38.25 | T24: 40.38 | U24: 41.76 | V24: 44.81 | W24: 47.35 | X24: 50.16 | Y24: 52.83 | Z24: 53.61 | AA24: 54.04 | AB24: 54.52 | AC24: 55.38 | AD24: 55.64 | AE24: 55.91 | AF24: 56.6 | AG24: 58.73 | AH24: 58.15 | AI24: 59.83 | AJ24: 61.0266 | AK24: 62.247132 | AL24: 63.49207464 | AM24: 64.76191613 | AN24: 66.05715446 | AO24: 67.37829754 | AP24: 68.7258635 | AQ24: 70.10038077 | AR24: 71.50238838 | AS24: 72.93243615 | AT24: 74.39108487
D25: Scenario 2 | F25: 29.09 | G25: 30 | H25: 30.92 | I25: 30.7 | J25: 33.25 | K25: 35.98 | L25: 36.94 | M25: 37.35 | N25: 38.93 | O25: 40.62 | P25: 42.57 | Q25: 45.12 | R25: 46.06 | S25: 46.55 | T25: 48.52 | U25: 50.18 | V25: 54.06 | W25: 55.7 | X25: 58.63 | Y25: 61.87 | Z25: 62.43 | AA25: 62.46 | AB25: 62.61 | AC25: 64.09 | AD25: 63.99 | AE25: 64.61 | AF25: 64.93 | AG25: 66.81 | AH25: 67.01 | AI25: 68.46 | AJ25: 69.8292 | AK25: 71.225784 | AL25: 72.65029968 | AM25: 74.10330567 | AN25: 75.58537179 | AO25: 77.09707922 | AP25: 78.63902081 | AQ25: 80.21180122 | AR25: 81.81603725 | AS25: 83.45235799 | AT25: 85.12140515
D26: Scenario 3 | F26: 29.09 | G26: 30 | H26: 30.8 | I26: 30.54 | J26: 33.11 | K26: 36.15 | L26: 37.31 | M26: 38.17 | N26: 40.12 | O26: 42.01 | P26: 44.68 | Q26: 47.16 | R26: 48.79 | S26: 50.1 | T26: 52.69 | U26: 54.09 | V26: 57.33 | W26: 60.38 | X26: 63.61 | Y26: 67.43 | Z26: 71.35 | AA26: 71.01 | AB26: 71.57 | AC26: 72.37 | AD26: 73.63 | AE26: 73.38 | AF26: 71.69 | AG26: 72.31 | AH26: 71.67 | AI26: 72.19 | AJ26: 73.6338 | AK26: 75.106476 | AL26: 76.60860552 | AM26: 78.14077763 | AN26: 79.70359318 | AO26: 81.29766505 | AP26: 82.92361835 | AQ26: 84.58209071 | AR26: 86.27373253 | AS26: 87.99920718 | AT26: 89.75919132
D27: Scenario 4 | F27: 36.13 | G27: 37.35 | H27: 38.26 | I27: 38.13 | J27: 40.6 | K27: 44.32 | L27: 45.25 | M27: 46.24 | N27: 48.7 | O27: 50.6 | P27: 53.35 | Q27: 56.14 | R27: 57.59 | S27: 59.01 | T27: 61.69 | U27: 63.41 | V27: 66.74 | W27: 69.56 | X27: 72.45 | Y27: 76.31 | Z27: 80.1 | AA27: 79.49 | AB27: 79.85 | AC27: 80.62 | AD27: 82 | AE27: 81.18 | AF27: 79.87 | AG27: 80 | AH27: 79.37 | AI27: 80.13 | AJ27: 81.7326 | AK27: 83.367252 | AL27: 85.03459704 | AM27: 86.73528898 | AN27: 88.46999476 | AO27: 90.23939466 | AP27: 92.04418255 | AQ27: 93.8850662 | AR27: 95.76276752 | AS27: 97.67802287 | AT27: 99.63158333
D28: Scenario 5 | F28: 29.09 | G28: 29.6718 | H28: 30.265236 | I28: 30.87054072 | J28: 31.48795153 | K28: 32.11771057 | L28: 32.76006478 | M28: 33.41526607 | N28: 34.08357139 | O28: 34.76524282 | P28: 35.46054768 | Q28: 36.16975863 | R28: 36.8931538 | S28: 37.63101688 | T28: 38.38363722 | U28: 39.15130996 | V28: 39.93433616 | W28: 40.73302288 | X28: 41.54768334 | Y28: 42.37863701 | Z28: 43.22620975 | AA28: 44.09073394 | AB28: 44.97254862 | AC28: 45.8719996 | AD28: 46.78943959 | AE28: 47.72522838 | AF28: 48.67973295 | AG28: 49.65332761 | AH28: 50.64639416 | AI28: 51.65932204 | AJ28: 52.69250848 | AK28: 53.74635865 | AL28: 54.82128582 | AM28: 55.91771154 | AN28: 57.03606577 | AO28: 58.17678709 | AP28: 59.34032283 | AQ28: 60.52712929 | AR28: 61.73767187 | AS28: 62.97242531 | AT28: 64.23187381
D30: =INDEX(D24:D28,$F$20) -> Scenario 1 | E30: =K14 -> 1.35 | F30: =INDEX(F24:F28,$F$20) -> 21.99 | G30: =INDEX(G24:G28,$F$20) -> 22.74 | H30: =INDEX(H24:H28,$F$20) -> 23.26 | I30: =INDEX(I24:I28,$F$20) -> 23.36 | J30: =INDEX(J24:J28,$F$20) -> 25.07 | K30: =INDEX(K24:K28,$F$20) -> 28.07 | L30: =INDEX(L24:L28,$F$20) -> 28.97 | M30: =INDEX(M24:M28,$F$20) -> 29.12 | N30: =INDEX(N24:N28,$F$20) -> 30.45 | O30: =INDEX(O24:O28,$F$20) -> 32.05 | P30: =INDEX(P24:P28,$F$20) -> 34.17 | Q30: =INDEX(Q24:Q28,$F$20) -> 36.17 | R30: =INDEX(R24:R28,$F$20) -> 37.52 | S30: =INDEX(S24:S28,$F$20) -> 38.25 | T30: =INDEX(T24:T28,$F$20) -> 40.38 | U30: =INDEX(U24:U28,$F$20) -> 41.76 | V30: =INDEX(V24:V28,$F$20) -> 44.81 | W30: =INDEX(W24:W28,$F$20) -> 47.35 | X30: =INDEX(X24:X28,$F$20) -> 50.16 | Y30: =INDEX(Y24:Y28,$F$20) -> 52.83 | Z30: =INDEX(Z24:Z28,$F$20) -> 53.61 | AA30: =INDEX(AA24:AA28,$F$20) -> 54.04 | AB30: =INDEX(AB24:AB28,$F$20) -> 54.52 | AC30: =INDEX(AC24:AC28,$F$20) -> 55.38 | AD30: =INDEX(AD24:AD28,$F$20) -> 55.64 | AE30: =INDEX(AE24:AE28,$F$20) -> 55.91 | AF30: =INDEX(AF24:AF28,$F$20) -> 56.6 | AG30: =INDEX(AG24:AG28,$F$20) -> 58.73 | AH30: =INDEX(AH24:AH28,$F$20) -> 58.15 | AI30: =INDEX(AI24:AI28,$F$20) -> 59.83 | AJ30: =INDEX(AJ24:AJ28,$F$20) -> 61.0266 | AK30: =INDEX(AK24:AK28,$F$20) -> 62.247132 | AL30: =INDEX(AL24:AL28,$F$20) -> 63.49207464 | AM30: =INDEX(AM24:AM28,$F$20) -> 64.76191613 | AN30: =INDEX(AN24:AN28,$F$20) -> 66.05715446 | AO30: =INDEX(AO24:AO28,$F$20) -> 67.37829754 | AP30: =INDEX(AP24:AP28,$F$20) -> 68.7258635 | AQ30: =INDEX(AQ24:AQ28,$F$20) -> 70.10038077 | AR30: =INDEX(AR24:AR28,$F$20) -> 71.50238838 | AS30: =INDEX(AS24:AS28,$F$20) -> 72.93243615 | AT30: =INDEX(AT24:AT28,$F$20) -> 74.39108487
B32: Crisis Assumptions
C33: Crisis Scenario Code | E33: 3
C35: Crisis Scenario 1
E36: 2016 | F36: 2020 | G36: =F36+1 -> 2021 | H36: =G36+1 -> 2022 | I36: 2023 | J36: 2024 | M36: Base Rebound
D37: January | E37: 1 | F37: 1 | G37: 0.15 | H37: 0.5 | I37: 0.9 | J37: 1 | M37: Longer Case
D38: February | E38: 1 | F38: 1 | G38: 0.15 | H38: 0.5 | I38: 0.9 | J38: 1 | M38: Worst Case
D39: March | E39: 1 | F39: 0.5 | G39: 0.15 | H39: 0.5 | I39: 0.9 | J39: 1
D40: April | E40: 1 | F40: 0.1 | G40: 0.15 | H40: 0.5 | I40: 0.9 | J40: 1
D41: May | E41: 1 | F41: 0.1 | G41: 0.25 | H41: 0.8 | I41: 1 | J41: 1
D42: June | E42: 1 | F42: 0.1 | G42: 0.25 | H42: 0.8 | I42: 1 | J42: 1
D43: July | E43: 1 | F43: 0.1 | G43: 0.25 | H43: 0.8 | I43: 1 | J43: 1
D44: August | E44: 1 | F44: 0.15 | G44: 0.25 | H44: 0.8 | I44: 1 | J44: 1
D45: September | E45: 1 | F45: 0.15 | G45: 0.25 | H45: 0.8 | I45: 1 | J45: 1
D46: October | E46: 1 | F46: 0.15 | G46: 0.45 | H46: 0.9 | I46: 1 | J46: 1
D47: November | E47: 1 | F47: 0.15 | G47: 0.45 | H47: 0.9 | I47: 1 | J47: 1
D48: December | E48: 1 | F48: 0.15 | G48: 0.45 | H48: 0.9 | I48: 1 | J48: 1
C51: Crisis Scenario 2
E52: 2016 | F52: 2020 | G52: =F52+1 -> 2021 | H52: =G52+1 -> 2022 | I52: 2023 | J52: 2024
D53: January | E53: 1 | F53: 1 | G53: 0.15 | H53: 0.3 | I53: 0.5 | J53: 1
D54: February | E54: 1 | F54: 1 | G54: 0.15 | H54: 0.3 | I54: 0.5 | J54: 1
D55: March | E55: 1 | F55: 0.5 | G55: 0.15 | H55: 0.3 | I55: 0.5 | J55: 1
D56: April | E56: 1 | F56: 0.1 | G56: 0.15 | H56: 0.3 | I56: 0.5 | J56: 1
D57: May | E57: 1 | F57: 0.1 | G57: 0.25 | H57: 0.4 | I57: 0.5 | J57: 1
D58: June | E58: 1 | F58: 0.1 | G58: 0.25 | H58: 0.4 | I58: 0.6 | J58: 1
D59: July | E59: 1 | F59: 0.1 | G59: 0.25 | H59: 0.4 | I59: 0.6 | J59: 1
D60: August | E60: 1 | F60: 0.15 | G60: 0.25 | H60: 0.4 | I60: 0.8 | J60: 1
D61: September | E61: 1 | F61: 0.15 | G61: 0.25 | H61: 0.4 | I61: 0.8 | J61: 1
D62: October | E62: 1 | F62: 0.15 | G62: 0.3 | H62: 0.5 | I62: 0.8 | J62: 1
D63: November | E63: 1 | F63: 0.15 | G63: 0.3 | H63: 0.5 | I63: 0.8 | J63: 1
D64: December | E64: 1 | F64: 0.15 | G64: 0.3 | H64: 0.5 | I64: 0.8 | J64: 1
C67: Crisis Scenario 3
E68: 2016 | F68: 2020 | G68: =F68+1 -> 2021 | H68: =G68+1 -> 2022 | I68: 2023 | J68: 2024
D69: January | E69: 1 | F69: 1 | G69: 0.1 | H69: 0.2 | I69: 0.45 | J69: 1
D70: February | E70: 1 | F70: 1 | G70: 0.1 | H70: 0.2 | I70: 0.45 | J70: 1
D71: March | E71: 1 | F71: 0.5 | G71: 0.1 | H71: 0.2 | I71: 0.45 | J71: 1
D72: April | E72: 1 | F72: 0.02 | G72: 0.1 | H72: 0.2 | I72: 0.45 | J72: 1
D73: May | E73: 1 | F73: 0.02 | G73: 0.1 | H73: 0.2 | I73: 0.45 | J73: 1
D74: June | E74: 1 | F74: 0.02 | G74: 0.1 | H74: 0.2 | I74: 0.45 | J74: 1
D75: July | E75: 1 | F75: 0.02 | G75: 0.1 | H75: 0.3 | I75: 0.45 | J75: 1
D76: August | E76: 1 | F76: 0.02 | G76: 0.1 | H76: 0.3 | I76: 0.5 | J76: 1
D77: September | E77: 1 | F77: 0.05 | G77: 0.15 | H77: 0.3 | I77: 0.6 | J77: 1
D78: October | E78: 1 | F78: 0.1 | G78: 0.15 | H78: 0.3 | I78: 0.7 | J78: 1
D79: November | E79: 1 | F79: 0.1 | G79: 0.15 | H79: 0.4 | I79: 0.9 | J79: 1
D80: December | E80: 1 | F80: 0.1 | G80: 0.15 | H80: 0.4 | I80: 0.9 | J80: 1
F85: 1 | G85: =IF(F85=12,1,F85+1) -> 2 | H85: 3 | I85: 4 | J85: 5 | K85: 6 | L85: 7 | M85: 8 | N85: 9 | O85: 10 | P85: 11 | Q85: 12 | R85: 1 | S85: 2 | T85: 3 | U85: 4 | V85: 5 | W85: 6 | X85: 7 | Y85: 8 | Z85: 9 | AA85: 10 | AB85: 11 | AC85: 12 | AD85: 1 | AE85: 2 | AF85: 3 | AG85: 4 | AH85: 5 | AI85: 6 | AJ85: 7 | AK85: 8 | AL85: 9 | AM85: =IF(AL85=12,1,AL85+1) -> 10 | AN85: 11 | AO85: 12 | AP85: 1 | AQ85: 2 | AR85: 3 | AS85: 4 | AT85: 5 | AU85: 6 | AV85: 7 | AW85: 8 | AX85: 9 | AY85: 10 | AZ85: 11 | BA85: 12 | BB85: 1 | BC85: 2 | BD85: 3 | BE85: 4 | BF85: 5 | BG85: 6 | BH85: 7 | BI85: 8 | BJ85: 9 | BK85: 10 | BL85: 11 | BM85: 12 | BN85: 1
F86: =YEAR(Assumptions!F6) -> 2015 | G86: =IF(G85=1,F86+1,F86) -> 2015 | H86: 2015 | I86: 2015 | J86: 2015 | K86: 2015 | L86: 2015 | M86: 2015 | N86: 2015 | O86: 2015 | P86: 2015 | Q86: 2015 | R86: 2016 | S86: 2016 | T86: 2016 | U86: 2016 | V86: 2016 | W86: 2016 | X86: 2016 | Y86: 2016 | Z86: 2016 | AA86: 2016 | AB86: 2016 | AC86: 2016 | AD86: 2017 | AE86: 2017 | AF86: 2017 | AG86: 2017 | AH86: 2017 | AI86: 2017 | AJ86: 2017 | AK86: 2017 | AL86: 2017 | AM86: =IF(AM85=1,AL86+1,AL86) -> 2017 | AN86: 2017 | AO86: 2017 | AP86: 2018 | AQ86: 2018 | AR86: 2018 | AS86: 2018 | AT86: 2018 | AU86: 2018 | AV86: 2018 | AW86: 2018 | AX86: 2018 | AY86: 2018 | AZ86: 2018 | BA86: 2018 | BB86: 2019 | BC86: 2019 | BD86: 2019 | BE86: 2019 | BF86: 2019 | BG86: 2019 | BH86: 2019 | BI86: 2019 | BJ86: 2019 | BK86: 2019 | BL86: 2019 | BM86: 2019 | BN86: 2020
F87: =DATE(F86,F85,1) -> 2015-01-01 | G87: 2015-02-01 | H87: 2015-03-01 | I87: 2015-04-01 | J87: 2015-05-01 | K87: 2015-06-01 | L87: 2015-07-01 | M87: 2015-08-01 | N87: 2015-09-01 | O87: 2015-10-01 | P87: 2015-11-01 | Q87: 2015-12-01 | R87: 2016-01-01 | S87: 2016-02-01 | T87: 2016-03-01 | U87: 2016-04-01 | V87: 2016-05-01 | W87: 2016-06-01 | X87: 2016-07-01 | Y87: 2016-08-01 | Z87: 2016-09-01 | AA87: 2016-10-01 | AB87: 2016-11-01 | AC87: 2016-12-01 | AD87: 2017-01-01 | AE87: 2017-02-01 | AF87: 2017-03-01 | AG87: 2017-04-01 | AH87: 2017-05-01 | AI87: 2017-06-01 | AJ87: 2017-07-01 | AK87: 2017-08-01 | AL87: =DATE(AL86,AL85,1) -> 2017-09-01 | AM87: 2017-10-01 | AN87: 2017-11-01 | AO87: 2017-12-01 | AP87: 2018-01-01 | AQ87: 2018-02-01 | AR87: 2018-03-01 | AS87: 2018-04-01 | AT87: 2018-05-01 | AU87: 2018-06-01 | AV87: 2018-07-01 | AW87: 2018-08-01 | AX87: 2018-09-01 | AY87: 2018-10-01 | AZ87: 2018-11-01 | BA87: 2018-12-01 | BB87: 2019-01-01 | BC87: 2019-02-01 | BD87: 2019-03-01 | BE87: 2019-04-01 | BF87: 2019-05-01 | BG87: 2019-06-01 | BH87: 2019-07-01 | BI87: 2019-08-01 | BJ87: 2019-09-01 | BK87: 2019-10-01 | BL87: 2019-11-01 | BM87: 2019-12-01 | BN87: 2020-01-01
D88: Percent Reduction in Price | F88: =TRANSPOSE(Assumptions!E113:E124) -> 1 | G88: 1 | H88: 1 | I88: 1 | J88: 1 | K88: 1 | L88: 1 | M88: 1 | N88: 1 | O88: 1 | P88: 1 | Q88: 1 | R88: =TRANSPOSE(Assumptions!F113:F124) -> 1 | S88: 1 | T88: 0.5 | U88: 0.02 | V88: 0.02 | W88: 0.02 | X88: 0.02 | Y88: 0.02 | Z88: 0.05 | AA88: 0.1 | AB88: 0.1 | AC88: 0.1 | AD88: =TRANSPOSE(Assumptions!G113:G124) -> 0.1 | AE88: 0.1 | AF88: 0.1 | AG88: 0.1 | AH88: 0.1 | AI88: 0.1 | AJ88: 0.1 | AK88: 0.1 | AL88: 0.15 | AM88: 0.15 | AN88: 0.15 | AO88: 0.15 | AP88: =TRANSPOSE(Assumptions!H113:H124) -> 0.2 | AQ88: 0.2 | AR88: 0.2 | AS88: 0.2 | AT88: 0.2 | AU88: 0.2 | AV88: 0.3 | AW88: 0.3 | AX88: 0.3 | AY88: 0.3 | AZ88: 0.4 | BA88: 0.4 | BB88: =TRANSPOSE(Assumptions!I113:I124) -> 0.45 | BC88: 0.45 | BD88: 0.45 | BE88: 0.45 | BF88: 0.45 | BG88: 0.45 | BH88: 0.45 | BI88: 0.5 | BJ88: 0.6 | BK88: 0.7 | BL88: 0.9 | BM88: 0.9
D89: =M36 -> Base Rebound | E89: 1 | F89: 1 | G89: 1 | H89: 1 | I89: 1 | J89: 1 | K89: 1 | L89: 1 | M89: 1 | N89: 1 | O89: 1 | P89: 1 | Q89: 1 | R89: 1 | S89: 1 | T89: 0.5 | U89: 0.1 | V89: 0.1 | W89: 0.1 | X89: 0.1 | Y89: 0.15 | Z89: 0.15 | AA89: 0.15 | AB89: 0.15 | AC89: 0.15 | AD89: 0.15 | AE89: 0.15 | AF89: 0.15 | AG89: 0.15 | AH89: 0.25 | AI89: 0.25 | AJ89: 0.25 | AK89: 0.25 | AL89: 0.25 | AM89: 0.45 | AN89: 0.45 | AO89: 0.45 | AP89: 0.5 | AQ89: 0.5 | AR89: 0.5 | AS89: 0.5 | AT89: 0.8 | AU89: 0.8 | AV89: 0.8 | AW89: 0.8 | AX89: 0.8 | AY89: 0.9 | AZ89: 0.9 | BA89: 0.9 | BB89: 0.9 | BC89: 0.9 | BD89: 0.9 | BE89: 0.9 | BF89: 1 | BG89: 1 | BH89: 1 | BI89: 1 | BJ89: 1 | BK89: 1 | BL89: 1 | BM89: 1
D90: =M37 -> Longer Case | E90: 2 | F90: 1 | G90: 1 | H90: 1 | I90: 1 | J90: 1 | K90: 1 | L90: 1 | M90: 1 | N90: 1 | O90: 1 | P90: 1 | Q90: 1 | R90: 1 | S90: 1 | T90: 0.5 | U90: 0.1 | V90: 0.1 | W90: 0.1 | X90: 0.1 | Y90: 0.15 | Z90: 0.15 | AA90: 0.15 | AB90: 0.15 | AC90: 0.15 | AD90: 0.15 | AE90: 0.15 | AF90: 0.15 | AG90: 0.15 | AH90: 0.25 | AI90: 0.25 | AJ90: 0.25 | AK90: 0.25 | AL90: 0.25 | AM90: 0.3 | AN90: 0.3 | AO90: 0.3 | AP90: 0.3 | AQ90: 0.3 | AR90: 0.3 | AS90: 0.3 | AT90: 0.4 | AU90: 0.4 | AV90: 0.4 | AW90: 0.4 | AX90: 0.4 | AY90: 0.5 | AZ90: 0.5 | BA90: 0.5 | BB90: 0.5 | BC90: 0.5 | BD90: 0.5 | BE90: 0.5 | BF90: 0.5 | BG90: 0.6 | BH90: 0.6 | BI90: 0.8 | BJ90: 0.8 | BK90: 0.8 | BL90: 0.8 | BM90: 0.8
D91: Worst Case | E91: 3 | F91: 1 | G91: 1 | H91: 1 | I91: 1 | J91: 1 | K91: 1 | L91: 1 | M91: 1 | N91: 1 | O91: 1 | P91: 1 | Q91: 1 | R91: 1 | S91: 1 | T91: 0.5 | U91: 0.02 | V91: 0.02 | W91: 0.02 | X91: 0.02 | Y91: 0.02 | Z91: 0.05 | AA91: 0.1 | AB91: 0.1 | AC91: 0.1 | AD91: 0.1 | AE91: 0.1 | AF91: 0.1 | AG91: 0.1 | AH91: 0.1 | AI91: 0.1 | AJ91: 0.1 | AK91: 0.1 | AL91: 0.15 | AM91: 0.15 | AN91: 0.15 | AO91: 0.15 | AP91: 0.2 | AQ91: 0.2 | AR91: 0.2 | AS91: 0.2 | AT91: 0.2 | AU91: 0.2 | AV91: 0.3 | AW91: 0.3 | AX91: 0.3 | AY91: 0.3 | AZ91: 0.4 | BA91: 0.4 | BB91: 0.45 | BC91: 0.45 | BD91: 0.45 | BE91: 0.45 | BF91: 0.45 | BG91: 0.45 | BH91: 0.45 | BI91: 0.5 | BJ91: 0.6 | BK91: 0.7 | BL91: 0.9 | BM91: 0.9
D94: Start Date
F95: 2015-01-01
F96: =EDATE(F95,1) -> 2015-02-01 | J96: 9
F97: =EDATE(F96,1) -> 2015-03-01
F98: 2015-04-01 | H98: =INDEX(F95:F106,J96) -> 2015-09-01
F99: 2015-05-01
F100: 2015-06-01
F101: 2015-07-01
F102: 2015-08-01
F103: 2015-09-01
F104: 2015-10-01
F105: 2015-11-01
F106: 2015-12-01

Sheet Operating Model
F1: Unit | G1: Driver | H1: Driver | I1: Sum | J1: Start
B2: Timeline
C3: Period | F3: Period | J3: 0 | K3: 1 | L3: 2 | M3: 3 | N3: 4 | O3: 5 | P3: 6 | Q3: 7 | R3: 8 | S3: 9 | T3: 10 | U3: 11 | V3: 12 | W3: 13 | X3: 14 | Y3: 15 | Z3: 16 | AA3: 17 | AB3: 18 | AC3: 19 | AD3: 20 | AE3: 21 | AF3: 22 | AG3: 23 | AH3: 24 | AI3: 25 | AJ3: 26 | AK3: 27 | AL3: 28 | AM3: 29 | AN3: 30 | AO3: 31 | AP3: 32 | AQ3: 33 | AR3: 34 | AS3: 35 | AT3: 36 | AU3: 37 | AV3: 38 | AW3: 39 | AX3: 40 | AY3: 41 | AZ3: 42 | BA3: 43 | BB3: 44 | BC3: 45 | BD3: 46 | BE3: 47 | BF3: 48 | BG3: 49 | BH3: 50 | BI3: 51 | BJ3: 52 | BK3: 53 | BL3: 54 | BM3: 55 | BN3: 56 | BO3: 57 | BP3: 58 | BQ3: 59 | BR3: 60 | BS3: 60 | BT3: 60 | BU3: 60 | BV3: 60 | BW3: 60 | BX3: 60 | BY3: 60 | BZ3: 60 | CA3: 60 | CB3: 60 | CC3: 60 | CD3: 60 | CE3: 60 | CF3: 60 | CG3: 60 | CH3: 60 | CI3: 60 | CJ3: 60 | CK3: 60 | CL3: 60 | CM3: 60 | CN3: 60 | CO3: 60 | CP3: 60 | CQ3: 60 | CR3: 60 | CS3: 60 | CT3: 60 | CU3: 60 | CV3: 60 | CW3: 60 | CX3: 60 | CY3: 60 | CZ3: 60 | DA3: 60 | DB3: 60 | DC3: 60 | DD3: 60 | DE3: 60 | DF3: 60 | DG3: 60 | DH3: 60 | DI3: 60 | DJ3: 60 | DK3: 60 | DL3: 60 | DM3: 60 | DN3: 60 | DO3: 60 | DP3: 60 | DQ3: 60
C4: Pre-COD/Post COD | F4: Flag | G4: =Assumptions!$F$12 -> 9 | K4: =K3<=$G$4 -> TRUE | L4: =L3<=$G$4 -> TRUE | M4: TRUE | N4: TRUE | O4: TRUE | P4: TRUE | Q4: TRUE | R4: TRUE | S4: TRUE | T4: FALSE | U4: FALSE | V4: FALSE | W4: FALSE | X4: FALSE | Y4: FALSE | Z4: FALSE | AA4: FALSE | AB4: FALSE | AC4: FALSE | AD4: FALSE | AE4: FALSE | AF4: FALSE | AG4: FALSE | AH4: FALSE | AI4: FALSE | AJ4: FALSE | AK4: FALSE | AL4: FALSE | AM4: FALSE | AN4: FALSE | AO4: FALSE | AP4: FALSE | AQ4: FALSE | AR4: FALSE | AS4: FALSE | AT4: FALSE | AU4: FALSE | AV4: FALSE | AW4: FALSE | AX4: FALSE | AY4: FALSE | AZ4: FALSE | BA4: FALSE | BB4: FALSE | BC4: FALSE | BD4: FALSE | BE4: FALSE | BF4: FALSE | BG4: FALSE | BH4: FALSE | BI4: FALSE | BJ4: FALSE | BK4: FALSE | BL4: FALSE | BM4: FALSE | BN4: FALSE | BO4: FALSE | BP4: FALSE | BQ4: FALSE | BR4: FALSE | BS4: =BS3<=$G$4 -> FALSE | BT4: =BT3<=$G$4 -> FALSE | BU4: =BU3<=$G$4 -> FALSE | BV4: =BV3<=$G$4 -> FALSE | BW4: =BW3<=$G$4 -> FALSE | BX4: =BX3<=$G$4 -> FALSE | BY4: =BY3<=$G$4 -> FALSE | BZ4: =BZ3<=$G$4 -> FALSE | CA4: =CA3<=$G$4 -> FALSE | CB4: =CB3<=$G$4 -> FALSE | CC4: =CC3<=$G$4 -> FALSE | CD4: =CD3<=$G$4 -> FALSE | CE4: =CE3<=$G$4 -> FALSE | CF4: =CF3<=$G$4 -> FALSE | CG4: =CG3<=$G$4 -> FALSE | CH4: =CH3<=$G$4 -> FALSE | CI4: =CI3<=$G$4 -> FALSE | CJ4: =CJ3<=$G$4 -> FALSE | CK4: =CK3<=$G$4 -> FALSE | CL4: =CL3<=$G$4 -> FALSE | CM4: =CM3<=$G$4 -> FALSE | CN4: =CN3<=$G$4 -> FALSE | CO4: =CO3<=$G$4 -> FALSE | CP4: =CP3<=$G$4 -> FALSE | CQ4: =CQ3<=$G$4 -> FALSE | CR4: =CR3<=$G$4 -> FALSE | CS4: =CS3<=$G$4 -> FALSE | CT4: =CT3<=$G$4 -> FALSE | CU4: =CU3<=$G$4 -> FALSE | CV4: =CV3<=$G$4 -> FALSE | CW4: =CW3<=$G$4 -> FALSE | CX4: =CX3<=$G$4 -> FALSE | CY4: =CY3<=$G$4 -> FALSE | CZ4: =CZ3<=$G$4 -> FALSE | DA4: =DA3<=$G$4 -> FALSE | DB4: =DB3<=$G$4 -> FALSE | DC4: =DC3<=$G$4 -> FALSE | DD4: =DD3<=$G$4 -> FALSE | DE4: =DE3<=$G$4 -> FALSE | DF4: =DF3<=$G$4 -> FALSE | DG4: =DG3<=$G$4 -> FALSE | DH4: =DH3<=$G$4 -> FALSE | DI4: =DI3<=$G$4 -> FALSE | DJ4: =DJ3<=$G$4 -> FALSE | DK4: =DK3<=$G$4 -> FALSE | DL4: =DL3<=$G$4 -> FALSE | DM4: =DM3<=$G$4 -> FALSE | DN4: =DN3<=$G$4 -> FALSE | DO4: =DO3<=$G$4 -> FALSE | DP4: =DP3<=$G$4 -> FALSE | DQ4: =DQ3<=$G$4 -> FALSE
C5: Months in Period | F5: Months | G5: =Assumptions!$F$3 -> 1 | H5: =Assumptions!$F$4 -> 3 | K5: =IF(K4,$G$5,$H$5) -> 1 | L5: 1 | M5: 1 | N5: 1 | O5: 1 | P5: 1 | Q5: 1 | R5: 1 | S5: 1 | T5: 3 | U5: 3 | V5: 3 | W5: 3 | X5: 3 | Y5: 3 | Z5: 3 | AA5: 3 | AB5: 3 | AC5: 3 | AD5: 3 | AE5: 3 | AF5: 3 | AG5: 3 | AH5: 3 | AI5: 3 | AJ5: 3 | AK5: 3 | AL5: 3 | AM5: 3 | AN5: 3 | AO5: 3 | AP5: 3 | AQ5: =IF(AQ4,$G$5,$H$5) -> 3 | AR5: 3 | AS5: 3 | AT5: 3 | AU5: 3 | AV5: 3 | AW5: 3 | AX5: 3 | AY5: 3 | AZ5: 3 | BA5: 3 | BB5: 3 | BC5: 3 | BD5: 3 | BE5: 3 | BF5: 3 | BG5: 3 | BH5: 3 | BI5: 3 | BJ5: 3 | BK5: 3 | BL5: 3 | BM5: 3 | BN5: 3 | BO5: 3 | BP5: 3 | BQ5: 3 | BR5: 3 | BS5: 3 | BT5: 3 | BU5: 3 | BV5: 3 | BW5: =IF(BW4,$G$5,$H$5) -> 3 | BX5: 3 | BY5: 3 | BZ5: 3 | CA5: 3 | CB5: 3 | CC5: 3 | CD5: 3 | CE5: 3 | CF5: 3 | CG5: 3 | CH5: 3 | CI5: 3 | CJ5: 3 | CK5: 3 | CL5: 3 | CM5: 3 | CN5: 3 | CO5: 3 | CP5: 3 | CQ5: 3 | CR5: 3 | CS5: 3 | CT5: 3 | CU5: 3 | CV5: 3 | CW5: 3 | CX5: 3 | CY5: 3 | CZ5: 3 | DA5: =IF(DA4,$G$5,$H$5) -> 3 | DB5: 3 | DC5: 3 | DD5: 3 | DE5: 3 | DF5: 3 | DG5: 3 | DH5: 3 | DI5: 3 | DJ5: 3 | DK5: 3 | DL5: 3 | DM5: 3 | DN5: 3 | DO5: 3 | DP5: 3 | DQ5: 3
C6: Start of Period | F6: Date | K6: =J7+1 -> 2015-09-01 | L6: =K7+1 -> 2015-10-01 | M6: 2015-11-01 | N6: 2015-12-01 | O6: 2016-01-01 | P6: 2016-02-01 | Q6: 2016-03-01 | R6: 2016-04-01 | S6: 2016-05-01 | T6: 2016-06-01 | U6: 2016-09-01 | V6: 2016-12-01 | W6: 2017-03-01 | X6: 2017-06-01 | Y6: 2017-09-01 | Z6: 2017-12-01 | AA6: 2018-03-01 | AB6: 2018-06-01 | AC6: 2018-09-01 | AD6: 2018-12-01 | AE6: 2019-03-01 | AF6: 2019-06-01 | AG6: 2019-09-01 | AH6: 2019-12-01 | AI6: 2020-03-01 | AJ6: 2020-06-01 | AK6: 2020-09-01 | AL6: 2020-12-01 | AM6: 2021-03-01 | AN6: 2021-06-01 | AO6: 2021-09-01 | AP6: 2021-12-01 | AQ6: 2022-03-01 | AR6: 2022-06-01 | AS6: 2022-09-01 | AT6: 2022-12-01 | AU6: 2023-03-01 | AV6: 2023-06-01 | AW6: 2023-09-01 | AX6: 2023-12-01 | AY6: 2024-03-01 | AZ6: 2024-06-01 | BA6: 2024-09-01 | BB6: 2024-12-01 | BC6: 2025-03-01 | BD6: 2025-06-01 | BE6: 2025-09-01 | BF6: 2025-12-01 | BG6: 2026-03-01 | BH6: 2026-06-01 | BI6: 2026-09-01 | BJ6: 2026-12-01 | BK6: 2027-03-01 | BL6: 2027-06-01 | BM6: 2027-09-01 | BN6: 2027-12-01 | BO6: 2028-03-01 | BP6: 2028-06-01 | BQ6: 2028-09-01 | BR6: 2028-12-01 | BS6: 2029-03-01 | BT6: 2029-06-01 | BU6: 2029-09-01 | BV6: 2029-12-01 | BW6: 2030-03-01 | BX6: =BW7+1 -> 2030-06-01 | BY6: 2030-09-01 | BZ6: 2030-12-01 | CA6: 2031-03-01 | CB6: 2031-06-01 | CC6: 2031-09-01 | CD6: 2031-12-01 | CE6: 2032-03-01 | CF6: 2032-06-01 | CG6: 2032-09-01 | CH6: 2032-12-01 | CI6: 2033-03-01 | CJ6: 2033-06-01 | CK6: 2033-09-01 | CL6: 2033-12-01 | CM6: 2034-03-01 | CN6: 2034-06-01 | CO6: 2034-09-01 | CP6: 2034-12-01 | CQ6: 2035-03-01 | CR6: 2035-06-01 | CS6: 2035-09-01 | CT6: 2035-12-01 | CU6: 2036-03-01 | CV6: 2036-06-01 | CW6: 2036-09-01 | CX6: 2036-12-01 | CY6: 2037-03-01 | CZ6: 2037-06-01 | DA6: 2037-09-01 | DB6: 2037-12-01 | DC6: 2038-03-01 | DD6: 2038-06-01 | DE6: 2038-09-01 | DF6: 2038-12-01 | DG6: 2039-03-01 | DH6: 2039-06-01 | DI6: 2039-09-01 | DJ6: 2039-12-01 | DK6: 2040-03-01 | DL6: 2040-06-01 | DM6: 2040-09-01 | DN6: 2040-12-01 | DO6: 2041-03-01 | DP6: 2041-06-01 | DQ6: 2041-09-01
C7: End of Period | F7: Date | J7: =Assumptions!$F$6-1 -> 2015-08-31 | K7: =EDATE(K6,K5)-1 -> 2015-09-30 | L7: =EDATE(L6,L5)-1 -> 2015-10-31 | M7: 2015-11-30 | N7: 2015-12-31 | O7: 2016-01-31 | P7: 2016-02-29 | Q7: 2016-03-31 | R7: 2016-04-30 | S7: 2016-05-31 | T7: 2016-08-31 | U7: 2016-11-30 | V7: 2017-02-28 | W7: 2017-05-31 | X7: 2017-08-31 | Y7: 2017-11-30 | Z7: 2018-02-28 | AA7: 2018-05-31 | AB7: 2018-08-31 | AC7: 2018-11-30 | AD7: 2019-02-28 | AE7: 2019-05-31 | AF7: 2019-08-31 | AG7: 2019-11-30 | AH7: 2020-02-29 | AI7: 2020-05-31 | AJ7: 2020-08-31 | AK7: 2020-11-30 | AL7: 2021-02-28 | AM7: 2021-05-31 | AN7: 2021-08-31 | AO7: 2021-11-30 | AP7: 2022-02-28 | AQ7: 2022-05-31 | AR7: 2022-08-31 | AS7: 2022-11-30 | AT7: 2023-02-28 | AU7: 2023-05-31 | AV7: 2023-08-31 | AW7: 2023-11-30 | AX7: 2024-02-29 | AY7: 2024-05-31 | AZ7: 2024-08-31 | BA7: 2024-11-30 | BB7: 2025-02-28 | BC7: 2025-05-31 | BD7: 2025-08-31 | BE7: 2025-11-30 | BF7: 2026-02-28 | BG7: 2026-05-31 | BH7: 2026-08-31 | BI7: 2026-11-30 | BJ7: 2027-02-28 | BK7: 2027-05-31 | BL7: 2027-08-31 | BM7: 2027-11-30 | BN7: 2028-02-29 | BO7: 2028-05-31 | BP7: 2028-08-31 | BQ7: 2028-11-30 | BR7: 2029-02-28 | BS7: =EDATE(BS6,BS5)-1 -> 2029-05-31 | BT7: =EDATE(BT6,BT5)-1 -> 2029-08-31 | BU7: =EDATE(BU6,BU5)-1 -> 2029-11-30 | BV7: =EDATE(BV6,BV5)-1 -> 2030-02-28 | BW7: =EDATE(BW6,BW5)-1 -> 2030-05-31 | BX7: =EDATE(BX6,BX5)-1 -> 2030-08-31 | BY7: =EDATE(BY6,BY5)-1 -> 2030-11-30 | BZ7: =EDATE(BZ6,BZ5)-1 -> 2031-02-28 | CA7: =EDATE(CA6,CA5)-1 -> 2031-05-31 | CB7: =EDATE(CB6,CB5)-1 -> 2031-08-31 | CC7: =EDATE(CC6,CC5)-1 -> 2031-11-30 | CD7: =EDATE(CD6,CD5)-1 -> 2032-02-29 | CE7: =EDATE(CE6,CE5)-1 -> 2032-05-31 | CF7: =EDATE(CF6,CF5)-1 -> 2032-08-31 | CG7: =EDATE(CG6,CG5)-1 -> 2032-11-30 | CH7: =EDATE(CH6,CH5)-1 -> 2033-02-28 | CI7: =EDATE(CI6,CI5)-1 -> 2033-05-31 | CJ7: =EDATE(CJ6,CJ5)-1 -> 2033-08-31 | CK7: =EDATE(CK6,CK5)-1 -> 2033-11-30 | CL7: =EDATE(CL6,CL5)-1 -> 2034-02-28 | CM7: =EDATE(CM6,CM5)-1 -> 2034-05-31 | CN7: =EDATE(CN6,CN5)-1 -> 2034-08-31 | CO7: =EDATE(CO6,CO5)-1 -> 2034-11-30 | CP7: =EDATE(CP6,CP5)-1 -> 2035-02-28 | CQ7: =EDATE(CQ6,CQ5)-1 -> 2035-05-31 | CR7: =EDATE(CR6,CR5)-1 -> 2035-08-31 | CS7: =EDATE(CS6,CS5)-1 -> 2035-11-30 | CT7: =EDATE(CT6,CT5)-1 -> 2036-02-29 | CU7: =EDATE(CU6,CU5)-1 -> 2036-05-31 | CV7: =EDATE(CV6,CV5)-1 -> 2036-08-31 | CW7: =EDATE(CW6,CW5)-1 -> 2036-11-30 | CX7: =EDATE(CX6,CX5)-1 -> 2037-02-28 | CY7: =EDATE(CY6,CY5)-1 -> 2037-05-31 | CZ7: =EDATE(CZ6,CZ5)-1 -> 2037-08-31 | DA7: =EDATE(DA6,DA5)-1 -> 2037-11-30 | DB7: =EDATE(DB6,DB5)-1 -> 2038-02-28 | DC7: =EDATE(DC6,DC5)-1 -> 2038-05-31 | DD7: =EDATE(DD6,DD5)-1 -> 2038-08-31 | DE7: =EDATE(DE6,DE5)-1 -> 2038-11-30 | DF7: =EDATE(DF6,DF5)-1 -> 2039-02-28 | DG7: =EDATE(DG6,DG5)-1 -> 2039-05-31 | DH7: =EDATE(DH6,DH5)-1 -> 2039-08-31 | DI7: =EDATE(DI6,DI5)-1 -> 2039-11-30 | DJ7: =EDATE(DJ6,DJ5)-1 -> 2040-02-29 | DK7: =EDATE(DK6,DK5)-1 -> 2040-05-31 | DL7: =EDATE(DL6,DL5)-1 -> 2040-08-31 | DM7: =EDATE(DM6,DM5)-1 -> 2040-11-30 | DN7: =EDATE(DN6,DN5)-1 -> 2041-02-28 | DO7: =EDATE(DO6,DO5)-1 -> 2041-05-31 | DP7: =EDATE(DP6,DP5)-1 -> 2041-08-31 | DQ7: =EDATE(DQ6,DQ5)-1 -> 2041-11-30
C8: Development Period | F8: Flag | G8: =Assumptions!$F$7 -> 4 | I8: =SUM(K8:BR8) -> 4 | K8: =(K3<=$G$8)*1 -> 1 | L8: =(L3<=$G$8)*1 -> 1 | M8: 1 | N8: 1 | O8: 0 | P8: 0 | Q8: 0 | R8: 0 | S8: 0 | T8: 0 | U8: 0 | V8: 0 | W8: 0 | X8: 0 | Y8: 0 | Z8: 0 | AA8: 0 | AB8: 0 | AC8: 0 | AD8: 0 | AE8: 0 | AF8: 0 | AG8: 0 | AH8: 0 | AI8: 0 | AJ8: 0 | AK8: 0 | AL8: 0 | AM8: 0 | AN8: 0 | AO8: 0 | AP8: 0 | AQ8: 0 | AR8: 0 | AS8: 0 | AT8: 0 | AU8: 0 | AV8: 0 | AW8: 0 | AX8: 0 | AY8: 0 | AZ8: 0 | BA8: 0 | BB8: 0 | BC8: 0 | BD8: 0 | BE8: 0 | BF8: 0 | BG8: 0 | BH8: 0 | BI8: 0 | BJ8: 0 | BK8: 0 | BL8: 0 | BM8: 0 | BN8: 0 | BO8: 0 | BP8: 0 | BQ8: 0 | BR8: 0 | BS8: =(BS3<=$G$8)*1 -> 0 | BT8: 0 | BU8: 0 | BV8: 0 | BW8: 0 | BX8: 0 | BY8: 0 | BZ8: 0 | CA8: 0 | CB8: 0 | CC8: 0 | CD8: 0 | CE8: 0 | CF8: 0 | CG8: 0 | CH8: 0 | CI8: 0 | CJ8: 0 | CK8: 0 | CL8: 0 | CM8: =(CM3<=$G$8)*1 -> 0 | CN8: 0 | CO8: 0 | CP8: 0 | CQ8: 0 | CR8: 0 | CS8: 0 | CT8: 0 | CU8: 0 | CV8: 0 | CW8: 0 | CX8: 0 | CY8: 0 | CZ8: 0 | DA8: =(DA3<=$G$8)*1 -> 0 | DB8: 0 | DC8: 0 | DD8: 0 | DE8: 0 | DF8: 0 | DG8: 0 | DH8: 0 | DI8: 0 | DJ8: 0 | DK8: 0 | DL8: 0 | DM8: 0 | DN8: 0 | DO8: 0 | DP8: 0 | DQ8: 0
C9: Construction Period | F9: Flag | G9: =Assumptions!$F$9 -> 2016-01-01 | H9: =Assumptions!$F$14 -> 2016-06-01 | I9: =SUM(K9:BR9) -> 5 | K9: =AND(K$6>=$G9,K$6<$H9)*1 -> 0 | L9: =AND(L$6>=$G9,L$6<$H9)*1 -> 0 | M9: 0 | N9: 0 | O9: 1 | P9: 1 | Q9: 1 | R9: 1 | S9: 1 | T9: 0 | U9: 0 | V9: 0 | W9: 0 | X9: 0 | Y9: 0 | Z9: 0 | AA9: 0 | AB9: 0 | AC9: 0 | AD9: 0 | AE9: 0 | AF9: 0 | AG9: 0 | AH9: 0 | AI9: 0 | AJ9: 0 | AK9: 0 | AL9: 0 | AM9: 0 | AN9: 0 | AO9: 0 | AP9: 0 | AQ9: 0 | AR9: 0 | AS9: 0 | AT9: 0 | AU9: 0 | AV9: 0 | AW9: 0 | AX9: 0 | AY9: 0 | AZ9: 0 | BA9: 0 | BB9: 0 | BC9: 0 | BD9: 0 | BE9: 0 | BF9: 0 | BG9: 0 | BH9: 0 | BI9: 0 | BJ9: 0 | BK9: 0 | BL9: 0 | BM9: 0 | BN9: 0 | BO9: 0 | BP9: 0 | BQ9: 0 | BR9: 0 | BS9: 0 | BT9: =AND(BT$6>=$G9,BT$6<$H9)*1 -> 0 | BU9: 0 | BV9: 0 | BW9: 0 | BX9: 0 | BY9: 0 | BZ9: 0 | CA9: 0 | CB9: 0 | CC9: 0 | CD9: 0 | CE9: 0 | CF9: 0 | CG9: 0 | CH9: 0 | CI9: 0 | CJ9: 0 | CK9: 0 | CL9: 0 | CM9: 0 | CN9: =AND(CN$6>=$G9,CN$6<$H9)*1 -> 0 | CO9: 0 | CP9: 0 | CQ9: 0 | CR9: 0 | CS9: 0 | CT9: 0 | CU9: 0 | CV9: 0 | CW9: 0 | CX9: 0 | CY9: 0 | CZ9: 0 | DA9: 0 | DB9: 0 | DC9: =AND(DC$6>=$G9,DC$6<$H9)*1 -> 0 | DD9: 0 | DE9: 0 | DF9: 0 | DG9: 0 | DH9: 0 | DI9: 0 | DJ9: 0 | DK9: 0 | DL9: 0 | DM9: 0 | DN9: 0 | DO9: 0 | DP9: 0 | DQ9: 0
C10: Operating Period | F10: Flag | G10: =Assumptions!$F$14 -> 2016-06-01 | H10: =Assumptions!$F$17 -> 2041-06-01 | I10: 51 | K10: =AND(K$6>=$G10,K$6<$H10)*1 -> 0 | L10: 0 | M10: 0 | N10: 0 | O10: 0 | P10: 0 | Q10: 0 | R10: 0 | S10: 0 | T10: 1 | U10: 1 | V10: 1 | W10: 1 | X10: 1 | Y10: 1 | Z10: 1 | AA10: 1 | AB10: 1 | AC10: 1 | AD10: 1 | AE10: 1 | AF10: 1 | AG10: 1 | AH10: 1 | AI10: 1 | AJ10: 1 | AK10: 1 | AL10: 1 | AM10: 1 | AN10: 1 | AO10: 1 | AP10: 1 | AQ10: 1 | AR10: 1 | AS10: 1 | AT10: 1 | AU10: 1 | AV10: 1 | AW10: 1 | AX10: 1 | AY10: 1 | AZ10: 1 | BA10: 1 | BB10: 1 | BC10: 1 | BD10: 1 | BE10: 1 | BF10: 1 | BG10: 1 | BH10: 1 | BI10: 1 | BJ10: 1 | BK10: 1 | BL10: 1 | BM10: 1 | BN10: 1 | BO10: 1 | BP10: 1 | BQ10: 1 | BR10: 1 | BS10: 1 | BT10: 1 | BU10: 1 | BV10: 1 | BW10: 1 | BX10: 1 | BY10: 1 | BZ10: 1 | CA10: 1 | CB10: 1 | CC10: 1 | CD10: 1 | CE10: 1 | CF10: 1 | CG10: 1 | CH10: 1 | CI10: 1 | CJ10: 1 | CK10: 1 | CL10: 1 | CM10: 1 | CN10: 1 | CO10: 1 | CP10: 1 | CQ10: 1 | CR10: 1 | CS10: 1 | CT10: 1 | CU10: 1 | CV10: 1 | CW10: 1 | CX10: 1 | CY10: 1 | CZ10: 1 | DA10: 1 | DB10: 1 | DC10: 1 | DD10: 1 | DE10: 1 | DF10: 1 | DG10: 1 | DH10: 1 | DI10: 1 | DJ10: 1 | DK10: 1 | DL10: 1 | DM10: 1 | DN10: 1 | DO10: 1 | DP10: 0 | DQ10: 0
B12: Operations
C13: Capacity | F13: kW | G13: =Assumptions!F20 -> 6000 | K13: =$G$13*K10 -> 0 | L13: =$G$13*L10 -> 0 | M13: 0 | N13: 0 | O13: 0 | P13: 0 | Q13: 0 | R13: 0 | S13: 0 | T13: 6000 | U13: 6000 | V13: 6000 | W13: 6000 | X13: 6000 | Y13: 6000 | Z13: 6000 | AA13: 6000 | AB13: 6000 | AC13: 6000 | AD13: 6000 | AE13: 6000 | AF13: 6000 | AG13: 6000 | AH13: 6000 | AI13: 6000 | AJ13: 6000 | AK13: 6000 | AL13: 6000 | AM13: 6000 | AN13: 6000 | AO13: 6000 | AP13: 6000 | AQ13: 6000 | AR13: 6000 | AS13: 6000 | AT13: 6000 | AU13: 6000 | AV13: 6000 | AW13: 6000 | AX13: 6000 | AY13: 6000 | AZ13: 6000 | BA13: 6000 | BB13: 6000 | BC13: 6000 | BD13: 6000 | BE13: 6000 | BF13: 6000 | BG13: 6000 | BH13: 6000 | BI13: 6000 | BJ13: 6000 | BK13: 6000 | BL13: 6000 | BM13: 6000 | BN13: 6000 | BO13: 6000 | BP13: 6000 | BQ13: 6000 | BR13: 6000 | BS13: =$G$13*BS10 -> 6000 | BT13: 6000 | BU13: 6000 | BV13: 6000 | BW13: 6000 | BX13: 6000 | BY13: 6000 | BZ13: 6000 | CA13: 6000 | CB13: 6000 | CC13: 6000 | CD13: 6000 | CE13: 6000 | CF13: 6000 | CG13: 6000 | CH13: 6000 | CI13: 6000 | CJ13: 6000 | CK13: 6000 | CL13: 6000 | CM13: =$G$13*CM10 -> 6000 | CN13: 6000 | CO13: 6000 | CP13: 6000 | CQ13: 6000 | CR13: 6000 | CS13: 6000 | CT13: 6000 | CU13: 6000 | CV13: 6000 | CW13: 6000 | CX13: 6000 | CY13: 6000 | CZ13: 6000 | DA13: =$G$13*DA10 -> 6000 | DB13: 6000 | DC13: 6000 | DD13: 6000 | DE13: 6000 | DF13: 6000 | DG13: 6000 | DH13: 6000 | DI13: 6000 | DJ13: 6000 | DK13: 6000 | DL13: 6000 | DM13: 6000 | DN13: 6000 | DO13: 6000 | DP13: 0 | DQ13: 0
C14: Degradation Rate | F14: % p.p. | G14: =Assumptions!F21 -> 0.005 | K14: =(1+$G$14)^(K5/12)-1 -> 0.0004157148447 | L14: =(1+$G$14)^(L5/12)-1 -> 0.0004157148447 | M14: 0.0004157148447 | N14: 0.0004157148447 | O14: 0.0004157148447 | P14: 0.0004157148447 | Q14: 0.0004157148447 | R14: 0.0004157148447 | S14: 0.0004157148447 | T14: 0.001247663063 | U14: 0.001247663063 | V14: 0.001247663063 | W14: 0.001247663063 | X14: 0.001247663063 | Y14: 0.001247663063 | Z14: 0.001247663063 | AA14: 0.001247663063 | AB14: 0.001247663063 | AC14: 0.001247663063 | AD14: 0.001247663063 | AE14: 0.001247663063 | AF14: 0.001247663063 | AG14: 0.001247663063 | AH14: 0.001247663063 | AI14: 0.001247663063 | AJ14: 0.001247663063 | AK14: 0.001247663063 | AL14: 0.001247663063 | AM14: 0.001247663063 | AN14: 0.001247663063 | AO14: 0.001247663063 | AP14: 0.001247663063 | AQ14: 0.001247663063 | AR14: 0.001247663063 | AS14: 0.001247663063 | AT14: 0.001247663063 | AU14: 0.001247663063 | AV14: 0.001247663063 | AW14: 0.001247663063 | AX14: 0.001247663063 | AY14: 0.001247663063 | AZ14: 0.001247663063 | BA14: 0.001247663063 | BB14: 0.001247663063 | BC14: 0.001247663063 | BD14: 0.001247663063 | BE14: 0.001247663063 | BF14: 0.001247663063 | BG14: 0.001247663063 | BH14: 0.001247663063 | BI14: 0.001247663063 | BJ14: 0.001247663063 | BK14: 0.001247663063 | BL14: 0.001247663063 | BM14: 0.001247663063 | BN14: 0.001247663063 | BO14: 0.001247663063 | BP14: 0.001247663063 | BQ14: 0.001247663063 | BR14: 0.001247663063 | BS14: =(1+$G$14)^(BS5/12)-1 -> 0.001247663063 | BT14: 0.001247663063 | BU14: 0.001247663063 | BV14: 0.001247663063 | BW14: 0.001247663063 | BX14: 0.001247663063 | BY14: 0.001247663063 | BZ14: 0.001247663063 | CA14: 0.001247663063 | CB14: 0.001247663063 | CC14: 0.001247663063 | CD14: 0.001247663063 | CE14: 0.001247663063 | CF14: 0.001247663063 | CG14: 0.001247663063 | CH14: 0.001247663063 | CI14: 0.001247663063 | CJ14: 0.001247663063 | CK14: 0.001247663063 | CL14: 0.001247663063 | CM14: =(1+$G$14)^(CM5/12)-1 -> 0.001247663063 | CN14: 0.001247663063 | CO14: 0.001247663063 | CP14: 0.001247663063 | CQ14: 0.001247663063 | CR14: 0.001247663063 | CS14: 0.001247663063 | CT14: 0.001247663063 | CU14: 0.001247663063 | CV14: 0.001247663063 | CW14: 0.001247663063 | CX14: 0.001247663063 | CY14: 0.001247663063 | CZ14: 0.001247663063 | DA14: =(1+$G$14)^(DA5/12)-1 -> 0.001247663063 | DB14: 0.001247663063 | DC14: 0.001247663063 | DD14: 0.001247663063 | DE14: 0.001247663063 | DF14: 0.001247663063 | DG14: 0.001247663063 | DH14: 0.001247663063 | DI14: 0.001247663063 | DJ14: 0.001247663063 | DK14: 0.001247663063 | DL14: 0.001247663063 | DM14: 0.001247663063 | DN14: 0.001247663063 | DO14: 0.001247663063 | DP14: 0.001247663063 | DQ14: 0.001247663063
C15: Degradation Index | F15: Index | J15: 1 | K15: =J15*(1+K14*K10) -> 1 | L15: =K15*(1+L14*L10) -> 1 | M15: 1 | N15: 1 | O15: 1 | P15: 1 | Q15: 1 | R15: 1 | S15: 1 | T15: 1.001247663 | U15: 1.002496883 | V15: 1.003747661 | W15: 1.005 | X15: 1.006253901 | Y15: 1.007509367 | Z15: 1.008766399 | AA15: 1.010025 | AB15: 1.011285171 | AC15: 1.012546914 | AD15: 1.013810231 | AE15: 1.015075125 | AF15: 1.016341597 | AG15: 1.017609649 | AH15: 1.018879283 | AI15: 1.020150501 | AJ15: 1.021423305 | AK15: 1.022697697 | AL15: 1.023973679 | AM15: 1.025251253 | AN15: 1.026530421 | AO15: 1.027811185 | AP15: 1.029093547 | AQ15: 1.030377509 | AR15: 1.031663073 | AS15: 1.032950241 | AT15: 1.034239015 | AU15: 1.035529397 | AV15: 1.036821389 | AW15: 1.038114992 | AX15: 1.03941021 | AY15: 1.040707044 | AZ15: 1.042005496 | BA15: 1.043305567 | BB15: 1.044607261 | BC15: 1.045910579 | BD15: 1.047215523 | BE15: 1.048522095 | BF15: 1.049830298 | BG15: 1.051140132 | BH15: 1.052451601 | BI15: 1.053764706 | BJ15: 1.055079449 | BK15: 1.056395833 | BL15: 1.057713859 | BM15: 1.059033529 | BN15: 1.060354846 | BO15: 1.061677812 | BP15: 1.063002428 | BQ15: 1.064328697 | BR15: 1.065656621 | BS15: =BR15*(1+BS14*BS10) -> 1.066986201 | BT15: =BS15*(1+BT14*BT10) -> 1.06831744 | BU15: =BT15*(1+BU14*BU10) -> 1.06965034 | BV15: =BU15*(1+BV14*BV10) -> 1.070984904 | BW15: =BV15*(1+BW14*BW10) -> 1.072321132 | BX15: =BW15*(1+BX14*BX10) -> 1.073659027 | BY15: =BX15*(1+BY14*BY10) -> 1.074998592 | BZ15: =BY15*(1+BZ14*BZ10) -> 1.076339828 | CA15: =BZ15*(1+CA14*CA10) -> 1.077682738 | CB15: =CA15*(1+CB14*CB10) -> 1.079027323 | CC15: =CB15*(1+CC14*CC10) -> 1.080373585 | CD15: =CC15*(1+CD14*CD10) -> 1.081721527 | CE15: =CD15*(1+CE14*CE10) -> 1.083071151 | CF15: =CE15*(1+CF14*CF10) -> 1.084422459 | CG15: =CF15*(1+CG14*CG10) -> 1.085775453 | CH15: =CG15*(1+CH14*CH10) -> 1.087130135 | CI15: =CH15*(1+CI14*CI10) -> 1.088486507 | CJ15: =CI15*(1+CJ14*CJ10) -> 1.089844571 | CK15: =CJ15*(1+CK14*CK10) -> 1.09120433 | CL15: =CK15*(1+CL14*CL10) -> 1.092565786 | CM15: =CL15*(1+CM14*CM10) -> 1.09392894 | CN15: =CM15*(1+CN14*CN10) -> 1.095293794 | CO15: =CN15*(1+CO14*CO10) -> 1.096660352 | CP15: =CO15*(1+CP14*CP10) -> 1.098028615 | CQ15: =CP15*(1+CQ14*CQ10) -> 1.099398584 | CR15: =CQ15*(1+CR14*CR10) -> 1.100770263 | CS15: =CR15*(1+CS14*CS10) -> 1.102143654 | CT15: =CS15*(1+CT14*CT10) -> 1.103518758 | CU15: =CT15*(1+CU14*CU10) -> 1.104895577 | CV15: =CU15*(1+CV14*CV10) -> 1.106274115 | CW15: =CV15*(1+CW14*CW10) -> 1.107654372 | CX15: =CW15*(1+CX14*CX10) -> 1.109036351 | CY15: =CX15*(1+CY14*CY10) -> 1.110420055 | CZ15: =CY15*(1+CZ14*CZ10) -> 1.111805485 | DA15: =CZ15*(1+DA14*DA10) -> 1.113192644 | DB15: =DA15*(1+DB14*DB10) -> 1.114581533 | DC15: =DB15*(1+DC14*DC10) -> 1.115972155 | DD15: =DC15*(1+DD14*DD10) -> 1.117364513 | DE15: =DD15*(1+DE14*DE10) -> 1.118758607 | DF15: =DE15*(1+DF14*DF10) -> 1.120154441 | DG15: =DF15*(1+DG14*DG10) -> 1.121552016 | DH15: =DG15*(1+DH14*DH10) -> 1.122951335 | DI15: =DH15*(1+DI14*DI10) -> 1.1243524 | DJ15: =DI15*(1+DJ14*DJ10) -> 1.125755213 | DK15: =DJ15*(1+DK14*DK10) -> 1.127159776 | DL15: =DK15*(1+DL14*DL10) -> 1.128566092 | DM15: =DL15*(1+DM14*DM10) -> 1.129974162 | DN15: =DM15*(1+DN14*DN10) -> 1.131383989 | DO15: =DN15*(1+DO14*DO10) -> 1.132795575 | DP15: =DO15*(1+DP14*DP10) -> 1.132795575 | DQ15: =DP15*(1+DQ14*DQ10) -> 1.132795575
C16: Capacity After Degradation | F16: kW | K16: =K13/K15 -> 0 | L16: =L13/L15 -> 0 | M16: 0 | N16: 0 | O16: 0 | P16: 0 | Q16: 0 | R16: 0 | S16: 0 | T16: 5992.52335 | U16: 5985.056017 | V16: 5977.597988 | W16: 5970.149254 | X16: 5962.709801 | Y16: 5955.279619 | Z16: 5947.858695 | AA16: 5940.447019 | AB16: 5933.044578 | AC16: 5925.651362 | AD16: 5918.267358 | AE16: 5910.892556 | AF16: 5903.526943 | AG16: 5896.170509 | AH16: 5888.823242 | AI16: 5881.48513 | AJ16: 5874.156163 | AK16: 5866.836328 | AL16: 5859.525614 | AM16: 5852.22401 | AN16: 5844.931505 | AO16: 5837.648087 | AP16: 5830.373745 | AQ16: 5823.108468 | AR16: 5815.852244 | AS16: 5808.605062 | AT16: 5801.366911 | AU16: 5794.137779 | AV16: 5786.917656 | AW16: 5779.706529 | AX16: 5772.504389 | AY16: 5765.311223 | AZ16: 5758.12702 | BA16: 5750.95177 | BB16: 5743.785461 | BC16: 5736.628082 | BD16: 5729.479622 | BE16: 5722.34007 | BF16: 5715.209414 | BG16: 5708.087644 | BH16: 5700.974749 | BI16: 5693.870716 | BJ16: 5686.775537 | BK16: 5679.689198 | BL16: 5672.61169 | BM16: 5665.543001 | BN16: 5658.483121 | BO16: 5651.432038 | BP16: 5644.389741 | BQ16: 5637.35622 | BR16: 5630.331464 | BS16: =BS13/BS15 -> 5623.315461 | BT16: =BT13/BT15 -> 5616.3082 | BU16: =BU13/BU15 -> 5609.309672 | BV16: =BV13/BV15 -> 5602.319864 | BW16: =BW13/BW15 -> 5595.338767 | BX16: =BX13/BX15 -> 5588.366369 | BY16: =BY13/BY15 -> 5581.402659 | BZ16: =BZ13/BZ15 -> 5574.447626 | CA16: =CA13/CA15 -> 5567.501261 | CB16: =CB13/CB15 -> 5560.563551 | CC16: =CC13/CC15 -> 5553.634486 | CD16: =CD13/CD15 -> 5546.714056 | CE16: =CE13/CE15 -> 5539.802249 | CF16: =CF13/CF15 -> 5532.899056 | CG16: =CG13/CG15 -> 5526.004464 | CH16: =CH13/CH15 -> 5519.118464 | CI16: =CI13/CI15 -> 5512.241044 | CJ16: =CJ13/CJ15 -> 5505.372195 | CK16: =CK13/CK15 -> 5498.511904 | CL16: =CL13/CL15 -> 5491.660163 | CM16: =CM13/CM15 -> 5484.816959 | CN16: =CN13/CN15 -> 5477.982283 | CO16: =CO13/CO15 -> 5471.156124 | CP16: =CP13/CP15 -> 5464.33847 | CQ16: =CQ13/CQ15 -> 5457.529313 | CR16: =CR13/CR15 -> 5450.72864 | CS16: =CS13/CS15 -> 5443.936442 | CT16: =CT13/CT15 -> 5437.152707 | CU16: =CU13/CU15 -> 5430.377426 | CV16: =CV13/CV15 -> 5423.610587 | CW16: =CW13/CW15 -> 5416.852181 | CX16: =CX13/CX15 -> 5410.102196 | CY16: =CY13/CY15 -> 5403.360622 | CZ16: =CZ13/CZ15 -> 5396.62745 | DA16: =DA13/DA15 -> 5389.902667 | DB16: =DB13/DB15 -> 5383.186265 | DC16: =DC13/DC15 -> 5376.478231 | DD16: =DD13/DD15 -> 5369.778557 | DE16: =DE13/DE15 -> 5363.087231 | DF16: =DF13/DF15 -> 5356.404243 | DG16: =DG13/DG15 -> 5349.729583 | DH16: =DH13/DH15 -> 5343.063241 | DI16: =DI13/DI15 -> 5336.405205 | DJ16: =DJ13/DJ15 -> 5329.755466 | DK16: =DK13/DK15 -> 5323.114013 | DL16: =DL13/DL15 -> 5316.480837 | DM16: =DM13/DM15 -> 5309.855925 | DN16: =DN13/DN15 -> 5303.23927 | DO16: =DO13/DO15 -> 5296.630859 | DP16: =DP13/DP15 -> 0 | DQ16: =DQ13/DQ15 -> 0
C18: January Month | F18: No | G18: =Assumptions!E36 -> 1 | K18: =find_month(K$6,K$7,$G18) -> FALSE | L18: =find_month(L$6,L$7,$G18) -> FALSE | M18: =find_month(M$6,M$7,$G18) -> FALSE | N18: =find_month(N$6,N$7,$G18) -> FALSE | O18: =find_month(O$6,O$7,$G18) -> TRUE | P18: =find_month(P$6,P$7,$G18) -> FALSE | Q18: =find_month(Q$6,Q$7,$G18) -> FALSE | R18: =find_month(R$6,R$7,$G18) -> FALSE | S18: =find_month(S$6,S$7,$G18) -> FALSE | T18: =find_month(T$6,T$7,$G18) -> FALSE | U18: =find_month(U$6,U$7,$G18) -> FALSE | V18: =find_month(V$6,V$7,$G18) -> TRUE | W18: =find_month(W$6,W$7,$G18) -> FALSE | X18: =find_month(X$6,X$7,$G18) -> FALSE | Y18: =find_month(Y$6,Y$7,$G18) -> FALSE | Z18: =find_month(Z$6,Z$7,$G18) -> TRUE | AA18: =find_month(AA$6,AA$7,$G18) -> FALSE | AB18: =find_month(AB$6,AB$7,$G18) -> FALSE | AC18: =find_month(AC$6,AC$7,$G18) -> FALSE | AD18: =find_month(AD$6,AD$7,$G18) -> TRUE | AE18: =find_month(AE$6,AE$7,$G18) -> FALSE | AF18: =find_month(AF$6,AF$7,$G18) -> FALSE | AG18: =find_month(AG$6,AG$7,$G18) -> FALSE | AH18: =find_month(AH$6,AH$7,$G18) -> TRUE | AI18: =find_month(AI$6,AI$7,$G18) -> FALSE | AJ18: =find_month(AJ$6,AJ$7,$G18) -> FALSE | AK18: =find_month(AK$6,AK$7,$G18) -> FALSE | AL18: =find_month(AL$6,AL$7,$G18) -> TRUE | AM18: =find_month(AM$6,AM$7,$G18) -> FALSE | AN18: =find_month(AN$6,AN$7,$G18) -> FALSE | AO18: =find_month(AO$6,AO$7,$G18) -> FALSE | AP18: =find_month(AP$6,AP$7,$G18) -> TRUE | AQ18: =find_month(AQ$6,AQ$7,$G18) -> FALSE | AR18: =find_month(AR$6,AR$7,$G18) -> FALSE | AS18: =find_month(AS$6,AS$7,$G18) -> FALSE | AT18: =find_month(AT$6,AT$7,$G18) -> TRUE | AU18: =find_month(AU$6,AU$7,$G18) -> FALSE | AV18: =find_month(AV$6,AV$7,$G18) -> FALSE | AW18: =find_month(AW$6,AW$7,$G18) -> FALSE | AX18: =find_month(AX$6,AX$7,$G18) -> TRUE | AY18: =find_month(AY$6,AY$7,$G18) -> FALSE | AZ18: =find_month(AZ$6,AZ$7,$G18) -> FALSE | BA18: =find_month(BA$6,BA$7,$G18) -> FALSE | BB18: =find_month(BB$6,BB$7,$G18) -> TRUE | BC18: =find_month(BC$6,BC$7,$G18) -> FALSE | BD18: =find_month(BD$6,BD$7,$G18) -> FALSE | BE18: =find_month(BE$6,BE$7,$G18) -> FALSE | BF18: =find_month(BF$6,BF$7,$G18) -> TRUE | BG18: =find_month(BG$6,BG$7,$G18) -> FALSE | BH18: =find_month(BH$6,BH$7,$G18) -> FALSE | BI18: =find_month(BI$6,BI$7,$G18) -> FALSE | BJ18: =find_month(BJ$6,BJ$7,$G18) -> TRUE | BK18: =find_month(BK$6,BK$7,$G18) -> FALSE | BL18: =find_month(BL$6,BL$7,$G18) -> FALSE | BM18: =find_month(BM$6,BM$7,$G18) -> FALSE | BN18: =find_month(BN$6,BN$7,$G18) -> TRUE | BO18: =find_month(BO$6,BO$7,$G18) -> FALSE | BP18: =find_month(BP$6,BP$7,$G18) -> FALSE | BQ18: =find_month(BQ$6,BQ$7,$G18) -> FALSE | BR18: =find_month(BR$6,BR$7,$G18) -> TRUE | BS18: =find_month(BS$6,BS$7,$G18) -> FALSE | BT18: =find_month(BT$6,BT$7,$G18) -> FALSE | BU18: =find_month(BU$6,BU$7,$G18) -> FALSE | BV18: =find_month(BV$6,BV$7,$G18) -> TRUE | BW18: =find_month(BW$6,BW$7,$G18) -> FALSE | BX18: =find_month(BX$6,BX$7,$G18) -> FALSE | BY18: =find_month(BY$6,BY$7,$G18) -> FALSE | BZ18: =find_month(BZ$6,BZ$7,$G18) -> TRUE | CA18: =find_month(CA$6,CA$7,$G18) -> FALSE | CB18: =find_month(CB$6,CB$7,$G18) -> FALSE | CC18: =find_month(CC$6,CC$7,$G18) -> FALSE | CD18: =find_month(CD$6,CD$7,$G18) -> TRUE | CE18: =find_month(CE$6,CE$7,$G18) -> FALSE | CF18: =find_month(CF$6,CF$7,$G18) -> FALSE | CG18: =find_month(CG$6,CG$7,$G18) -> FALSE | CH18: =find_month(CH$6,CH$7,$G18) -> TRUE | CI18: =find_month(CI$6,CI$7,$G18) -> FALSE | CJ18: =find_month(CJ$6,CJ$7,$G18) -> FALSE | CK18: =find_month(CK$6,CK$7,$G18) -> FALSE | CL18: =find_month(CL$6,CL$7,$G18) -> TRUE | CM18: =find_month(CM$6,CM$7,$G18) -> FALSE | CN18: =find_month(CN$6,CN$7,$G18) -> FALSE | CO18: =find_month(CO$6,CO$7,$G18) -> FALSE | CP18: =find_month(CP$6,CP$7,$G18) -> TRUE | CQ18: =find_month(CQ$6,CQ$7,$G18) -> FALSE | CR18: =find_month(CR$6,CR$7,$G18) -> FALSE | CS18: =find_month(CS$6,CS$7,$G18) -> FALSE | CT18: =find_month(CT$6,CT$7,$G18) -> TRUE | CU18: =find_month(CU$6,CU$7,$G18) -> FALSE | CV18: =find_month(CV$6,CV$7,$G18) -> FALSE | CW18: =find_month(CW$6,CW$7,$G18) -> FALSE | CX18: =find_month(CX$6,CX$7,$G18) -> TRUE | CY18: =find_month(CY$6,CY$7,$G18) -> FALSE | CZ18: =find_month(CZ$6,CZ$7,$G18) -> FALSE | DA18: =find_month(DA$6,DA$7,$G18) -> FALSE | DB18: =find_month(DB$6,DB$7,$G18) -> TRUE | DC18: =find_month(DC$6,DC$7,$G18) -> FALSE | DD18: =find_month(DD$6,DD$7,$G18) -> FALSE | DE18: =find_month(DE$6,DE$7,$G18) -> FALSE | DF18: =find_month(DF$6,DF$7,$G18) -> TRUE | DG18: =find_month(DG$6,DG$7,$G18) -> FALSE | DH18: =find_month(DH$6,DH$7,$G18) -> FALSE | DI18: =find_month(DI$6,DI$7,$G18) -> FALSE | DJ18: =find_month(DJ$6,DJ$7,$G18) -> TRUE | DK18: =find_month(DK$6,DK$7,$G18) -> FALSE | DL18: =find_month(DL$6,DL$7,$G18) -> FALSE | DM18: =find_month(DM$6,DM$7,$G18) -> FALSE | DN18: =find_month(DN$6,DN$7,$G18) -> TRUE | DO18: =find_month(DO$6,DO$7,$G18) -> FALSE | DP18: =find_month(DP$6,DP$7,$G18) -> FALSE | DQ18: =find_month(DQ$6,DQ$7,$G18) -> FALSE
C19: February Month | F19: No | G19: =Assumptions!E37 -> 2 | K19: =find_month(K$6,K$7,$G19) -> FALSE | L19: =find_month(L$6,L$7,$G19) -> FALSE | M19: =find_month(M$6,M$7,$G19) -> FALSE | N19: =find_month(N$6,N$7,$G19) -> FALSE | O19: =find_month(O$6,O$7,$G19) -> FALSE | P19: =find_month(P$6,P$7,$G19) -> TRUE | Q19: =find_month(Q$6,Q$7,$G19) -> FALSE | R19: =find_month(R$6,R$7,$G19) -> FALSE | S19: =find_month(S$6,S$7,$G19) -> FALSE | T19: =find_month(T$6,T$7,$G19) -> FALSE | U19: =find_month(U$6,U$7,$G19) -> FALSE | V19: =find_month(V$6,V$7,$G19) -> TRUE | W19: =find_month(W$6,W$7,$G19) -> FALSE | X19: =find_month(X$6,X$7,$G19) -> FALSE | Y19: =find_month(Y$6,Y$7,$G19) -> FALSE | Z19: =find_month(Z$6,Z$7,$G19) -> TRUE | AA19: =find_month(AA$6,AA$7,$G19) -> FALSE | AB19: =find_month(AB$6,AB$7,$G19) -> FALSE | AC19: =find_month(AC$6,AC$7,$G19) -> FALSE | AD19: =find_month(AD$6,AD$7,$G19) -> TRUE | AE19: =find_month(AE$6,AE$7,$G19) -> FALSE | AF19: =find_month(AF$6,AF$7,$G19) -> FALSE | AG19: =find_month(AG$6,AG$7,$G19) -> FALSE | AH19: =find_month(AH$6,AH$7,$G19) -> TRUE | AI19: =find_month(AI$6,AI$7,$G19) -> FALSE | AJ19: =find_month(AJ$6,AJ$7,$G19) -> FALSE | AK19: =find_month(AK$6,AK$7,$G19) -> FALSE | AL19: =find_month(AL$6,AL$7,$G19) -> TRUE | AM19: =find_month(AM$6,AM$7,$G19) -> FALSE | AN19: =find_month(AN$6,AN$7,$G19) -> FALSE | AO19: =find_month(AO$6,AO$7,$G19) -> FALSE | AP19: =find_month(AP$6,AP$7,$G19) -> TRUE | AQ19: =find_month(AQ$6,AQ$7,$G19) -> FALSE | AR19: =find_month(AR$6,AR$7,$G19) -> FALSE | AS19: =find_month(AS$6,AS$7,$G19) -> FALSE | AT19: =find_month(AT$6,AT$7,$G19) -> TRUE | AU19: =find_month(AU$6,AU$7,$G19) -> FALSE | AV19: =find_month(AV$6,AV$7,$G19) -> FALSE | AW19: =find_month(AW$6,AW$7,$G19) -> FALSE | AX19: =find_month(AX$6,AX$7,$G19) -> TRUE | AY19: =find_month(AY$6,AY$7,$G19) -> FALSE | AZ19: =find_month(AZ$6,AZ$7,$G19) -> FALSE | BA19: =find_month(BA$6,BA$7,$G19) -> FALSE | BB19: =find_month(BB$6,BB$7,$G19) -> TRUE | BC19: =find_month(BC$6,BC$7,$G19) -> FALSE | BD19: =find_month(BD$6,BD$7,$G19) -> FALSE | BE19: =find_month(BE$6,BE$7,$G19) -> FALSE | BF19: =find_month(BF$6,BF$7,$G19) -> TRUE | BG19: =find_month(BG$6,BG$7,$G19) -> FALSE | BH19: =find_month(BH$6,BH$7,$G19) -> FALSE | BI19: =find_month(BI$6,BI$7,$G19) -> FALSE | BJ19: =find_month(BJ$6,BJ$7,$G19) -> TRUE | BK19: =find_month(BK$6,BK$7,$G19) -> FALSE | BL19: =find_month(BL$6,BL$7,$G19) -> FALSE | BM19: =find_month(BM$6,BM$7,$G19) -> FALSE | BN19: =find_month(BN$6,BN$7,$G19) -> TRUE | BO19: =find_month(BO$6,BO$7,$G19) -> FALSE | BP19: =find_month(BP$6,BP$7,$G19) -> FALSE | BQ19: =find_month(BQ$6,BQ$7,$G19) -> FALSE | BR19: =find_month(BR$6,BR$7,$G19) -> TRUE | BS19: =find_month(BS$6,BS$7,$G19) -> FALSE | BT19: =find_month(BT$6,BT$7,$G19) -> FALSE | BU19: =find_month(BU$6,BU$7,$G19) -> FALSE | BV19: =find_month(BV$6,BV$7,$G19) -> TRUE | BW19: =find_month(BW$6,BW$7,$G19) -> FALSE | BX19: =find_month(BX$6,BX$7,$G19) -> FALSE | BY19: =find_month(BY$6,BY$7,$G19) -> FALSE | BZ19: =find_month(BZ$6,BZ$7,$G19) -> TRUE | CA19: =find_month(CA$6,CA$7,$G19) -> FALSE | CB19: =find_month(CB$6,CB$7,$G19) -> FALSE | CC19: =find_month(CC$6,CC$7,$G19) -> FALSE | CD19: =find_month(CD$6,CD$7,$G19) -> TRUE | CE19: =find_month(CE$6,CE$7,$G19) -> FALSE | CF19: =find_month(CF$6,CF$7,$G19) -> FALSE | CG19: =find_month(CG$6,CG$7,$G19) -> FALSE | CH19: =find_month(CH$6,CH$7,$G19) -> TRUE | CI19: =find_month(CI$6,CI$7,$G19) -> FALSE | CJ19: =find_month(CJ$6,CJ$7,$G19) -> FALSE | CK19: =find_month(CK$6,CK$7,$G19) -> FALSE | CL19: =find_month(CL$6,CL$7,$G19) -> TRUE | CM19: =find_month(CM$6,CM$7,$G19) -> FALSE | CN19: =find_month(CN$6,CN$7,$G19) -> FALSE | CO19: =find_month(CO$6,CO$7,$G19) -> FALSE | CP19: =find_month(CP$6,CP$7,$G19) -> TRUE | CQ19: =find_month(CQ$6,CQ$7,$G19) -> FALSE | CR19: =find_month(CR$6,CR$7,$G19) -> FALSE | CS19: =find_month(CS$6,CS$7,$G19) -> FALSE | CT19: =find_month(CT$6,CT$7,$G19) -> TRUE | CU19: =find_month(CU$6,CU$7,$G19) -> FALSE | CV19: =find_month(CV$6,CV$7,$G19) -> FALSE | CW19: =find_month(CW$6,CW$7,$G19) -> FALSE | CX19: =find_month(CX$6,CX$7,$G19) -> TRUE | CY19: =find_month(CY$6,CY$7,$G19) -> FALSE | CZ19: =find_month(CZ$6,CZ$7,$G19) -> FALSE | DA19: =find_month(DA$6,DA$7,$G19) -> FALSE | DB19: =find_month(DB$6,DB$7,$G19) -> TRUE | DC19: =find_month(DC$6,DC$7,$G19) -> FALSE | DD19: =find_month(DD$6,DD$7,$G19) -> FALSE | DE19: =find_month(DE$6,DE$7,$G19) -> FALSE | DF19: =find_month(DF$6,DF$7,$G19) -> TRUE | DG19: =find_month(DG$6,DG$7,$G19) -> FALSE | DH19: =find_month(DH$6,DH$7,$G19) -> FALSE | DI19: =find_month(DI$6,DI$7,$G19) -> FALSE | DJ19: =find_month(DJ$6,DJ$7,$G19) -> TRUE | DK19: =find_month(DK$6,DK$7,$G19) -> FALSE | DL19: =find_month(DL$6,DL$7,$G19) -> FALSE | DM19: =find_month(DM$6,DM$7,$G19) -> FALSE | DN19: =find_month(DN$6,DN$7,$G19) -> TRUE | DO19: =find_month(DO$6,DO$7,$G19) -> FALSE | DP19: =find_month(DP$6,DP$7,$G19) -> FALSE | DQ19: =find_month(DQ$6,DQ$7,$G19) -> FALSE
C20: March Month | F20: No | G20: =Assumptions!E38 -> 3 | K20: =find_month(K$6,K$7,$G20) -> FALSE | L20: =find_month(L$6,L$7,$G20) -> FALSE | M20: =find_month(M$6,M$7,$G20) -> FALSE | N20: =find_month(N$6,N$7,$G20) -> FALSE | O20: =find_month(O$6,O$7,$G20) -> FALSE | P20: =find_month(P$6,P$7,$G20) -> FALSE | Q20: =find_month(Q$6,Q$7,$G20) -> TRUE | R20: =find_month(R$6,R$7,$G20) -> FALSE | S20: =find_month(S$6,S$7,$G20) -> FALSE | T20: =find_month(T$6,T$7,$G20) -> FALSE | U20: =find_month(U$6,U$7,$G20) -> FALSE | V20: =find_month(V$6,V$7,$G20) -> FALSE | W20: =find_month(W$6,W$7,$G20) -> TRUE | X20: =find_month(X$6,X$7,$G20) -> FALSE | Y20: =find_month(Y$6,Y$7,$G20) -> FALSE | Z20: =find_month(Z$6,Z$7,$G20) -> FALSE | AA20: =find_month(AA$6,AA$7,$G20) -> TRUE | AB20: =find_month(AB$6,AB$7,$G20) -> FALSE | AC20: =find_month(AC$6,AC$7,$G20) -> FALSE | AD20: =find_month(AD$6,AD$7,$G20) -> FALSE | AE20: =find_month(AE$6,AE$7,$G20) -> TRUE | AF20: =find_month(AF$6,AF$7,$G20) -> FALSE | AG20: =find_month(AG$6,AG$7,$G20) -> FALSE | AH20: =find_month(AH$6,AH$7,$G20) -> FALSE | AI20: =find_month(AI$6,AI$7,$G20) -> TRUE | AJ20: =find_month(AJ$6,AJ$7,$G20) -> FALSE | AK20: =find_month(AK$6,AK$7,$G20) -> FALSE | AL20: =find_month(AL$6,AL$7,$G20) -> FALSE | AM20: =find_month(AM$6,AM$7,$G20) -> TRUE | AN20: =find_month(AN$6,AN$7,$G20) -> FALSE | AO20: =find_month(AO$6,AO$7,$G20) -> FALSE | AP20: =find_month(AP$6,AP$7,$G20) -> FALSE | AQ20: =find_month(AQ$6,AQ$7,$G20) -> TRUE | AR20: =find_month(AR$6,AR$7,$G20) -> FALSE | AS20: =find_month(AS$6,AS$7,$G20) -> FALSE | AT20: =find_month(AT$6,AT$7,$G20) -> FALSE | AU20: =find_month(AU$6,AU$7,$G20) -> TRUE | AV20: =find_month(AV$6,AV$7,$G20) -> FALSE | AW20: =find_month(AW$6,AW$7,$G20) -> FALSE | AX20: =find_month(AX$6,AX$7,$G20) -> FALSE | AY20: =find_month(AY$6,AY$7,$G20) -> TRUE | AZ20: =find_month(AZ$6,AZ$7,$G20) -> FALSE | BA20: =find_month(BA$6,BA$7,$G20) -> FALSE | BB20: =find_month(BB$6,BB$7,$G20) -> FALSE | BC20: =find_month(BC$6,BC$7,$G20) -> TRUE | BD20: =find_month(BD$6,BD$7,$G20) -> FALSE | BE20: =find_month(BE$6,BE$7,$G20) -> FALSE | BF20: =find_month(BF$6,BF$7,$G20) -> FALSE | BG20: =find_month(BG$6,BG$7,$G20) -> TRUE | BH20: =find_month(BH$6,BH$7,$G20) -> FALSE | BI20: =find_month(BI$6,BI$7,$G20) -> FALSE | BJ20: =find_month(BJ$6,BJ$7,$G20) -> FALSE | BK20: =find_month(BK$6,BK$7,$G20) -> TRUE | BL20: =find_month(BL$6,BL$7,$G20) -> FALSE | BM20: =find_month(BM$6,BM$7,$G20) -> FALSE | BN20: =find_month(BN$6,BN$7,$G20) -> FALSE | BO20: =find_month(BO$6,BO$7,$G20) -> TRUE | BP20: =find_month(BP$6,BP$7,$G20) -> FALSE | BQ20: =find_month(BQ$6,BQ$7,$G20) -> FALSE | BR20: =find_month(BR$6,BR$7,$G20) -> FALSE | BS20: =find_month(BS$6,BS$7,$G20) -> TRUE | BT20: =find_month(BT$6,BT$7,$G20) -> FALSE | BU20: =find_month(BU$6,BU$7,$G20) -> FALSE | BV20: =find_month(BV$6,BV$7,$G20) -> FALSE | BW20: =find_month(BW$6,BW$7,$G20) -> TRUE | BX20: =find_month(BX$6,BX$7,$G20) -> FALSE | BY20: =find_month(BY$6,BY$7,$G20) -> FALSE | BZ20: =find_month(BZ$6,BZ$7,$G20) -> FALSE | CA20: =find_month(CA$6,CA$7,$G20) -> TRUE | CB20: =find_month(CB$6,CB$7,$G20) -> FALSE | CC20: =find_month(CC$6,CC$7,$G20) -> FALSE | CD20: =find_month(CD$6,CD$7,$G20) -> FALSE | CE20: =find_month(CE$6,CE$7,$G20) -> TRUE | CF20: =find_month(CF$6,CF$7,$G20) -> FALSE | CG20: =find_month(CG$6,CG$7,$G20) -> FALSE | CH20: =find_month(CH$6,CH$7,$G20) -> FALSE | CI20: =find_month(CI$6,CI$7,$G20) -> TRUE | CJ20: =find_month(CJ$6,CJ$7,$G20) -> FALSE | CK20: =find_month(CK$6,CK$7,$G20) -> FALSE | CL20: =find_month(CL$6,CL$7,$G20) -> FALSE | CM20: =find_month(CM$6,CM$7,$G20) -> TRUE | CN20: =find_month(CN$6,CN$7,$G20) -> FALSE | CO20: =find_month(CO$6,CO$7,$G20) -> FALSE | CP20: =find_month(CP$6,CP$7,$G20) -> FALSE | CQ20: =find_month(CQ$6,CQ$7,$G20) -> TRUE | CR20: =find_month(CR$6,CR$7,$G20) -> FALSE | CS20: =find_month(CS$6,CS$7,$G20) -> FALSE | CT20: =find_month(CT$6,CT$7,$G20) -> FALSE | CU20: =find_month(CU$6,CU$7,$G20) -> TRUE | CV20: =find_month(CV$6,CV$7,$G20) -> FALSE | CW20: =find_month(CW$6,CW$7,$G20) -> FALSE | CX20: =find_month(CX$6,CX$7,$G20) -> FALSE | CY20: =find_month(CY$6,CY$7,$G20) -> TRUE | CZ20: =find_month(CZ$6,CZ$7,$G20) -> FALSE | DA20: =find_month(DA$6,DA$7,$G20) -> FALSE | DB20: =find_month(DB$6,DB$7,$G20) -> FALSE | DC20: =find_month(DC$6,DC$7,$G20) -> TRUE | DD20: =find_month(DD$6,DD$7,$G20) -> FALSE | DE20: =find_month(DE$6,DE$7,$G20) -> FALSE | DF20: =find_month(DF$6,DF$7,$G20) -> FALSE | DG20: =find_month(DG$6,DG$7,$G20) -> TRUE | DH20: =find_month(DH$6,DH$7,$G20) -> FALSE | DI20: =find_month(DI$6,DI$7,$G20) -> FALSE | DJ20: =find_month(DJ$6,DJ$7,$G20) -> FALSE | DK20: =find_month(DK$6,DK$7,$G20) -> TRUE | DL20: =find_month(DL$6,DL$7,$G20) -> FALSE | DM20: =find_month(DM$6,DM$7,$G20) -> FALSE | DN20: =find_month(DN$6,DN$7,$G20) -> FALSE | DO20: =find_month(DO$6,DO$7,$G20) -> TRUE | DP20: =find_month(DP$6,DP$7,$G20) -> FALSE | DQ20: =find_month(DQ$6,DQ$7,$G20) -> FALSE
C21: April Month | F21: No | G21: =Assumptions!E39 -> 4 | K21: =find_month(K$6,K$7,$G21) -> FALSE | L21: =find_month(L$6,L$7,$G21) -> FALSE | M21: =find_month(M$6,M$7,$G21) -> FALSE | N21: =find_month(N$6,N$7,$G21) -> FALSE | O21: =find_month(O$6,O$7,$G21) -> FALSE | P21: =find_month(P$6,P$7,$G21) -> FALSE | Q21: =find_month(Q$6,Q$7,$G21) -> FALSE | R21: =find_month(R$6,R$7,$G21) -> TRUE | S21: =find_month(S$6,S$7,$G21) -> FALSE | T21: =find_month(T$6,T$7,$G21) -> FALSE | U21: =find_month(U$6,U$7,$G21) -> FALSE | V21: =find_month(V$6,V$7,$G21) -> FALSE | W21: =find_month(W$6,W$7,$G21) -> TRUE | X21: =find_month(X$6,X$7,$G21) -> FALSE | Y21: =find_month(Y$6,Y$7,$G21) -> FALSE | Z21: =find_month(Z$6,Z$7,$G21) -> FALSE | AA21: =find_month(AA$6,AA$7,$G21) -> TRUE | AB21: =find_month(AB$6,AB$7,$G21) -> FALSE | AC21: =find_month(AC$6,AC$7,$G21) -> FALSE | AD21: =find_month(AD$6,AD$7,$G21) -> FALSE | AE21: =find_month(AE$6,AE$7,$G21) -> TRUE | AF21: =find_month(AF$6,AF$7,$G21) -> FALSE | AG21: =find_month(AG$6,AG$7,$G21) -> FALSE | AH21: =find_month(AH$6,AH$7,$G21) -> FALSE | AI21: =find_month(AI$6,AI$7,$G21) -> TRUE | AJ21: =find_month(AJ$6,AJ$7,$G21) -> FALSE | AK21: =find_month(AK$6,AK$7,$G21) -> FALSE | AL21: =find_month(AL$6,AL$7,$G21) -> FALSE | AM21: =find_month(AM$6,AM$7,$G21) -> TRUE | AN21: =find_month(AN$6,AN$7,$G21) -> FALSE | AO21: =find_month(AO$6,AO$7,$G21) -> FALSE | AP21: =find_month(AP$6,AP$7,$G21) -> FALSE | AQ21: =find_month(AQ$6,AQ$7,$G21) -> TRUE | AR21: =find_month(AR$6,AR$7,$G21) -> FALSE | AS21: =find_month(AS$6,AS$7,$G21) -> FALSE | AT21: =find_month(AT$6,AT$7,$G21) -> FALSE | AU21: =find_month(AU$6,AU$7,$G21) -> TRUE | AV21: =find_month(AV$6,AV$7,$G21) -> FALSE | AW21: =find_month(AW$6,AW$7,$G21) -> FALSE | AX21: =find_month(AX$6,AX$7,$G21) -> FALSE | AY21: =find_month(AY$6,AY$7,$G21) -> TRUE | AZ21: =find_month(AZ$6,AZ$7,$G21) -> FALSE | BA21: =find_month(BA$6,BA$7,$G21) -> FALSE | BB21: =find_month(BB$6,BB$7,$G21) -> FALSE | BC21: =find_month(BC$6,BC$7,$G21) -> TRUE | BD21: =find_month(BD$6,BD$7,$G21) -> FALSE | BE21: =find_month(BE$6,BE$7,$G21) -> FALSE | BF21: =find_month(BF$6,BF$7,$G21) -> FALSE | BG21: =find_month(BG$6,BG$7,$G21) -> TRUE | BH21: =find_month(BH$6,BH$7,$G21) -> FALSE | BI21: =find_month(BI$6,BI$7,$G21) -> FALSE | BJ21: =find_month(BJ$6,BJ$7,$G21) -> FALSE | BK21: =find_month(BK$6,BK$7,$G21) -> TRUE | BL21: =find_month(BL$6,BL$7,$G21) -> FALSE | BM21: =find_month(BM$6,BM$7,$G21) -> FALSE | BN21: =find_month(BN$6,BN$7,$G21) -> FALSE | BO21: =find_month(BO$6,BO$7,$G21) -> TRUE | BP21: =find_month(BP$6,BP$7,$G21) -> FALSE | BQ21: =find_month(BQ$6,BQ$7,$G21) -> FALSE | BR21: =find_month(BR$6,BR$7,$G21) -> FALSE | BS21: =find_month(BS$6,BS$7,$G21) -> TRUE | BT21: =find_month(BT$6,BT$7,$G21) -> FALSE | BU21: =find_month(BU$6,BU$7,$G21) -> FALSE | BV21: =find_month(BV$6,BV$7,$G21) -> FALSE | BW21: =find_month(BW$6,BW$7,$G21) -> TRUE | BX21: =find_month(BX$6,BX$7,$G21) -> FALSE | BY21: =find_month(BY$6,BY$7,$G21) -> FALSE | BZ21: =find_month(BZ$6,BZ$7,$G21) -> FALSE | CA21: =find_month(CA$6,CA$7,$G21) -> TRUE | CB21: =find_month(CB$6,CB$7,$G21) -> FALSE | CC21: =find_month(CC$6,CC$7,$G21) -> FALSE | CD21: =find_month(CD$6,CD$7,$G21) -> FALSE | CE21: =find_month(CE$6,CE$7,$G21) -> TRUE | CF21: =find_month(CF$6,CF$7,$G21) -> FALSE | CG21: =find_month(CG$6,CG$7,$G21) -> FALSE | CH21: =find_month(CH$6,CH$7,$G21) -> FALSE | CI21: =find_month(CI$6,CI$7,$G21) -> TRUE | CJ21: =find_month(CJ$6,CJ$7,$G21) -> FALSE | CK21: =find_month(CK$6,CK$7,$G21) -> FALSE | CL21: =find_month(CL$6,CL$7,$G21) -> FALSE | CM21: =find_month(CM$6,CM$7,$G21) -> TRUE | CN21: =find_month(CN$6,CN$7,$G21) -> FALSE | CO21: =find_month(CO$6,CO$7,$G21) -> FALSE | CP21: =find_month(CP$6,CP$7,$G21) -> FALSE | CQ21: =find_month(CQ$6,CQ$7,$G21) -> TRUE | CR21: =find_month(CR$6,CR$7,$G21) -> FALSE | CS21: =find_month(CS$6,CS$7,$G21) -> FALSE | CT21: =find_month(CT$6,CT$7,$G21) -> FALSE | CU21: =find_month(CU$6,CU$7,$G21) -> TRUE | CV21: =find_month(CV$6,CV$7,$G21) -> FALSE | CW21: =find_month(CW$6,CW$7,$G21) -> FALSE | CX21: =find_month(CX$6,CX$7,$G21) -> FALSE | CY21: =find_month(CY$6,CY$7,$G21) -> TRUE | CZ21: =find_month(CZ$6,CZ$7,$G21) -> FALSE | DA21: =find_month(DA$6,DA$7,$G21) -> FALSE | DB21: =find_month(DB$6,DB$7,$G21) -> FALSE | DC21: =find_month(DC$6,DC$7,$G21) -> TRUE | DD21: =find_month(DD$6,DD$7,$G21) -> FALSE | DE21: =find_month(DE$6,DE$7,$G21) -> FALSE | DF21: =find_month(DF$6,DF$7,$G21) -> FALSE | DG21: =find_month(DG$6,DG$7,$G21) -> TRUE | DH21: =find_month(DH$6,DH$7,$G21) -> FALSE | DI21: =find_month(DI$6,DI$7,$G21) -> FALSE | DJ21: =find_month(DJ$6,DJ$7,$G21) -> FALSE | DK21: =find_month(DK$6,DK$7,$G21) -> TRUE | DL21: =find_month(DL$6,DL$7,$G21) -> FALSE | DM21: =find_month(DM$6,DM$7,$G21) -> FALSE | DN21: =find_month(DN$6,DN$7,$G21) -> FALSE | DO21: =find_month(DO$6,DO$7,$G21) -> TRUE | DP21: =find_month(DP$6,DP$7,$G21) -> FALSE | DQ21: =find_month(DQ$6,DQ$7,$G21) -> FALSE
C22: May Month | F22: No | G22: =Assumptions!E40 -> 5 | K22: =find_month(K$6,K$7,$G22) -> FALSE | L22: =find_month(L$6,L$7,$G22) -> FALSE | M22: =find_month(M$6,M$7,$G22) -> FALSE | N22: =find_month(N$6,N$7,$G22) -> FALSE | O22: =find_month(O$6,O$7,$G22) -> FALSE | P22: =find_month(P$6,P$7,$G22) -> FALSE | Q22: =find_month(Q$6,Q$7,$G22) -> FALSE | R22: =find_month(R$6,R$7,$G22) -> FALSE | S22: =find_month(S$6,S$7,$G22) -> TRUE | T22: =find_month(T$6,T$7,$G22) -> FALSE | U22: =find_month(U$6,U$7,$G22) -> FALSE | V22: =find_month(V$6,V$7,$G22) -> FALSE | W22: =find_month(W$6,W$7,$G22) -> TRUE | X22: =find_month(X$6,X$7,$G22) -> FALSE | Y22: =find_month(Y$6,Y$7,$G22) -> FALSE | Z22: =find_month(Z$6,Z$7,$G22) -> FALSE | AA22: =find_month(AA$6,AA$7,$G22) -> TRUE | AB22: =find_month(AB$6,AB$7,$G22) -> FALSE | AC22: =find_month(AC$6,AC$7,$G22) -> FALSE | AD22: =find_month(AD$6,AD$7,$G22) -> FALSE | AE22: =find_month(AE$6,AE$7,$G22) -> TRUE | AF22: =find_month(AF$6,AF$7,$G22) -> FALSE | AG22: =find_month(AG$6,AG$7,$G22) -> FALSE | AH22: =find_month(AH$6,AH$7,$G22) -> FALSE | AI22: =find_month(AI$6,AI$7,$G22) -> TRUE | AJ22: =find_month(AJ$6,AJ$7,$G22) -> FALSE | AK22: =find_month(AK$6,AK$7,$G22) -> FALSE | AL22: =find_month(AL$6,AL$7,$G22) -> FALSE | AM22: =find_month(AM$6,AM$7,$G22) -> TRUE | AN22: =find_month(AN$6,AN$7,$G22) -> FALSE | AO22: =find_month(AO$6,AO$7,$G22) -> FALSE | AP22: =find_month(AP$6,AP$7,$G22) -> FALSE | AQ22: =find_month(AQ$6,AQ$7,$G22) -> TRUE | AR22: =find_month(AR$6,AR$7,$G22) -> FALSE | AS22: =find_month(AS$6,AS$7,$G22) -> FALSE | AT22: =find_month(AT$6,AT$7,$G22) -> FALSE | AU22: =find_month(AU$6,AU$7,$G22) -> TRUE | AV22: =find_month(AV$6,AV$7,$G22) -> FALSE | AW22: =find_month(AW$6,AW$7,$G22) -> FALSE | AX22: =find_month(AX$6,AX$7,$G22) -> FALSE | AY22: =find_month(AY$6,AY$7,$G22) -> TRUE | AZ22: =find_month(AZ$6,AZ$7,$G22) -> FALSE | BA22: =find_month(BA$6,BA$7,$G22) -> FALSE | BB22: =find_month(BB$6,BB$7,$G22) -> FALSE | BC22: =find_month(BC$6,BC$7,$G22) -> TRUE | BD22: =find_month(BD$6,BD$7,$G22) -> FALSE | BE22: =find_month(BE$6,BE$7,$G22) -> FALSE | BF22: =find_month(BF$6,BF$7,$G22) -> FALSE | BG22: =find_month(BG$6,BG$7,$G22) -> TRUE | BH22: =find_month(BH$6,BH$7,$G22) -> FALSE | BI22: =find_month(BI$6,BI$7,$G22) -> FALSE | BJ22: =find_month(BJ$6,BJ$7,$G22) -> FALSE | BK22: =find_month(BK$6,BK$7,$G22) -> TRUE | BL22: =find_month(BL$6,BL$7,$G22) -> FALSE | BM22: =find_month(BM$6,BM$7,$G22) -> FALSE | BN22: =find_month(BN$6,BN$7,$G22) -> FALSE | BO22: =find_month(BO$6,BO$7,$G22) -> TRUE | BP22: =find_month(BP$6,BP$7,$G22) -> FALSE | BQ22: =find_month(BQ$6,BQ$7,$G22) -> FALSE | BR22: =find_month(BR$6,BR$7,$G22) -> FALSE | BS22: =find_month(BS$6,BS$7,$G22) -> TRUE | BT22: =find_month(BT$6,BT$7,$G22) -> FALSE | BU22: =find_month(BU$6,BU$7,$G22) -> FALSE | BV22: =find_month(BV$6,BV$7,$G22) -> FALSE | BW22: =find_month(BW$6,BW$7,$G22) -> TRUE | BX22: =find_month(BX$6,BX$7,$G22) -> FALSE | BY22: =find_month(BY$6,BY$7,$G22) -> FALSE | BZ22: =find_month(BZ$6,BZ$7,$G22) -> FALSE | CA22: =find_month(CA$6,CA$7,$G22) -> TRUE | CB22: =find_month(CB$6,CB$7,$G22) -> FALSE | CC22: =find_month(CC$6,CC$7,$G22) -> FALSE | CD22: =find_month(CD$6,CD$7,$G22) -> FALSE | CE22: =find_month(CE$6,CE$7,$G22) -> TRUE | CF22: =find_month(CF$6,CF$7,$G22) -> FALSE | CG22: =find_month(CG$6,CG$7,$G22) -> FALSE | CH22: =find_month(CH$6,CH$7,$G22) -> FALSE | CI22: =find_month(CI$6,CI$7,$G22) -> TRUE | CJ22: =find_month(CJ$6,CJ$7,$G22) -> FALSE | CK22: =find_month(CK$6,CK$7,$G22) -> FALSE | CL22: =find_month(CL$6,CL$7,$G22) -> FALSE | CM22: =find_month(CM$6,CM$7,$G22) -> TRUE | CN22: =find_month(CN$6,CN$7,$G22) -> FALSE | CO22: =find_month(CO$6,CO$7,$G22) -> FALSE | CP22: =find_month(CP$6,CP$7,$G22) -> FALSE | CQ22: =find_month(CQ$6,CQ$7,$G22) -> TRUE | CR22: =find_month(CR$6,CR$7,$G22) -> FALSE | CS22: =find_month(CS$6,CS$7,$G22) -> FALSE | CT22: =find_month(CT$6,CT$7,$G22) -> FALSE | CU22: =find_month(CU$6,CU$7,$G22) -> TRUE | CV22: =find_month(CV$6,CV$7,$G22) -> FALSE | CW22: =find_month(CW$6,CW$7,$G22) -> FALSE | CX22: =find_month(CX$6,CX$7,$G22) -> FALSE | CY22: =find_month(CY$6,CY$7,$G22) -> TRUE | CZ22: =find_month(CZ$6,CZ$7,$G22) -> FALSE | DA22: =find_month(DA$6,DA$7,$G22) -> FALSE | DB22: =find_month(DB$6,DB$7,$G22) -> FALSE | DC22: =find_month(DC$6,DC$7,$G22) -> TRUE | DD22: =find_month(DD$6,DD$7,$G22) -> FALSE | DE22: =find_month(DE$6,DE$7,$G22) -> FALSE | DF22: =find_month(DF$6,DF$7,$G22) -> FALSE | DG22: =find_month(DG$6,DG$7,$G22) -> TRUE | DH22: =find_month(DH$6,DH$7,$G22) -> FALSE | DI22: =find_month(DI$6,DI$7,$G22) -> FALSE | DJ22: =find_month(DJ$6,DJ$7,$G22) -> FALSE | DK22: =find_month(DK$6,DK$7,$G22) -> TRUE | DL22: =find_month(DL$6,DL$7,$G22) -> FALSE | DM22: =find_month(DM$6,DM$7,$G22) -> FALSE | DN22: =find_month(DN$6,DN$7,$G22) -> FALSE | DO22: =find_month(DO$6,DO$7,$G22) -> TRUE | DP22: =find_month(DP$6,DP$7,$G22) -> FALSE | DQ22: =find_month(DQ$6,DQ$7,$G22) -> FALSE
C23: June Month | F23: No | G23: =Assumptions!E41 -> 6 | K23: =find_month(K$6,K$7,$G23) -> FALSE | L23: =find_month(L$6,L$7,$G23) -> FALSE | M23: =find_month(M$6,M$7,$G23) -> FALSE | N23: =find_month(N$6,N$7,$G23) -> FALSE | O23: =find_month(O$6,O$7,$G23) -> FALSE | P23: =find_month(P$6,P$7,$G23) -> FALSE | Q23: =find_month(Q$6,Q$7,$G23) -> FALSE | R23: =find_month(R$6,R$7,$G23) -> FALSE | S23: =find_month(S$6,S$7,$G23) -> FALSE | T23: =find_month(T$6,T$7,$G23) -> TRUE | U23: =find_month(U$6,U$7,$G23) -> FALSE | V23: =find_month(V$6,V$7,$G23) -> FALSE | W23: =find_month(W$6,W$7,$G23) -> FALSE | X23: =find_month(X$6,X$7,$G23) -> TRUE | Y23: =find_month(Y$6,Y$7,$G23) -> FALSE | Z23: =find_month(Z$6,Z$7,$G23) -> FALSE | AA23: =find_month(AA$6,AA$7,$G23) -> FALSE | AB23: =find_month(AB$6,AB$7,$G23) -> TRUE | AC23: =find_month(AC$6,AC$7,$G23) -> FALSE | AD23: =find_month(AD$6,AD$7,$G23) -> FALSE | AE23: =find_month(AE$6,AE$7,$G23) -> FALSE | AF23: =find_month(AF$6,AF$7,$G23) -> TRUE | AG23: =find_month(AG$6,AG$7,$G23) -> FALSE | AH23: =find_month(AH$6,AH$7,$G23) -> FALSE | AI23: =find_month(AI$6,AI$7,$G23) -> FALSE | AJ23: =find_month(AJ$6,AJ$7,$G23) -> TRUE | AK23: =find_month(AK$6,AK$7,$G23) -> FALSE | AL23: =find_month(AL$6,AL$7,$G23) -> FALSE | AM23: =find_month(AM$6,AM$7,$G23) -> FALSE | AN23: =find_month(AN$6,AN$7,$G23) -> TRUE | AO23: =find_month(AO$6,AO$7,$G23) -> FALSE | AP23: =find_month(AP$6,AP$7,$G23) -> FALSE | AQ23: =find_month(AQ$6,AQ$7,$G23) -> FALSE | AR23: =find_month(AR$6,AR$7,$G23) -> TRUE | AS23: =find_month(AS$6,AS$7,$G23) -> FALSE | AT23: =find_month(AT$6,AT$7,$G23) -> FALSE | AU23: =find_month(AU$6,AU$7,$G23) -> FALSE | AV23: =find_month(AV$6,AV$7,$G23) -> TRUE | AW23: =find_month(AW$6,AW$7,$G23) -> FALSE | AX23: =find_month(AX$6,AX$7,$G23) -> FALSE | AY23: =find_month(AY$6,AY$7,$G23) -> FALSE | AZ23: =find_month(AZ$6,AZ$7,$G23) -> TRUE | BA23: =find_month(BA$6,BA$7,$G23) -> FALSE | BB23: =find_month(BB$6,BB$7,$G23) -> FALSE | BC23: =find_month(BC$6,BC$7,$G23) -> FALSE | BD23: =find_month(BD$6,BD$7,$G23) -> TRUE | BE23: =find_month(BE$6,BE$7,$G23) -> FALSE | BF23: =find_month(BF$6,BF$7,$G23) -> FALSE | BG23: =find_month(BG$6,BG$7,$G23) -> FALSE | BH23: =find_month(BH$6,BH$7,$G23) -> TRUE | BI23: =find_month(BI$6,BI$7,$G23) -> FALSE | BJ23: =find_month(BJ$6,BJ$7,$G23) -> FALSE | BK23: =find_month(BK$6,BK$7,$G23) -> FALSE | BL23: =find_month(BL$6,BL$7,$G23) -> TRUE | BM23: =find_month(BM$6,BM$7,$G23) -> FALSE | BN23: =find_month(BN$6,BN$7,$G23) -> FALSE | BO23: =find_month(BO$6,BO$7,$G23) -> FALSE | BP23: =find_month(BP$6,BP$7,$G23) -> TRUE | BQ23: =find_month(BQ$6,BQ$7,$G23) -> FALSE | BR23: =find_month(BR$6,BR$7,$G23) -> FALSE | BS23: =find_month(BS$6,BS$7,$G23) -> FALSE | BT23: =find_month(BT$6,BT$7,$G23) -> TRUE | BU23: =find_month(BU$6,BU$7,$G23) -> FALSE | BV23: =find_month(BV$6,BV$7,$G23) -> FALSE | BW23: =find_month(BW$6,BW$7,$G23) -> FALSE | BX23: =find_month(BX$6,BX$7,$G23) -> TRUE | BY23: =find_month(BY$6,BY$7,$G23) -> FALSE | BZ23: =find_month(BZ$6,BZ$7,$G23) -> FALSE | CA23: =find_month(CA$6,CA$7,$G23) -> FALSE | CB23: =find_month(CB$6,CB$7,$G23) -> TRUE | CC23: =find_month(CC$6,CC$7,$G23) -> FALSE | CD23: =find_month(CD$6,CD$7,$G23) -> FALSE | CE23: =find_month(CE$6,CE$7,$G23) -> FALSE | CF23: =find_month(CF$6,CF$7,$G23) -> TRUE | CG23: =find_month(CG$6,CG$7,$G23) -> FALSE | CH23: =find_month(CH$6,CH$7,$G23) -> FALSE | CI23: =find_month(CI$6,CI$7,$G23) -> FALSE | CJ23: =find_month(CJ$6,CJ$7,$G23) -> TRUE | CK23: =find_month(CK$6,CK$7,$G23) -> FALSE | CL23: =find_month(CL$6,CL$7,$G23) -> FALSE | CM23: =find_month(CM$6,CM$7,$G23) -> FALSE | CN23: =find_month(CN$6,CN$7,$G23) -> TRUE | CO23: =find_month(CO$6,CO$7,$G23) -> FALSE | CP23: =find_month(CP$6,CP$7,$G23) -> FALSE | CQ23: =find_month(CQ$6,CQ$7,$G23) -> FALSE | CR23: =find_month(CR$6,CR$7,$G23) -> TRUE | CS23: =find_month(CS$6,CS$7,$G23) -> FALSE | CT23: =find_month(CT$6,CT$7,$G23) -> FALSE | CU23: =find_month(CU$6,CU$7,$G23) -> FALSE | CV23: =find_month(CV$6,CV$7,$G23) -> TRUE | CW23: =find_month(CW$6,CW$7,$G23) -> FALSE | CX23: =find_month(CX$6,CX$7,$G23) -> FALSE | CY23: =find_month(CY$6,CY$7,$G23) -> FALSE | CZ23: =find_month(CZ$6,CZ$7,$G23) -> TRUE | DA23: =find_month(DA$6,DA$7,$G23) -> FALSE | DB23: =find_month(DB$6,DB$7,$G23) -> FALSE | DC23: =find_month(DC$6,DC$7,$G23) -> FALSE | DD23: =find_month(DD$6,DD$7,$G23) -> TRUE | DE23: =find_month(DE$6,DE$7,$G23) -> FALSE | DF23: =find_month(DF$6,DF$7,$G23) -> FALSE | DG23: =find_month(DG$6,DG$7,$G23) -> FALSE | DH23: =find_month(DH$6,DH$7,$G23) -> TRUE | DI23: =find_month(DI$6,DI$7,$G23) -> FALSE | DJ23: =find_month(DJ$6,DJ$7,$G23) -> FALSE | DK23: =find_month(DK$6,DK$7,$G23) -> FALSE | DL23: =find_month(DL$6,DL$7,$G23) -> TRUE | DM23: =find_month(DM$6,DM$7,$G23) -> FALSE | DN23: =find_month(DN$6,DN$7,$G23) -> FALSE | DO23: =find_month(DO$6,DO$7,$G23) -> FALSE | DP23: =find_month(DP$6,DP$7,$G23) -> TRUE | DQ23: =find_month(DQ$6,DQ$7,$G23) -> FALSE
C24: July Month | F24: No | G24: =Assumptions!E42 -> 7 | K24: =find_month(K$6,K$7,$G24) -> FALSE | L24: =find_month(L$6,L$7,$G24) -> FALSE | M24: =find_month(M$6,M$7,$G24) -> FALSE | N24: =find_month(N$6,N$7,$G24) -> FALSE | O24: =find_month(O$6,O$7,$G24) -> FALSE | P24: =find_month(P$6,P$7,$G24) -> FALSE | Q24: =find_month(Q$6,Q$7,$G24) -> FALSE | R24: =find_month(R$6,R$7,$G24) -> FALSE | S24: =find_month(S$6,S$7,$G24) -> FALSE | T24: =find_month(T$6,T$7,$G24) -> TRUE | U24: =find_month(U$6,U$7,$G24) -> FALSE | V24: =find_month(V$6,V$7,$G24) -> FALSE | W24: =find_month(W$6,W$7,$G24) -> FALSE | X24: =find_month(X$6,X$7,$G24) -> TRUE | Y24: =find_month(Y$6,Y$7,$G24) -> FALSE | Z24: =find_month(Z$6,Z$7,$G24) -> FALSE | AA24: =find_month(AA$6,AA$7,$G24) -> FALSE | AB24: =find_month(AB$6,AB$7,$G24) -> TRUE | AC24: =find_month(AC$6,AC$7,$G24) -> FALSE | AD24: =find_month(AD$6,AD$7,$G24) -> FALSE | AE24: =find_month(AE$6,AE$7,$G24) -> FALSE | AF24: =find_month(AF$6,AF$7,$G24) -> TRUE | AG24: =find_month(AG$6,AG$7,$G24) -> FALSE | AH24: =find_month(AH$6,AH$7,$G24) -> FALSE | AI24: =find_month(AI$6,AI$7,$G24) -> FALSE | AJ24: =find_month(AJ$6,AJ$7,$G24) -> TRUE | AK24: =find_month(AK$6,AK$7,$G24) -> FALSE | AL24: =find_month(AL$6,AL$7,$G24) -> FALSE | AM24: =find_month(AM$6,AM$7,$G24) -> FALSE | AN24: =find_month(AN$6,AN$7,$G24) -> TRUE | AO24: =find_month(AO$6,AO$7,$G24) -> FALSE | AP24: =find_month(AP$6,AP$7,$G24) -> FALSE | AQ24: =find_month(AQ$6,AQ$7,$G24) -> FALSE | AR24: =find_month(AR$6,AR$7,$G24) -> TRUE | AS24: =find_month(AS$6,AS$7,$G24) -> FALSE | AT24: =find_month(AT$6,AT$7,$G24) -> FALSE | AU24: =find_month(AU$6,AU$7,$G24) -> FALSE | AV24: =find_month(AV$6,AV$7,$G24) -> TRUE | AW24: =find_month(AW$6,AW$7,$G24) -> FALSE | AX24: =find_month(AX$6,AX$7,$G24) -> FALSE | AY24: =find_month(AY$6,AY$7,$G24) -> FALSE | AZ24: =find_month(AZ$6,AZ$7,$G24) -> TRUE | BA24: =find_month(BA$6,BA$7,$G24) -> FALSE | BB24: =find_month(BB$6,BB$7,$G24) -> FALSE | BC24: =find_month(BC$6,BC$7,$G24) -> FALSE | BD24: =find_month(BD$6,BD$7,$G24) -> TRUE | BE24: =find_month(BE$6,BE$7,$G24) -> FALSE | BF24: =find_month(BF$6,BF$7,$G24) -> FALSE | BG24: =find_month(BG$6,BG$7,$G24) -> FALSE | BH24: =find_month(BH$6,BH$7,$G24) -> TRUE | BI24: =find_month(BI$6,BI$7,$G24) -> FALSE | BJ24: =find_month(BJ$6,BJ$7,$G24) -> FALSE | BK24: =find_month(BK$6,BK$7,$G24) -> FALSE | BL24: =find_month(BL$6,BL$7,$G24) -> TRUE | BM24: =find_month(BM$6,BM$7,$G24) -> FALSE | BN24: =find_month(BN$6,BN$7,$G24) -> FALSE | BO24: =find_month(BO$6,BO$7,$G24) -> FALSE | BP24: =find_month(BP$6,BP$7,$G24) -> TRUE | BQ24: =find_month(BQ$6,BQ$7,$G24) -> FALSE | BR24: =find_month(BR$6,BR$7,$G24) -> FALSE | BS24: =find_month(BS$6,BS$7,$G24) -> FALSE | BT24: =find_month(BT$6,BT$7,$G24) -> TRUE | BU24: =find_month(BU$6,BU$7,$G24) -> FALSE | BV24: =find_month(BV$6,BV$7,$G24) -> FALSE | BW24: =find_month(BW$6,BW$7,$G24) -> FALSE | BX24: =find_month(BX$6,BX$7,$G24) -> TRUE | BY24: =find_month(BY$6,BY$7,$G24) -> FALSE | BZ24: =find_month(BZ$6,BZ$7,$G24) -> FALSE | CA24: =find_month(CA$6,CA$7,$G24) -> FALSE | CB24: =find_month(CB$6,CB$7,$G24) -> TRUE | CC24: =find_month(CC$6,CC$7,$G24) -> FALSE | CD24: =find_month(CD$6,CD$7,$G24) -> FALSE | CE24: =find_month(CE$6,CE$7,$G24) -> FALSE | CF24: =find_month(CF$6,CF$7,$G24) -> TRUE | CG24: =find_month(CG$6,CG$7,$G24) -> FALSE | CH24: =find_month(CH$6,CH$7,$G24) -> FALSE | CI24: =find_month(CI$6,CI$7,$G24) -> FALSE | CJ24: =find_month(CJ$6,CJ$7,$G24) -> TRUE | CK24: =find_month(CK$6,CK$7,$G24) -> FALSE | CL24: =find_month(CL$6,CL$7,$G24) -> FALSE | CM24: =find_month(CM$6,CM$7,$G24) -> FALSE | CN24: =find_month(CN$6,CN$7,$G24) -> TRUE | CO24: =find_month(CO$6,CO$7,$G24) -> FALSE | CP24: =find_month(CP$6,CP$7,$G24) -> FALSE | CQ24: =find_month(CQ$6,CQ$7,$G24) -> FALSE | CR24: =find_month(CR$6,CR$7,$G24) -> TRUE | CS24: =find_month(CS$6,CS$7,$G24) -> FALSE | CT24: =find_month(CT$6,CT$7,$G24) -> FALSE | CU24: =find_month(CU$6,CU$7,$G24) -> FALSE | CV24: =find_month(CV$6,CV$7,$G24) -> TRUE | CW24: =find_month(CW$6,CW$7,$G24) -> FALSE | CX24: =find_month(CX$6,CX$7,$G24) -> FALSE | CY24: =find_month(CY$6,CY$7,$G24) -> FALSE | CZ24: =find_month(CZ$6,CZ$7,$G24) -> TRUE | DA24: =find_month(DA$6,DA$7,$G24) -> FALSE | DB24: =find_month(DB$6,DB$7,$G24) -> FALSE | DC24: =find_month(DC$6,DC$7,$G24) -> FALSE | DD24: =find_month(DD$6,DD$7,$G24) -> TRUE | DE24: =find_month(DE$6,DE$7,$G24) -> FALSE | DF24: =find_month(DF$6,DF$7,$G24) -> FALSE | DG24: =find_month(DG$6,DG$7,$G24) -> FALSE | DH24: =find_month(DH$6,DH$7,$G24) -> TRUE | DI24: =find_month(DI$6,DI$7,$G24) -> FALSE | DJ24: =find_month(DJ$6,DJ$7,$G24) -> FALSE | DK24: =find_month(DK$6,DK$7,$G24) -> FALSE | DL24: =find_month(DL$6,DL$7,$G24) -> TRUE | DM24: =find_month(DM$6,DM$7,$G24) -> FALSE | DN24: =find_month(DN$6,DN$7,$G24) -> FALSE | DO24: =find_month(DO$6,DO$7,$G24) -> FALSE | DP24: =find_month(DP$6,DP$7,$G24) -> TRUE | DQ24: =find_month(DQ$6,DQ$7,$G24) -> FALSE
C25: August Month | F25: No | G25: =Assumptions!E43 -> 8 | K25: =find_month(K$6,K$7,$G25) -> FALSE | L25: =find_month(L$6,L$7,$G25) -> FALSE | M25: =find_month(M$6,M$7,$G25) -> FALSE | N25: =find_month(N$6,N$7,$G25) -> FALSE | O25: =find_month(O$6,O$7,$G25) -> FALSE | P25: =find_month(P$6,P$7,$G25) -> FALSE | Q25: =find_month(Q$6,Q$7,$G25) -> FALSE | R25: =find_month(R$6,R$7,$G25) -> FALSE | S25: =find_month(S$6,S$7,$G25) -> FALSE | T25: =find_month(T$6,T$7,$G25) -> TRUE | U25: =find_month(U$6,U$7,$G25) -> FALSE | V25: =find_month(V$6,V$7,$G25) -> FALSE | W25: =find_month(W$6,W$7,$G25) -> FALSE | X25: =find_month(X$6,X$7,$G25) -> TRUE | Y25: =find_month(Y$6,Y$7,$G25) -> FALSE | Z25: =find_month(Z$6,Z$7,$G25) -> FALSE | AA25: =find_month(AA$6,AA$7,$G25) -> FALSE | AB25: =find_month(AB$6,AB$7,$G25) -> TRUE | AC25: =find_month(AC$6,AC$7,$G25) -> FALSE | AD25: =find_month(AD$6,AD$7,$G25) -> FALSE | AE25: =find_month(AE$6,AE$7,$G25) -> FALSE | AF25: =find_month(AF$6,AF$7,$G25) -> TRUE | AG25: =find_month(AG$6,AG$7,$G25) -> FALSE | AH25: =find_month(AH$6,AH$7,$G25) -> FALSE | AI25: =find_month(AI$6,AI$7,$G25) -> FALSE | AJ25: =find_month(AJ$6,AJ$7,$G25) -> TRUE | AK25: =find_month(AK$6,AK$7,$G25) -> FALSE | AL25: =find_month(AL$6,AL$7,$G25) -> FALSE | AM25: =find_month(AM$6,AM$7,$G25) -> FALSE | AN25: =find_month(AN$6,AN$7,$G25) -> TRUE | AO25: =find_month(AO$6,AO$7,$G25) -> FALSE | AP25: =find_month(AP$6,AP$7,$G25) -> FALSE | AQ25: =find_month(AQ$6,AQ$7,$G25) -> FALSE | AR25: =find_month(AR$6,AR$7,$G25) -> TRUE | AS25: =find_month(AS$6,AS$7,$G25) -> FALSE | AT25: =find_month(AT$6,AT$7,$G25) -> FALSE | AU25: =find_month(AU$6,AU$7,$G25) -> FALSE | AV25: =find_month(AV$6,AV$7,$G25) -> TRUE | AW25: =find_month(AW$6,AW$7,$G25) -> FALSE | AX25: =find_month(AX$6,AX$7,$G25) -> FALSE | AY25: =find_month(AY$6,AY$7,$G25) -> FALSE | AZ25: =find_month(AZ$6,AZ$7,$G25) -> TRUE | BA25: =find_month(BA$6,BA$7,$G25) -> FALSE | BB25: =find_month(BB$6,BB$7,$G25) -> FALSE | BC25: =find_month(BC$6,BC$7,$G25) -> FALSE | BD25: =find_month(BD$6,BD$7,$G25) -> TRUE | BE25: =find_month(BE$6,BE$7,$G25) -> FALSE | BF25: =find_month(BF$6,BF$7,$G25) -> FALSE | BG25: =find_month(BG$6,BG$7,$G25) -> FALSE | BH25: =find_month(BH$6,BH$7,$G25) -> TRUE | BI25: =find_month(BI$6,BI$7,$G25) -> FALSE | BJ25: =find_month(BJ$6,BJ$7,$G25) -> FALSE | BK25: =find_month(BK$6,BK$7,$G25) -> FALSE | BL25: =find_month(BL$6,BL$7,$G25) -> TRUE | BM25: =find_month(BM$6,BM$7,$G25) -> FALSE | BN25: =find_month(BN$6,BN$7,$G25) -> FALSE | BO25: =find_month(BO$6,BO$7,$G25) -> FALSE | BP25: =find_month(BP$6,BP$7,$G25) -> TRUE | BQ25: =find_month(BQ$6,BQ$7,$G25) -> FALSE | BR25: =find_month(BR$6,BR$7,$G25) -> FALSE | BS25: =find_month(BS$6,BS$7,$G25) -> FALSE | BT25: =find_month(BT$6,BT$7,$G25) -> TRUE | BU25: =find_month(BU$6,BU$7,$G25) -> FALSE | BV25: =find_month(BV$6,BV$7,$G25) -> FALSE | BW25: =find_month(BW$6,BW$7,$G25) -> FALSE | BX25: =find_month(BX$6,BX$7,$G25) -> TRUE | BY25: =find_month(BY$6,BY$7,$G25) -> FALSE | BZ25: =find_month(BZ$6,BZ$7,$G25) -> FALSE | CA25: =find_month(CA$6,CA$7,$G25) -> FALSE | CB25: =find_month(CB$6,CB$7,$G25) -> TRUE | CC25: =find_month(CC$6,CC$7,$G25) -> FALSE | CD25: =find_month(CD$6,CD$7,$G25) -> FALSE | CE25: =find_month(CE$6,CE$7,$G25) -> FALSE | CF25: =find_month(CF$6,CF$7,$G25) -> TRUE | CG25: =find_month(CG$6,CG$7,$G25) -> FALSE | CH25: =find_month(CH$6,CH$7,$G25) -> FALSE | CI25: =find_month(CI$6,CI$7,$G25) -> FALSE | CJ25: =find_month(CJ$6,CJ$7,$G25) -> TRUE | CK25: =find_month(CK$6,CK$7,$G25) -> FALSE | CL25: =find_month(CL$6,CL$7,$G25) -> FALSE | CM25: =find_month(CM$6,CM$7,$G25) -> FALSE | CN25: =find_month(CN$6,CN$7,$G25) -> TRUE | CO25: =find_month(CO$6,CO$7,$G25) -> FALSE | CP25: =find_month(CP$6,CP$7,$G25) -> FALSE | CQ25: =find_month(CQ$6,CQ$7,$G25) -> FALSE | CR25: =find_month(CR$6,CR$7,$G25) -> TRUE | CS25: =find_month(CS$6,CS$7,$G25) -> FALSE | CT25: =find_month(CT$6,CT$7,$G25) -> FALSE | CU25: =find_month(CU$6,CU$7,$G25) -> FALSE | CV25: =find_month(CV$6,CV$7,$G25) -> TRUE | CW25: =find_month(CW$6,CW$7,$G25) -> FALSE | CX25: =find_month(CX$6,CX$7,$G25) -> FALSE | CY25: =find_month(CY$6,CY$7,$G25) -> FALSE | CZ25: =find_month(CZ$6,CZ$7,$G25) -> TRUE | DA25: =find_month(DA$6,DA$7,$G25) -> FALSE | DB25: =find_month(DB$6,DB$7,$G25) -> FALSE | DC25: =find_month(DC$6,DC$7,$G25) -> FALSE | DD25: =find_month(DD$6,DD$7,$G25) -> TRUE | DE25: =find_month(DE$6,DE$7,$G25) -> FALSE | DF25: =find_month(DF$6,DF$7,$G25) -> FALSE | DG25: =find_month(DG$6,DG$7,$G25) -> FALSE | DH25: =find_month(DH$6,DH$7,$G25) -> TRUE | DI25: =find_month(DI$6,DI$7,$G25) -> FALSE | DJ25: =find_month(DJ$6,DJ$7,$G25) -> FALSE | DK25: =find_month(DK$6,DK$7,$G25) -> FALSE | DL25: =find_month(DL$6,DL$7,$G25) -> TRUE | DM25: =find_month(DM$6,DM$7,$G25) -> FALSE | DN25: =find_month(DN$6,DN$7,$G25) -> FALSE | DO25: =find_month(DO$6,DO$7,$G25) -> FALSE | DP25: =find_month(DP$6,DP$7,$G25) -> TRUE | DQ25: =find_month(DQ$6,DQ$7,$G25) -> FALSE
C26: September Month | F26: No | G26: =Assumptions!E44 -> 9 | K26: =find_month(K$6,K$7,$G26) -> TRUE | L26: =find_month(L$6,L$7,$G26) -> FALSE | M26: =find_month(M$6,M$7,$G26) -> FALSE | N26: =find_month(N$6,N$7,$G26) -> FALSE | O26: =find_month(O$6,O$7,$G26) -> FALSE | P26: =find_month(P$6,P$7,$G26) -> FALSE | Q26: =find_month(Q$6,Q$7,$G26) -> FALSE | R26: =find_month(R$6,R$7,$G26) -> FALSE | S26: =find_month(S$6,S$7,$G26) -> FALSE | T26: =find_month(T$6,T$7,$G26) -> FALSE | U26: =find_month(U$6,U$7,$G26) -> TRUE | V26: =find_month(V$6,V$7,$G26) -> FALSE | W26: =find_month(W$6,W$7,$G26) -> FALSE | X26: =find_month(X$6,X$7,$G26) -> FALSE | Y26: =find_month(Y$6,Y$7,$G26) -> TRUE | Z26: =find_month(Z$6,Z$7,$G26) -> FALSE | AA26: =find_month(AA$6,AA$7,$G26) -> FALSE | AB26: =find_month(AB$6,AB$7,$G26) -> FALSE | AC26: =find_month(AC$6,AC$7,$G26) -> TRUE | AD26: =find_month(AD$6,AD$7,$G26) -> FALSE | AE26: =find_month(AE$6,AE$7,$G26) -> FALSE | AF26: =find_month(AF$6,AF$7,$G26) -> FALSE | AG26: =find_month(AG$6,AG$7,$G26) -> TRUE | AH26: =find_month(AH$6,AH$7,$G26) -> FALSE | AI26: =find_month(AI$6,AI$7,$G26) -> FALSE | AJ26: =find_month(AJ$6,AJ$7,$G26) -> FALSE | AK26: =find_month(AK$6,AK$7,$G26) -> TRUE | AL26: =find_month(AL$6,AL$7,$G26) -> FALSE | AM26: =find_month(AM$6,AM$7,$G26) -> FALSE | AN26: =find_month(AN$6,AN$7,$G26) -> FALSE | AO26: =find_month(AO$6,AO$7,$G26) -> TRUE | AP26: =find_month(AP$6,AP$7,$G26) -> FALSE | AQ26: =find_month(AQ$6,AQ$7,$G26) -> FALSE | AR26: =find_month(AR$6,AR$7,$G26) -> FALSE | AS26: =find_month(AS$6,AS$7,$G26) -> TRUE | AT26: =find_month(AT$6,AT$7,$G26) -> FALSE | AU26: =find_month(AU$6,AU$7,$G26) -> FALSE | AV26: =find_month(AV$6,AV$7,$G26) -> FALSE | AW26: =find_month(AW$6,AW$7,$G26) -> TRUE | AX26: =find_month(AX$6,AX$7,$G26) -> FALSE | AY26: =find_month(AY$6,AY$7,$G26) -> FALSE | AZ26: =find_month(AZ$6,AZ$7,$G26) -> FALSE | BA26: =find_month(BA$6,BA$7,$G26) -> TRUE | BB26: =find_month(BB$6,BB$7,$G26) -> FALSE | BC26: =find_month(BC$6,BC$7,$G26) -> FALSE | BD26: =find_month(BD$6,BD$7,$G26) -> FALSE | BE26: =find_month(BE$6,BE$7,$G26) -> TRUE | BF26: =find_month(BF$6,BF$7,$G26) -> FALSE | BG26: =find_month(BG$6,BG$7,$G26) -> FALSE | BH26: =find_month(BH$6,BH$7,$G26) -> FALSE | BI26: =find_month(BI$6,BI$7,$G26) -> TRUE | BJ26: =find_month(BJ$6,BJ$7,$G26) -> FALSE | BK26: =find_month(BK$6,BK$7,$G26) -> FALSE | BL26: =find_month(BL$6,BL$7,$G26) -> FALSE | BM26: =find_month(BM$6,BM$7,$G26) -> TRUE | BN26: =find_month(BN$6,BN$7,$G26) -> FALSE | BO26: =find_month(BO$6,BO$7,$G26) -> FALSE | BP26: =find_month(BP$6,BP$7,$G26) -> FALSE | BQ26: =find_month(BQ$6,BQ$7,$G26) -> TRUE | BR26: =find_month(BR$6,BR$7,$G26) -> FALSE | BS26: =find_month(BS$6,BS$7,$G26) -> FALSE | BT26: =find_month(BT$6,BT$7,$G26) -> FALSE | BU26: =find_month(BU$6,BU$7,$G26) -> TRUE | BV26: =find_month(BV$6,BV$7,$G26) -> FALSE | BW26: =find_month(BW$6,BW$7,$G26) -> FALSE | BX26: =find_month(BX$6,BX$7,$G26) -> FALSE | BY26: =find_month(BY$6,BY$7,$G26) -> TRUE | BZ26: =find_month(BZ$6,BZ$7,$G26) -> FALSE | CA26: =find_month(CA$6,CA$7,$G26) -> FALSE | CB26: =find_month(CB$6,CB$7,$G26) -> FALSE | CC26: =find_month(CC$6,CC$7,$G26) -> TRUE | CD26: =find_month(CD$6,CD$7,$G26) -> FALSE | CE26: =find_month(CE$6,CE$7,$G26) -> FALSE | CF26: =find_month(CF$6,CF$7,$G26) -> FALSE | CG26: =find_month(CG$6,CG$7,$G26) -> TRUE | CH26: =find_month(CH$6,CH$7,$G26) -> FALSE | CI26: =find_month(CI$6,CI$7,$G26) -> FALSE | CJ26: =find_month(CJ$6,CJ$7,$G26) -> FALSE | CK26: =find_month(CK$6,CK$7,$G26) -> TRUE | CL26: =find_month(CL$6,CL$7,$G26) -> FALSE | CM26: =find_month(CM$6,CM$7,$G26) -> FALSE | CN26: =find_month(CN$6,CN$7,$G26) -> FALSE | CO26: =find_month(CO$6,CO$7,$G26) -> TRUE | CP26: =find_month(CP$6,CP$7,$G26) -> FALSE | CQ26: =find_month(CQ$6,CQ$7,$G26) -> FALSE | CR26: =find_month(CR$6,CR$7,$G26) -> FALSE | CS26: =find_month(CS$6,CS$7,$G26) -> TRUE | CT26: =find_month(CT$6,CT$7,$G26) -> FALSE | CU26: =find_month(CU$6,CU$7,$G26) -> FALSE | CV26: =find_month(CV$6,CV$7,$G26) -> FALSE | CW26: =find_month(CW$6,CW$7,$G26) -> TRUE | CX26: =find_month(CX$6,CX$7,$G26) -> FALSE | CY26: =find_month(CY$6,CY$7,$G26) -> FALSE | CZ26: =find_month(CZ$6,CZ$7,$G26) -> FALSE | DA26: =find_month(DA$6,DA$7,$G26) -> TRUE | DB26: =find_month(DB$6,DB$7,$G26) -> FALSE | DC26: =find_month(DC$6,DC$7,$G26) -> FALSE | DD26: =find_month(DD$6,DD$7,$G26) -> FALSE | DE26: =find_month(DE$6,DE$7,$G26) -> TRUE | DF26: =find_month(DF$6,DF$7,$G26) -> FALSE | DG26: =find_month(DG$6,DG$7,$G26) -> FALSE | DH26: =find_month(DH$6,DH$7,$G26) -> FALSE | DI26: =find_month(DI$6,DI$7,$G26) -> TRUE | DJ26: =find_month(DJ$6,DJ$7,$G26) -> FALSE | DK26: =find_month(DK$6,DK$7,$G26) -> FALSE | DL26: =find_month(DL$6,DL$7,$G26) -> FALSE | DM26: =find_month(DM$6,DM$7,$G26) -> TRUE | DN26: =find_month(DN$6,DN$7,$G26) -> FALSE | DO26: =find_month(DO$6,DO$7,$G26) -> FALSE | DP26: =find_month(DP$6,DP$7,$G26) -> FALSE | DQ26: =find_month(DQ$6,DQ$7,$G26) -> TRUE
C27: October Month | F27: No | G27: =Assumptions!E45 -> 10 | K27: =find_month(K$6,K$7,$G27) -> FALSE | L27: =find_month(L$6,L$7,$G27) -> TRUE | M27: =find_month(M$6,M$7,$G27) -> FALSE | N27: =find_month(N$6,N$7,$G27) -> FALSE | O27: =find_month(O$6,O$7,$G27) -> FALSE | P27: =find_month(P$6,P$7,$G27) -> FALSE | Q27: =find_month(Q$6,Q$7,$G27) -> FALSE | R27: =find_month(R$6,R$7,$G27) -> FALSE | S27: =find_month(S$6,S$7,$G27) -> FALSE | T27: =find_month(T$6,T$7,$G27) -> FALSE | U27: =find_month(U$6,U$7,$G27) -> TRUE | V27: =find_month(V$6,V$7,$G27) -> FALSE | W27: =find_month(W$6,W$7,$G27) -> FALSE | X27: =find_month(X$6,X$7,$G27) -> FALSE | Y27: =find_month(Y$6,Y$7,$G27) -> TRUE | Z27: =find_month(Z$6,Z$7,$G27) -> FALSE | AA27: =find_month(AA$6,AA$7,$G27) -> FALSE | AB27: =find_month(AB$6,AB$7,$G27) -> FALSE | AC27: =find_month(AC$6,AC$7,$G27) -> TRUE | AD27: =find_month(AD$6,AD$7,$G27) -> FALSE | AE27: =find_month(AE$6,AE$7,$G27) -> FALSE | AF27: =find_month(AF$6,AF$7,$G27) -> FALSE | AG27: =find_month(AG$6,AG$7,$G27) -> TRUE | AH27: =find_month(AH$6,AH$7,$G27) -> FALSE | AI27: =find_month(AI$6,AI$7,$G27) -> FALSE | AJ27: =find_month(AJ$6,AJ$7,$G27) -> FALSE | AK27: =find_month(AK$6,AK$7,$G27) -> TRUE | AL27: =find_month(AL$6,AL$7,$G27) -> FALSE | AM27: =find_month(AM$6,AM$7,$G27) -> FALSE | AN27: =find_month(AN$6,AN$7,$G27) -> FALSE | AO27: =find_month(AO$6,AO$7,$G27) -> TRUE | AP27: =find_month(AP$6,AP$7,$G27) -> FALSE | AQ27: =find_month(AQ$6,AQ$7,$G27) -> FALSE | AR27: =find_month(AR$6,AR$7,$G27) -> FALSE | AS27: =find_month(AS$6,AS$7,$G27) -> TRUE | AT27: =find_month(AT$6,AT$7,$G27) -> FALSE | AU27: =find_month(AU$6,AU$7,$G27) -> FALSE | AV27: =find_month(AV$6,AV$7,$G27) -> FALSE | AW27: =find_month(AW$6,AW$7,$G27) -> TRUE | AX27: =find_month(AX$6,AX$7,$G27) -> FALSE | AY27: =find_month(AY$6,AY$7,$G27) -> FALSE | AZ27: =find_month(AZ$6,AZ$7,$G27) -> FALSE | BA27: =find_month(BA$6,BA$7,$G27) -> TRUE | BB27: =find_month(BB$6,BB$7,$G27) -> FALSE | BC27: =find_month(BC$6,BC$7,$G27) -> FALSE | BD27: =find_month(BD$6,BD$7,$G27) -> FALSE | BE27: =find_month(BE$6,BE$7,$G27) -> TRUE | BF27: =find_month(BF$6,BF$7,$G27) -> FALSE | BG27: =find_month(BG$6,BG$7,$G27) -> FALSE | BH27: =find_month(BH$6,BH$7,$G27) -> FALSE | BI27: =find_month(BI$6,BI$7,$G27) -> TRUE | BJ27: =find_month(BJ$6,BJ$7,$G27) -> FALSE | BK27: =find_month(BK$6,BK$7,$G27) -> FALSE | BL27: =find_month(BL$6,BL$7,$G27) -> FALSE | BM27: =find_month(BM$6,BM$7,$G27) -> TRUE | BN27: =find_month(BN$6,BN$7,$G27) -> FALSE | BO27: =find_month(BO$6,BO$7,$G27) -> FALSE | BP27: =find_month(BP$6,BP$7,$G27) -> FALSE | BQ27: =find_month(BQ$6,BQ$7,$G27) -> TRUE | BR27: =find_month(BR$6,BR$7,$G27) -> FALSE | BS27: =find_month(BS$6,BS$7,$G27) -> FALSE | BT27: =find_month(BT$6,BT$7,$G27) -> FALSE | BU27: =find_month(BU$6,BU$7,$G27) -> TRUE | BV27: =find_month(BV$6,BV$7,$G27) -> FALSE | BW27: =find_month(BW$6,BW$7,$G27) -> FALSE | BX27: =find_month(BX$6,BX$7,$G27) -> FALSE | BY27: =find_month(BY$6,BY$7,$G27) -> TRUE | BZ27: =find_month(BZ$6,BZ$7,$G27) -> FALSE | CA27: =find_month(CA$6,CA$7,$G27) -> FALSE | CB27: =find_month(CB$6,CB$7,$G27) -> FALSE | CC27: =find_month(CC$6,CC$7,$G27) -> TRUE | CD27: =find_month(CD$6,CD$7,$G27) -> FALSE | CE27: =find_month(CE$6,CE$7,$G27) -> FALSE | CF27: =find_month(CF$6,CF$7,$G27) -> FALSE | CG27: =find_month(CG$6,CG$7,$G27) -> TRUE | CH27: =find_month(CH$6,CH$7,$G27) -> FALSE | CI27: =find_month(CI$6,CI$7,$G27) -> FALSE | CJ27: =find_month(CJ$6,CJ$7,$G27) -> FALSE | CK27: =find_month(CK$6,CK$7,$G27) -> TRUE | CL27: =find_month(CL$6,CL$7,$G27) -> FALSE | CM27: =find_month(CM$6,CM$7,$G27) -> FALSE | CN27: =find_month(CN$6,CN$7,$G27) -> FALSE | CO27: =find_month(CO$6,CO$7,$G27) -> TRUE | CP27: =find_month(CP$6,CP$7,$G27) -> FALSE | CQ27: =find_month(CQ$6,CQ$7,$G27) -> FALSE | CR27: =find_month(CR$6,CR$7,$G27) -> FALSE | CS27: =find_month(CS$6,CS$7,$G27) -> TRUE | CT27: =find_month(CT$6,CT$7,$G27) -> FALSE | CU27: =find_month(CU$6,CU$7,$G27) -> FALSE | CV27: =find_month(CV$6,CV$7,$G27) -> FALSE | CW27: =find_month(CW$6,CW$7,$G27) -> TRUE | CX27: =find_month(CX$6,CX$7,$G27) -> FALSE | CY27: =find_month(CY$6,CY$7,$G27) -> FALSE | CZ27: =find_month(CZ$6,CZ$7,$G27) -> FALSE | DA27: =find_month(DA$6,DA$7,$G27) -> TRUE | DB27: =find_month(DB$6,DB$7,$G27) -> FALSE | DC27: =find_month(DC$6,DC$7,$G27) -> FALSE | DD27: =find_month(DD$6,DD$7,$G27) -> FALSE | DE27: =find_month(DE$6,DE$7,$G27) -> TRUE | DF27: =find_month(DF$6,DF$7,$G27) -> FALSE | DG27: =find_month(DG$6,DG$7,$G27) -> FALSE | DH27: =find_month(DH$6,DH$7,$G27) -> FALSE | DI27: =find_month(DI$6,DI$7,$G27) -> TRUE | DJ27: =find_month(DJ$6,DJ$7,$G27) -> FALSE | DK27: =find_month(DK$6,DK$7,$G27) -> FALSE | DL27: =find_month(DL$6,DL$7,$G27) -> FALSE | DM27: =find_month(DM$6,DM$7,$G27) -> TRUE | DN27: =find_month(DN$6,DN$7,$G27) -> FALSE | DO27: =find_month(DO$6,DO$7,$G27) -> FALSE | DP27: =find_month(DP$6,DP$7,$G27) -> FALSE | DQ27: =find_month(DQ$6,DQ$7,$G27) -> TRUE
C28: November Month | F28: No | G28: =Assumptions!E46 -> 11 | K28: =find_month(K$6,K$7,$G28) -> FALSE | L28: =find_month(L$6,L$7,$G28) -> FALSE | M28: =find_month(M$6,M$7,$G28) -> TRUE | N28: =find_month(N$6,N$7,$G28) -> FALSE | O28: =find_month(O$6,O$7,$G28) -> FALSE | P28: =find_month(P$6,P$7,$G28) -> FALSE | Q28: =find_month(Q$6,Q$7,$G28) -> FALSE | R28: =find_month(R$6,R$7,$G28) -> FALSE | S28: =find_month(S$6,S$7,$G28) -> FALSE | T28: =find_month(T$6,T$7,$G28) -> FALSE | U28: =find_month(U$6,U$7,$G28) -> TRUE | V28: =find_month(V$6,V$7,$G28) -> FALSE | W28: =find_month(W$6,W$7,$G28) -> FALSE | X28: =find_month(X$6,X$7,$G28) -> FALSE | Y28: =find_month(Y$6,Y$7,$G28) -> TRUE | Z28: =find_month(Z$6,Z$7,$G28) -> FALSE | AA28: =find_month(AA$6,AA$7,$G28) -> FALSE | AB28: =find_month(AB$6,AB$7,$G28) -> FALSE | AC28: =find_month(AC$6,AC$7,$G28) -> TRUE | AD28: =find_month(AD$6,AD$7,$G28) -> FALSE | AE28: =find_month(AE$6,AE$7,$G28) -> FALSE | AF28: =find_month(AF$6,AF$7,$G28) -> FALSE | AG28: =find_month(AG$6,AG$7,$G28) -> TRUE | AH28: =find_month(AH$6,AH$7,$G28) -> FALSE | AI28: =find_month(AI$6,AI$7,$G28) -> FALSE | AJ28: =find_month(AJ$6,AJ$7,$G28) -> FALSE | AK28: =find_month(AK$6,AK$7,$G28) -> TRUE | AL28: =find_month(AL$6,AL$7,$G28) -> FALSE | AM28: =find_month(AM$6,AM$7,$G28) -> FALSE | AN28: =find_month(AN$6,AN$7,$G28) -> FALSE | AO28: =find_month(AO$6,AO$7,$G28) -> TRUE | AP28: =find_month(AP$6,AP$7,$G28) -> FALSE | AQ28: =find_month(AQ$6,AQ$7,$G28) -> FALSE | AR28: =find_month(AR$6,AR$7,$G28) -> FALSE | AS28: =find_month(AS$6,AS$7,$G28) -> TRUE | AT28: =find_month(AT$6,AT$7,$G28) -> FALSE | AU28: =find_month(AU$6,AU$7,$G28) -> FALSE | AV28: =find_month(AV$6,AV$7,$G28) -> FALSE | AW28: =find_month(AW$6,AW$7,$G28) -> TRUE | AX28: =find_month(AX$6,AX$7,$G28) -> FALSE | AY28: =find_month(AY$6,AY$7,$G28) -> FALSE | AZ28: =find_month(AZ$6,AZ$7,$G28) -> FALSE | BA28: =find_month(BA$6,BA$7,$G28) -> TRUE | BB28: =find_month(BB$6,BB$7,$G28) -> FALSE | BC28: =find_month(BC$6,BC$7,$G28) -> FALSE | BD28: =find_month(BD$6,BD$7,$G28) -> FALSE | BE28: =find_month(BE$6,BE$7,$G28) -> TRUE | BF28: =find_month(BF$6,BF$7,$G28) -> FALSE | BG28: =find_month(BG$6,BG$7,$G28) -> FALSE | BH28: =find_month(BH$6,BH$7,$G28) -> FALSE | BI28: =find_month(BI$6,BI$7,$G28) -> TRUE | BJ28: =find_month(BJ$6,BJ$7,$G28) -> FALSE | BK28: =find_month(BK$6,BK$7,$G28) -> FALSE | BL28: =find_month(BL$6,BL$7,$G28) -> FALSE | BM28: =find_month(BM$6,BM$7,$G28) -> TRUE | BN28: =find_month(BN$6,BN$7,$G28) -> FALSE | BO28: =find_month(BO$6,BO$7,$G28) -> FALSE | BP28: =find_month(BP$6,BP$7,$G28) -> FALSE | BQ28: =find_month(BQ$6,BQ$7,$G28) -> TRUE | BR28: =find_month(BR$6,BR$7,$G28) -> FALSE | BS28: =find_month(BS$6,BS$7,$G28) -> FALSE | BT28: =find_month(BT$6,BT$7,$G28) -> FALSE | BU28: =find_month(BU$6,BU$7,$G28) -> TRUE | BV28: =find_month(BV$6,BV$7,$G28) -> FALSE | BW28: =find_month(BW$6,BW$7,$G28) -> FALSE | BX28: =find_month(BX$6,BX$7,$G28) -> FALSE | BY28: =find_month(BY$6,BY$7,$G28) -> TRUE | BZ28: =find_month(BZ$6,BZ$7,$G28) -> FALSE | CA28: =find_month(CA$6,CA$7,$G28) -> FALSE | CB28: =find_month(CB$6,CB$7,$G28) -> FALSE | CC28: =find_month(CC$6,CC$7,$G28) -> TRUE | CD28: =find_month(CD$6,CD$7,$G28) -> FALSE | CE28: =find_month(CE$6,CE$7,$G28) -> FALSE | CF28: =find_month(CF$6,CF$7,$G28) -> FALSE | CG28: =find_month(CG$6,CG$7,$G28) -> TRUE | CH28: =find_month(CH$6,CH$7,$G28) -> FALSE | CI28: =find_month(CI$6,CI$7,$G28) -> FALSE | CJ28: =find_month(CJ$6,CJ$7,$G28) -> FALSE | CK28: =find_month(CK$6,CK$7,$G28) -> TRUE | CL28: =find_month(CL$6,CL$7,$G28) -> FALSE | CM28: =find_month(CM$6,CM$7,$G28) -> FALSE | CN28: =find_month(CN$6,CN$7,$G28) -> FALSE | CO28: =find_month(CO$6,CO$7,$G28) -> TRUE | CP28: =find_month(CP$6,CP$7,$G28) -> FALSE | CQ28: =find_month(CQ$6,CQ$7,$G28) -> FALSE | CR28: =find_month(CR$6,CR$7,$G28) -> FALSE | CS28: =find_month(CS$6,CS$7,$G28) -> TRUE | CT28: =find_month(CT$6,CT$7,$G28) -> FALSE | CU28: =find_month(CU$6,CU$7,$G28) -> FALSE | CV28: =find_month(CV$6,CV$7,$G28) -> FALSE | CW28: =find_month(CW$6,CW$7,$G28) -> TRUE | CX28: =find_month(CX$6,CX$7,$G28) -> FALSE | CY28: =find_month(CY$6,CY$7,$G28) -> FALSE | CZ28: =find_month(CZ$6,CZ$7,$G28) -> FALSE | DA28: =find_month(DA$6,DA$7,$G28) -> TRUE | DB28: =find_month(DB$6,DB$7,$G28) -> FALSE | DC28: =find_month(DC$6,DC$7,$G28) -> FALSE | DD28: =find_month(DD$6,DD$7,$G28) -> FALSE | DE28: =find_month(DE$6,DE$7,$G28) -> TRUE | DF28: =find_month(DF$6,DF$7,$G28) -> FALSE | DG28: =find_month(DG$6,DG$7,$G28) -> FALSE | DH28: =find_month(DH$6,DH$7,$G28) -> FALSE | DI28: =find_month(DI$6,DI$7,$G28) -> TRUE | DJ28: =find_month(DJ$6,DJ$7,$G28) -> FALSE | DK28: =find_month(DK$6,DK$7,$G28) -> FALSE | DL28: =find_month(DL$6,DL$7,$G28) -> FALSE | DM28: =find_month(DM$6,DM$7,$G28) -> TRUE | DN28: =find_month(DN$6,DN$7,$G28) -> FALSE | DO28: =find_month(DO$6,DO$7,$G28) -> FALSE | DP28: =find_month(DP$6,DP$7,$G28) -> FALSE | DQ28: =find_month(DQ$6,DQ$7,$G28) -> TRUE
C29: December Month | F29: No | G29: =Assumptions!E47 -> 12 | K29: =find_month(K$6,K$7,$G29) -> FALSE | L29: =find_month(L$6,L$7,$G29) -> FALSE | M29: =find_month(M$6,M$7,$G29) -> FALSE | N29: =find_month(N$6,N$7,$G29) -> TRUE | O29: =find_month(O$6,O$7,$G29) -> FALSE | P29: =find_month(P$6,P$7,$G29) -> FALSE | Q29: =find_month(Q$6,Q$7,$G29) -> FALSE | R29: =find_month(R$6,R$7,$G29) -> FALSE | S29: =find_month(S$6,S$7,$G29) -> FALSE | T29: =find_month(T$6,T$7,$G29) -> FALSE | U29: =find_month(U$6,U$7,$G29) -> FALSE | V29: =find_month(V$6,V$7,$G29) -> TRUE | W29: =find_month(W$6,W$7,$G29) -> FALSE | X29: =find_month(X$6,X$7,$G29) -> FALSE | Y29: =find_month(Y$6,Y$7,$G29) -> FALSE | Z29: =find_month(Z$6,Z$7,$G29) -> TRUE | AA29: =find_month(AA$6,AA$7,$G29) -> FALSE | AB29: =find_month(AB$6,AB$7,$G29) -> FALSE | AC29: =find_month(AC$6,AC$7,$G29) -> FALSE | AD29: =find_month(AD$6,AD$7,$G29) -> TRUE | AE29: =find_month(AE$6,AE$7,$G29) -> FALSE | AF29: =find_month(AF$6,AF$7,$G29) -> FALSE | AG29: =find_month(AG$6,AG$7,$G29) -> FALSE | AH29: =find_month(AH$6,AH$7,$G29) -> TRUE | AI29: =find_month(AI$6,AI$7,$G29) -> FALSE | AJ29: =find_month(AJ$6,AJ$7,$G29) -> FALSE | AK29: =find_month(AK$6,AK$7,$G29) -> FALSE | AL29: =find_month(AL$6,AL$7,$G29) -> TRUE | AM29: =find_month(AM$6,AM$7,$G29) -> FALSE | AN29: =find_month(AN$6,AN$7,$G29) -> FALSE | AO29: =find_month(AO$6,AO$7,$G29) -> FALSE | AP29: =find_month(AP$6,AP$7,$G29) -> TRUE | AQ29: =find_month(AQ$6,AQ$7,$G29) -> FALSE | AR29: =find_month(AR$6,AR$7,$G29) -> FALSE | AS29: =find_month(AS$6,AS$7,$G29) -> FALSE | AT29: =find_month(AT$6,AT$7,$G29) -> TRUE | AU29: =find_month(AU$6,AU$7,$G29) -> FALSE | AV29: =find_month(AV$6,AV$7,$G29) -> FALSE | AW29: =find_month(AW$6,AW$7,$G29) -> FALSE | AX29: =find_month(AX$6,AX$7,$G29) -> TRUE | AY29: =find_month(AY$6,AY$7,$G29) -> FALSE | AZ29: =find_month(AZ$6,AZ$7,$G29) -> FALSE | BA29: =find_month(BA$6,BA$7,$G29) -> FALSE | BB29: =find_month(BB$6,BB$7,$G29) -> TRUE | BC29: =find_month(BC$6,BC$7,$G29) -> FALSE | BD29: =find_month(BD$6,BD$7,$G29) -> FALSE | BE29: =find_month(BE$6,BE$7,$G29) -> FALSE | BF29: =find_month(BF$6,BF$7,$G29) -> TRUE | BG29: =find_month(BG$6,BG$7,$G29) -> FALSE | BH29: =find_month(BH$6,BH$7,$G29) -> FALSE | BI29: =find_month(BI$6,BI$7,$G29) -> FALSE | BJ29: =find_month(BJ$6,BJ$7,$G29) -> TRUE | BK29: =find_month(BK$6,BK$7,$G29) -> FALSE | BL29: =find_month(BL$6,BL$7,$G29) -> FALSE | BM29: =find_month(BM$6,BM$7,$G29) -> FALSE | BN29: =find_month(BN$6,BN$7,$G29) -> TRUE | BO29: =find_month(BO$6,BO$7,$G29) -> FALSE | BP29: =find_month(BP$6,BP$7,$G29) -> FALSE | BQ29: =find_month(BQ$6,BQ$7,$G29) -> FALSE | BR29: =find_month(BR$6,BR$7,$G29) -> TRUE | BS29: =find_month(BS$6,BS$7,$G29) -> FALSE | BT29: =find_month(BT$6,BT$7,$G29) -> FALSE | BU29: =find_month(BU$6,BU$7,$G29) -> FALSE | BV29: =find_month(BV$6,BV$7,$G29) -> TRUE | BW29: =find_month(BW$6,BW$7,$G29) -> FALSE | BX29: =find_month(BX$6,BX$7,$G29) -> FALSE | BY29: =find_month(BY$6,BY$7,$G29) -> FALSE | BZ29: =find_month(BZ$6,BZ$7,$G29) -> TRUE | CA29: =find_month(CA$6,CA$7,$G29) -> FALSE | CB29: =find_month(CB$6,CB$7,$G29) -> FALSE | CC29: =find_month(CC$6,CC$7,$G29) -> FALSE | CD29: =find_month(CD$6,CD$7,$G29) -> TRUE | CE29: =find_month(CE$6,CE$7,$G29) -> FALSE | CF29: =find_month(CF$6,CF$7,$G29) -> FALSE | CG29: =find_month(CG$6,CG$7,$G29) -> FALSE | CH29: =find_month(CH$6,CH$7,$G29) -> TRUE | CI29: =find_month(CI$6,CI$7,$G29) -> FALSE | CJ29: =find_month(CJ$6,CJ$7,$G29) -> FALSE | CK29: =find_month(CK$6,CK$7,$G29) -> FALSE | CL29: =find_month(CL$6,CL$7,$G29) -> TRUE | CM29: =find_month(CM$6,CM$7,$G29) -> FALSE | CN29: =find_month(CN$6,CN$7,$G29) -> FALSE | CO29: =find_month(CO$6,CO$7,$G29) -> FALSE | CP29: =find_month(CP$6,CP$7,$G29) -> TRUE | CQ29: =find_month(CQ$6,CQ$7,$G29) -> FALSE | CR29: =find_month(CR$6,CR$7,$G29) -> FALSE | CS29: =find_month(CS$6,CS$7,$G29) -> FALSE | CT29: =find_month(CT$6,CT$7,$G29) -> TRUE | CU29: =find_month(CU$6,CU$7,$G29) -> FALSE | CV29: =find_month(CV$6,CV$7,$G29) -> FALSE | CW29: =find_month(CW$6,CW$7,$G29) -> FALSE | CX29: =find_month(CX$6,CX$7,$G29) -> TRUE | CY29: =find_month(CY$6,CY$7,$G29) -> FALSE | CZ29: =find_month(CZ$6,CZ$7,$G29) -> FALSE | DA29: =find_month(DA$6,DA$7,$G29) -> FALSE | DB29: =find_month(DB$6,DB$7,$G29) -> TRUE | DC29: =find_month(DC$6,DC$7,$G29) -> FALSE | DD29: =find_month(DD$6,DD$7,$G29) -> FALSE | DE29: =find_month(DE$6,DE$7,$G29) -> FALSE | DF29: =find_month(DF$6,DF$7,$G29) -> TRUE | DG29: =find_month(DG$6,DG$7,$G29) -> FALSE | DH29: =find_month(DH$6,DH$7,$G29) -> FALSE | DI29: =find_month(DI$6,DI$7,$G29) -> FALSE | DJ29: =find_month(DJ$6,DJ$7,$G29) -> TRUE | DK29: =find_month(DK$6,DK$7,$G29) -> FALSE | DL29: =find_month(DL$6,DL$7,$G29) -> FALSE | DM29: =find_month(DM$6,DM$7,$G29) -> FALSE | DN29: =find_month(DN$6,DN$7,$G29) -> TRUE | DO29: =find_month(DO$6,DO$7,$G29) -> FALSE | DP29: =find_month(DP$6,DP$7,$G29) -> FALSE | DQ29: =find_month(DQ$6,DQ$7,$G29) -> FALSE
C31: January Generation | F31: MWH | G31: =Assumptions!J36 -> 0.1596629032 | H31: =Assumptions!I36 -> 744 | I31: =SUM(K31:BR31) -> 8960.376615 | K31: =$G31*$H31*K18*K$16/1000 -> 0 | L31: =$G31*$H31*L18*L$16/1000 -> 0 | M31: =$G31*$H31*M18*M$16/1000 -> 0 | N31: 0 | O31: 0 | P31: 0 | Q31: 0 | R31: 0 | S31: 0 | T31: 0 | U31: 0 | V31: 710.074083 | W31: 0 | X31: 0 | Y31: 0 | Z31: 706.5413761 | AA31: 0 | AB31: 0 | AC31: 0 | AD31: 703.0262449 | AE31: 0 | AF31: 0 | AG31: 0 | AH31: 699.5286019 | AI31: 0 | AJ31: 0 | AK31: 0 | AL31: 696.0483601 | AM31: 0 | AN31: 0 | AO31: 0 | AP31: 692.5854329 | AQ31: 0 | AR31: 0 | AS31: 0 | AT31: 689.1397342 | AU31: 0 | AV31: 0 | AW31: 0 | AX31: 685.7111783 | AY31: 0 | AZ31: 0 | BA31: 0 | BB31: 682.2996799 | BC31: 0 | BD31: 0 | BE31: 0 | BF31: 678.9051542 | BG31: 0 | BH31: 0 | BI31: 0 | BJ31: 675.5275166 | BK31: 0 | BL31: 0 | BM31: 0 | BN31: 672.1666832 | BO31: 0 | BP31: 0 | BQ31: 0 | BR31: 668.8225703 | BS31: 0 | BT31: 0 | BU31: 0 | BV31: 665.4950948 | BW31: 0 | BX31: 0 | BY31: =$G31*$H31*BY18*BY$16/1000 -> 0 | BZ31: 662.184174 | CA31: 0 | CB31: 0 | CC31: 0 | CD31: 658.8897253 | CE31: 0 | CF31: 0 | CG31: 0 | CH31: 655.611667 | CI31: 0 | CJ31: 0 | CK31: 0 | CL31: 652.3499174 | CM31: 0 | CN31: 0 | CO31: 0 | CP31: 649.1043954 | CQ31: 0 | CR31: 0 | CS31: 0 | CT31: 645.8750203 | CU31: 0 | CV31: 0 | CW31: 0 | CX31: 642.6617118 | CY31: 0 | CZ31: 0 | DA31: 0 | DB31: 639.4643898 | DC31: 0 | DD31: 0 | DE31: 0 | DF31: 636.282975 | DG31: 0 | DH31: 0 | DI31: 0 | DJ31: 633.117388 | DK31: 0 | DL31: 0 | DM31: 0 | DN31: 629.9675503 | DO31: 0 | DP31: 0 | DQ31: 0
C32: February Generation | F32: MWH | G32: =Assumptions!J37 -> 0.20623125 | H32: =Assumptions!I37 -> 672 | I32: =SUM(K32:BR32) -> 10453.77272 | K32: =$G32*$H32*K19*K$16/1000 -> 0 | L32: =$G32*$H32*L19*L$16/1000 -> 0 | M32: 0 | N32: 0 | O32: 0 | P32: 0 | Q32: 0 | R32: 0 | S32: 0 | T32: 0 | U32: 0 | V32: 828.4197635 | W32: 0 | X32: 0 | Y32: 0 | Z32: 824.2982721 | AA32: 0 | AB32: 0 | AC32: 0 | AD32: 820.1972857 | AE32: 0 | AF32: 0 | AG32: 0 | AH32: 816.1167022 | AI32: 0 | AJ32: 0 | AK32: 0 | AL32: 812.0564201 | AM32: 0 | AN32: 0 | AO32: 0 | AP32: 808.0163384 | AQ32: 0 | AR32: 0 | AS32: 0 | AT32: 803.9963566 | AU32: 0 | AV32: 0 | AW32: 0 | AX32: 799.9963747 | AY32: 0 | AZ32: 0 | BA32: 0 | BB32: 796.0162932 | BC32: 0 | BD32: 0 | BE32: 0 | BF32: 792.0560132 | BG32: 0 | BH32: 0 | BI32: 0 | BJ32: 788.115436 | BK32: 0 | BL32: 0 | BM32: 0 | BN32: 784.1944637 | BO32: 0 | BP32: 0 | BQ32: 0 | BR32: 780.2929987 | BS32: 0 | BT32: 0 | BU32: 0 | BV32: 776.410944 | BW32: 0 | BX32: =$G32*$H32*BX19*BX$16/1000 -> 0 | BY32: 0 | BZ32: 772.548203 | CA32: 0 | CB32: 0 | CC32: 0 | CD32: 768.7046796 | CE32: 0 | CF32: 0 | CG32: 0 | CH32: 764.8802782 | CI32: 0 | CJ32: 0 | CK32: 0 | CL32: 761.0749036 | CM32: 0 | CN32: 0 | CO32: 0 | CP32: 757.2884613 | CQ32: 0 | CR32: 0 | CS32: 0 | CT32: 753.5208571 | CU32: 0 | CV32: 0 | CW32: 0 | CX32: 749.7719971 | CY32: 0 | CZ32: 0 | DA32: 0 | DB32: 746.0417881 | DC32: 0 | DD32: 0 | DE32: 0 | DF32: 742.3301374 | DG32: 0 | DH32: 0 | DI32: 0 | DJ32: 738.6369527 | DK32: 0 | DL32: 0 | DM32: 0 | DN32: 734.962142 | DO32: 0 | DP32: 0 | DQ32: 0
C33: March Generation | F33: MWH | G33: =Assumptions!J38 -> 0.2631481183 | H33: =Assumptions!I38 -> 744 | I33: 13648.68049 | K33: =$G33*$H33*K20*K$16/1000 -> 0 | L33: 0 | M33: 0 | N33: 0 | O33: 0 | P33: 0 | Q33: 0 | R33: 0 | S33: 0 | T33: 0 | U33: 0 | V33: 0 | W33: 1168.848955 | X33: 0 | Y33: 0 | Z33: 0 | AA33: 1163.033786 | AB33: 0 | AC33: 0 | AD33: 0 | AE33: 1157.247549 | AF33: 0 | AG33: 0 | AH33: 0 | AI33: 1151.490098 | AJ33: 0 | AK33: 0 | AL33: 0 | AM33: 1145.761292 | AN33: 0 | AO33: 0 | AP33: 0 | AQ33: 1140.060987 | AR33: 0 | AS33: 0 | AT33: 0 | AU33: 1134.389041 | AV33: 0 | AW33: 0 | AX33: 0 | AY33: 1128.745315 | AZ33: 0 | BA33: 0 | BB33: 0 | BC33: 1123.129667 | BD33: 0 | BE33: 0 | BF33: 0 | BG33: 1117.541957 | BH33: 0 | BI33: 0 | BJ33: 0 | BK33: 1111.982047 | BL33: 0 | BM33: 0 | BN33: 0 | BO33: 1106.449798 | BP33: 0 | BQ33: 0 | BR33: 0 | BS33: 1100.945072 | BT33: 0 | BU33: 0 | BV33: 0 | BW33: 1095.467734 | BX33: 0 | BY33: 0 | BZ33: 0 | CA33: 1090.017645 | CB33: 0 | CC33: 0 | CD33: 0 | CE33: 1084.594672 | CF33: 0 | CG33: 0 | CH33: 0 | CI33: 1079.198679 | CJ33: 0 | CK33: 0 | CL33: 0 | CM33: 1073.829531 | CN33: 0 | CO33: 0 | CP33: 0 | CQ33: 1068.487095 | CR33: 0 | CS33: 0 | CT33: 0 | CU33: 1063.171239 | CV33: 0 | CW33: 0 | CX33: 0 | CY33: 1057.88183 | CZ33: 0 | DA33: 0 | DB33: 0 | DC33: 1052.618736 | DD33: 0 | DE33: 0 | DF33: 0 | DG33: 1047.381827 | DH33: 0 | DI33: 0 | DJ33: 0 | DK33: 1042.170972 | DL33: 0 | DM33: 0 | DN33: 0 | DO33: 1036.986042 | DP33: 0 | DQ33: 0
C34: April Generation | F34: MWH | G34: =Assumptions!J39 -> 0.2871961111 | H34: =Assumptions!I39 -> 720 | I34: 14415.46029 | K34: 0 | L34: 0 | M34: 0 | N34: 0 | O34: 0 | P34: 0 | Q34: 0 | R34: 0 | S34: 0 | T34: 0 | U34: 0 | V34: 0 | W34: 1234.514627 | X34: 0 | Y34: 0 | Z34: 0 | AA34: 1228.372763 | AB34: 0 | AC34: 0 | AD34: 0 | AE34: 1222.261456 | AF34: 0 | AG34: 0 | AH34: 0 | AI34: 1216.180553 | AJ34: 0 | AK34: 0 | AL34: 0 | AM34: 1210.129903 | AN34: 0 | AO34: 0 | AP34: 0 | AQ34: 1204.109357 | AR34: 0 | AS34: 0 | AT34: 0 | AU34: 1198.118763 | AV34: 0 | AW34: 0 | AX34: 0 | AY34: 1192.157973 | AZ34: 0 | BA34: 0 | BB34: 0 | BC34: 1186.226839 | BD34: 0 | BE34: 0 | BF34: 0 | BG34: 1180.325213 | BH34: 0 | BI34: 0 | BJ34: 0 | BK34: 1174.452948 | BL34: 0 | BM34: 0 | BN34: 0 | BO34: 1168.609899 | BP34: 0 | BQ34: 0 | BR34: 0 | BS34: 1162.795919 | BT34: 0 | BU34: 0 | BV34: 0 | BW34: 1157.010865 | BX34: 0 | BY34: 0 | BZ34: 0 | CA34: 1151.254592 | CB34: 0 | CC34: 0 | CD34: 0 | CE34: 1145.526957 | CF34: 0 | CG34: 0 | CH34: 0 | CI34: 1139.827818 | CJ34: 0 | CK34: 0 | CL34: 0 | CM34: 1134.157033 | CN34: 0 | CO34: 0 | CP34: 0 | CQ34: 1128.51446 | CR34: 0 | CS34: 0 | CT34: 0 | CU34: 1122.899961 | CV34: 0 | CW34: 0 | CX34: 0 | CY34: 1117.313394 | CZ34: 0 | DA34: 0 | DB34: 0 | DC34: 1111.75462 | DD34: 0 | DE34: 0 | DF34: 0 | DG34: 1106.223503 | DH34: 0 | DI34: 0 | DJ34: 0 | DK34: 1100.719903 | DL34: 0 | DM34: 0 | DN34: 0 | DO34: 1095.243685 | DP34: 0 | DQ34: 0
C35: May Generation | F35: MWH | G35: =Assumptions!J40 -> 0.3134123656 | H35: =Assumptions!I40 -> 744 | I35: 16255.73182 | K35: 0 | L35: 0 | M35: 0 | N35: 0 | O35: 0 | P35: 0 | Q35: 0 | R35: 0 | S35: 0 | T35: 0 | U35: 0 | V35: 0 | W35: 1392.112239 | X35: 0 | Y35: 0 | Z35: 0 | AA35: 1385.186307 | AB35: 0 | AC35: 0 | AD35: 0 | AE35: 1378.294833 | AF35: 0 | AG35: 0 | AH35: 0 | AI35: 1371.437645 | AJ35: 0 | AK35: 0 | AL35: 0 | AM35: 1364.614572 | AN35: 0 | AO35: 0 | AP35: 0 | AQ35: 1357.825445 | AR35: 0 | AS35: 0 | AT35: 0 | AU35: 1351.070094 | AV35: 0 | AW35: 0 | AX35: 0 | AY35: 1344.348353 | AZ35: 0 | BA35: 0 | BB35: 0 | BC35: 1337.660052 | BD35: 0 | BE35: 0 | BF35: 0 | BG35: 1331.005027 | BH35: 0 | BI35: 0 | BJ35: 0 | BK35: 1324.383112 | BL35: 0 | BM35: 0 | BN35: 0 | BO35: 1317.794141 | BP35: 0 | BQ35: 0 | BR35: 0 | BS35: 1311.237951 | BT35: 0 | BU35: 0 | BV35: 0 | BW35: 1304.714379 | BX35: 0 | BY35: 0 | BZ35: 0 | CA35: 1298.223263 | CB35: 0 | CC35: 0 | CD35: 0 | CE35: 1291.764441 | CF35: 0 | CG35: 0 | CH35: 0 | CI35: 1285.337752 | CJ35: 0 | CK35: 0 | CL35: 0 | CM35: 1278.943037 | CN35: 0 | CO35: 0 | CP35: 0 | CQ35: 1272.580136 | CR35: 0 | CS35: 0 | CT35: 0 | CU35: 1266.248892 | CV35: 0 | CW35: 0 | CX35: 0 | CY35: 1259.949146 | CZ35: 0 | DA35: 0 | DB35: 0 | DC35: 1253.680742 | DD35: 0 | DE35: 0 | DF35: 0 | DG35: 1247.443525 | DH35: 0 | DI35: 0 | DJ35: 0 | DK35: 1241.237338 | DL35: 0 | DM35: 0 | DN35: 0 | DO35: 1235.062028 | DP35: 0 | DQ35: 0
C36: June Generation | F36: MWH | G36: =Assumptions!J41 -> 0.3330252778 | H36: =Assumptions!I41 -> 720 | I36: 18131.84647 | K36: 0 | L36: 0 | M36: 0 | N36: 0 | O36: 0 | P36: 0 | Q36: 0 | R36: 0 | S36: 0 | T36: 1436.876462 | U36: 0 | V36: 0 | W36: 0 | X36: 1429.727823 | Y36: 0 | Z36: 0 | AA36: 0 | AB36: 1422.614749 | AC36: 0 | AD36: 0 | AE36: 0 | AF36: 1415.537064 | AG36: 0 | AH36: 0 | AI36: 0 | AJ36: 1408.494591 | AK36: 0 | AL36: 0 | AM36: 0 | AN36: 1401.487155 | AO36: 0 | AP36: 0 | AQ36: 0 | AR36: 1394.514582 | AS36: 0 | AT36: 0 | AU36: 0 | AV36: 1387.576699 | AW36: 0 | AX36: 0 | AY36: 0 | AZ36: 1380.673332 | BA36: 0 | BB36: 0 | BC36: 0 | BD36: 1373.804311 | BE36: 0 | BF36: 0 | BG36: 0 | BH36: 1366.969463 | BI36: 0 | BJ36: 0 | BK36: 0 | BL36: 1360.16862 | BM36: 0 | BN36: 0 | BO36: 0 | BP36: 1353.401612 | BQ36: 0 | BR36: 0 | BS36: =$G36*$H36*BS23*BS$16/1000 -> 0 | BT36: 1346.668271 | BU36: 0 | BV36: 0 | BW36: 0 | BX36: 1339.968429 | BY36: 0 | BZ36: 0 | CA36: 0 | CB36: 1333.301919 | CC36: 0 | CD36: 0 | CE36: 0 | CF36: 1326.668576 | CG36: 0 | CH36: 0 | CI36: 0 | CJ36: 1320.068235 | CK36: 0 | CL36: 0 | CM36: 0 | CN36: 1313.500731 | CO36: 0 | CP36: 0 | CQ36: 0 | CR36: 1306.965902 | CS36: 0 | CT36: 0 | CU36: 0 | CV36: 1300.463584 | CW36: 0 | CX36: 0 | CY36: 0 | CZ36: 1293.993616 | DA36: 0 | DB36: 0 | DC36: 0 | DD36: 1287.555837 | DE36: 0 | DF36: 0 | DG36: 0 | DH36: 1281.150086 | DI36: 0 | DJ36: 0 | DK36: 0 | DL36: 1274.776205 | DM36: 0 | DN36: 0 | DO36: 0 | DP36: 0 | DQ36: 0
C37: July Generation | F37: MWH | G37: =Assumptions!J42 -> 0.3548064516 | H37: =Assumptions!I42 -> 744 | I37: 19961.66583 | K37: 0 | L37: 0 | M37: 0 | N37: 0 | O37: 0 | P37: 0 | Q37: 0 | R37: 0 | S37: 0 | T37: 1581.882344 | U37: 0 | V37: 0 | W37: 0 | X37: 1574.012282 | Y37: 0 | Z37: 0 | AA37: =$G37*$H37*AA24*AA$16/1000 -> 0 | AB37: 1566.181376 | AC37: 0 | AD37: 0 | AE37: 0 | AF37: 1558.389428 | AG37: 0 | AH37: 0 | AI37: 0 | AJ37: 1550.636247 | AK37: 0 | AL37: 0 | AM37: 0 | AN37: 1542.921639 | AO37: 0 | AP37: 0 | AQ37: 0 | AR37: 1535.245412 | AS37: 0 | AT37: 0 | AU37: 0 | AV37: 1527.607375 | AW37: 0 | AX37: 0 | AY37: 0 | AZ37: 1520.007338 | BA37: 0 | BB37: 0 | BC37: 0 | BD37: 1512.445113 | BE37: 0 | BF37: 0 | BG37: 0 | BH37: 1504.92051 | BI37: 0 | BJ37: 0 | BK37: 0 | BL37: 1497.433344 | BM37: 0 | BN37: 0 | BO37: 0 | BP37: 1489.983426 | BQ37: 0 | BR37: 0 | BS37: 0 | BT37: 1482.570574 | BU37: 0 | BV37: 0 | BW37: 0 | BX37: 1475.194601 | BY37: 0 | BZ37: 0 | CA37: 0 | CB37: 1467.855324 | CC37: 0 | CD37: 0 | CE37: 0 | CF37: 1460.552561 | CG37: 0 | CH37: 0 | CI37: 0 | CJ37: 1453.28613 | CK37: 0 | CL37: 0 | CM37: 0 | CN37: 1446.055851 | CO37: 0 | CP37: 0 | CQ37: 0 | CR37: 1438.861543 | CS37: 0 | CT37: 0 | CU37: 0 | CV37: 1431.703028 | CW37: 0 | CX37: 0 | CY37: 0 | CZ37: 1424.580128 | DA37: 0 | DB37: 0 | DC37: 0 | DD37: 1417.492664 | DE37: 0 | DF37: 0 | DG37: 0 | DH37: 1410.440462 | DI37: 0 | DJ37: 0 | DK37: 0 | DL37: 1403.423345 | DM37: 0 | DN37: 0 | DO37: 0 | DP37: 0 | DQ37: 0
C38: August Generation | F38: MWH | G38: =Assumptions!J43 -> 0.316369086 | H38: =Assumptions!I43 -> 744 | I38: 17799.15204 | K38: 0 | L38: 0 | M38: 0 | N38: 0 | O38: 0 | P38: 0 | Q38: 0 | R38: 0 | S38: 0 | T38: 1410.511757 | U38: 0 | V38: 0 | W38: 0 | X38: 1403.494285 | Y38: 0 | Z38: 0 | AA38: 0 | AB38: 1396.511727 | AC38: 0 | AD38: 0 | AE38: 0 | AF38: 1389.563907 | AG38: 0 | AH38: 0 | AI38: 0 | AJ38: 1382.650654 | AK38: 0 | AL38: 0 | AM38: 0 | AN38: 1375.771795 | AO38: 0 | AP38: 0 | AQ38: 0 | AR38: 1368.927159 | AS38: 0 | AT38: 0 | AU38: 0 | AV38: 1362.116576 | AW38: 0 | AX38: 0 | AY38: 0 | AZ38: 1355.339877 | BA38: 0 | BB38: 0 | BC38: 0 | BD38: 1348.596892 | BE38: 0 | BF38: 0 | BG38: 0 | BH38: 1341.887455 | BI38: 0 | BJ38: 0 | BK38: 0 | BL38: 1335.211398 | BM38: 0 | BN38: 0 | BO38: 0 | BP38: 1328.568555 | BQ38: 0 | BR38: 0 | BS38: 0 | BT38: 1321.958761 | BU38: 0 | BV38: 0 | BW38: 0 | BX38: 1315.381852 | BY38: 0 | BZ38: 0 | CA38: 0 | CB38: 1308.837664 | CC38: 0 | CD38: 0 | CE38: 0 | CF38: 1302.326034 | CG38: 0 | CH38: 0 | CI38: 0 | CJ38: 1295.8468 | CK38: 0 | CL38: 0 | CM38: 0 | CN38: 1289.399801 | CO38: 0 | CP38: 0 | CQ38: 0 | CR38: 1282.984876 | CS38: 0 | CT38: 0 | CU38: 0 | CV38: 1276.601867 | CW38: 0 | CX38: 0 | CY38: 0 | CZ38: 1270.250614 | DA38: 0 | DB38: 0 | DC38: 0 | DD38: 1263.930959 | DE38: 0 | DF38: 0 | DG38: 0 | DH38: 1257.642745 | DI38: 0 | DJ38: 0 | DK38: 0 | DL38: 1251.385816 | DM38: 0 | DN38: 0 | DO38: 0 | DP38: 0 | DQ38: 0
C39: September Generation | F39: MWH | G39: =Assumptions!J44 -> 0.28872375 | H39: =Assumptions!I44 -> 720 | I39: 15700.22326 | K39: 0 | L39: 0 | M39: 0 | N39: 0 | O39: 0 | P39: 0 | Q39: 0 | R39: 0 | S39: 0 | T39: 0 | U39: 1244.180028 | V39: 0 | W39: 0 | X39: 0 | Y39: 1237.990078 | Z39: 0 | AA39: 0 | AB39: 0 | AC39: 1231.830923 | AD39: 0 | AE39: 0 | AF39: 0 | AG39: 1225.702411 | AH39: 0 | AI39: 0 | AJ39: 0 | AK39: 1219.604389 | AL39: 0 | AM39: 0 | AN39: 0 | AO39: 1213.536706 | AP39: 0 | AQ39: 0 | AR39: 0 | AS39: 1207.49921 | AT39: 0 | AU39: 0 | AV39: 0 | AW39: 1201.491751 | AX39: 0 | AY39: 0 | AZ39: 0 | BA39: 1195.51418 | BB39: 0 | BC39: 0 | BD39: 0 | BE39: 1189.566348 | BF39: 0 | BG39: 0 | BH39: 0 | BI39: 1183.648108 | BJ39: 0 | BK39: 0 | BL39: 0 | BM39: 1177.759311 | BN39: 0 | BO39: 0 | BP39: 0 | BQ39: 1171.899812 | BR39: 0 | BS39: 0 | BT39: 0 | BU39: 1166.069465 | BV39: 0 | BW39: 0 | BX39: 0 | BY39: 1160.268124 | BZ39: 0 | CA39: 0 | CB39: 0 | CC39: 1154.495646 | CD39: 0 | CE39: 0 | CF39: 0 | CG39: 1148.751887 | CH39: 0 | CI39: 0 | CJ39: 0 | CK39: 1143.036703 | CL39: 0 | CM39: 0 | CN39: 0 | CO39: 1137.349953 | CP39: 0 | CQ39: 0 | CR39: 0 | CS39: 1131.691496 | CT39: 0 | CU39: 0 | CV39: 0 | CW39: 1126.06119 | CX39: 0 | CY39: 0 | CZ39: 0 | DA39: 1120.458895 | DB39: 0 | DC39: 0 | DD39: 0 | DE39: 1114.884473 | DF39: 0 | DG39: 0 | DH39: 0 | DI39: 1109.337784 | DJ39: 0 | DK39: 0 | DL39: 0 | DM39: 1103.818691 | DN39: 0 | DO39: 0 | DP39: 0 | DQ39: 0
C40: October Generation | F40: MWH | G40: =Assumptions!J45 -> 0.2114055108 | H40: =Assumptions!I45 -> 744 | I40: 11879.0049 | K40: 0 | L40: 0 | M40: 0 | N40: 0 | O40: 0 | P40: 0 | Q40: 0 | R40: 0 | S40: 0 | T40: 0 | U40: 941.3637251 | V40: 0 | W40: 0 | X40: 0 | Y40: 936.6803235 | Z40: 0 | AA40: 0 | AB40: 0 | AC40: 932.0202224 | AD40: 0 | AE40: 0 | AF40: 0 | AG40: 927.3833059 | AH40: 0 | AI40: 0 | AJ40: 0 | AK40: 922.7694586 | AL40: 0 | AM40: 0 | AN40: 0 | AO40: 918.1785657 | AP40: 0 | AQ40: 0 | AR40: 0 | AS40: 913.6105132 | AT40: 0 | AU40: 0 | AV40: 0 | AW40: 909.0651872 | AX40: 0 | AY40: 0 | AZ40: 0 | BA40: 904.5424749 | BB40: 0 | BC40: 0 | BD40: 0 | BE40: 900.0422635 | BF40: 0 | BG40: 0 | BH40: 0 | BI40: 895.5644413 | BJ40: 0 | BK40: 0 | BL40: 0 | BM40: 891.1088969 | BN40: 0 | BO40: 0 | BP40: 0 | BQ40: 886.6755193 | BR40: 0 | BS40: 0 | BT40: 0 | BU40: 882.2641983 | BV40: 0 | BW40: 0 | BX40: 0 | BY40: 877.8748241 | BZ40: 0 | CA40: 0 | CB40: 0 | CC40: 873.5072877 | CD40: 0 | CE40: 0 | CF40: 0 | CG40: 869.1614803 | CH40: 0 | CI40: 0 | CJ40: 0 | CK40: 864.8372938 | CL40: =$G40*$H40*CL27*CL$16/1000 -> 0 | CM40: 0 | CN40: 0 | CO40: 860.5346207 | CP40: 0 | CQ40: 0 | CR40: 0 | CS40: 856.253354 | CT40: 0 | CU40: 0 | CV40: 0 | CW40: 851.993387 | CX40: 0 | CY40: 0 | CZ40: 0 | DA40: 847.754614 | DB40: 0 | DC40: 0 | DD40: 0 | DE40: 843.5369293 | DF40: 0 | DG40: 0 | DH40: 0 | DI40: 839.3402282 | DJ40: 0 | DK40: 0 | DL40: 0 | DM40: 835.1644061 | DN40: 0 | DO40: 0 | DP40: 0 | DQ40: 0
C41: November Generation | F41: MWH | G41: =Assumptions!J46 -> 0.1497086111 | H41: =Assumptions!I46 -> 720 | I41: 8140.856503 | K41: 0 | L41: 0 | M41: 0 | N41: 0 | O41: 0 | P41: 0 | Q41: 0 | R41: 0 | S41: 0 | T41: 0 | U41: 645.130385 | V41: 0 | W41: 0 | X41: 0 | Y41: 641.9207811 | Z41: 0 | AA41: =$G41*$H41*AA28*AA$16/1000 -> 0 | AB41: 0 | AC41: 638.7271454 | AD41: 0 | AE41: 0 | AF41: 0 | AG41: 635.5493984 | AH41: 0 | AI41: 0 | AJ41: 0 | AK41: 632.3874611 | AL41: 0 | AM41: 0 | AN41: 0 | AO41: 629.2412548 | AP41: 0 | AQ41: 0 | AR41: 0 | AS41: 626.1107013 | AT41: 0 | AU41: 0 | AV41: 0 | AW41: 622.9957227 | AX41: 0 | AY41: 0 | AZ41: 0 | BA41: 619.8962415 | BB41: 0 | BC41: 0 | BD41: 0 | BE41: 616.8121806 | BF41: 0 | BG41: 0 | BH41: 0 | BI41: 613.7434633 | BJ41: 0 | BK41: 0 | BL41: 0 | BM41: 610.6900132 | BN41: 0 | BO41: 0 | BP41: 0 | BQ41: 607.6517545 | BR41: 0 | BS41: 0 | BT41: 0 | BU41: 604.6286114 | BV41: 0 | BW41: 0 | BX41: 0 | BY41: 601.6205089 | BZ41: 0 | CA41: 0 | CB41: 0 | CC41: 598.627372 | CD41: 0 | CE41: 0 | CF41: 0 | CG41: 595.6491264 | CH41: 0 | CI41: 0 | CJ41: 0 | CK41: 592.6856979 | CL41: 0 | CM41: 0 | CN41: 0 | CO41: 589.7370128 | CP41: 0 | CQ41: 0 | CR41: 0 | CS41: 586.8029978 | CT41: 0 | CU41: 0 | CV41: 0 | CW41: 583.8835799 | CX41: 0 | CY41: 0 | CZ41: 0 | DA41: 580.9786865 | DB41: 0 | DC41: 0 | DD41: 0 | DE41: 578.0882453 | DF41: 0 | DG41: 0 | DH41: 0 | DI41: 575.2121843 | DJ41: 0 | DK41: 0 | DL41: 0 | DM41: 572.3504322 | DN41: 0 | DO41: 0 | DP41: 0 | DQ41: 0
C42: December Generation | F42: MWH | G42: =Assumptions!J47 -> 0.1271389785 | H42: =Assumptions!I47 -> 744 | I42: 7135.114712 | K42: 0 | L42: 0 | M42: 0 | N42: 0 | O42: 0 | P42: 0 | Q42: 0 | R42: 0 | S42: 0 | T42: 0 | U42: 0 | V42: 565.4293624 | W42: 0 | X42: 0 | Y42: 0 | Z42: 562.616281 | AA42: 0 | AB42: 0 | AC42: 0 | AD42: 559.817195 | AE42: 0 | AF42: 0 | AG42: 0 | AH42: 557.0320348 | AI42: 0 | AJ42: 0 | AK42: 0 | AL42: 554.2607312 | AM42: 0 | AN42: 0 | AO42: 0 | AP42: 551.5032151 | AQ42: 0 | AR42: 0 | AS42: 0 | AT42: 548.759418 | AU42: 0 | AV42: 0 | AW42: 0 | AX42: 546.0292716 | AY42: 0 | AZ42: 0 | BA42: 0 | BB42: 543.3127081 | BC42: 0 | BD42: 0 | BE42: 0 | BF42: 540.6096598 | BG42: 0 | BH42: 0 | BI42: 0 | BJ42: 537.9200595 | BK42: 0 | BL42: 0 | BM42: 0 | BN42: 535.2438403 | BO42: 0 | BP42: 0 | BQ42: 0 | BR42: 532.5809356 | BS42: 0 | BT42: 0 | BU42: 0 | BV42: 529.9312792 | BW42: 0 | BX42: 0 | BY42: 0 | BZ42: 527.2948052 | CA42: 0 | CB42: 0 | CC42: 0 | CD42: 524.671448 | CE42: 0 | CF42: 0 | CG42: 0 | CH42: 522.0611422 | CI42: 0 | CJ42: 0 | CK42: 0 | CL42: 519.4638231 | CM42: 0 | CN42: 0 | CO42: 0 | CP42: 516.879426 | CQ42: 0 | CR42: 0 | CS42: 0 | CT42: 514.3078866 | CU42: 0 | CV42: 0 | CW42: 0 | CX42: 511.7491409 | CY42: 0 | CZ42: 0 | DA42: 0 | DB42: 509.2031252 | DC42: 0 | DD42: 0 | DE42: 0 | DF42: 506.6697764 | DG42: 0 | DH42: 0 | DI42: 0 | DJ42: 504.1490312 | DK42: 0 | DL42: 0 | DM42: 0 | DN42: 501.6408271 | DO42: 0 | DP42: 0 | DQ42: 0
D43: Total Generation | F43: MWH | I43: 162481.8856 | K43: =SUM(K31:K42) -> 0 | L43: =SUM(L31:L42) -> 0 | M43: 0 | N43: 0 | O43: 0 | P43: 0 | Q43: 0 | R43: 0 | S43: 0 | T43: 4429.270563 | U43: 2830.674138 | V43: 2103.923209 | W43: 3795.475821 | X43: 4407.234391 | Y43: 2816.591183 | Z43: 2093.455929 | AA43: 3776.592857 | AB43: 4385.307852 | AC43: 2802.578291 | AD43: 2083.040726 | AE43: 3757.803837 | AF43: 4363.4904 | AG43: 2788.635116 | AH43: 2072.677339 | AI43: 3739.108296 | AJ43: 4341.781492 | AK43: 2774.761309 | AL43: 2062.365511 | AM43: 3720.505767 | AN43: 4320.180589 | AO43: 2760.956526 | AP43: 2052.104986 | AQ43: 3701.995788 | AR43: 4298.687153 | AS43: 2747.220424 | AT43: 2041.895509 | AU43: 3683.577899 | AV43: 4277.30065 | AW43: 2733.552661 | AX43: 2031.736825 | AY43: 3665.25164 | AZ43: 4256.020547 | BA43: 2719.952896 | BB43: 2021.628681 | BC43: 3647.016558 | BD43: 4234.846316 | BE43: 2706.420792 | BF43: 2011.570827 | BG43: 3628.872197 | BH43: 4213.777429 | BI43: 2692.956012 | BJ43: 2001.563012 | BK43: 3610.818106 | BL43: 4192.813362 | BM43: 2679.558221 | BN43: 1991.604987 | BO43: 3592.853837 | BP43: 4171.953594 | BQ43: 2666.227086 | BR43: 1981.696505 | BS43: =SUM(BS31:BS42) -> 3574.978942 | BT43: =SUM(BT31:BT42) -> 4151.197606 | BU43: =SUM(BU31:BU42) -> 2652.962275 | BV43: =SUM(BV31:BV42) -> 1971.837318 | BW43: =SUM(BW31:BW42) -> 3557.192977 | BX43: =SUM(BX31:BX42) -> 4130.544881 | BY43: =SUM(BY31:BY42) -> 2639.763457 | BZ43: =SUM(BZ31:BZ42) -> 1962.027182 | CA43: =SUM(CA31:CA42) -> 3539.4955 | CB43: =SUM(CB31:CB42) -> 4109.994907 | CC43: =SUM(CC31:CC42) -> 2626.630306 | CD43: =SUM(CD31:CD42) -> 1952.265853 | CE43: =SUM(CE31:CE42) -> 3521.88607 | CF43: =SUM(CF31:CF42) -> 4089.547171 | CG43: =SUM(CG31:CG42) -> 2613.562493 | CH43: =SUM(CH31:CH42) -> 1942.553087 | CI43: =SUM(CI31:CI42) -> 3504.364248 | CJ43: =SUM(CJ31:CJ42) -> 4069.201165 | CK43: =SUM(CK31:CK42) -> 2600.559695 | CL43: =SUM(CL31:CL42) -> 1932.888644 | CM43: =SUM(CM31:CM42) -> 3486.9296 | CN43: =SUM(CN31:CN42) -> 4048.956383 | CO43: =SUM(CO31:CO42) -> 2587.621587 | CP43: =SUM(CP31:CP42) -> 1923.272283 | CQ43: =SUM(CQ31:CQ42) -> 3469.581692 | CR43: =SUM(CR31:CR42) -> 4028.812322 | CS43: =SUM(CS31:CS42) -> 2574.747848 | CT43: =SUM(CT31:CT42) -> 1913.703764 | CU43: =SUM(CU31:CU42) -> 3452.320091 | CV43: =SUM(CV31:CV42) -> 4008.768479 | CW43: =SUM(CW31:CW42) -> 2561.938157 | CX43: =SUM(CX31:CX42) -> 1904.18285 | CY43: =SUM(CY31:CY42) -> 3435.14437 | CZ43: =SUM(CZ31:CZ42) -> 3988.824357 | DA43: =SUM(DA31:DA42) -> 2549.192196 | DB43: =SUM(DB31:DB42) -> 1894.709303 | DC43: =SUM(DC31:DC42) -> 3418.054099 | DD43: =SUM(DD31:DD42) -> 3968.97946 | DE43: =SUM(DE31:DE42) -> 2536.509648 | DF43: =SUM(DF31:DF42) -> 1885.282889 | DG43: =SUM(DG31:DG42) -> 3401.048855 | DH43: =SUM(DH31:DH42) -> 3949.233294 | DI43: =SUM(DI31:DI42) -> 2523.890197 | DJ43: =SUM(DJ31:DJ42) -> 1875.903372 | DK43: =SUM(DK31:DK42) -> 3384.128214 | DL43: =SUM(DL31:DL42) -> 3929.585367 | DM43: =SUM(DM31:DM42) -> 2511.333529 | DN43: =SUM(DN31:DN42) -> 1866.570519 | DO43: =SUM(DO31:DO42) -> 3367.291755 | DP43: =SUM(DP31:DP42) -> 0 | DQ43: =SUM(DQ31:DQ42) -> 0
B45: Capital Expenditures
D46: Development Cost
E47: Legal | F47: Euro | G47: =Assumptions!H64 -> 90000 | H47: =1/$I$8 -> 0.25 | I47: =SUM(K47:DQ47) -> 90000 | K47: =$G47*$H47*K$8 -> 22500 | L47: =$G47*$H47*L$8 -> 22500 | M47: 22500 | N47: 22500 | O47: 0 | P47: 0 | Q47: 0 | R47: 0 | S47: 0 | T47: 0 | U47: 0 | V47: 0 | W47: 0 | X47: 0 | Y47: 0 | Z47: 0 | AA47: 0 | AB47: 0 | AC47: 0 | AD47: 0 | AE47: 0 | AF47: 0 | AG47: 0 | AH47: 0 | AI47: 0 | AJ47: 0 | AK47: 0 | AL47: 0 | AM47: 0 | AN47: 0 | AO47: 0 | AP47: 0 | AQ47: 0 | AR47: 0 | AS47: 0 | AT47: 0 | AU47: 0 | AV47: 0 | AW47: 0 | AX47: 0 | AY47: 0 | AZ47: 0 | BA47: 0 | BB47: 0 | BC47: 0 | BD47: 0 | BE47: 0 | BF47: 0 | BG47: 0 | BH47: 0 | BI47: 0 | BJ47: 0 | BK47: 0 | BL47: 0 | BM47: 0 | BN47: 0 | BO47: 0 | BP47: 0 | BQ47: 0 | BR47: 0 | BS47: 0 | BT47: =$G47*$H47*BT$8 -> 0 | BU47: 0 | BV47: 0 | BW47: 0 | BX47: 0 | BY47: 0 | BZ47: 0 | CA47: 0 | CB47: 0 | CC47: 0 | CD47: 0 | CE47: 0 | CF47: 0 | CG47: 0 | CH47: 0 | CI47: 0 | CJ47: 0 | CK47: 0 | CL47: 0 | CM47: 0 | CN47: =$G47*$H47*CN$8 -> 0 | CO47: 0 | CP47: 0 | CQ47: 0 | CR47: 0 | CS47: 0 | CT47: 0 | CU47: 0 | CV47: 0 | CW47: 0 | CX47: 0 | CY47: 0 | CZ47: 0 | DA47: 0 | DB47: 0 | DC47: =$G47*$H47*DC$8 -> 0 | DD47: 0 | DE47: 0 | DF47: 0 | DG47: 0 | DH47: 0 | DI47: 0 | DJ47: 0 | DK47: 0 | DL47: 0 | DM47: 0 | DN47: 0 | DO47: 0 | DP47: 0 | DQ47: 0
E48: Accounting/Model/Appr | F48: Euro | G48: =Assumptions!H65 -> 30000 | H48: =1/$I$8 -> 0.25 | I48: =SUM(K48:DQ48) -> 30000 | K48: =$G48*$H48*K$8 -> 7500 | L48: 7500 | M48: 7500 | N48: 7500 | O48: 0 | P48: 0 | Q48: 0 | R48: 0 | S48: 0 | T48: 0 | U48: 0 | V48: 0 | W48: 0 | X48: 0 | Y48: 0 | Z48: 0 | AA48: 0 | AB48: 0 | AC48: 0 | AD48: 0 | AE48: 0 | AF48: 0 | AG48: 0 | AH48: 0 | AI48: 0 | AJ48: 0 | AK48: 0 | AL48: 0 | AM48: 0 | AN48: 0 | AO48: 0 | AP48: 0 | AQ48: 0 | AR48: 0 | AS48: 0 | AT48: 0 | AU48: 0 | AV48: 0 | AW48: 0 | AX48: 0 | AY48: 0 | AZ48: 0 | BA48: 0 | BB48: 0 | BC48: 0 | BD48: 0 | BE48: 0 | BF48: 0 | BG48: 0 | BH48: 0 | BI48: 0 | BJ48: 0 | BK48: 0 | BL48: 0 | BM48: 0 | BN48: 0 | BO48: 0 | BP48: 0 | BQ48: 0 | BR48: 0 | BS48: 0 | BT48: 0 | BU48: 0 | BV48: 0 | BW48: 0 | BX48: 0 | BY48: 0 | BZ48: 0 | CA48: 0 | CB48: 0 | CC48: 0 | CD48: 0 | CE48: 0 | CF48: 0 | CG48: 0 | CH48: 0 | CI48: 0 | CJ48: 0 | CK48: 0 | CL48: 0 | CM48: 0 | CN48: 0 | CO48: 0 | CP48: 0 | CQ48: 0 | CR48: 0 | CS48: 0 | CT48: 0 | CU48: 0 | CV48: 0 | CW48: 0 | CX48: 0 | CY48: 0 | CZ48: 0 | DA48: 0 | DB48: 0 | DC48: 0 | DD48: 0 | DE48: 0 | DF48: 0 | DG48: 0 | DH48: 0 | DI48: 0 | DJ48: 0 | DK48: 0 | DL48: 0 | DM48: 0 | DN48: 0 | DO48: 0 | DP48: 0 | DQ48: 0
E49: Independent Eng | F49: Euro | G49: =Assumptions!H66 -> 18000 | H49: 0.25 | I49: 18000 | K49: 4500 | L49: 4500 | M49: 4500 | N49: 4500 | O49: 0 | P49: 0 | Q49: 0 | R49: 0 | S49: 0 | T49: 0 | U49: 0 | V49: 0 | W49: 0 | X49: 0 | Y49: 0 | Z49: 0 | AA49: 0 | AB49: 0 | AC49: 0 | AD49: 0 | AE49: 0 | AF49: 0 | AG49: 0 | AH49: 0 | AI49: 0 | AJ49: 0 | AK49: 0 | AL49: 0 | AM49: 0 | AN49: 0 | AO49: 0 | AP49: 0 | AQ49: 0 | AR49: 0 | AS49: 0 | AT49: 0 | AU49: 0 | AV49: 0 | AW49: 0 | AX49: 0 | AY49: 0 | AZ49: 0 | BA49: 0 | BB49: 0 | BC49: 0 | BD49: 0 | BE49: 0 | BF49: 0 | BG49: 0 | BH49: 0 | BI49: 0 | BJ49: 0 | BK49: 0 | BL49: 0 | BM49: 0 | BN49: 0 | BO49: 0 | BP49: 0 | BQ49: 0 | BR49: 0 | BS49: 0 | BT49: 0 | BU49: 0 | BV49: 0 | BW49: 0 | BX49: 0 | BY49: 0 | BZ49: 0 | CA49: 0 | CB49: 0 | CC49: 0 | CD49: 0 | CE49: 0 | CF49: 0 | CG49: 0 | CH49: 0 | CI49: 0 | CJ49: 0 | CK49: 0 | CL49: 0 | CM49: 0 | CN49: 0 | CO49: 0 | CP49: 0 | CQ49: 0 | CR49: 0 | CS49: 0 | CT49: 0 | CU49: 0 | CV49: 0 | CW49: 0 | CX49: 0 | CY49: 0 | CZ49: 0 | DA49: 0 | DB49: 0 | DC49: 0 | DD49: 0 | DE49: 0 | DF49: 0 | DG49: 0 | DH49: 0 | DI49: 0 | DJ49: 0 | DK49: 0 | DL49: 0 | DM49: 0 | DN49: 0 | DO49: 0 | DP49: 0 | DQ49: 0
E50: Misc. | F50: Euro | G50: =Assumptions!H67 -> 24000 | H50: 0.25 | I50: 24000 | K50: 6000 | L50: 6000 | M50: 6000 | N50: 6000 | O50: 0 | P50: 0 | Q50: 0 | R50: 0 | S50: 0 | T50: 0 | U50: 0 | V50: 0 | W50: 0 | X50: 0 | Y50: 0 | Z50: 0 | AA50: 0 | AB50: 0 | AC50: 0 | AD50: 0 | AE50: 0 | AF50: 0 | AG50: 0 | AH50: 0 | AI50: 0 | AJ50: 0 | AK50: 0 | AL50: 0 | AM50: 0 | AN50: 0 | AO50: 0 | AP50: 0 | AQ50: 0 | AR50: 0 | AS50: 0 | AT50: 0 | AU50: 0 | AV50: 0 | AW50: 0 | AX50: 0 | AY50: 0 | AZ50: 0 | BA50: 0 | BB50: 0 | BC50: 0 | BD50: 0 | BE50: 0 | BF50: 0 | BG50: 0 | BH50: 0 | BI50: 0 | BJ50: 0 | BK50: 0 | BL50: 0 | BM50: 0 | BN50: 0 | BO50: 0 | BP50: 0 | BQ50: 0 | BR50: 0 | BS50: 0 | BT50: 0 | BU50: 0 | BV50: 0 | BW50: 0 | BX50: 0 | BY50: 0 | BZ50: 0 | CA50: 0 | CB50: 0 | CC50: 0 | CD50: 0 | CE50: 0 | CF50: 0 | CG50: 0 | CH50: 0 | CI50: 0 | CJ50: 0 | CK50: 0 | CL50: 0 | CM50: 0 | CN50: 0 | CO50: 0 | CP50: 0 | CQ50: 0 | CR50: 0 | CS50: 0 | CT50: 0 | CU50: 0 | CV50: 0 | CW50: 0 | CX50: 0 | CY50: 0 | CZ50: 0 | DA50: 0 | DB50: 0 | DC50: 0 | DD50: 0 | DE50: 0 | DF50: 0 | DG50: 0 | DH50: 0 | DI50: 0 | DJ50: 0 | DK50: 0 | DL50: 0 | DM50: 0 | DN50: 0 | DO50: 0 | DP50: 0 | DQ50: 0
E51: Total | F51: Euro | I51: =SUM(K51:BR51) -> 162000 | K51: =SUM(K47:K50) -> 40500 | L51: =SUM(L47:L50) -> 40500 | M51: 40500 | N51: 40500 | O51: 0 | P51: 0 | Q51: 0 | R51: 0 | S51: 0 | T51: 0 | U51: 0 | V51: 0 | W51: 0 | X51: 0 | Y51: 0 | Z51: 0 | AA51: 0 | AB51: 0 | AC51: 0 | AD51: 0 | AE51: 0 | AF51: 0 | AG51: 0 | AH51: 0 | AI51: 0 | AJ51: 0 | AK51: 0 | AL51: 0 | AM51: 0 | AN51: 0 | AO51: 0 | AP51: 0 | AQ51: 0 | AR51: 0 | AS51: 0 | AT51: 0 | AU51: 0 | AV51: 0 | AW51: 0 | AX51: 0 | AY51: 0 | AZ51: 0 | BA51: 0 | BB51: 0 | BC51: 0 | BD51: 0 | BE51: 0 | BF51: 0 | BG51: 0 | BH51: 0 | BI51: 0 | BJ51: 0 | BK51: 0 | BL51: 0 | BM51: 0 | BN51: 0 | BO51: 0 | BP51: 0 | BQ51: 0 | BR51: 0 | BS51: =SUM(BS47:BS50) -> 0 | BT51: =SUM(BT47:BT50) -> 0 | BU51: =SUM(BU47:BU50) -> 0 | BV51: =SUM(BV47:BV50) -> 0 | BW51: =SUM(BW47:BW50) -> 0 | BX51: =SUM(BX47:BX50) -> 0 | BY51: =SUM(BY47:BY50) -> 0 | BZ51: =SUM(BZ47:BZ50) -> 0 | CA51: =SUM(CA47:CA50) -> 0 | CB51: =SUM(CB47:CB50) -> 0 | CC51: =SUM(CC47:CC50) -> 0 | CD51: =SUM(CD47:CD50) -> 0 | CE51: =SUM(CE47:CE50) -> 0 | CF51: =SUM(CF47:CF50) -> 0 | CG51: =SUM(CG47:CG50) -> 0 | CH51: =SUM(CH47:CH50) -> 0 | CI51: =SUM(CI47:CI50) -> 0 | CJ51: =SUM(CJ47:CJ50) -> 0 | CK51: =SUM(CK47:CK50) -> 0 | CL51: =SUM(CL47:CL50) -> 0 | CM51: =SUM(CM47:CM50) -> 0 | CN51: =SUM(CN47:CN50) -> 0 | CO51: =SUM(CO47:CO50) -> 0 | CP51: =SUM(CP47:CP50) -> 0 | CQ51: =SUM(CQ47:CQ50) -> 0 | CR51: =SUM(CR47:CR50) -> 0 | CS51: =SUM(CS47:CS50) -> 0 | CT51: =SUM(CT47:CT50) -> 0 | CU51: =SUM(CU47:CU50) -> 0 | CV51: =SUM(CV47:CV50) -> 0 | CW51: =SUM(CW47:CW50) -> 0 | CX51: =SUM(CX47:CX50) -> 0 | CY51: =SUM(CY47:CY50) -> 0 | CZ51: =SUM(CZ47:CZ50) -> 0 | DA51: =SUM(DA47:DA50) -> 0 | DB51: =SUM(DB47:DB50) -> 0 | DC51: =SUM(DC47:DC50) -> 0 | DD51: =SUM(DD47:DD50) -> 0 | DE51: =SUM(DE47:DE50) -> 0 | DF51: =SUM(DF47:DF50) -> 0 | DG51: =SUM(DG47:DG50) -> 0 | DH51: =SUM(DH47:DH50) -> 0 | DI51: =SUM(DI47:DI50) -> 0 | DJ51: =SUM(DJ47:DJ50) -> 0 | DK51: =SUM(DK47:DK50) -> 0 | DL51: =SUM(DL47:DL50) -> 0 | DM51: =SUM(DM47:DM50) -> 0 | DN51: =SUM(DN47:DN50) -> 0 | DO51: =SUM(DO47:DO50) -> 0 | DP51: =SUM(DP47:DP50) -> 0 | DQ51: =SUM(DQ47:DQ50) -> 0
D53: EPC Cost
E54: Panel Price | F54: Euro | G54: =Assumptions!H54 -> 1140000 | H54: =1/$I$9 -> 0.2 | I54: =SUM(K54:DQ54) -> 1140000 | K54: =$G54*$H54*K$9 -> 0 | L54: =$G54*$H54*L$9 -> 0 | M54: 0 | N54: 0 | O54: 228000 | P54: 228000 | Q54: 228000 | R54: 228000 | S54: 228000 | T54: 0 | U54: 0 | V54: 0 | W54: 0 | X54: 0 | Y54: 0 | Z54: 0 | AA54: 0 | AB54: 0 | AC54: 0 | AD54: 0 | AE54: 0 | AF54: 0 | AG54: 0 | AH54: 0 | AI54: 0 | AJ54: 0 | AK54: 0 | AL54: 0 | AM54: 0 | AN54: 0 | AO54: 0 | AP54: 0 | AQ54: 0 | AR54: 0 | AS54: 0 | AT54: 0 | AU54: 0 | AV54: 0 | AW54: 0 | AX54: 0 | AY54: 0 | AZ54: 0 | BA54: 0 | BB54: 0 | BC54: 0 | BD54: 0 | BE54: 0 | BF54: 0 | BG54: 0 | BH54: 0 | BI54: 0 | BJ54: 0 | BK54: 0 | BL54: 0 | BM54: 0 | BN54: 0 | BO54: 0 | BP54: 0 | BQ54: 0 | BR54: 0 | BS54: 0 | BT54: 0 | BU54: 0 | BV54: 0 | BW54: 0 | BX54: =$G54*$H54*BX$9 -> 0 | BY54: 0 | BZ54: 0 | CA54: 0 | CB54: 0 | CC54: 0 | CD54: 0 | CE54: 0 | CF54: 0 | CG54: 0 | CH54: 0 | CI54: 0 | CJ54: 0 | CK54: 0 | CL54: 0 | CM54: 0 | CN54: 0 | CO54: 0 | CP54: 0 | CQ54: 0 | CR54: 0 | CS54: 0 | CT54: 0 | CU54: 0 | CV54: 0 | CW54: 0 | CX54: 0 | CY54: 0 | CZ54: 0 | DA54: 0 | DB54: =$G54*$H54*DB$9 -> 0 | DC54: 0 | DD54: 0 | DE54: 0 | DF54: 0 | DG54: 0 | DH54: 0 | DI54: 0 | DJ54: 0 | DK54: 0 | DL54: 0 | DM54: 0 | DN54: 0 | DO54: 0 | DP54: 0 | DQ54: 0
E55: Racking and Tracking | F55: Euro | G55: =Assumptions!H55 -> 2040000 | H55: =1/$I$9 -> 0.2 | I55: =SUM(K55:DQ55) -> 2040000 | K55: =$G55*$H55*K$9 -> 0 | L55: 0 | M55: 0 | N55: 0 | O55: 408000 | P55: 408000 | Q55: 408000 | R55: 408000 | S55: 408000 | T55: 0 | U55: 0 | V55: 0 | W55: 0 | X55: 0 | Y55: 0 | Z55: 0 | AA55: 0 | AB55: 0 | AC55: 0 | AD55: 0 | AE55: 0 | AF55: 0 | AG55: 0 | AH55: 0 | AI55: 0 | AJ55: 0 | AK55: 0 | AL55: 0 | AM55: 0 | AN55: 0 | AO55: 0 | AP55: 0 | AQ55: 0 | AR55: 0 | AS55: 0 | AT55: 0 | AU55: 0 | AV55: 0 | AW55: 0 | AX55: 0 | AY55: 0 | AZ55: 0 | BA55: 0 | BB55: 0 | BC55: 0 | BD55: 0 | BE55: 0 | BF55: 0 | BG55: 0 | BH55: 0 | BI55: 0 | BJ55: 0 | BK55: 0 | BL55: 0 | BM55: 0 | BN55: 0 | BO55: 0 | BP55: 0 | BQ55: 0 | BR55: 0 | BS55: 0 | BT55: 0 | BU55: 0 | BV55: 0 | BW55: 0 | BX55: 0 | BY55: 0 | BZ55: 0 | CA55: 0 | CB55: 0 | CC55: 0 | CD55: 0 | CE55: 0 | CF55: 0 | CG55: 0 | CH55: 0 | CI55: 0 | CJ55: 0 | CK55: 0 | CL55: 0 | CM55: 0 | CN55: 0 | CO55: 0 | CP55: 0 | CQ55: 0 | CR55: 0 | CS55: 0 | CT55: 0 | CU55: 0 | CV55: 0 | CW55: 0 | CX55: 0 | CY55: 0 | CZ55: 0 | DA55: 0 | DB55: 0 | DC55: 0 | DD55: 0 | DE55: 0 | DF55: 0 | DG55: 0 | DH55: 0 | DI55: 0 | DJ55: 0 | DK55: 0 | DL55: 0 | DM55: 0 | DN55: 0 | DO55: 0 | DP55: 0 | DQ55: 0
E56: Balance of System and Inverter | F56: Euro | G56: =Assumptions!H56 -> 600000 | H56: 0.2 | I56: 600000 | K56: 0 | L56: 0 | M56: 0 | N56: 0 | O56: 120000 | P56: 120000 | Q56: 120000 | R56: 120000 | S56: 120000 | T56: 0 | U56: 0 | V56: 0 | W56: 0 | X56: 0 | Y56: 0 | Z56: 0 | AA56: 0 | AB56: 0 | AC56: 0 | AD56: 0 | AE56: 0 | AF56: 0 | AG56: 0 | AH56: 0 | AI56: 0 | AJ56: 0 | AK56: 0 | AL56: 0 | AM56: 0 | AN56: 0 | AO56: 0 | AP56: 0 | AQ56: 0 | AR56: 0 | AS56: 0 | AT56: 0 | AU56: 0 | AV56: 0 | AW56: 0 | AX56: 0 | AY56: 0 | AZ56: 0 | BA56: 0 | BB56: 0 | BC56: 0 | BD56: 0 | BE56: 0 | BF56: 0 | BG56: 0 | BH56: 0 | BI56: 0 | BJ56: 0 | BK56: 0 | BL56: 0 | BM56: 0 | BN56: 0 | BO56: 0 | BP56: 0 | BQ56: 0 | BR56: 0 | BS56: 0 | BT56: 0 | BU56: 0 | BV56: 0 | BW56: 0 | BX56: 0 | BY56: 0 | BZ56: 0 | CA56: 0 | CB56: 0 | CC56: 0 | CD56: 0 | CE56: 0 | CF56: 0 | CG56: 0 | CH56: 0 | CI56: 0 | CJ56: 0 | CK56: 0 | CL56: 0 | CM56: 0 | CN56: 0 | CO56: 0 | CP56: 0 | CQ56: 0 | CR56: 0 | CS56: 0 | CT56: 0 | CU56: 0 | CV56: 0 | CW56: 0 | CX56: 0 | CY56: 0 | CZ56: 0 | DA56: 0 | DB56: 0 | DC56: 0 | DD56: 0 | DE56: 0 | DF56: 0 | DG56: 0 | DH56: 0 | DI56: 0 | DJ56: 0 | DK56: 0 | DL56: 0 | DM56: 0 | DN56: 0 | DO56: 0 | DP56: 0 | DQ56: 0
E57: Site Work (assume ineligible) | F57: Euro | G57: =Assumptions!H57 -> 180000 | H57: 0.2 | I57: 180000 | K57: 0 | L57: 0 | M57: 0 | N57: 0 | O57: 36000 | P57: 36000 | Q57: 36000 | R57: 36000 | S57: 36000 | T57: 0 | U57: 0 | V57: 0 | W57: 0 | X57: 0 | Y57: 0 | Z57: 0 | AA57: 0 | AB57: 0 | AC57: 0 | AD57: 0 | AE57: 0 | AF57: 0 | AG57: 0 | AH57: 0 | AI57: 0 | AJ57: 0 | AK57: 0 | AL57: 0 | AM57: 0 | AN57: 0 | AO57: 0 | AP57: 0 | AQ57: 0 | AR57: 0 | AS57: 0 | AT57: 0 | AU57: 0 | AV57: 0 | AW57: 0 | AX57: 0 | AY57: 0 | AZ57: 0 | BA57: 0 | BB57: 0 | BC57: 0 | BD57: 0 | BE57: 0 | BF57: 0 | BG57: 0 | BH57: 0 | BI57: 0 | BJ57: 0 | BK57: 0 | BL57: 0 | BM57: 0 | BN57: 0 | BO57: 0 | BP57: 0 | BQ57: 0 | BR57: 0 | BS57: 0 | BT57: 0 | BU57: 0 | BV57: 0 | BW57: 0 | BX57: 0 | BY57: 0 | BZ57: 0 | CA57: 0 | CB57: 0 | CC57: 0 | CD57: 0 | CE57: 0 | CF57: 0 | CG57: 0 | CH57: 0 | CI57: 0 | CJ57: 0 | CK57: 0 | CL57: 0 | CM57: 0 | CN57: 0 | CO57: 0 | CP57: 0 | CQ57: 0 | CR57: 0 | CS57: 0 | CT57: 0 | CU57: 0 | CV57: 0 | CW57: 0 | CX57: 0 | CY57: 0 | CZ57: 0 | DA57: 0 | DB57: 0 | DC57: 0 | DD57: 0 | DE57: 0 | DF57: 0 | DG57: 0 | DH57: 0 | DI57: 0 | DJ57: 0 | DK57: 0 | DL57: 0 | DM57: 0 | DN57: 0 | DO57: 0 | DP57: 0 | DQ57: 0
E58: Special Ineligible | F58: Euro | G58: =Assumptions!H58 -> 0 | H58: 0.2 | I58: 0 | K58: 0 | L58: 0 | M58: 0 | N58: 0 | O58: 0 | P58: 0 | Q58: 0 | R58: 0 | S58: 0 | T58: 0 | U58: 0 | V58: 0 | W58: 0 | X58: 0 | Y58: 0 | Z58: 0 | AA58: 0 | AB58: 0 | AC58: 0 | AD58: 0 | AE58: 0 | AF58: 0 | AG58: 0 | AH58: 0 | AI58: 0 | AJ58: 0 | AK58: 0 | AL58: 0 | AM58: 0 | AN58: 0 | AO58: 0 | AP58: 0 | AQ58: 0 | AR58: 0 | AS58: 0 | AT58: 0 | AU58: 0 | AV58: 0 | AW58: 0 | AX58: 0 | AY58: 0 | AZ58: 0 | BA58: 0 | BB58: 0 | BC58: 0 | BD58: 0 | BE58: 0 | BF58: 0 | BG58: 0 | BH58: 0 | BI58: 0 | BJ58: 0 | BK58: 0 | BL58: 0 | BM58: 0 | BN58: 0 | BO58: 0 | BP58: 0 | BQ58: 0 | BR58: 0 | BS58: =$G58*$H58*BS$9 -> 0 | BT58: 0 | BU58: 0 | BV58: 0 | BW58: 0 | BX58: 0 | BY58: 0 | BZ58: 0 | CA58: 0 | CB58: 0 | CC58: 0 | CD58: 0 | CE58: 0 | CF58: 0 | CG58: 0 | CH58: 0 | CI58: 0 | CJ58: 0 | CK58: 0 | CL58: 0 | CM58: 0 | CN58: 0 | CO58: 0 | CP58: 0 | CQ58: 0 | CR58: 0 | CS58: 0 | CT58: 0 | CU58: 0 | CV58: 0 | CW58: 0 | CX58: 0 | CY58: 0 | CZ58: 0 | DA58: 0 | DB58: 0 | DC58: 0 | DD58: 0 | DE58: 0 | DF58: 0 | DG58: 0 | DH58: 0 | DI58: 0 | DJ58: 0 | DK58: 0 | DL58: 0 | DM58: 0 | DN58: 0 | DO58: 0 | DP58: 0 | DQ58: 0
E59: Battery | F59: Euro | G59: =Assumptions!H59 -> 0 | H59: 0.2 | I59: 0 | K59: 0 | L59: 0 | M59: 0 | N59: 0 | O59: 0 | P59: 0 | Q59: 0 | R59: 0 | S59: 0 | T59: 0 | U59: 0 | V59: 0 | W59: 0 | X59: 0 | Y59: 0 | Z59: 0 | AA59: =$G59*$H59*AA$9 -> 0 | AB59: 0 | AC59: 0 | AD59: 0 | AE59: 0 | AF59: 0 | AG59: 0 | AH59: 0 | AI59: 0 | AJ59: 0 | AK59: 0 | AL59: 0 | AM59: 0 | AN59: 0 | AO59: 0 | AP59: 0 | AQ59: 0 | AR59: 0 | AS59: 0 | AT59: 0 | AU59: 0 | AV59: 0 | AW59: 0 | AX59: 0 | AY59: 0 | AZ59: 0 | BA59: 0 | BB59: 0 | BC59: 0 | BD59: 0 | BE59: 0 | BF59: 0 | BG59: 0 | BH59: 0 | BI59: 0 | BJ59: 0 | BK59: 0 | BL59: 0 | BM59: 0 | BN59: 0 | BO59: 0 | BP59: 0 | BQ59: 0 | BR59: 0 | BS59: 0 | BT59: 0 | BU59: 0 | BV59: 0 | BW59: 0 | BX59: 0 | BY59: 0 | BZ59: 0 | CA59: 0 | CB59: 0 | CC59: 0 | CD59: 0 | CE59: 0 | CF59: 0 | CG59: 0 | CH59: 0 | CI59: 0 | CJ59: 0 | CK59: 0 | CL59: 0 | CM59: 0 | CN59: 0 | CO59: 0 | CP59: 0 | CQ59: 0 | CR59: 0 | CS59: 0 | CT59: 0 | CU59: 0 | CV59: 0 | CW59: 0 | CX59: 0 | CY59: 0 | CZ59: 0 | DA59: 0 | DB59: 0 | DC59: 0 | DD59: 0 | DE59: 0 | DF59: 0 | DG59: 0 | DH59: 0 | DI59: 0 | DJ59: 0 | DK59: 0 | DL59: 0 | DM59: 0 | DN59: 0 | DO59: 0 | DP59: 0 | DQ59: 0
E60: Misc. (Tax, Margin, Other) | F60: Euro | G60: =Assumptions!H60 -> 480000 | H60: 0.2 | I60: 480000 | K60: 0 | L60: 0 | M60: 0 | N60: 0 | O60: 96000 | P60: 96000 | Q60: 96000 | R60: 96000 | S60: 96000 | T60: 0 | U60: 0 | V60: 0 | W60: 0 | X60: 0 | Y60: 0 | Z60: 0 | AA60: 0 | AB60: 0 | AC60: 0 | AD60: 0 | AE60: 0 | AF60: 0 | AG60: 0 | AH60: 0 | AI60: 0 | AJ60: 0 | AK60: 0 | AL60: 0 | AM60: 0 | AN60: 0 | AO60: 0 | AP60: 0 | AQ60: 0 | AR60: 0 | AS60: 0 | AT60: 0 | AU60: 0 | AV60: 0 | AW60: 0 | AX60: 0 | AY60: 0 | AZ60: 0 | BA60: 0 | BB60: 0 | BC60: 0 | BD60: 0 | BE60: 0 | BF60: 0 | BG60: 0 | BH60: 0 | BI60: 0 | BJ60: 0 | BK60: 0 | BL60: 0 | BM60: 0 | BN60: 0 | BO60: 0 | BP60: 0 | BQ60: 0 | BR60: 0 | BS60: 0 | BT60: 0 | BU60: 0 | BV60: 0 | BW60: 0 | BX60: 0 | BY60: 0 | BZ60: 0 | CA60: 0 | CB60: 0 | CC60: 0 | CD60: 0 | CE60: 0 | CF60: 0 | CG60: 0 | CH60: 0 | CI60: 0 | CJ60: 0 | CK60: 0 | CL60: 0 | CM60: 0 | CN60: 0 | CO60: 0 | CP60: 0 | CQ60: 0 | CR60: 0 | CS60: 0 | CT60: 0 | CU60: 0 | CV60: 0 | CW60: 0 | CX60: 0 | CY60: 0 | CZ60: 0 | DA60: 0 | DB60: 0 | DC60: 0 | DD60: 0 | DE60: 0 | DF60: 0 | DG60: 0 | DH60: 0 | DI60: 0 | DJ60: 0 | DK60: 0 | DL60: 0 | DM60: 0 | DN60: 0 | DO60: 0 | DP60: 0 | DQ60: 0
E61: Total | F61: Euro | G61: =Assumptions!H61 -> 4440000 | H61: 0.2 | I61: =SUM(K61:DQ61) -> 4440000 | K61: 0 | L61: 0 | M61: 0 | N61: 0 | O61: 888000 | P61: 888000 | Q61: 888000 | R61: 888000 | S61: 888000 | T61: 0 | U61: 0 | V61: 0 | W61: 0 | X61: 0 | Y61: 0 | Z61: 0 | AA61: 0 | AB61: 0 | AC61: 0 | AD61: 0 | AE61: 0 | AF61: 0 | AG61: 0 | AH61: 0 | AI61: 0 | AJ61: 0 | AK61: 0 | AL61: 0 | AM61: 0 | AN61: 0 | AO61: 0 | AP61: 0 | AQ61: 0 | AR61: 0 | AS61: 0 | AT61: 0 | AU61: 0 | AV61: 0 | AW61: 0 | AX61: 0 | AY61: 0 | AZ61: 0 | BA61: 0 | BB61: 0 | BC61: 0 | BD61: 0 | BE61: 0 | BF61: 0 | BG61: 0 | BH61: 0 | BI61: 0 | BJ61: 0 | BK61: 0 | BL61: 0 | BM61: 0 | BN61: 0 | BO61: 0 | BP61: 0 | BQ61: 0 | BR61: 0 | BS61: 0 | BT61: 0 | BU61: 0 | BV61: 0 | BW61: 0 | BX61: 0 | BY61: 0 | BZ61: 0 | CA61: 0 | CB61: 0 | CC61: 0 | CD61: 0 | CE61: 0 | CF61: 0 | CG61: 0 | CH61: 0 | CI61: 0 | CJ61: 0 | CK61: 0 | CL61: 0 | CM61: 0 | CN61: 0 | CO61: 0 | CP61: 0 | CQ61: 0 | CR61: 0 | CS61: 0 | CT61: 0 | CU61: 0 | CV61: 0 | CW61: 0 | CX61: 0 | CY61: 0 | CZ61: 0 | DA61: 0 | DB61: 0 | DC61: 0 | DD61: 0 | DE61: 0 | DF61: 0 | DG61: 0 | DH61: 0 | DI61: 0 | DJ61: 0 | DK61: 0 | DL61: 0 | DM61: 0 | DN61: 0 | DO61: 0 | DP61: 0 | DQ61: 0
E63: Grand Total Capital Expenditure | F63: Euro | I63: =SUM(K63:DQ63) -> 4602000 | K63: =K51+K61 -> 40500 | L63: =L51+L61 -> 40500 | M63: 40500 | N63: 40500 | O63: 888000 | P63: 888000 | Q63: 888000 | R63: 888000 | S63: 888000 | T63: 0 | U63: 0 | V63: 0 | W63: 0 | X63: 0 | Y63: 0 | Z63: 0 | AA63: 0 | AB63: 0 | AC63: 0 | AD63: 0 | AE63: 0 | AF63: 0 | AG63: 0 | AH63: 0 | AI63: 0 | AJ63: 0 | AK63: 0 | AL63: 0 | AM63: 0 | AN63: 0 | AO63: 0 | AP63: 0 | AQ63: 0 | AR63: 0 | AS63: 0 | AT63: 0 | AU63: 0 | AV63: 0 | AW63: 0 | AX63: 0 | AY63: 0 | AZ63: 0 | BA63: 0 | BB63: 0 | BC63: 0 | BD63: 0 | BE63: 0 | BF63: 0 | BG63: 0 | BH63: 0 | BI63: 0 | BJ63: 0 | BK63: 0 | BL63: 0 | BM63: 0 | BN63: 0 | BO63: 0 | BP63: 0 | BQ63: 0 | BR63: 0 | BS63: 0 | BT63: 0 | BU63: 0 | BV63: 0 | BW63: 0 | BX63: =BX51+BX61 -> 0 | BY63: 0 | BZ63: 0 | CA63: 0 | CB63: 0 | CC63: 0 | CD63: 0 | CE63: 0 | CF63: 0 | CG63: 0 | CH63: 0 | CI63: 0 | CJ63: 0 | CK63: 0 | CL63: 0 | CM63: 0 | CN63: 0 | CO63: 0 | CP63: 0 | CQ63: 0 | CR63: 0 | CS63: 0 | CT63: 0 | CU63: 0 | CV63: 0 | CW63: 0 | CX63: 0 | CY63: 0 | CZ63: 0 | DA63: 0 | DB63: 0 | DC63: 0 | DD63: 0 | DE63: 0 | DF63: 0 | DG63: 0 | DH63: 0 | DI63: 0 | DJ63: 0 | DK63: 0 | DL63: 0 | DM63: 0 | DN63: 0 | DO63: 0 | DP63: 0 | DQ63: 0
B65: Operating Expense
D66: Inflation Indices
E67: Inflation Applies | F67: Flag | G67: =Assumptions!H72 -> 2016-06-01 | K67: =K6>=$G$67 -> FALSE | L67: =L6>=$G$67 -> FALSE | M67: FALSE | N67: FALSE | O67: FALSE | P67: FALSE | Q67: FALSE | R67: FALSE | S67: FALSE | T67: TRUE | U67: TRUE | V67: TRUE | W67: TRUE | X67: TRUE | Y67: TRUE | Z67: TRUE | AA67: TRUE | AB67: TRUE | AC67: TRUE | AD67: TRUE | AE67: TRUE | AF67: TRUE | AG67: TRUE | AH67: TRUE | AI67: TRUE | AJ67: TRUE | AK67: TRUE | AL67: TRUE | AM67: TRUE | AN67: TRUE | AO67: TRUE | AP67: TRUE | AQ67: TRUE | AR67: TRUE | AS67: TRUE | AT67: TRUE | AU67: TRUE | AV67: TRUE | AW67: TRUE | AX67: TRUE | AY67: TRUE | AZ67: TRUE | BA67: TRUE | BB67: TRUE | BC67: TRUE | BD67: TRUE | BE67: TRUE | BF67: TRUE | BG67: TRUE | BH67: TRUE | BI67: TRUE | BJ67: TRUE | BK67: TRUE | BL67: TRUE | BM67: TRUE | BN67: TRUE | BO67: TRUE | BP67: TRUE | BQ67: TRUE | BR67: TRUE | BS67: TRUE | BT67: TRUE | BU67: TRUE | BV67: TRUE | BW67: TRUE | BX67: =BX6>=$G$67 -> TRUE | BY67: TRUE | BZ67: TRUE | CA67: TRUE | CB67: TRUE | CC67: TRUE | CD67: TRUE | CE67: TRUE | CF67: TRUE | CG67: TRUE | CH67: TRUE | CI67: TRUE | CJ67: TRUE | CK67: TRUE | CL67: TRUE | CM67: TRUE | CN67: TRUE | CO67: TRUE | CP67: TRUE | CQ67: TRUE | CR67: TRUE | CS67: TRUE | CT67: TRUE | CU67: TRUE | CV67: TRUE | CW67: TRUE | CX67: TRUE | CY67: TRUE | CZ67: TRUE | DA67: =DA6>=$G$67 -> TRUE | DB67: TRUE | DC67: TRUE | DD67: TRUE | DE67: TRUE | DF67: TRUE | DG67: TRUE | DH67: TRUE | DI67: TRUE | DJ67: TRUE | DK67: TRUE | DL67: TRUE | DM67: TRUE | DN67: TRUE | DO67: TRUE | DP67: TRUE | DQ67: TRUE
E68: Periodic O&M Inflation | F68: % p.p. | G68: =Assumptions!G72 -> 0.015 | K68: =(1+$G68)^(K$5/12)-1 -> 0.001241487716 | L68: =(1+$G68)^(L$5/12)-1 -> 0.001241487716 | M68: 0.001241487716 | N68: 0.001241487716 | O68: 0.001241487716 | P68: 0.001241487716 | Q68: 0.001241487716 | R68: 0.001241487716 | S68: 0.001241487716 | T68: 0.003729088938 | U68: 0.003729088938 | V68: 0.003729088938 | W68: 0.003729088938 | X68: 0.003729088938 | Y68: 0.003729088938 | Z68: 0.003729088938 | AA68: 0.003729088938 | AB68: 0.003729088938 | AC68: 0.003729088938 | AD68: 0.003729088938 | AE68: 0.003729088938 | AF68: 0.003729088938 | AG68: 0.003729088938 | AH68: 0.003729088938 | AI68: 0.003729088938 | AJ68: 0.003729088938 | AK68: 0.003729088938 | AL68: 0.003729088938 | AM68: 0.003729088938 | AN68: 0.003729088938 | AO68: 0.003729088938 | AP68: 0.003729088938 | AQ68: 0.003729088938 | AR68: 0.003729088938 | AS68: 0.003729088938 | AT68: 0.003729088938 | AU68: 0.003729088938 | AV68: 0.003729088938 | AW68: 0.003729088938 | AX68: 0.003729088938 | AY68: 0.003729088938 | AZ68: 0.003729088938 | BA68: 0.003729088938 | BB68: 0.003729088938 | BC68: 0.003729088938 | BD68: 0.003729088938 | BE68: 0.003729088938 | BF68: 0.003729088938 | BG68: 0.003729088938 | BH68: 0.003729088938 | BI68: 0.003729088938 | BJ68: 0.003729088938 | BK68: 0.003729088938 | BL68: 0.003729088938 | BM68: 0.003729088938 | BN68: 0.003729088938 | BO68: 0.003729088938 | BP68: 0.003729088938 | BQ68: 0.003729088938 | BR68: 0.003729088938 | BS68: 0.003729088938 | BT68: 0.003729088938 | BU68: 0.003729088938 | BV68: 0.003729088938 | BW68: 0.003729088938 | BX68: =(1+$G68)^(BX$5/12)-1 -> 0.003729088938 | BY68: 0.003729088938 | BZ68: 0.003729088938 | CA68: 0.003729088938 | CB68: 0.003729088938 | CC68: 0.003729088938 | CD68: 0.003729088938 | CE68: 0.003729088938 | CF68: 0.003729088938 | CG68: 0.003729088938 | CH68: 0.003729088938 | CI68: 0.003729088938 | CJ68: 0.003729088938 | CK68: 0.003729088938 | CL68: 0.003729088938 | CM68: 0.003729088938 | CN68: 0.003729088938 | CO68: 0.003729088938 | CP68: 0.003729088938 | CQ68: 0.003729088938 | CR68: 0.003729088938 | CS68: 0.003729088938 | CT68: 0.003729088938 | CU68: 0.003729088938 | CV68: 0.003729088938 | CW68: 0.003729088938 | CX68: 0.003729088938 | CY68: 0.003729088938 | CZ68: 0.003729088938 | DA68: 0.003729088938 | DB68: =(1+$G68)^(DB$5/12)-1 -> 0.003729088938 | DC68: 0.003729088938 | DD68: 0.003729088938 | DE68: 0.003729088938 | DF68: 0.003729088938 | DG68: 0.003729088938 | DH68: 0.003729088938 | DI68: 0.003729088938 | DJ68: 0.003729088938 | DK68: 0.003729088938 | DL68: 0.003729088938 | DM68: 0.003729088938 | DN68: 0.003729088938 | DO68: 0.003729088938 | DP68: 0.003729088938 | DQ68: 0.003729088938
E69: Periodic Admin Inflation | F69: % p.p. | G69: =Assumptions!G74 -> 0.005 | K69: =(1+$G69)^(K$5/12)-1 -> 0.0004157148447 | L69: 0.0004157148447 | M69: 0.0004157148447 | N69: 0.0004157148447 | O69: 0.0004157148447 | P69: 0.0004157148447 | Q69: 0.0004157148447 | R69: 0.0004157148447 | S69: 0.0004157148447 | T69: 0.001247663063 | U69: 0.001247663063 | V69: 0.001247663063 | W69: 0.001247663063 | X69: 0.001247663063 | Y69: 0.001247663063 | Z69: 0.001247663063 | AA69: 0.001247663063 | AB69: 0.001247663063 | AC69: 0.001247663063 | AD69: 0.001247663063 | AE69: 0.001247663063 | AF69: 0.001247663063 | AG69: 0.001247663063 | AH69: 0.001247663063 | AI69: 0.001247663063 | AJ69: 0.001247663063 | AK69: 0.001247663063 | AL69: 0.001247663063 | AM69: 0.001247663063 | AN69: 0.001247663063 | AO69: 0.001247663063 | AP69: 0.001247663063 | AQ69: 0.001247663063 | AR69: 0.001247663063 | AS69: 0.001247663063 | AT69: 0.001247663063 | AU69: 0.001247663063 | AV69: 0.001247663063 | AW69: 0.001247663063 | AX69: 0.001247663063 | AY69: 0.001247663063 | AZ69: 0.001247663063 | BA69: 0.001247663063 | BB69: 0.001247663063 | BC69: 0.001247663063 | BD69: 0.001247663063 | BE69: 0.001247663063 | BF69: 0.001247663063 | BG69: 0.001247663063 | BH69: 0.001247663063 | BI69: 0.001247663063 | BJ69: 0.001247663063 | BK69: 0.001247663063 | BL69: 0.001247663063 | BM69: 0.001247663063 | BN69: 0.001247663063 | BO69: 0.001247663063 | BP69: 0.001247663063 | BQ69: 0.001247663063 | BR69: 0.001247663063 | BS69: 0.001247663063 | BT69: 0.001247663063 | BU69: 0.001247663063 | BV69: 0.001247663063 | BW69: 0.001247663063 | BX69: 0.001247663063 | BY69: 0.001247663063 | BZ69: 0.001247663063 | CA69: 0.001247663063 | CB69: 0.001247663063 | CC69: 0.001247663063 | CD69: 0.001247663063 | CE69: 0.001247663063 | CF69: 0.001247663063 | CG69: 0.001247663063 | CH69: 0.001247663063 | CI69: 0.001247663063 | CJ69: 0.001247663063 | CK69: 0.001247663063 | CL69: 0.001247663063 | CM69: 0.001247663063 | CN69: 0.001247663063 | CO69: 0.001247663063 | CP69: 0.001247663063 | CQ69: 0.001247663063 | CR69: 0.001247663063 | CS69: 0.001247663063 | CT69: 0.001247663063 | CU69: 0.001247663063 | CV69: 0.001247663063 | CW69: 0.001247663063 | CX69: 0.001247663063 | CY69: 0.001247663063 | CZ69: 0.001247663063 | DA69: 0.001247663063 | DB69: 0.001247663063 | DC69: 0.001247663063 | DD69: 0.001247663063 | DE69: 0.001247663063 | DF69: 0.001247663063 | DG69: 0.001247663063 | DH69: 0.001247663063 | DI69: 0.001247663063 | DJ69: 0.001247663063 | DK69: 0.001247663063 | DL69: 0.001247663063 | DM69: 0.001247663063 | DN69: 0.001247663063 | DO69: 0.001247663063 | DP69: 0.001247663063 | DQ69: 0.001247663063
E70: Periodic Other Inflation | F70: % p.p. | G70: =Assumptions!G75 -> 0 | K70: 0 | L70: 0 | M70: 0 | N70: 0 | O70: 0 | P70: 0 | Q70: 0 | R70: 0 | S70: 0 | T70: 0 | U70: 0 | V70: 0 | W70: 0 | X70: 0 | Y70: 0 | Z70: 0 | AA70: 0 | AB70: 0 | AC70: 0 | AD70: 0 | AE70: 0 | AF70: 0 | AG70: 0 | AH70: 0 | AI70: 0 | AJ70: 0 | AK70: 0 | AL70: 0 | AM70: 0 | AN70: 0 | AO70: 0 | AP70: 0 | AQ70: 0 | AR70: 0 | AS70: 0 | AT70: 0 | AU70: 0 | AV70: 0 | AW70: 0 | AX70: 0 | AY70: 0 | AZ70: 0 | BA70: 0 | BB70: 0 | BC70: 0 | BD70: 0 | BE70: 0 | BF70: 0 | BG70: 0 | BH70: 0 | BI70: 0 | BJ70: 0 | BK70: 0 | BL70: 0 | BM70: 0 | BN70: 0 | BO70: 0 | BP70: 0 | BQ70: 0 | BR70: 0 | BS70: 0 | BT70: 0 | BU70: 0 | BV70: 0 | BW70: 0 | BX70: 0 | BY70: 0 | BZ70: 0 | CA70: 0 | CB70: 0 | CC70: 0 | CD70: 0 | CE70: 0 | CF70: 0 | CG70: 0 | CH70: 0 | CI70: 0 | CJ70: 0 | CK70: 0 | CL70: 0 | CM70: 0 | CN70: 0 | CO70: 0 | CP70: 0 | CQ70: 0 | CR70: 0 | CS70: 0 | CT70: 0 | CU70: 0 | CV70: 0 | CW70: 0 | CX70: 0 | CY70: 0 | CZ70: 0 | DA70: 0 | DB70: 0 | DC70: 0 | DD70: 0 | DE70: 0 | DF70: 0 | DG70: 0 | DH70: 0 | DI70: 0 | DJ70: 0 | DK70: 0 | DL70: 0 | DM70: 0 | DN70: 0 | DO70: 0 | DP70: 0 | DQ70: 0
E72: O&M | F72: Index | J72: 1 | K72: =J72*(1+K68*K$67) -> 1 | L72: =K72*(1+L68*L$67) -> 1 | M72: 1 | N72: 1 | O72: 1 | P72: 1 | Q72: 1 | R72: 1 | S72: 1 | T72: 1.003729089 | U72: 1.007472084 | V72: 1.011229037 | W72: 1.015 | X72: 1.018785025 | Y72: 1.022584165 | Z72: 1.026397473 | AA72: 1.030225 | AB72: 1.034066801 | AC72: 1.037922928 | AD72: 1.041793435 | AE72: 1.045678375 | AF72: 1.049577803 | AG72: 1.053491772 | AH72: 1.057420336 | AI72: 1.061363551 | AJ72: 1.06532147 | AK72: 1.069294148 | AL72: 1.073281641 | AM72: 1.077284004 | AN72: 1.081301292 | AO72: 1.08533356 | AP72: 1.089380866 | AQ72: 1.093443264 | AR72: 1.097520811 | AS72: 1.101613564 | AT72: 1.105721579 | AU72: 1.109844913 | AV72: 1.113983623 | AW72: 1.118137767 | AX72: 1.122307402 | AY72: 1.126492587 | AZ72: 1.130693378 | BA72: 1.134909834 | BB72: 1.139142014 | BC72: 1.143389975 | BD72: 1.147653778 | BE72: 1.151933481 | BF72: 1.156229144 | BG72: 1.160540825 | BH72: 1.164868585 | BI72: 1.169212484 | BJ72: 1.173572581 | BK72: 1.177948937 | BL72: 1.182341614 | BM72: 1.186750671 | BN72: 1.19117617 | BO72: 1.195618171 | BP72: 1.200076738 | BQ72: 1.204551931 | BR72: 1.209043812 | BS72: 1.213552444 | BT72: 1.218077889 | BU72: 1.22262021 | BV72: 1.227179469 | BW72: 1.231755731 | BX72: =BW72*(1+BX68*BX$67) -> 1.236349057 | BY72: 1.240959513 | BZ72: 1.245587161 | CA72: 1.250232067 | CB72: 1.254894293 | CC72: 1.259573906 | CD72: 1.264270969 | CE72: 1.268985548 | CF72: 1.273717708 | CG72: 1.278467514 | CH72: 1.283235033 | CI72: 1.288020331 | CJ72: 1.292823473 | CK72: 1.297644527 | CL72: 1.302483559 | CM72: 1.307340636 | CN72: 1.312215825 | CO72: 1.317109195 | CP72: 1.322020812 | CQ72: 1.326950745 | CR72: 1.331899063 | CS72: 1.336865833 | CT72: 1.341851124 | CU72: 1.346855007 | CV72: 1.351877549 | CW72: 1.35691882 | CX72: 1.361978891 | CY72: 1.367057832 | CZ72: 1.372155712 | DA72: =CZ72*(1+DA68*DA$67) -> 1.377272603 | DB72: 1.382408575 | DC72: 1.387563699 | DD72: 1.392738048 | DE72: 1.397931692 | DF72: 1.403144703 | DG72: 1.408377155 | DH72: 1.413629118 | DI72: 1.418900667 | DJ72: 1.424191874 | DK72: 1.429502812 | DL72: 1.434833555 | DM72: 1.440184177 | DN72: 1.445554752 | DO72: 1.450945354 | DP72: 1.456356058 | DQ72: 1.46178694
E73: Administrative and Asset Mgmt | F73: Index | J73: 1 | K73: =J73*(1+K69*K$67) -> 1 | L73: 1 | M73: 1 | N73: 1 | O73: 1 | P73: 1 | Q73: 1 | R73: 1 | S73: 1 | T73: 1.001247663 | U73: 1.002496883 | V73: 1.003747661 | W73: 1.005 | X73: 1.006253901 | Y73: 1.007509367 | Z73: 1.008766399 | AA73: 1.010025 | AB73: 1.011285171 | AC73: 1.012546914 | AD73: 1.013810231 | AE73: 1.015075125 | AF73: 1.016341597 | AG73: 1.017609649 | AH73: 1.018879283 | AI73: 1.020150501 | AJ73: 1.021423305 | AK73: 1.022697697 | AL73: 1.023973679 | AM73: 1.025251253 | AN73: 1.026530421 | AO73: 1.027811185 | AP73: 1.029093547 | AQ73: 1.030377509 | AR73: 1.031663073 | AS73: 1.032950241 | AT73: 1.034239015 | AU73: 1.035529397 | AV73: 1.036821389 | AW73: 1.038114992 | AX73: 1.03941021 | AY73: 1.040707044 | AZ73: 1.042005496 | BA73: 1.043305567 | BB73: 1.044607261 | BC73: 1.045910579 | BD73: 1.047215523 | BE73: 1.048522095 | BF73: 1.049830298 | BG73: 1.051140132 | BH73: 1.052451601 | BI73: 1.053764706 | BJ73: 1.055079449 | BK73: 1.056395833 | BL73: 1.057713859 | BM73: 1.059033529 | BN73: 1.060354846 | BO73: 1.061677812 | BP73: 1.063002428 | BQ73: 1.064328697 | BR73: 1.065656621 | BS73: 1.066986201 | BT73: 1.06831744 | BU73: 1.06965034 | BV73: 1.070984904 | BW73: 1.072321132 | BX73: 1.073659027 | BY73: 1.074998592 | BZ73: 1.076339828 | CA73: 1.077682738 | CB73: 1.079027323 | CC73: 1.080373585 | CD73: 1.081721527 | CE73: 1.083071151 | CF73: 1.084422459 | CG73: 1.085775453 | CH73: 1.087130135 | CI73: 1.088486507 | CJ73: 1.089844571 | CK73: 1.09120433 | CL73: 1.092565786 | CM73: 1.09392894 | CN73: 1.095293794 | CO73: 1.096660352 | CP73: 1.098028615 | CQ73: 1.099398584 | CR73: 1.100770263 | CS73: 1.102143654 | CT73: 1.103518758 | CU73: 1.104895577 | CV73: 1.106274115 | CW73: 1.107654372 | CX73: 1.109036351 | CY73: 1.110420055 | CZ73: 1.111805485 | DA73: =CZ73*(1+DA69*DA$67) -> 1.113192644 | DB73: 1.114581533 | DC73: 1.115972155 | DD73: 1.117364513 | DE73: 1.118758607 | DF73: 1.120154441 | DG73: 1.121552016 | DH73: 1.122951335 | DI73: 1.1243524 | DJ73: 1.125755213 | DK73: 1.127159776 | DL73: 1.128566092 | DM73: 1.129974162 | DN73: 1.131383989 | DO73: 1.132795575 | DP73: 1.134208922 | DQ73: 1.135624033
E74: Other No Inflation | F74: Index | J74: 1 | K74: 1 | L74: 1 | M74: 1 | N74: 1 | O74: 1 | P74: 1 | Q74: 1 | R74: 1 | S74: 1 | T74: 1 | U74: 1 | V74: 1 | W74: 1 | X74: 1 | Y74: 1 | Z74: 1 | AA74: 1 | AB74: 1 | AC74: 1 | AD74: 1 | AE74: 1 | AF74: 1 | AG74: 1 | AH74: 1 | AI74: 1 | AJ74: 1 | AK74: 1 | AL74: 1 | AM74: 1 | AN74: 1 | AO74: 1 | AP74: 1 | AQ74: 1 | AR74: 1 | AS74: 1 | AT74: 1 | AU74: 1 | AV74: 1 | AW74: 1 | AX74: 1 | AY74: 1 | AZ74: 1 | BA74: 1 | BB74: 1 | BC74: 1 | BD74: 1 | BE74: 1 | BF74: 1 | BG74: 1 | BH74: 1 | BI74: 1 | BJ74: 1 | BK74: 1 | BL74: 1 | BM74: 1 | BN74: 1 | BO74: 1 | BP74: 1 | BQ74: 1 | BR74: 1 | BS74: 1 | BT74: 1 | BU74: 1 | BV74: 1 | BW74: 1 | BX74: 1 | BY74: 1 | BZ74: 1 | CA74: 1 | CB74: 1 | CC74: 1 | CD74: 1 | CE74: 1 | CF74: 1 | CG74: 1 | CH74: 1 | CI74: 1 | CJ74: 1 | CK74: 1 | CL74: 1 | CM74: 1 | CN74: 1 | CO74: 1 | CP74: 1 | CQ74: 1 | CR74: 1 | CS74: 1 | CT74: 1 | CU74: 1 | CV74: 1 | CW74: 1 | CX74: 1 | CY74: 1 | CZ74: 1 | DA74: =CZ74*(1+DA70*DA$67) -> 1 | DB74: 1 | DC74: 1 | DD74: 1 | DE74: 1 | DF74: 1 | DG74: 1 | DH74: 1 | DI74: 1 | DJ74: 1 | DK74: 1 | DL74: 1 | DM74: 1 | DN74: 1 | DO74: 1 | DP74: 1 | DQ74: 1
D76: Operating Costs per Unit | F76: Months | H76: =H5 -> 3
E77: O&M Fee | F77: Euro/kW-yr | G77: =Assumptions!F72 -> 5 | H77: =G77/12*$H$76 -> 1.25 | K77: =$G77*K$5/12*K$72 -> 0.4166666667 | L77: 0.4166666667 | M77: 0.4166666667 | N77: 0.4166666667 | O77: 0.4166666667 | P77: 0.4166666667 | Q77: 0.4166666667 | R77: 0.4166666667 | S77: 0.4166666667 | T77: 1.254661361 | U77: =$G77*U$5/12*U$72 -> 1.259340105 | V77: 1.264036296 | W77: 1.26875 | X77: 1.273481282 | Y77: 1.278230207 | Z77: 1.282996841 | AA77: 1.28778125 | AB77: 1.292583501 | AC77: 1.29740366 | AD77: 1.302241793 | AE77: =$G77*AE$5/12*AE$72 -> 1.307097969 | AF77: 1.311972253 | AG77: 1.316864715 | AH77: 1.32177542 | AI77: 1.326704438 | AJ77: 1.331651837 | AK77: 1.336617685 | AL77: 1.341602051 | AM77: 1.346605005 | AN77: 1.351626615 | AO77: =$G77*AO$5/12*AO$72 -> 1.356666951 | AP77: 1.361726082 | AQ77: 1.36680408 | AR77: 1.371901014 | AS77: 1.377016955 | AT77: 1.382151973 | AU77: 1.387306141 | AV77: 1.392479529 | AW77: 1.397672209 | AX77: 1.402884253 | AY77: =$G77*AY$5/12*AY$72 -> 1.408115733 | AZ77: 1.413366722 | BA77: 1.418637292 | BB77: 1.423927517 | BC77: 1.429237469 | BD77: 1.434567223 | BE77: 1.439916852 | BF77: 1.44528643 | BG77: 1.450676031 | BH77: 1.456085731 | BI77: =$G77*BI$5/12*BI$72 -> 1.461515604 | BJ77: 1.466965726 | BK77: 1.472436172 | BL77: 1.477927017 | BM77: 1.483438338 | BN77: 1.488970212 | BO77: 1.494522714 | BP77: 1.500095922 | BQ77: 1.505689914 | BR77: 1.511304765 | BS77: =$G77*BS$5/12*BS$72 -> 1.516940555 | BT77: 1.522597361 | BU77: 1.528275262 | BV77: 1.533974337 | BW77: 1.539694663 | BX77: 1.545436322 | BY77: 1.551199391 | BZ77: 1.556983952 | CA77: 1.562790083 | CB77: 1.568617867 | CC77: =$G77*CC$5/12*CC$72 -> 1.574467382 | CD77: 1.580338711 | CE77: 1.586231935 | CF77: 1.592147135 | CG77: 1.598084393 | CH77: 1.604043792 | CI77: 1.610025414 | CJ77: 1.616029342 | CK77: 1.622055659 | CL77: 1.628104449 | CM77: =$G77*CM$5/12*CM$72 -> 1.634175795 | CN77: 1.640269782 | CO77: 1.646386494 | CP77: 1.652526015 | CQ77: 1.658688432 | CR77: 1.664873828 | CS77: 1.671082291 | CT77: 1.677313905 | CU77: 1.683568758 | CV77: 1.689846936 | CW77: =$G77*CW$5/12*CW$72 -> 1.696148525 | CX77: 1.702473614 | CY77: 1.70882229 | CZ77: 1.71519464 | DA77: 1.721590753 | DB77: 1.728010718 | DC77: 1.734454624 | DD77: 1.740922559 | DE77: 1.747414615 | DF77: 1.753930879 | DG77: =$G77*DG$5/12*DG$72 -> 1.760471443 | DH77: 1.767036398 | DI77: 1.773625834 | DJ77: 1.780239842 | DK77: 1.786878515 | DL77: 1.793541944 | DM77: 1.800230221 | DN77: 1.80694344 | DO77: 1.813681693 | DP77: 1.820445073 | DQ77: 1.827233675
E78: Battery O&M | F78: Euro/kW-yr | G78: =Assumptions!F73 -> 0 | H78: =G78/12*$H$76 -> 0 | K78: 0 | L78: 0 | M78: 0 | N78: 0 | O78: 0 | P78: 0 | Q78: 0 | R78: 0 | S78: 0 | T78: 0 | U78: 0 | V78: 0 | W78: 0 | X78: 0 | Y78: 0 | Z78: 0 | AA78: 0 | AB78: 0 | AC78: 0 | AD78: 0 | AE78: 0 | AF78: 0 | AG78: 0 | AH78: 0 | AI78: 0 | AJ78: 0 | AK78: 0 | AL78: 0 | AM78: 0 | AN78: 0 | AO78: 0 | AP78: 0 | AQ78: 0 | AR78: 0 | AS78: 0 | AT78: 0 | AU78: 0 | AV78: 0 | AW78: 0 | AX78: 0 | AY78: 0 | AZ78: 0 | BA78: 0 | BB78: 0 | BC78: 0 | BD78: 0 | BE78: 0 | BF78: 0 | BG78: 0 | BH78: 0 | BI78: 0 | BJ78: 0 | BK78: 0 | BL78: 0 | BM78: 0 | BN78: 0 | BO78: 0 | BP78: 0 | BQ78: 0 | BR78: 0 | BS78: 0 | BT78: 0 | BU78: 0 | BV78: 0 | BW78: 0 | BX78: 0 | BY78: 0 | BZ78: 0 | CA78: 0 | CB78: 0 | CC78: 0 | CD78: 0 | CE78: 0 | CF78: 0 | CG78: 0 | CH78: 0 | CI78: 0 | CJ78: 0 | CK78: 0 | CL78: 0 | CM78: 0 | CN78: 0 | CO78: 0 | CP78: 0 | CQ78: 0 | CR78: 0 | CS78: 0 | CT78: 0 | CU78: 0 | CV78: 0 | CW78: 0 | CX78: 0 | CY78: 0 | CZ78: 0 | DA78: 0 | DB78: 0 | DC78: 0 | DD78: 0 | DE78: 0 | DF78: 0 | DG78: 0 | DH78: 0 | DI78: 0 | DJ78: 0 | DK78: 0 | DL78: 0 | DM78: 0 | DN78: 0 | DO78: 0 | DP78: 0 | DQ78: 0
E79: Administration Accounting Etc | F79: Euro/kW-yr | G79: =Assumptions!F74 -> 4.5 | H79: 1.125 | K79: =$G79*K$5/12*K$73 -> 0.375 | L79: =$G79*L$5/12*L$73 -> 0.375 | M79: 0.375 | N79: 0.375 | O79: 0.375 | P79: 0.375 | Q79: 0.375 | R79: 0.375 | S79: 0.375 | T79: 1.126403621 | U79: 1.127808993 | V79: 1.129216119 | W79: 1.130625 | X79: 1.132035639 | Y79: 1.133448038 | Z79: 1.134862199 | AA79: 1.136278125 | AB79: 1.137695817 | AC79: 1.139115278 | AD79: 1.14053651 | AE79: 1.141959516 | AF79: 1.143384296 | AG79: 1.144810855 | AH79: 1.146239193 | AI79: 1.147669313 | AJ79: 1.149101218 | AK79: 1.150534909 | AL79: 1.151970389 | AM79: 1.15340766 | AN79: 1.154846724 | AO79: 1.156287584 | AP79: 1.157730241 | AQ79: 1.159174698 | AR79: 1.160620958 | AS79: 1.162069021 | AT79: 1.163518892 | AU79: 1.164970572 | AV79: 1.166424062 | AW79: 1.167879367 | AX79: 1.169336486 | AY79: 1.170795424 | AZ79: 1.172256183 | BA79: 1.173718763 | BB79: 1.175183169 | BC79: 1.176649402 | BD79: 1.178117464 | BE79: 1.179587357 | BF79: 1.181059085 | BG79: 1.182532649 | BH79: 1.184008051 | BI79: 1.185485294 | BJ79: 1.18696438 | BK79: 1.188445312 | BL79: 1.189928091 | BM79: 1.19141272 | BN79: 1.192899202 | BO79: 1.194387538 | BP79: 1.195877732 | BQ79: 1.197369784 | BR79: 1.198863698 | BS79: 1.200359476 | BT79: 1.20185712 | BU79: 1.203356633 | BV79: 1.204858017 | BW79: 1.206361273 | BX79: =$G79*BX$5/12*BX$73 -> 1.207866406 | BY79: 1.209373416 | BZ79: 1.210882307 | CA79: 1.21239308 | CB79: 1.213905738 | CC79: 1.215420283 | CD79: 1.216936718 | CE79: 1.218455045 | CF79: 1.219975267 | CG79: 1.221497385 | CH79: 1.223021402 | CI79: 1.22454732 | CJ79: 1.226075143 | CK79: 1.227604872 | CL79: 1.229136509 | CM79: 1.230670057 | CN79: 1.232205519 | CO79: 1.233742896 | CP79: 1.235282191 | CQ79: 1.236823407 | CR79: 1.238366546 | CS79: 1.23991161 | CT79: 1.241458602 | CU79: 1.243007524 | CV79: 1.244558379 | CW79: 1.246111168 | CX79: 1.247665895 | CY79: 1.249222562 | CZ79: 1.250781171 | DA79: 1.252341724 | DB79: 1.253904225 | DC79: 1.255468675 | DD79: 1.257035077 | DE79: 1.258603433 | DF79: 1.260173746 | DG79: 1.261746018 | DH79: 1.263320252 | DI79: 1.26489645 | DJ79: 1.266474615 | DK79: 1.268054748 | DL79: 1.269636853 | DM79: 1.271220932 | DN79: 1.272806988 | DO79: 1.274395022 | DP79: 1.275985038 | DQ79: 1.277577037
E80: Insurance Cost | F80: Euro/kW-yr | G80: =Assumptions!F75 -> 2.8 | H80: 0.7 | K80: =$G80*K$5/12*K74 -> 0.2333333333 | L80: =$G80*L$5/12*L74 -> 0.2333333333 | M80: 0.2333333333 | N80: 0.2333333333 | O80: 0.2333333333 | P80: 0.2333333333 | Q80: 0.2333333333 | R80: 0.2333333333 | S80: 0.2333333333 | T80: 0.7 | U80: 0.7 | V80: 0.7 | W80: 0.7 | X80: 0.7 | Y80: 0.7 | Z80: 0.7 | AA80: 0.7 | AB80: 0.7 | AC80: 0.7 | AD80: 0.7 | AE80: 0.7 | AF80: 0.7 | AG80: 0.7 | AH80: 0.7 | AI80: 0.7 | AJ80: 0.7 | AK80: 0.7 | AL80: 0.7 | AM80: 0.7 | AN80: 0.7 | AO80: 0.7 | AP80: 0.7 | AQ80: 0.7 | AR80: 0.7 | AS80: 0.7 | AT80: 0.7 | AU80: 0.7 | AV80: 0.7 | AW80: 0.7 | AX80: 0.7 | AY80: 0.7 | AZ80: 0.7 | BA80: 0.7 | BB80: 0.7 | BC80: 0.7 | BD80: 0.7 | BE80: 0.7 | BF80: 0.7 | BG80: 0.7 | BH80: 0.7 | BI80: 0.7 | BJ80: 0.7 | BK80: 0.7 | BL80: 0.7 | BM80: 0.7 | BN80: 0.7 | BO80: 0.7 | BP80: 0.7 | BQ80: 0.7 | BR80: 0.7 | BS80: 0.7 | BT80: 0.7 | BU80: 0.7 | BV80: 0.7 | BW80: 0.7 | BX80: =$G80*BX$5/12*BX74 -> 0.7 | BY80: 0.7 | BZ80: 0.7 | CA80: 0.7 | CB80: 0.7 | CC80: 0.7 | CD80: 0.7 | CE80: 0.7 | CF80: 0.7 | CG80: 0.7 | CH80: 0.7 | CI80: 0.7 | CJ80: 0.7 | CK80: 0.7 | CL80: 0.7 | CM80: 0.7 | CN80: 0.7 | CO80: 0.7 | CP80: 0.7 | CQ80: 0.7 | CR80: 0.7 | CS80: 0.7 | CT80: 0.7 | CU80: 0.7 | CV80: 0.7 | CW80: 0.7 | CX80: 0.7 | CY80: 0.7 | CZ80: 0.7 | DA80: =$G80*DA$5/12*DA74 -> 0.7 | DB80: 0.7 | DC80: 0.7 | DD80: 0.7 | DE80: 0.7 | DF80: 0.7 | DG80: 0.7 | DH80: 0.7 | DI80: 0.7 | DJ80: 0.7 | DK80: 0.7 | DL80: 0.7 | DM80: 0.7 | DN80: 0.7 | DO80: 0.7 | DP80: 0.7 | DQ80: 0.7
E81: Rent/Lease Expense | F81: Euro/Yr | G81: =Assumptions!F76 -> 30000 | H81: 7500 | K81: =$G81*K$5/12 -> 2500 | L81: =$G81*L$5/12 -> 2500 | M81: 2500 | N81: 2500 | O81: 2500 | P81: 2500 | Q81: 2500 | R81: 2500 | S81: 2500 | T81: 7500 | U81: 7500 | V81: 7500 | W81: 7500 | X81: 7500 | Y81: 7500 | Z81: 7500 | AA81: 7500 | AB81: 7500 | AC81: 7500 | AD81: 7500 | AE81: 7500 | AF81: 7500 | AG81: 7500 | AH81: 7500 | AI81: 7500 | AJ81: 7500 | AK81: 7500 | AL81: 7500 | AM81: 7500 | AN81: 7500 | AO81: 7500 | AP81: 7500 | AQ81: 7500 | AR81: 7500 | AS81: 7500 | AT81: 7500 | AU81: 7500 | AV81: 7500 | AW81: 7500 | AX81: 7500 | AY81: 7500 | AZ81: 7500 | BA81: 7500 | BB81: 7500 | BC81: 7500 | BD81: 7500 | BE81: 7500 | BF81: 7500 | BG81: 7500 | BH81: 7500 | BI81: 7500 | BJ81: 7500 | BK81: 7500 | BL81: 7500 | BM81: 7500 | BN81: 7500 | BO81: 7500 | BP81: 7500 | BQ81: 7500 | BR81: 7500 | BS81: 7500 | BT81: 7500 | BU81: 7500 | BV81: 7500 | BW81: 7500 | BX81: =$G81*BX$5/12 -> 7500 | BY81: 7500 | BZ81: 7500 | CA81: 7500 | CB81: 7500 | CC81: 7500 | CD81: 7500 | CE81: 7500 | CF81: 7500 | CG81: 7500 | CH81: 7500 | CI81: 7500 | CJ81: 7500 | CK81: 7500 | CL81: 7500 | CM81: 7500 | CN81: 7500 | CO81: 7500 | CP81: 7500 | CQ81: 7500 | CR81: 7500 | CS81: 7500 | CT81: 7500 | CU81: 7500 | CV81: 7500 | CW81: 7500 | CX81: 7500 | CY81: 7500 | CZ81: 7500 | DA81: 7500 | DB81: 7500 | DC81: 7500 | DD81: 7500 | DE81: 7500 | DF81: 7500 | DG81: 7500 | DH81: 7500 | DI81: 7500 | DJ81: 7500 | DK81: 7500 | DL81: 7500 | DM81: 7500 | DN81: 7500 | DO81: 7500 | DP81: 7500 | DQ81: 7500
E82: Property Taxes | F82: Euro/Yr | G82: =Assumptions!F77 -> 0 | H82: 0 | K82: =$G82*K$5/12*K$72 -> 0 | L82: 0 | M82: 0 | N82: 0 | O82: 0 | P82: 0 | Q82: 0 | R82: 0 | S82: 0 | T82: 0 | U82: =$G82*U$5/12*U$72 -> 0 | V82: 0 | W82: 0 | X82: 0 | Y82: 0 | Z82: 0 | AA82: 0 | AB82: 0 | AC82: 0 | AD82: 0 | AE82: =$G82*AE$5/12*AE$72 -> 0 | AF82: 0 | AG82: 0 | AH82: 0 | AI82: 0 | AJ82: 0 | AK82: 0 | AL82: 0 | AM82: 0 | AN82: 0 | AO82: =$G82*AO$5/12*AO$72 -> 0 | AP82: 0 | AQ82: 0 | AR82: 0 | AS82: 0 | AT82: 0 | AU82: 0 | AV82: 0 | AW82: 0 | AX82: 0 | AY82: =$G82*AY$5/12*AY$72 -> 0 | AZ82: 0 | BA82: 0 | BB82: 0 | BC82: 0 | BD82: 0 | BE82: 0 | BF82: 0 | BG82: 0 | BH82: 0 | BI82: =$G82*BI$5/12*BI$72 -> 0 | BJ82: 0 | BK82: 0 | BL82: 0 | BM82: 0 | BN82: 0 | BO82: 0 | BP82: 0 | BQ82: 0 | BR82: 0 | BS82: =$G82*BS$5/12*BS$72 -> 0 | BT82: 0 | BU82: 0 | BV82: 0 | BW82: 0 | BX82: 0 | BY82: 0 | BZ82: 0 | CA82: 0 | CB82: 0 | CC82: =$G82*CC$5/12*CC$72 -> 0 | CD82: 0 | CE82: 0 | CF82: 0 | CG82: 0 | CH82: 0 | CI82: 0 | CJ82: 0 | CK82: 0 | CL82: 0 | CM82: =$G82*CM$5/12*CM$72 -> 0 | CN82: 0 | CO82: 0 | CP82: 0 | CQ82: 0 | CR82: 0 | CS82: 0 | CT82: 0 | CU82: 0 | CV82: 0 | CW82: =$G82*CW$5/12*CW$72 -> 0 | CX82: 0 | CY82: 0 | CZ82: 0 | DA82: 0 | DB82: 0 | DC82: 0 | DD82: 0 | DE82: 0 | DF82: 0 | DG82: =$G82*DG$5/12*DG$72 -> 0 | DH82: 0 | DI82: 0 | DJ82: 0 | DK82: 0 | DL82: 0 | DM82: 0 | DN82: 0 | DO82: 0 | DP82: 0 | DQ82: 0
E83: Utility Connection Cost | F83: Euro/Yr | G83: =Assumptions!F78 -> 0 | H83: 0 | K83: 0 | L83: 0 | M83: 0 | N83: 0 | O83: 0 | P83: 0 | Q83: 0 | R83: 0 | S83: 0 | T83: 0 | U83: 0 | V83: 0 | W83: 0 | X83: 0 | Y83: 0 | Z83: 0 | AA83: 0 | AB83: 0 | AC83: 0 | AD83: 0 | AE83: 0 | AF83: 0 | AG83: 0 | AH83: 0 | AI83: 0 | AJ83: 0 | AK83: 0 | AL83: 0 | AM83: 0 | AN83: 0 | AO83: 0 | AP83: 0 | AQ83: 0 | AR83: 0 | AS83: 0 | AT83: 0 | AU83: 0 | AV83: 0 | AW83: 0 | AX83: 0 | AY83: 0 | AZ83: 0 | BA83: 0 | BB83: 0 | BC83: 0 | BD83: 0 | BE83: 0 | BF83: 0 | BG83: 0 | BH83: 0 | BI83: 0 | BJ83: 0 | BK83: 0 | BL83: 0 | BM83: 0 | BN83: 0 | BO83: 0 | BP83: 0 | BQ83: 0 | BR83: 0 | BS83: 0 | BT83: 0 | BU83: 0 | BV83: 0 | BW83: 0 | BX83: 0 | BY83: 0 | BZ83: 0 | CA83: 0 | CB83: 0 | CC83: 0 | CD83: 0 | CE83: 0 | CF83: 0 | CG83: 0 | CH83: 0 | CI83: 0 | CJ83: 0 | CK83: 0 | CL83: 0 | CM83: 0 | CN83: 0 | CO83: 0 | CP83: 0 | CQ83: 0 | CR83: 0 | CS83: 0 | CT83: 0 | CU83: 0 | CV83: 0 | CW83: 0 | CX83: 0 | CY83: 0 | CZ83: 0 | DA83: 0 | DB83: 0 | DC83: 0 | DD83: 0 | DE83: 0 | DF83: 0 | DG83: 0 | DH83: 0 | DI83: 0 | DJ83: 0 | DK83: 0 | DL83: 0 | DM83: 0 | DN83: 0 | DO83: 0 | DP83: 0 | DQ83: 0
E84: Consumption of Project | F84: % | G84: =Assumptions!F79 -> 0 | H84: 0 | K84: =$G84*K$5/12*K$72 -> 0 | L84: 0 | M84: 0 | N84: 0 | O84: 0 | P84: 0 | Q84: 0 | R84: 0 | S84: 0 | T84: 0 | U84: 0 | V84: 0 | W84: 0 | X84: 0 | Y84: 0 | Z84: 0 | AA84: 0 | AB84: 0 | AC84: 0 | AD84: 0 | AE84: 0 | AF84: 0 | AG84: 0 | AH84: 0 | AI84: 0 | AJ84: 0 | AK84: 0 | AL84: 0 | AM84: 0 | AN84: 0 | AO84: 0 | AP84: 0 | AQ84: =$G84*AQ$5/12*AQ$72 -> 0 | AR84: 0 | AS84: 0 | AT84: 0 | AU84: 0 | AV84: 0 | AW84: 0 | AX84: 0 | AY84: 0 | AZ84: 0 | BA84: 0 | BB84: 0 | BC84: 0 | BD84: 0 | BE84: 0 | BF84: 0 | BG84: 0 | BH84: 0 | BI84: 0 | BJ84: 0 | BK84: 0 | BL84: 0 | BM84: 0 | BN84: 0 | BO84: 0 | BP84: 0 | BQ84: 0 | BR84: 0 | BS84: 0 | BT84: 0 | BU84: 0 | BV84: =$G84*BV$5/12*BV$72 -> 0 | BW84: 0 | BX84: =$G84*BX$5/12*BX$72 -> 0 | BY84: 0 | BZ84: 0 | CA84: 0 | CB84: 0 | CC84: 0 | CD84: 0 | CE84: 0 | CF84: 0 | CG84: 0 | CH84: 0 | CI84: 0 | CJ84: 0 | CK84: 0 | CL84: 0 | CM84: 0 | CN84: 0 | CO84: 0 | CP84: 0 | CQ84: 0 | CR84: 0 | CS84: 0 | CT84: 0 | CU84: 0 | CV84: 0 | CW84: 0 | CX84: 0 | CY84: 0 | CZ84: 0 | DA84: 0 | DB84: 0 | DC84: 0 | DD84: 0 | DE84: 0 | DF84: 0 | DG84: 0 | DH84: 0 | DI84: 0 | DJ84: 0 | DK84: 0 | DL84: 0 | DM84: 0 | DN84: 0 | DO84: 0 | DP84: 0 | DQ84: 0
D86: Total Operating Expense | F86: Months
E87: Capacity | F87: kWp | K87: =K13 -> 0 | L87: =L13 -> 0 | M87: 0 | N87: 0 | O87: 0 | P87: 0 | Q87: 0 | R87: 0 | S87: 0 | T87: 6000 | U87: 6000 | V87: 6000 | W87: 6000 | X87: 6000 | Y87: 6000 | Z87: 6000 | AA87: 6000 | AB87: 6000 | AC87: 6000 | AD87: 6000 | AE87: 6000 | AF87: 6000 | AG87: 6000 | AH87: 6000 | AI87: 6000 | AJ87: 6000 | AK87: 6000 | AL87: 6000 | AM87: 6000 | AN87: 6000 | AO87: 6000 | AP87: 6000 | AQ87: 6000 | AR87: 6000 | AS87: 6000 | AT87: 6000 | AU87: 6000 | AV87: 6000 | AW87: 6000 | AX87: 6000 | AY87: 6000 | AZ87: 6000 | BA87: 6000 | BB87: 6000 | BC87: 6000 | BD87: 6000 | BE87: 6000 | BF87: 6000 | BG87: 6000 | BH87: 6000 | BI87: 6000 | BJ87: 6000 | BK87: 6000 | BL87: 6000 | BM87: 6000 | BN87: 6000 | BO87: 6000 | BP87: 6000 | BQ87: 6000 | BR87: 6000 | BS87: 6000 | BT87: 6000 | BU87: 6000 | BV87: 6000 | BW87: 6000 | BX87: =BX13 -> 6000 | BY87: 6000 | BZ87: 6000 | CA87: 6000 | CB87: 6000 | CC87: 6000 | CD87: 6000 | CE87: 6000 | CF87: 6000 | CG87: 6000 | CH87: 6000 | CI87: 6000 | CJ87: 6000 | CK87: 6000 | CL87: 6000 | CM87: 6000 | CN87: 6000 | CO87: 6000 | CP87: 6000 | CQ87: 6000 | CR87: 6000 | CS87: 6000 | CT87: 6000 | CU87: 6000 | CV87: 6000 | CW87: 6000 | CX87: 6000 | CY87: 6000 | CZ87: 6000 | DA87: =DA13 -> 6000 | DB87: 6000 | DC87: 6000 | DD87: 6000 | DE87: 6000 | DF87: 6000 | DG87: 6000 | DH87: 6000 | DI87: 6000 | DJ87: 6000 | DK87: 6000 | DL87: 6000 | DM87: 6000 | DN87: 6000 | DO87: 6000 | DP87: 0 | DQ87: 0
E88: O&M Fee | F88: Euro | I88: =SUM(K88:DQ88) -> 910330.1978 | K88: =K$87*K77 -> 0 | L88: =L$87*L77 -> 0 | M88: 0 | N88: 0 | O88: 0 | P88: 0 | Q88: 0 | R88: 0 | S88: 0 | T88: 7527.968167 | U88: 7556.04063 | V88: 7584.217777 | W88: 7612.5 | X88: 7640.88769 | Y88: 7669.381239 | Z88: 7697.981044 | AA88: 7726.6875 | AB88: 7755.501005 | AC88: 7784.421958 | AD88: 7813.45076 | AE88: 7842.587812 | AF88: 7871.83352 | AG88: 7901.188287 | AH88: 7930.652521 | AI88: 7960.22663 | AJ88: 7989.911023 | AK88: 8019.706112 | AL88: 8049.612309 | AM88: 8079.630029 | AN88: 8109.759688 | AO88: 8140.001703 | AP88: 8170.356494 | AQ88: 8200.82448 | AR88: 8231.406083 | AS88: 8262.101729 | AT88: 8292.911841 | AU88: 8323.836847 | AV88: 8354.877175 | AW88: 8386.033255 | AX88: 8417.305519 | AY88: 8448.694399 | AZ88: 8480.200332 | BA88: 8511.823754 | BB88: 8543.565101 | BC88: 8575.424815 | BD88: 8607.403337 | BE88: 8639.50111 | BF88: 8671.718578 | BG88: 8704.056188 | BH88: 8736.514387 | BI88: 8769.093626 | BJ88: 8801.794357 | BK88: 8834.617031 | BL88: 8867.562103 | BM88: 8900.630031 | BN88: 8933.821272 | BO88: 8967.136286 | BP88: 9000.575535 | BQ88: 9034.139481 | BR88: 9067.828591 | BS88: 9101.64333 | BT88: 9135.584168 | BU88: 9169.651574 | BV88: 9203.84602 | BW88: 9238.16798 | BX88: =BX$87*BX77 -> 9272.61793 | BY88: 9307.196347 | BZ88: 9341.90371 | CA88: 9376.7405 | CB88: 9411.707199 | CC88: 9446.804292 | CD88: 9482.032266 | CE88: 9517.391607 | CF88: 9552.882807 | CG88: 9588.506357 | CH88: 9624.26275 | CI88: 9660.152482 | CJ88: 9696.176049 | CK88: 9732.333952 | CL88: 9768.626691 | CM88: 9805.054769 | CN88: 9841.61869 | CO88: 9878.318961 | CP88: 9915.156091 | CQ88: 9952.13059 | CR88: 9989.24297 | CS88: 10026.49375 | CT88: 10063.88343 | CU88: 10101.41255 | CV88: 10139.08161 | CW88: 10176.89115 | CX88: 10214.84168 | CY88: 10252.93374 | CZ88: 10291.16784 | DA88: =DA$87*DA77 -> 10329.54452 | DB88: 10368.06431 | DC88: 10406.72774 | DD88: 10445.53536 | DE88: 10484.48769 | DF88: 10523.58527 | DG88: 10562.82866 | DH88: 10602.21839 | DI88: 10641.755 | DJ88: 10681.43905 | DK88: 10721.27109 | DL88: 10761.25166 | DM88: 10801.38133 | DN88: 10841.66064 | DO88: 10882.09016 | DP88: 0 | DQ88: 0
E89: Battery O&M | F89: Euro | I89: =SUM(K89:DQ89) -> 0 | K89: =K$87*K78 -> 0 | L89: 0 | M89: 0 | N89: 0 | O89: 0 | P89: 0 | Q89: 0 | R89: 0 | S89: 0 | T89: 0 | U89: 0 | V89: 0 | W89: 0 | X89: 0 | Y89: 0 | Z89: 0 | AA89: 0 | AB89: 0 | AC89: 0 | AD89: 0 | AE89: 0 | AF89: 0 | AG89: 0 | AH89: 0 | AI89: 0 | AJ89: 0 | AK89: 0 | AL89: 0 | AM89: 0 | AN89: 0 | AO89: 0 | AP89: 0 | AQ89: 0 | AR89: 0 | AS89: 0 | AT89: 0 | AU89: 0 | AV89: 0 | AW89: 0 | AX89: 0 | AY89: 0 | AZ89: 0 | BA89: 0 | BB89: 0 | BC89: 0 | BD89: 0 | BE89: 0 | BF89: 0 | BG89: 0 | BH89: 0 | BI89: 0 | BJ89: 0 | BK89: 0 | BL89: 0 | BM89: 0 | BN89: 0 | BO89: 0 | BP89: 0 | BQ89: 0 | BR89: 0 | BS89: 0 | BT89: 0 | BU89: 0 | BV89: 0 | BW89: 0 | BX89: 0 | BY89: 0 | BZ89: 0 | CA89: 0 | CB89: 0 | CC89: 0 | CD89: 0 | CE89: 0 | CF89: 0 | CG89: 0 | CH89: 0 | CI89: 0 | CJ89: 0 | CK89: 0 | CL89: 0 | CM89: 0 | CN89: 0 | CO89: 0 | CP89: 0 | CQ89: 0 | CR89: 0 | CS89: 0 | CT89: 0 | CU89: 0 | CV89: 0 | CW89: 0 | CX89: 0 | CY89: 0 | CZ89: 0 | DA89: =DA$87*DA78 -> 0 | DB89: 0 | DC89: 0 | DD89: 0 | DE89: 0 | DF89: 0 | DG89: 0 | DH89: 0 | DI89: 0 | DJ89: 0 | DK89: 0 | DL89: 0 | DM89: 0 | DN89: 0 | DO89: 0 | DP89: 0 | DQ89: 0
E90: Administration Accounting Etc | F90: Euro | I90: 719335.6337 | K90: 0 | L90: 0 | M90: 0 | N90: 0 | O90: 0 | P90: 0 | Q90: 0 | R90: 0 | S90: 0 | T90: 6758.421726 | U90: 6766.853959 | V90: 6775.296713 | W90: 6783.75 | X90: 6792.213834 | Y90: 6800.688229 | Z90: 6809.173196 | AA90: 6817.66875 | AB90: 6826.174903 | AC90: 6834.69167 | AD90: 6843.219062 | AE90: 6851.757094 | AF90: 6860.305778 | AG90: 6868.865128 | AH90: 6877.435157 | AI90: 6886.015879 | AJ90: 6894.607307 | AK90: 6903.209454 | AL90: 6911.822333 | AM90: 6920.445959 | AN90: 6929.080343 | AO90: 6937.725501 | AP90: 6946.381445 | AQ90: 6955.048188 | AR90: 6963.725745 | AS90: 6972.414129 | AT90: 6981.113352 | AU90: 6989.823429 | AV90: 6998.544374 | AW90: 7007.276199 | AX90: 7016.018919 | AY90: 7024.772546 | AZ90: 7033.537096 | BA90: 7042.31258 | BB90: 7051.099013 | BC90: 7059.896409 | BD90: 7068.704781 | BE90: 7077.524143 | BF90: 7086.354509 | BG90: 7095.195891 | BH90: 7104.048305 | BI90: 7112.911764 | BJ90: 7121.786281 | BK90: 7130.671871 | BL90: 7139.568547 | BM90: 7148.476323 | BN90: 7157.395212 | BO90: 7166.32523 | BP90: 7175.266389 | BQ90: 7184.218704 | BR90: 7193.182189 | BS90: 7202.156856 | BT90: 7211.142721 | BU90: 7220.139798 | BV90: 7229.148099 | BW90: 7238.167641 | BX90: 7247.198435 | BY90: 7256.240497 | BZ90: 7265.29384 | CA90: 7274.358479 | CB90: 7283.434427 | CC90: 7292.521699 | CD90: 7301.620309 | CE90: 7310.730271 | CF90: 7319.851599 | CG90: 7328.984308 | CH90: 7338.128411 | CI90: 7347.283922 | CJ90: 7356.450857 | CK90: 7365.629229 | CL90: 7374.819053 | CM90: 7384.020342 | CN90: 7393.233112 | CO90: 7402.457375 | CP90: 7411.693148 | CQ90: 7420.940444 | CR90: 7430.199277 | CS90: 7439.469662 | CT90: 7448.751614 | CU90: 7458.045146 | CV90: 7467.350273 | CW90: 7476.667011 | CX90: 7485.995372 | CY90: 7495.335372 | CZ90: 7504.687025 | DA90: =DA$87*DA79 -> 7514.050346 | DB90: 7523.425349 | DC90: 7532.812049 | DD90: 7542.21046 | DE90: 7551.620597 | DF90: 7561.042475 | DG90: 7570.476109 | DH90: 7579.921512 | DI90: 7589.3787 | DJ90: 7598.847688 | DK90: 7608.328489 | DL90: 7617.82112 | DM90: 7627.325594 | DN90: 7636.841926 | DO90: 7646.370132 | DP90: 0 | DQ90: 0
E91: Insurance Cost | F91: Euro | I91: 420000 | K91: 0 | L91: 0 | M91: 0 | N91: 0 | O91: 0 | P91: 0 | Q91: 0 | R91: 0 | S91: 0 | T91: 4200 | U91: 4200 | V91: 4200 | W91: 4200 | X91: 4200 | Y91: 4200 | Z91: 4200 | AA91: 4200 | AB91: 4200 | AC91: 4200 | AD91: 4200 | AE91: 4200 | AF91: 4200 | AG91: 4200 | AH91: 4200 | AI91: 4200 | AJ91: 4200 | AK91: 4200 | AL91: 4200 | AM91: 4200 | AN91: 4200 | AO91: 4200 | AP91: 4200 | AQ91: 4200 | AR91: 4200 | AS91: 4200 | AT91: 4200 | AU91: 4200 | AV91: 4200 | AW91: 4200 | AX91: 4200 | AY91: 4200 | AZ91: 4200 | BA91: 4200 | BB91: 4200 | BC91: 4200 | BD91: 4200 | BE91: 4200 | BF91: 4200 | BG91: 4200 | BH91: 4200 | BI91: 4200 | BJ91: 4200 | BK91: 4200 | BL91: 4200 | BM91: 4200 | BN91: 4200 | BO91: 4200 | BP91: 4200 | BQ91: 4200 | BR91: 4200 | BS91: 4200 | BT91: 4200 | BU91: 4200 | BV91: 4200 | BW91: 4200 | BX91: 4200 | BY91: 4200 | BZ91: 4200 | CA91: 4200 | CB91: 4200 | CC91: 4200 | CD91: 4200 | CE91: 4200 | CF91: 4200 | CG91: 4200 | CH91: 4200 | CI91: 4200 | CJ91: 4200 | CK91: 4200 | CL91: 4200 | CM91: 4200 | CN91: 4200 | CO91: 4200 | CP91: 4200 | CQ91: 4200 | CR91: 4200 | CS91: 4200 | CT91: 4200 | CU91: 4200 | CV91: 4200 | CW91: 4200 | CX91: 4200 | CY91: 4200 | CZ91: 4200 | DA91: =DA$87*DA80 -> 4200 | DB91: 4200 | DC91: 4200 | DD91: 4200 | DE91: 4200 | DF91: 4200 | DG91: 4200 | DH91: 4200 | DI91: 4200 | DJ91: 4200 | DK91: 4200 | DL91: 4200 | DM91: 4200 | DN91: 4200 | DO91: 4200 | DP91: 0 | DQ91: 0
E92: Rent/Lease Expense | F92: Euro | I92: 750000 | K92: =K81*K10 -> 0 | L92: =L81*L10 -> 0 | M92: 0 | N92: 0 | O92: 0 | P92: 0 | Q92: 0 | R92: 0 | S92: 0 | T92: 7500 | U92: 7500 | V92: 7500 | W92: 7500 | X92: 7500 | Y92: 7500 | Z92: 7500 | AA92: 7500 | AB92: 7500 | AC92: 7500 | AD92: 7500 | AE92: 7500 | AF92: 7500 | AG92: 7500 | AH92: 7500 | AI92: 7500 | AJ92: 7500 | AK92: 7500 | AL92: 7500 | AM92: 7500 | AN92: 7500 | AO92: 7500 | AP92: 7500 | AQ92: 7500 | AR92: 7500 | AS92: 7500 | AT92: 7500 | AU92: 7500 | AV92: 7500 | AW92: 7500 | AX92: 7500 | AY92: 7500 | AZ92: 7500 | BA92: 7500 | BB92: 7500 | BC92: 7500 | BD92: 7500 | BE92: 7500 | BF92: 7500 | BG92: 7500 | BH92: 7500 | BI92: 7500 | BJ92: 7500 | BK92: 7500 | BL92: 7500 | BM92: 7500 | BN92: 7500 | BO92: 7500 | BP92: 7500 | BQ92: 7500 | BR92: 7500 | BS92: 7500 | BT92: 7500 | BU92: 7500 | BV92: 7500 | BW92: 7500 | BX92: =BX81*BX10 -> 7500 | BY92: 7500 | BZ92: 7500 | CA92: 7500 | CB92: 7500 | CC92: 7500 | CD92: 7500 | CE92: 7500 | CF92: 7500 | CG92: 7500 | CH92: 7500 | CI92: 7500 | CJ92: 7500 | CK92: 7500 | CL92: 7500 | CM92: 7500 | CN92: 7500 | CO92: 7500 | CP92: 7500 | CQ92: 7500 | CR92: 7500 | CS92: 7500 | CT92: 7500 | CU92: 7500 | CV92: 7500 | CW92: 7500 | CX92: 7500 | CY92: 7500 | CZ92: 7500 | DA92: =DA81*DA10 -> 7500 | DB92: 7500 | DC92: 7500 | DD92: 7500 | DE92: 7500 | DF92: 7500 | DG92: 7500 | DH92: 7500 | DI92: 7500 | DJ92: 7500 | DK92: 7500 | DL92: 7500 | DM92: 7500 | DN92: 7500 | DO92: 7500 | DP92: 0 | DQ92: 0
E93: Property Taxes | F93: Euro | I93: 0 | K93: =K82*K10 -> 0 | L93: =L82*L10 -> 0 | M93: 0 | N93: 0 | O93: 0 | P93: 0 | Q93: 0 | R93: 0 | S93: 0 | T93: 0 | U93: 0 | V93: 0 | W93: 0 | X93: 0 | Y93: 0 | Z93: 0 | AA93: 0 | AB93: 0 | AC93: 0 | AD93: 0 | AE93: 0 | AF93: 0 | AG93: 0 | AH93: 0 | AI93: 0 | AJ93: 0 | AK93: 0 | AL93: 0 | AM93: 0 | AN93: 0 | AO93: 0 | AP93: 0 | AQ93: 0 | AR93: 0 | AS93: 0 | AT93: 0 | AU93: 0 | AV93: 0 | AW93: 0 | AX93: 0 | AY93: 0 | AZ93: 0 | BA93: 0 | BB93: 0 | BC93: 0 | BD93: 0 | BE93: 0 | BF93: 0 | BG93: 0 | BH93: 0 | BI93: 0 | BJ93: 0 | BK93: 0 | BL93: 0 | BM93: 0 | BN93: 0 | BO93: 0 | BP93: 0 | BQ93: 0 | BR93: 0 | BS93: 0 | BT93: 0 | BU93: 0 | BV93: 0 | BW93: 0 | BX93: =BX82*BX10 -> 0 | BY93: 0 | BZ93: 0 | CA93: 0 | CB93: 0 | CC93: 0 | CD93: 0 | CE93: 0 | CF93: 0 | CG93: 0 | CH93: 0 | CI93: 0 | CJ93: 0 | CK93: 0 | CL93: 0 | CM93: 0 | CN93: 0 | CO93: 0 | CP93: 0 | CQ93: 0 | CR93: 0 | CS93: 0 | CT93: 0 | CU93: 0 | CV93: 0 | CW93: 0 | CX93: 0 | CY93: 0 | CZ93: 0 | DA93: =DA82*DA10 -> 0 | DB93: 0 | DC93: 0 | DD93: 0 | DE93: 0 | DF93: 0 | DG93: 0 | DH93: 0 | DI93: 0 | DJ93: 0 | DK93: 0 | DL93: 0 | DM93: 0 | DN93: 0 | DO93: 0 | DP93: 0 | DQ93: 0
E94: Utility Connection Cost | F94: Euro | I94: 0 | K94: =K83 -> 0 | L94: =L83 -> 0 | M94: 0 | N94: 0 | O94: 0 | P94: 0 | Q94: 0 | R94: 0 | S94: 0 | T94: 0 | U94: 0 | V94: 0 | W94: 0 | X94: 0 | Y94: 0 | Z94: 0 | AA94: 0 | AB94: 0 | AC94: 0 | AD94: 0 | AE94: 0 | AF94: 0 | AG94: 0 | AH94: 0 | AI94: 0 | AJ94: 0 | AK94: 0 | AL94: 0 | AM94: 0 | AN94: 0 | AO94: 0 | AP94: 0 | AQ94: 0 | AR94: 0 | AS94: 0 | AT94: 0 | AU94: 0 | AV94: 0 | AW94: 0 | AX94: 0 | AY94: 0 | AZ94: 0 | BA94: 0 | BB94: 0 | BC94: 0 | BD94: 0 | BE94: 0 | BF94: 0 | BG94: 0 | BH94: 0 | BI94: 0 | BJ94: 0 | BK94: 0 | BL94: 0 | BM94: 0 | BN94: 0 | BO94: 0 | BP94: 0 | BQ94: 0 | BR94: 0 | BS94: 0 | BT94: 0 | BU94: 0 | BV94: 0 | BW94: 0 | BX94: =BX83 -> 0 | BY94: 0 | BZ94: 0 | CA94: 0 | CB94: 0 | CC94: 0 | CD94: 0 | CE94: 0 | CF94: 0 | CG94: 0 | CH94: 0 | CI94: 0 | CJ94: 0 | CK94: 0 | CL94: 0 | CM94: 0 | CN94: 0 | CO94: 0 | CP94: 0 | CQ94: 0 | CR94: 0 | CS94: 0 | CT94: 0 | CU94: 0 | CV94: 0 | CW94: 0 | CX94: 0 | CY94: 0 | CZ94: 0 | DA94: =DA83 -> 0 | DB94: 0 | DC94: 0 | DD94: 0 | DE94: 0 | DF94: 0 | DG94: 0 | DH94: 0 | DI94: 0 | DJ94: 0 | DK94: 0 | DL94: 0 | DM94: 0 | DN94: 0 | DO94: 0 | DP94: 0 | DQ94: 0
E95: Consumption of Project | F95: Euro | I95: 0 | K95: =K84 -> 0 | L95: =L84 -> 0 | M95: 0 | N95: 0 | O95: 0 | P95: 0 | Q95: 0 | R95: 0 | S95: 0 | T95: 0 | U95: 0 | V95: 0 | W95: 0 | X95: 0 | Y95: 0 | Z95: 0 | AA95: 0 | AB95: 0 | AC95: 0 | AD95: 0 | AE95: 0 | AF95: 0 | AG95: 0 | AH95: 0 | AI95: 0 | AJ95: 0 | AK95: 0 | AL95: 0 | AM95: 0 | AN95: 0 | AO95: 0 | AP95: 0 | AQ95: 0 | AR95: 0 | AS95: 0 | AT95: 0 | AU95: 0 | AV95: 0 | AW95: 0 | AX95: 0 | AY95: 0 | AZ95: 0 | BA95: 0 | BB95: 0 | BC95: 0 | BD95: 0 | BE95: 0 | BF95: 0 | BG95: 0 | BH95: 0 | BI95: 0 | BJ95: 0 | BK95: 0 | BL95: 0 | BM95: 0 | BN95: 0 | BO95: 0 | BP95: 0 | BQ95: 0 | BR95: 0 | BS95: 0 | BT95: 0 | BU95: 0 | BV95: 0 | BW95: 0 | BX95: =BX84 -> 0 | BY95: 0 | BZ95: 0 | CA95: 0 | CB95: 0 | CC95: 0 | CD95: 0 | CE95: 0 | CF95: 0 | CG95: 0 | CH95: 0 | CI95: 0 | CJ95: 0 | CK95: 0 | CL95: 0 | CM95: 0 | CN95: 0 | CO95: 0 | CP95: 0 | CQ95: 0 | CR95: 0 | CS95: 0 | CT95: 0 | CU95: 0 | CV95: 0 | CW95: 0 | CX95: 0 | CY95: 0 | CZ95: 0 | DA95: =DA84 -> 0 | DB95: 0 | DC95: 0 | DD95: 0 | DE95: 0 | DF95: 0 | DG95: 0 | DH95: 0 | DI95: 0 | DJ95: 0 | DK95: 0 | DL95: 0 | DM95: 0 | DN95: 0 | DO95: 0 | DP95: 0 | DQ95: 0
E96: Total O&M | F96: Euro | I96: =SUM(K96:DQ96) -> 3399665.832 | K96: =SUM(K87:K95) -> 0 | L96: =SUM(L87:L95) -> 0 | M96: 0 | N96: 0 | O96: 0 | P96: 0 | Q96: 0 | R96: 0 | S96: 0 | T96: 31986.38989 | U96: 32022.89459 | V96: 32059.51449 | W96: 32096.25 | X96: 32133.10152 | Y96: 32170.06947 | Z96: 32207.15424 | AA96: 32244.35625 | AB96: 32281.67591 | AC96: 32319.11363 | AD96: 32356.66982 | AE96: 32394.34491 | AF96: 32432.1393 | AG96: 32470.05342 | AH96: 32508.08768 | AI96: 32546.24251 | AJ96: 32584.51833 | AK96: 32622.91557 | AL96: 32661.43464 | AM96: 32700.07599 | AN96: 32738.84003 | AO96: 32777.7272 | AP96: 32816.73794 | AQ96: 32855.87267 | AR96: 32895.13183 | AS96: 32934.51586 | AT96: 32974.02519 | AU96: 33013.66028 | AV96: 33053.42155 | AW96: 33093.30945 | AX96: 33133.32444 | AY96: 33173.46695 | AZ96: 33213.73743 | BA96: 33254.13633 | BB96: 33294.66411 | BC96: 33335.32122 | BD96: 33376.10812 | BE96: 33417.02525 | BF96: 33458.07309 | BG96: 33499.25208 | BH96: 33540.56269 | BI96: 33582.00539 | BJ96: 33623.58064 | BK96: 33665.2889 | BL96: 33707.13065 | BM96: 33749.10635 | BN96: 33791.21648 | BO96: 33833.46152 | BP96: 33875.84192 | BQ96: 33918.35819 | BR96: 33961.01078 | BS96: 34003.80019 | BT96: 34046.72689 | BU96: 34089.79137 | BV96: 34132.99412 | BW96: 34176.33562 | BX96: =SUM(BX87:BX95) -> 34219.81637 | BY96: 34263.43684 | BZ96: 34307.19755 | CA96: 34351.09898 | CB96: 34395.14163 | CC96: 34439.32599 | CD96: 34483.65257 | CE96: 34528.12188 | CF96: 34572.73441 | CG96: 34617.49066 | CH96: 34662.39116 | CI96: 34707.4364 | CJ96: 34752.62691 | CK96: 34797.96318 | CL96: 34843.44574 | CM96: 34889.07511 | CN96: 34934.8518 | CO96: 34980.77634 | CP96: 35026.84924 | CQ96: 35073.07103 | CR96: 35119.44225 | CS96: 35165.96341 | CT96: 35212.63505 | CU96: 35259.4577 | CV96: 35306.43189 | CW96: 35353.55816 | CX96: 35400.83706 | CY96: 35448.26911 | CZ96: 35495.85486 | DA96: =SUM(DA87:DA95) -> 35543.59486 | DB96: =SUM(DB87:DB95) -> 35591.48966 | DC96: =SUM(DC87:DC95) -> 35639.53979 | DD96: =SUM(DD87:DD95) -> 35687.74582 | DE96: =SUM(DE87:DE95) -> 35736.10828 | DF96: =SUM(DF87:DF95) -> 35784.62775 | DG96: =SUM(DG87:DG95) -> 35833.30477 | DH96: =SUM(DH87:DH95) -> 35882.1399 | DI96: =SUM(DI87:DI95) -> 35931.1337 | DJ96: =SUM(DJ87:DJ95) -> 35980.28674 | DK96: =SUM(DK87:DK95) -> 36029.59958 | DL96: =SUM(DL87:DL95) -> 36079.07278 | DM96: =SUM(DM87:DM95) -> 36128.70692 | DN96: =SUM(DN87:DN95) -> 36178.50257 | DO96: =SUM(DO87:DO95) -> 36228.46029 | DP96: =SUM(DP87:DP95) -> 0 | DQ96: =SUM(DQ87:DQ95) -> 0
D98: Inverter Replacement
E99: Inverter Replacement Period | F99: Flag | G99: =Assumptions!F85 -> 2096-06-01 | H99: =Assumptions!F86 -> 2096-06-01 | K99: =OR(K6=$G$99,K6=$H$99) -> FALSE | L99: =OR(L6=$G$99,L6=$H$99) -> FALSE | M99: FALSE | N99: FALSE | O99: FALSE | P99: FALSE | Q99: FALSE | R99: FALSE | S99: FALSE | T99: FALSE | U99: FALSE | V99: FALSE | W99: FALSE | X99: FALSE | Y99: FALSE | Z99: FALSE | AA99: FALSE | AB99: FALSE | AC99: FALSE | AD99: FALSE | AE99: FALSE | AF99: FALSE | AG99: FALSE | AH99: FALSE | AI99: FALSE | AJ99: FALSE | AK99: FALSE | AL99: FALSE | AM99: FALSE | AN99: FALSE | AO99: FALSE | AP99: FALSE | AQ99: FALSE | AR99: FALSE | AS99: FALSE | AT99: FALSE | AU99: FALSE | AV99: FALSE | AW99: FALSE | AX99: FALSE | AY99: FALSE | AZ99: FALSE | BA99: FALSE | BB99: FALSE | BC99: FALSE | BD99: FALSE | BE99: FALSE | BF99: FALSE | BG99: FALSE | BH99: FALSE | BI99: FALSE | BJ99: FALSE | BK99: FALSE | BL99: FALSE | BM99: FALSE | BN99: FALSE | BO99: FALSE | BP99: FALSE | BQ99: FALSE | BR99: FALSE | BS99: FALSE | BT99: FALSE | BU99: FALSE | BV99: FALSE | BW99: FALSE | BX99: =OR(BX6=$G$99,BX6=$H$99) -> FALSE | BY99: FALSE | BZ99: FALSE | CA99: FALSE | CB99: FALSE | CC99: FALSE | CD99: FALSE | CE99: FALSE | CF99: FALSE | CG99: FALSE | CH99: FALSE | CI99: FALSE | CJ99: FALSE | CK99: FALSE | CL99: FALSE | CM99: FALSE | CN99: FALSE | CO99: FALSE | CP99: FALSE | CQ99: FALSE | CR99: FALSE | CS99: FALSE | CT99: FALSE | CU99: FALSE | CV99: FALSE | CW99: FALSE | CX99: FALSE | CY99: FALSE | CZ99: FALSE | DA99: FALSE | DB99: FALSE | DC99: FALSE | DD99: FALSE | DE99: FALSE | DF99: FALSE | DG99: FALSE | DH99: FALSE | DI99: FALSE | DJ99: FALSE | DK99: FALSE | DL99: FALSE | DM99: FALSE | DN99: FALSE | DO99: FALSE | DP99: FALSE | DQ99: FALSE
E100: First Inverter Replacement | F100: Euro | G100: =Assumptions!F88 -> 34 | I100: =SUM(K100:DQ100) -> 0 | K100: =$G100*K$99*K87 -> 0 | L100: =$G100*L$99*L87 -> 0 | M100: 0 | N100: 0 | O100: 0 | P100: 0 | Q100: 0 | R100: 0 | S100: 0 | T100: 0 | U100: 0 | V100: 0 | W100: 0 | X100: 0 | Y100: 0 | Z100: 0 | AA100: 0 | AB100: 0 | AC100: 0 | AD100: 0 | AE100: 0 | AF100: 0 | AG100: 0 | AH100: 0 | AI100: 0 | AJ100: 0 | AK100: 0 | AL100: 0 | AM100: 0 | AN100: 0 | AO100: 0 | AP100: 0 | AQ100: 0 | AR100: 0 | AS100: 0 | AT100: 0 | AU100: 0 | AV100: 0 | AW100: 0 | AX100: 0 | AY100: 0 | AZ100: 0 | BA100: 0 | BB100: 0 | BC100: 0 | BD100: 0 | BE100: 0 | BF100: 0 | BG100: 0 | BH100: 0 | BI100: 0 | BJ100: 0 | BK100: 0 | BL100: 0 | BM100: 0 | BN100: 0 | BO100: 0 | BP100: 0 | BQ100: 0 | BR100: 0 | BS100: 0 | BT100: 0 | BU100: 0 | BV100: 0 | BW100: 0 | BX100: =$G100*BX$99*BX87 -> 0 | BY100: 0 | BZ100: 0 | CA100: 0 | CB100: 0 | CC100: 0 | CD100: 0 | CE100: 0 | CF100: 0 | CG100: 0 | CH100: 0 | CI100: 0 | CJ100: 0 | CK100: 0 | CL100: 0 | CM100: 0 | CN100: 0 | CO100: 0 | CP100: 0 | CQ100: 0 | CR100: 0 | CS100: 0 | CT100: 0 | CU100: 0 | CV100: 0 | CW100: 0 | CX100: 0 | CY100: 0 | CZ100: 0 | DA100: 0 | DB100: 0 | DC100: 0 | DD100: 0 | DE100: 0 | DF100: 0 | DG100: 0 | DH100: 0 | DI100: 0 | DJ100: 0 | DK100: 0 | DL100: 0 | DM100: 0 | DN100: 0 | DO100: 0 | DP100: 0 | DQ100: 0
E101: Second Inverter Replacement | F101: Euro | G101: =Assumptions!F89 -> 25 | I101: =SUM(K101:DQ101) -> 0 | K101: =$G101*K$99*K87 -> 0 | L101: =$G101*L$99*L87 -> 0 | M101: 0 | N101: 0 | O101: 0 | P101: 0 | Q101: 0 | R101: 0 | S101: 0 | T101: 0 | U101: 0 | V101: 0 | W101: 0 | X101: 0 | Y101: 0 | Z101: 0 | AA101: 0 | AB101: 0 | AC101: 0 | AD101: 0 | AE101: 0 | AF101: 0 | AG101: 0 | AH101: 0 | AI101: 0 | AJ101: 0 | AK101: 0 | AL101: 0 | AM101: 0 | AN101: 0 | AO101: 0 | AP101: 0 | AQ101: 0 | AR101: 0 | AS101: 0 | AT101: 0 | AU101: 0 | AV101: 0 | AW101: 0 | AX101: 0 | AY101: 0 | AZ101: 0 | BA101: 0 | BB101: 0 | BC101: 0 | BD101: 0 | BE101: 0 | BF101: 0 | BG101: 0 | BH101: 0 | BI101: 0 | BJ101: 0 | BK101: 0 | BL101: 0 | BM101: 0 | BN101: 0 | BO101: 0 | BP101: 0 | BQ101: 0 | BR101: 0 | BS101: 0 | BT101: 0 | BU101: 0 | BV101: 0 | BW101: 0 | BX101: =$G101*BX$99*BX87 -> 0 | BY101: 0 | BZ101: 0 | CA101: 0 | CB101: 0 | CC101: 0 | CD101: 0 | CE101: 0 | CF101: 0 | CG101: 0 | CH101: 0 | CI101: 0 | CJ101: 0 | CK101: 0 | CL101: 0 | CM101: 0 | CN101: 0 | CO101: 0 | CP101: 0 | CQ101: 0 | CR101: 0 | CS101: 0 | CT101: 0 | CU101: 0 | CV101: 0 | CW101: 0 | CX101: 0 | CY101: 0 | CZ101: 0 | DA101: 0 | DB101: 0 | DC101: 0 | DD101: 0 | DE101: 0 | DF101: 0 | DG101: 0 | DH101: 0 | DI101: 0 | DJ101: 0 | DK101: 0 | DL101: 0 | DM101: 0 | DN101: 0 | DO101: 0 | DP101: 0 | DQ101: 0
E102: Total Inverter Cost | F102: Euro | I102: =SUM(K102:DQ102) -> 0 | K102: =SUM(K100:K101) -> 0 | L102: =SUM(L100:L101) -> 0 | M102: 0 | N102: 0 | O102: 0 | P102: 0 | Q102: 0 | R102: 0 | S102: 0 | T102: 0 | U102: 0 | V102: 0 | W102: 0 | X102: 0 | Y102: 0 | Z102: 0 | AA102: 0 | AB102: 0 | AC102: 0 | AD102: 0 | AE102: 0 | AF102: 0 | AG102: 0 | AH102: 0 | AI102: 0 | AJ102: 0 | AK102: 0 | AL102: 0 | AM102: 0 | AN102: 0 | AO102: 0 | AP102: 0 | AQ102: 0 | AR102: 0 | AS102: 0 | AT102: 0 | AU102: 0 | AV102: 0 | AW102: 0 | AX102: 0 | AY102: 0 | AZ102: 0 | BA102: 0 | BB102: 0 | BC102: 0 | BD102: 0 | BE102: 0 | BF102: 0 | BG102: 0 | BH102: 0 | BI102: 0 | BJ102: 0 | BK102: 0 | BL102: 0 | BM102: 0 | BN102: 0 | BO102: 0 | BP102: 0 | BQ102: 0 | BR102: 0 | BS102: 0 | BT102: 0 | BU102: 0 | BV102: 0 | BW102: 0 | BX102: =SUM(BX100:BX101) -> 0 | BY102: 0 | BZ102: 0 | CA102: 0 | CB102: 0 | CC102: 0 | CD102: 0 | CE102: 0 | CF102: 0 | CG102: 0 | CH102: 0 | CI102: 0 | CJ102: 0 | CK102: 0 | CL102: 0 | CM102: 0 | CN102: 0 | CO102: 0 | CP102: 0 | CQ102: 0 | CR102: 0 | CS102: 0 | CT102: 0 | CU102: 0 | CV102: 0 | CW102: 0 | CX102: 0 | CY102: 0 | CZ102: 0 | DA102: 0 | DB102: 0 | DC102: 0 | DD102: 0 | DE102: 0 | DF102: 0 | DG102: 0 | DH102: 0 | DI102: 0 | DJ102: 0 | DK102: 0 | DL102: 0 | DM102: 0 | DN102: 0 | DO102: 0 | DP102: 0 | DQ102: 0
E104: Total O&M and Inverter | F104: Euro | K104: =K102+K96 -> 0 | L104: =L102+L96 -> 0 | M104: 0 | N104: 0 | O104: 0 | P104: 0 | Q104: 0 | R104: 0 | S104: 0 | T104: 31986.38989 | U104: 32022.89459 | V104: 32059.51449 | W104: 32096.25 | X104: 32133.10152 | Y104: 32170.06947 | Z104: 32207.15424 | AA104: 32244.35625 | AB104: 32281.67591 | AC104: 32319.11363 | AD104: 32356.66982 | AE104: 32394.34491 | AF104: 32432.1393 | AG104: 32470.05342 | AH104: 32508.08768 | AI104: 32546.24251 | AJ104: 32584.51833 | AK104: 32622.91557 | AL104: 32661.43464 | AM104: 32700.07599 | AN104: 32738.84003 | AO104: 32777.7272 | AP104: 32816.73794 | AQ104: 32855.87267 | AR104: 32895.13183 | AS104: 32934.51586 | AT104: 32974.02519 | AU104: 33013.66028 | AV104: 33053.42155 | AW104: 33093.30945 | AX104: 33133.32444 | AY104: 33173.46695 | AZ104: 33213.73743 | BA104: 33254.13633 | BB104: 33294.66411 | BC104: 33335.32122 | BD104: 33376.10812 | BE104: 33417.02525 | BF104: 33458.07309 | BG104: 33499.25208 | BH104: 33540.56269 | BI104: 33582.00539 | BJ104: 33623.58064 | BK104: 33665.2889 | BL104: 33707.13065 | BM104: 33749.10635 | BN104: 33791.21648 | BO104: 33833.46152 | BP104: 33875.84192 | BQ104: 33918.35819 | BR104: 33961.01078 | BS104: 34003.80019 | BT104: 34046.72689 | BU104: 34089.79137 | BV104: 34132.99412 | BW104: 34176.33562 | BX104: =BX102+BX96 -> 34219.81637 | BY104: 34263.43684 | BZ104: 34307.19755 | CA104: 34351.09898 | CB104: 34395.14163 | CC104: 34439.32599 | CD104: 34483.65257 | CE104: 34528.12188 | CF104: 34572.73441 | CG104: 34617.49066 | CH104: 34662.39116 | CI104: 34707.4364 | CJ104: 34752.62691 | CK104: 34797.96318 | CL104: 34843.44574 | CM104: 34889.07511 | CN104: 34934.8518 | CO104: 34980.77634 | CP104: 35026.84924 | CQ104: 35073.07103 | CR104: 35119.44225 | CS104: 35165.96341 | CT104: 35212.63505 | CU104: 35259.4577 | CV104: 35306.43189 | CW104: 35353.55816 | CX104: 35400.83706 | CY104: 35448.26911 | CZ104: 35495.85486 | DA104: 35543.59486 | DB104: 35591.48966 | DC104: 35639.53979 | DD104: 35687.74582 | DE104: 35736.10828 | DF104: 35784.62775 | DG104: 35833.30477 | DH104: 35882.1399 | DI104: 35931.1337 | DJ104: 35980.28674 | DK104: 36029.59958 | DL104: 36079.07278 | DM104: 36128.70692 | DN104: 36178.50257 | DO104: 36228.46029 | DP104: 0 | DQ104: 0
B106: Revenues
D107: Year | F107: Year | K107: =YEAR(K7) -> 2015 | L107: =YEAR(L7) -> 2015 | M107: 2015 | N107: 2015 | O107: 2016 | P107: 2016 | Q107: 2016 | R107: 2016 | S107: 2016 | T107: 2016 | U107: 2016 | V107: 2017 | W107: 2017 | X107: 2017 | Y107: 2017 | Z107: 2018 | AA107: 2018 | AB107: 2018 | AC107: 2018 | AD107: 2019 | AE107: 2019 | AF107: 2019 | AG107: 2019 | AH107: 2020 | AI107: 2020 | AJ107: 2020 | AK107: 2020 | AL107: 2021 | AM107: 2021 | AN107: 2021 | AO107: 2021 | AP107: 2022 | AQ107: 2022 | AR107: 2022 | AS107: 2022 | AT107: 2023 | AU107: 2023 | AV107: 2023 | AW107: 2023 | AX107: 2024 | AY107: 2024 | AZ107: 2024 | BA107: 2024 | BB107: 2025 | BC107: 2025 | BD107: 2025 | BE107: 2025 | BF107: 2026 | BG107: 2026 | BH107: 2026 | BI107: 2026 | BJ107: 2027 | BK107: 2027 | BL107: 2027 | BM107: 2027 | BN107: 2028 | BO107: 2028 | BP107: 2028 | BQ107: 2028 | BR107: 2029 | BS107: 2029 | BT107: 2029 | BU107: 2029 | BV107: 2030 | BW107: 2030 | BX107: =YEAR(BX7) -> 2030 | BY107: 2030 | BZ107: 2031 | CA107: 2031 | CB107: 2031 | CC107: 2031 | CD107: 2032 | CE107: 2032 | CF107: 2032 | CG107: 2032 | CH107: 2033 | CI107: 2033 | CJ107: 2033 | CK107: 2033 | CL107: 2034 | CM107: 2034 | CN107: 2034 | CO107: 2034 | CP107: 2035 | CQ107: 2035 | CR107: 2035 | CS107: 2035 | CT107: 2036 | CU107: 2036 | CV107: 2036 | CW107: 2036 | CX107: 2037 | CY107: 2037 | CZ107: 2037 | DA107: 2037 | DB107: 2038 | DC107: 2038 | DD107: 2038 | DE107: 2038 | DF107: 2039 | DG107: 2039 | DH107: 2039 | DI107: 2039 | DJ107: 2040 | DK107: 2040 | DL107: 2040 | DM107: 2040 | DN107: 2041 | DO107: 2041 | DP107: 2041 | DQ107: 2041
D108: Price (Non Crisis) | F108: Euro/MWH | K108: =LOOKUP(K107,Assumptions!99:99,Assumptions!101:101) -> 29.6865 | L108: =LOOKUP(L107,Assumptions!99:99,Assumptions!101:101) -> 29.6865 | M108: =LOOKUP(M107,Assumptions!99:99,Assumptions!101:101) -> 29.6865 | N108: =LOOKUP(N107,Assumptions!99:99,Assumptions!101:101) -> 29.6865 | O108: =LOOKUP(O107,Assumptions!99:99,Assumptions!101:101) -> 29.6865 | P108: =LOOKUP(P107,Assumptions!99:99,Assumptions!101:101) -> 29.6865 | Q108: =LOOKUP(Q107,Assumptions!99:99,Assumptions!101:101) -> 29.6865 | R108: =LOOKUP(R107,Assumptions!99:99,Assumptions!101:101) -> 29.6865 | S108: =LOOKUP(S107,Assumptions!99:99,Assumptions!101:101) -> 29.6865 | T108: =LOOKUP(T107,Assumptions!99:99,Assumptions!101:101) -> 29.6865 | U108: =LOOKUP(U107,Assumptions!99:99,Assumptions!101:101) -> 29.6865 | V108: =LOOKUP(V107,Assumptions!99:99,Assumptions!101:101) -> 29.6865 | W108: =LOOKUP(W107,Assumptions!99:99,Assumptions!101:101) -> 29.6865 | X108: =LOOKUP(X107,Assumptions!99:99,Assumptions!101:101) -> 29.6865 | Y108: =LOOKUP(Y107,Assumptions!99:99,Assumptions!101:101) -> 29.6865 | Z108: =LOOKUP(Z107,Assumptions!99:99,Assumptions!101:101) -> 29.6865 | AA108: =LOOKUP(AA107,Assumptions!99:99,Assumptions!101:101) -> 29.6865 | AB108: =LOOKUP(AB107,Assumptions!99:99,Assumptions!101:101) -> 29.6865 | AC108: =LOOKUP(AC107,Assumptions!99:99,Assumptions!101:101) -> 29.6865 | AD108: =LOOKUP(AD107,Assumptions!99:99,Assumptions!101:101) -> 30.699 | AE108: =LOOKUP(AE107,Assumptions!99:99,Assumptions!101:101) -> 30.699 | AF108: =LOOKUP(AF107,Assumptions!99:99,Assumptions!101:101) -> 30.699 | AG108: =LOOKUP(AG107,Assumptions!99:99,Assumptions!101:101) -> 30.699 | AH108: =LOOKUP(AH107,Assumptions!99:99,Assumptions!101:101) -> 31.401 | AI108: =LOOKUP(AI107,Assumptions!99:99,Assumptions!101:101) -> 31.401 | AJ108: =LOOKUP(AJ107,Assumptions!99:99,Assumptions!101:101) -> 31.401 | AK108: =LOOKUP(AK107,Assumptions!99:99,Assumptions!101:101) -> 31.401 | AL108: =LOOKUP(AL107,Assumptions!99:99,Assumptions!101:101) -> 31.536 | AM108: =LOOKUP(AM107,Assumptions!99:99,Assumptions!101:101) -> 31.536 | AN108: =LOOKUP(AN107,Assumptions!99:99,Assumptions!101:101) -> 31.536 | AO108: =LOOKUP(AO107,Assumptions!99:99,Assumptions!101:101) -> 31.536 | AP108: =LOOKUP(AP107,Assumptions!99:99,Assumptions!101:101) -> 33.8445 | AQ108: =LOOKUP(AQ107,Assumptions!99:99,Assumptions!101:101) -> 33.8445 | AR108: =LOOKUP(AR107,Assumptions!99:99,Assumptions!101:101) -> 33.8445 | AS108: =LOOKUP(AS107,Assumptions!99:99,Assumptions!101:101) -> 33.8445 | AT108: =LOOKUP(AT107,Assumptions!99:99,Assumptions!101:101) -> 37.8945 | AU108: =LOOKUP(AU107,Assumptions!99:99,Assumptions!101:101) -> 37.8945 | AV108: =LOOKUP(AV107,Assumptions!99:99,Assumptions!101:101) -> 37.8945 | AW108: =LOOKUP(AW107,Assumptions!99:99,Assumptions!101:101) -> 37.8945 | AX108: =LOOKUP(AX107,Assumptions!99:99,Assumptions!101:101) -> 39.1095 | AY108: =LOOKUP(AY107,Assumptions!99:99,Assumptions!101:101) -> 39.1095 | AZ108: =LOOKUP(AZ107,Assumptions!99:99,Assumptions!101:101) -> 39.1095 | BA108: =LOOKUP(BA107,Assumptions!99:99,Assumptions!101:101) -> 39.1095 | BB108: =LOOKUP(BB107,Assumptions!99:99,Assumptions!101:101) -> 39.312 | BC108: =LOOKUP(BC107,Assumptions!99:99,Assumptions!101:101) -> 39.312 | BD108: =LOOKUP(BD107,Assumptions!99:99,Assumptions!101:101) -> 39.312 | BE108: =LOOKUP(BE107,Assumptions!99:99,Assumptions!101:101) -> 39.312 | BF108: =LOOKUP(BF107,Assumptions!99:99,Assumptions!101:101) -> 41.1075 | BG108: =LOOKUP(BG107,Assumptions!99:99,Assumptions!101:101) -> 41.1075 | BH108: =LOOKUP(BH107,Assumptions!99:99,Assumptions!101:101) -> 41.1075 | BI108: =LOOKUP(BI107,Assumptions!99:99,Assumptions!101:101) -> 41.1075 | BJ108: =LOOKUP(BJ107,Assumptions!99:99,Assumptions!101:101) -> 43.2675 | BK108: =LOOKUP(BK107,Assumptions!99:99,Assumptions!101:101) -> 43.2675 | BL108: =LOOKUP(BL107,Assumptions!99:99,Assumptions!101:101) -> 43.2675 | BM108: =LOOKUP(BM107,Assumptions!99:99,Assumptions!101:101) -> 43.2675 | BN108: =LOOKUP(BN107,Assumptions!99:99,Assumptions!101:101) -> 46.1295 | BO108: =LOOKUP(BO107,Assumptions!99:99,Assumptions!101:101) -> 46.1295 | BP108: =LOOKUP(BP107,Assumptions!99:99,Assumptions!101:101) -> 46.1295 | BQ108: =LOOKUP(BQ107,Assumptions!99:99,Assumptions!101:101) -> 46.1295 | BR108: =LOOKUP(BR107,Assumptions!99:99,Assumptions!101:101) -> 48.8295 | BS108: =LOOKUP(BS107,Assumptions!99:99,Assumptions!101:101) -> 48.8295 | BT108: =LOOKUP(BT107,Assumptions!99:99,Assumptions!101:101) -> 48.8295 | BU108: =LOOKUP(BU107,Assumptions!99:99,Assumptions!101:101) -> 48.8295 | BV108: =LOOKUP(BV107,Assumptions!99:99,Assumptions!101:101) -> 50.652 | BW108: =LOOKUP(BW107,Assumptions!99:99,Assumptions!101:101) -> 50.652 | BX108: =LOOKUP(BX107,Assumptions!99:99,Assumptions!101:101) -> 50.652 | BY108: =LOOKUP(BY107,Assumptions!99:99,Assumptions!101:101) -> 50.652 | BZ108: =LOOKUP(BZ107,Assumptions!99:99,Assumptions!101:101) -> 51.6375 | CA108: =LOOKUP(CA107,Assumptions!99:99,Assumptions!101:101) -> 51.6375 | CB108: =LOOKUP(CB107,Assumptions!99:99,Assumptions!101:101) -> 51.6375 | CC108: =LOOKUP(CC107,Assumptions!99:99,Assumptions!101:101) -> 51.6375 | CD108: =LOOKUP(CD107,Assumptions!99:99,Assumptions!101:101) -> 54.513 | CE108: =LOOKUP(CE107,Assumptions!99:99,Assumptions!101:101) -> 54.513 | CF108: =LOOKUP(CF107,Assumptions!99:99,Assumptions!101:101) -> 54.513 | CG108: =LOOKUP(CG107,Assumptions!99:99,Assumptions!101:101) -> 54.513 | CH108: =LOOKUP(CH107,Assumptions!99:99,Assumptions!101:101) -> 56.376 | CI108: =LOOKUP(CI107,Assumptions!99:99,Assumptions!101:101) -> 56.376 | CJ108: =LOOKUP(CJ107,Assumptions!99:99,Assumptions!101:101) -> 56.376 | CK108: =LOOKUP(CK107,Assumptions!99:99,Assumptions!101:101) -> 56.376 | CL108: =LOOKUP(CL107,Assumptions!99:99,Assumptions!101:101) -> 60.4935 | CM108: =LOOKUP(CM107,Assumptions!99:99,Assumptions!101:101) -> 60.4935 | CN108: =LOOKUP(CN107,Assumptions!99:99,Assumptions!101:101) -> 60.4935 | CO108: =LOOKUP(CO107,Assumptions!99:99,Assumptions!101:101) -> 60.4935 | CP108: =LOOKUP(CP107,Assumptions!99:99,Assumptions!101:101) -> 63.9225 | CQ108: =LOOKUP(CQ107,Assumptions!99:99,Assumptions!101:101) -> 63.9225 | CR108: =LOOKUP(CR107,Assumptions!99:99,Assumptions!101:101) -> 63.9225 | CS108: =LOOKUP(CS107,Assumptions!99:99,Assumptions!101:101) -> 63.9225 | CT108: =LOOKUP(CT107,Assumptions!99:99,Assumptions!101:101) -> 67.716 | CU108: =LOOKUP(CU107,Assumptions!99:99,Assumptions!101:101) -> 67.716 | CV108: =LOOKUP(CV107,Assumptions!99:99,Assumptions!101:101) -> 67.716 | CW108: =LOOKUP(CW107,Assumptions!99:99,Assumptions!101:101) -> 67.716 | CX108: =LOOKUP(CX107,Assumptions!99:99,Assumptions!101:101) -> 71.3205 | CY108: =LOOKUP(CY107,Assumptions!99:99,Assumptions!101:101) -> 71.3205 | CZ108: =LOOKUP(CZ107,Assumptions!99:99,Assumptions!101:101) -> 71.3205 | DA108: =LOOKUP(DA107,Assumptions!99:99,Assumptions!101:101) -> 71.3205 | DB108: =LOOKUP(DB107,Assumptions!99:99,Assumptions!101:101) -> 72.3735 | DC108: =LOOKUP(DC107,Assumptions!99:99,Assumptions!101:101) -> 72.3735 | DD108: =LOOKUP(DD107,Assumptions!99:99,Assumptions!101:101) -> 72.3735 | DE108: =LOOKUP(DE107,Assumptions!99:99,Assumptions!101:101) -> 72.3735 | DF108: =LOOKUP(DF107,Assumptions!99:99,Assumptions!101:101) -> 72.954 | DG108: =LOOKUP(DG107,Assumptions!99:99,Assumptions!101:101) -> 72.954 | DH108: =LOOKUP(DH107,Assumptions!99:99,Assumptions!101:101) -> 72.954 | DI108: =LOOKUP(DI107,Assumptions!99:99,Assumptions!101:101) -> 72.954 | DJ108: =LOOKUP(DJ107,Assumptions!99:99,Assumptions!101:101) -> 73.602 | DK108: =LOOKUP(DK107,Assumptions!99:99,Assumptions!101:101) -> 73.602 | DL108: =LOOKUP(DL107,Assumptions!99:99,Assumptions!101:101) -> 73.602 | DM108: =LOOKUP(DM107,Assumptions!99:99,Assumptions!101:101) -> 73.602 | DN108: =LOOKUP(DN107,Assumptions!99:99,Assumptions!101:101) -> 74.763 | DO108: =LOOKUP(DO107,Assumptions!99:99,Assumptions!101:101) -> 74.763 | DP108: =LOOKUP(DP107,Assumptions!99:99,Assumptions!101:101) -> 74.763 | DQ108: =LOOKUP(DQ107,Assumptions!99:99,Assumptions!101:101) -> 74.763
D109: Revenues without Crisis | F109: Euro | K109: =K108*K43 -> 0 | L109: =L108*L43 -> 0 | M109: 0 | N109: 0 | O109: 0 | P109: 0 | Q109: 0 | R109: 0 | S109: 0 | T109: 131489.5406 | U109: 84032.80781 | V109: 62458.11634 | W109: 112674.393 | X109: 130835.3637 | Y109: 83614.73414 | Z109: 62147.37944 | AA109: 112113.8238 | AB109: 130184.4415 | AC109: 83198.74044 | AD109: 63947.26723 | AE109: 115360.82 | AF109: 133954.7918 | AG109: 85608.30941 | AH109: 65084.14112 | AI109: 117411.7396 | AJ109: 136336.2806 | AK109: 87130.27986 | AL109: 65038.75876 | AM109: 117329.8699 | AN109: 136241.2151 | AO109: 87069.52501 | AP109: 69452.46721 | AQ109: 125292.1965 | AR109: 145486.9174 | AS109: 92978.30165 | AT109: 77376.60936 | AU109: 139587.3427 | AV109: 162086.1695 | AW109: 103586.6113 | AX109: 79460.21134 | AY109: 143346.159 | AZ109: 166450.8356 | BA109: 106375.9978 | BB109: 79474.26672 | BC109: 143371.5149 | BD109: 166480.2784 | BE109: 106394.8142 | BF109: 82690.64778 | BG109: 149173.8638 | BH109: 173217.8556 | BI109: 110700.6893 | BJ109: 86602.62762 | BK109: 156231.0724 | BL109: 181412.5521 | BM109: 115937.7853 | BN109: 91871.74225 | BO109: 165736.5511 | BP109: 192450.1333 | BQ109: 122991.7224 | BR109: 96765.24947 | BS109: 174564.4343 | BT109: 202700.9035 | BU109: 129542.8214 | BV109: 99877.50383 | BW109: 180178.9387 | BX109: =BX108*BX43 -> 209220.3593 | BY109: 133709.2986 | BZ109: 101314.1786 | CA109: 182770.6989 | CB109: 212229.862 | CC109: 135632.6224 | CD109: 106423.8684 | CE109: 191988.5753 | CF109: 222933.4849 | CG109: 142473.1322 | CH109: 109513.3729 | CI109: 197562.0389 | CJ109: 229405.2849 | CK109: 146609.1534 | CL109: 116927.1992 | CM109: 210936.5758 | CN109: 244935.543 | CO109: 156534.2865 | CP109: 122940.3725 | CQ109: 221784.3357 | CR109: 257531.7556 | CS109: 164584.3193 | CT109: 129588.3641 | CU109: 233777.3073 | CV109: 271457.7663 | CW109: 173484.2042 | CX109: 135807.2729 | CY109: 244996.214 | CZ109: 284484.9476 | DA109: 181809.662 | DB109: 137126.7438 | DC109: 247376.5383 | DD109: 287248.935 | DE109: 183576.081 | DF109: 137538.9279 | DG109: 248120.1182 | DH109: 288112.3657 | DI109: 184127.8854 | DJ109: 138070.24 | DK109: 249078.6048 | DL109: 289225.3422 | DM109: 184839.1704 | DN109: 139550.4117 | DO109: 251748.8335 | DP109: 0 | DQ109: 0
E111: January | F111: Euro/MWH | K111: =LOOKUP(K$107,Assumptions!$112:$112,Assumptions!113:113)*K$108 -> 29.6865 | L111: =LOOKUP(L$107,Assumptions!$112:$112,Assumptions!113:113)*L$108 -> 29.6865 | M111: =LOOKUP(M$107,Assumptions!$112:$112,Assumptions!113:113)*M$108 -> 29.6865 | N111: =LOOKUP(N$107,Assumptions!$112:$112,Assumptions!113:113)*N$108 -> 29.6865 | O111: =LOOKUP(O$107,Assumptions!$112:$112,Assumptions!113:113)*O$108 -> 29.6865 | P111: =LOOKUP(P$107,Assumptions!$112:$112,Assumptions!113:113)*P$108 -> 29.6865 | Q111: =LOOKUP(Q$107,Assumptions!$112:$112,Assumptions!113:113)*Q$108 -> 29.6865 | R111: =LOOKUP(R$107,Assumptions!$112:$112,Assumptions!113:113)*R$108 -> 29.6865 | S111: =LOOKUP(S$107,Assumptions!$112:$112,Assumptions!113:113)*S$108 -> 29.6865 | T111: =LOOKUP(T$107,Assumptions!$112:$112,Assumptions!113:113)*T$108 -> 29.6865 | U111: =LOOKUP(U$107,Assumptions!$112:$112,Assumptions!113:113)*U$108 -> 29.6865 | V111: =LOOKUP(V$107,Assumptions!$112:$112,Assumptions!113:113)*V$108 -> 29.6865 | W111: =LOOKUP(W$107,Assumptions!$112:$112,Assumptions!113:113)*W$108 -> 29.6865 | X111: =LOOKUP(X$107,Assumptions!$112:$112,Assumptions!113:113)*X$108 -> 29.6865 | Y111: =LOOKUP(Y$107,Assumptions!$112:$112,Assumptions!113:113)*Y$108 -> 29.6865 | Z111: =LOOKUP(Z$107,Assumptions!$112:$112,Assumptions!113:113)*Z$108 -> 29.6865 | AA111: =LOOKUP(AA$107,Assumptions!$112:$112,Assumptions!113:113)*AA$108 -> 29.6865 | AB111: =LOOKUP(AB$107,Assumptions!$112:$112,Assumptions!113:113)*AB$108 -> 29.6865 | AC111: =LOOKUP(AC$107,Assumptions!$112:$112,Assumptions!113:113)*AC$108 -> 29.6865 | AD111: =LOOKUP(AD$107,Assumptions!$112:$112,Assumptions!113:113)*AD$108 -> 30.699 | AE111: =LOOKUP(AE$107,Assumptions!$112:$112,Assumptions!113:113)*AE$108 -> 30.699 | AF111: =LOOKUP(AF$107,Assumptions!$112:$112,Assumptions!113:113)*AF$108 -> 30.699 | AG111: =LOOKUP(AG$107,Assumptions!$112:$112,Assumptions!113:113)*AG$108 -> 30.699 | AH111: =LOOKUP(AH$107,Assumptions!$112:$112,Assumptions!113:113)*AH$108 -> 31.401 | AI111: =LOOKUP(AI$107,Assumptions!$112:$112,Assumptions!113:113)*AI$108 -> 31.401 | AJ111: =LOOKUP(AJ$107,Assumptions!$112:$112,Assumptions!113:113)*AJ$108 -> 31.401 | AK111: =LOOKUP(AK$107,Assumptions!$112:$112,Assumptions!113:113)*AK$108 -> 31.401 | AL111: =LOOKUP(AL$107,Assumptions!$112:$112,Assumptions!113:113)*AL$108 -> 3.1536 | AM111: =LOOKUP(AM$107,Assumptions!$112:$112,Assumptions!113:113)*AM$108 -> 3.1536 | AN111: =LOOKUP(AN$107,Assumptions!$112:$112,Assumptions!113:113)*AN$108 -> 3.1536 | AO111: =LOOKUP(AO$107,Assumptions!$112:$112,Assumptions!113:113)*AO$108 -> 3.1536 | AP111: =LOOKUP(AP$107,Assumptions!$112:$112,Assumptions!113:113)*AP$108 -> 6.7689 | AQ111: =LOOKUP(AQ$107,Assumptions!$112:$112,Assumptions!113:113)*AQ$108 -> 6.7689 | AR111: =LOOKUP(AR$107,Assumptions!$112:$112,Assumptions!113:113)*AR$108 -> 6.7689 | AS111: =LOOKUP(AS$107,Assumptions!$112:$112,Assumptions!113:113)*AS$108 -> 6.7689 | AT111: =LOOKUP(AT$107,Assumptions!$112:$112,Assumptions!113:113)*AT$108 -> 17.052525 | AU111: =LOOKUP(AU$107,Assumptions!$112:$112,Assumptions!113:113)*AU$108 -> 17.052525 | AV111: =LOOKUP(AV$107,Assumptions!$112:$112,Assumptions!113:113)*AV$108 -> 17.052525 | AW111: =LOOKUP(AW$107,Assumptions!$112:$112,Assumptions!113:113)*AW$108 -> 17.052525 | AX111: =LOOKUP(AX$107,Assumptions!$112:$112,Assumptions!113:113)*AX$108 -> 39.1095 | AY111: =LOOKUP(AY$107,Assumptions!$112:$112,Assumptions!113:113)*AY$108 -> 39.1095 | AZ111: =LOOKUP(AZ$107,Assumptions!$112:$112,Assumptions!113:113)*AZ$108 -> 39.1095 | BA111: =LOOKUP(BA$107,Assumptions!$112:$112,Assumptions!113:113)*BA$108 -> 39.1095 | BB111: =LOOKUP(BB$107,Assumptions!$112:$112,Assumptions!113:113)*BB$108 -> 39.312 | BC111: =LOOKUP(BC$107,Assumptions!$112:$112,Assumptions!113:113)*BC$108 -> 39.312 | BD111: =LOOKUP(BD$107,Assumptions!$112:$112,Assumptions!113:113)*BD$108 -> 39.312 | BE111: =LOOKUP(BE$107,Assumptions!$112:$112,Assumptions!113:113)*BE$108 -> 39.312 | BF111: =LOOKUP(BF$107,Assumptions!$112:$112,Assumptions!113:113)*BF$108 -> 41.1075 | BG111: =LOOKUP(BG$107,Assumptions!$112:$112,Assumptions!113:113)*BG$108 -> 41.1075 | BH111: =LOOKUP(BH$107,Assumptions!$112:$112,Assumptions!113:113)*BH$108 -> 41.1075 | BI111: =LOOKUP(BI$107,Assumptions!$112:$112,Assumptions!113:113)*BI$108 -> 41.1075 | BJ111: =LOOKUP(BJ$107,Assumptions!$112:$112,Assumptions!113:113)*BJ$108 -> 43.2675 | BK111: =LOOKUP(BK$107,Assumptions!$112:$112,Assumptions!113:113)*BK$108 -> 43.2675 | BL111: =LOOKUP(BL$107,Assumptions!$112:$112,Assumptions!113:113)*BL$108 -> 43.2675 | BM111: =LOOKUP(BM$107,Assumptions!$112:$112,Assumptions!113:113)*BM$108 -> 43.2675 | BN111: =LOOKUP(BN$107,Assumptions!$112:$112,Assumptions!113:113)*BN$108 -> 46.1295 | BO111: =LOOKUP(BO$107,Assumptions!$112:$112,Assumptions!113:113)*BO$108 -> 46.1295 | BP111: =LOOKUP(BP$107,Assumptions!$112:$112,Assumptions!113:113)*BP$108 -> 46.1295 | BQ111: =LOOKUP(BQ$107,Assumptions!$112:$112,Assumptions!113:113)*BQ$108 -> 46.1295 | BR111: =LOOKUP(BR$107,Assumptions!$112:$112,Assumptions!113:113)*BR$108 -> 48.8295 | BS111: =LOOKUP(BS$107,Assumptions!$112:$112,Assumptions!113:113)*BS$108 -> 48.8295 | BT111: =LOOKUP(BT$107,Assumptions!$112:$112,Assumptions!113:113)*BT$108 -> 48.8295 | BU111: =LOOKUP(BU$107,Assumptions!$112:$112,Assumptions!113:113)*BU$108 -> 48.8295 | BV111: =LOOKUP(BV$107,Assumptions!$112:$112,Assumptions!113:113)*BV$108 -> 50.652 | BW111: =LOOKUP(BW$107,Assumptions!$112:$112,Assumptions!113:113)*BW$108 -> 50.652 | BX111: =LOOKUP(BX$107,Assumptions!$112:$112,Assumptions!113:113)*BX$108 -> 50.652 | BY111: =LOOKUP(BY$107,Assumptions!$112:$112,Assumptions!113:113)*BY$108 -> 50.652 | BZ111: =LOOKUP(BZ$107,Assumptions!$112:$112,Assumptions!113:113)*BZ$108 -> 51.6375 | CA111: =LOOKUP(CA$107,Assumptions!$112:$112,Assumptions!113:113)*CA$108 -> 51.6375 | CB111: =LOOKUP(CB$107,Assumptions!$112:$112,Assumptions!113:113)*CB$108 -> 51.6375 | CC111: =LOOKUP(CC$107,Assumptions!$112:$112,Assumptions!113:113)*CC$108 -> 51.6375 | CD111: =LOOKUP(CD$107,Assumptions!$112:$112,Assumptions!113:113)*CD$108 -> 54.513 | CE111: =LOOKUP(CE$107,Assumptions!$112:$112,Assumptions!113:113)*CE$108 -> 54.513 | CF111: =LOOKUP(CF$107,Assumptions!$112:$112,Assumptions!113:113)*CF$108 -> 54.513 | CG111: =LOOKUP(CG$107,Assumptions!$112:$112,Assumptions!113:113)*CG$108 -> 54.513 | CH111: =LOOKUP(CH$107,Assumptions!$112:$112,Assumptions!113:113)*CH$108 -> 56.376 | CI111: =LOOKUP(CI$107,Assumptions!$112:$112,Assumptions!113:113)*CI$108 -> 56.376 | CJ111: =LOOKUP(CJ$107,Assumptions!$112:$112,Assumptions!113:113)*CJ$108 -> 56.376 | CK111: =LOOKUP(CK$107,Assumptions!$112:$112,Assumptions!113:113)*CK$108 -> 56.376 | CL111: =LOOKUP(CL$107,Assumptions!$112:$112,Assumptions!113:113)*CL$108 -> 60.4935 | CM111: =LOOKUP(CM$107,Assumptions!$112:$112,Assumptions!113:113)*CM$108 -> 60.4935 | CN111: =LOOKUP(CN$107,Assumptions!$112:$112,Assumptions!113:113)*CN$108 -> 60.4935 | CO111: =LOOKUP(CO$107,Assumptions!$112:$112,Assumptions!113:113)*CO$108 -> 60.4935 | CP111: =LOOKUP(CP$107,Assumptions!$112:$112,Assumptions!113:113)*CP$108 -> 63.9225 | CQ111: =LOOKUP(CQ$107,Assumptions!$112:$112,Assumptions!113:113)*CQ$108 -> 63.9225 | CR111: =LOOKUP(CR$107,Assumptions!$112:$112,Assumptions!113:113)*CR$108 -> 63.9225 | CS111: =LOOKUP(CS$107,Assumptions!$112:$112,Assumptions!113:113)*CS$108 -> 63.9225 | CT111: =LOOKUP(CT$107,Assumptions!$112:$112,Assumptions!113:113)*CT$108 -> 67.716 | CU111: =LOOKUP(CU$107,Assumptions!$112:$112,Assumptions!113:113)*CU$108 -> 67.716 | CV111: =LOOKUP(CV$107,Assumptions!$112:$112,Assumptions!113:113)*CV$108 -> 67.716 | CW111: =LOOKUP(CW$107,Assumptions!$112:$112,Assumptions!113:113)*CW$108 -> 67.716 | CX111: =LOOKUP(CX$107,Assumptions!$112:$112,Assumptions!113:113)*CX$108 -> 71.3205 | CY111: =LOOKUP(CY$107,Assumptions!$112:$112,Assumptions!113:113)*CY$108 -> 71.3205 | CZ111: =LOOKUP(CZ$107,Assumptions!$112:$112,Assumptions!113:113)*CZ$108 -> 71.3205 | DA111: =LOOKUP(DA$107,Assumptions!$112:$112,Assumptions!113:113)*DA$108 -> 71.3205 | DB111: =LOOKUP(DB$107,Assumptions!$112:$112,Assumptions!113:113)*DB$108 -> 72.3735 | DC111: =LOOKUP(DC$107,Assumptions!$112:$112,Assumptions!113:113)*DC$108 -> 72.3735 | DD111: =LOOKUP(DD$107,Assumptions!$112:$112,Assumptions!113:113)*DD$108 -> 72.3735 | DE111: =LOOKUP(DE$107,Assumptions!$112:$112,Assumptions!113:113)*DE$108 -> 72.3735 | DF111: =LOOKUP(DF$107,Assumptions!$112:$112,Assumptions!113:113)*DF$108 -> 72.954 | DG111: =LOOKUP(DG$107,Assumptions!$112:$112,Assumptions!113:113)*DG$108 -> 72.954 | DH111: =LOOKUP(DH$107,Assumptions!$112:$112,Assumptions!113:113)*DH$108 -> 72.954 | DI111: =LOOKUP(DI$107,Assumptions!$112:$112,Assumptions!113:113)*DI$108 -> 72.954 | DJ111: =LOOKUP(DJ$107,Assumptions!$112:$112,Assumptions!113:113)*DJ$108 -> 73.602 | DK111: =LOOKUP(DK$107,Assumptions!$112:$112,Assumptions!113:113)*DK$108 -> 73.602 | DL111: =LOOKUP(DL$107,Assumptions!$112:$112,Assumptions!113:113)*DL$108 -> 73.602 | DM111: =LOOKUP(DM$107,Assumptions!$112:$112,Assumptions!113:113)*DM$108 -> 73.602 | DN111: =LOOKUP(DN$107,Assumptions!$112:$112,Assumptions!113:113)*DN$108 -> 74.763 | DO111: =LOOKUP(DO$107,Assumptions!$112:$112,Assumptions!113:113)*DO$108 -> 74.763 | DP111: =LOOKUP(DP$107,Assumptions!$112:$112,Assumptions!113:113)*DP$108 -> 74.763 | DQ111: =LOOKUP(DQ$107,Assumptions!$112:$112,Assumptions!113:113)*DQ$108 -> 74.763
E112: February | F112: Euro/MWH | K112: =LOOKUP(K$107,Assumptions!$112:$112,Assumptions!114:114)*K$108 -> 29.6865 | L112: =LOOKUP(L$107,Assumptions!$112:$112,Assumptions!114:114)*L$108 -> 29.6865 | M112: =LOOKUP(M$107,Assumptions!$112:$112,Assumptions!114:114)*M$108 -> 29.6865 | N112: =LOOKUP(N$107,Assumptions!$112:$112,Assumptions!114:114)*N$108 -> 29.6865 | O112: =LOOKUP(O$107,Assumptions!$112:$112,Assumptions!114:114)*O$108 -> 29.6865 | P112: =LOOKUP(P$107,Assumptions!$112:$112,Assumptions!114:114)*P$108 -> 29.6865 | Q112: =LOOKUP(Q$107,Assumptions!$112:$112,Assumptions!114:114)*Q$108 -> 29.6865 | R112: =LOOKUP(R$107,Assumptions!$112:$112,Assumptions!114:114)*R$108 -> 29.6865 | S112: =LOOKUP(S$107,Assumptions!$112:$112,Assumptions!114:114)*S$108 -> 29.6865 | T112: =LOOKUP(T$107,Assumptions!$112:$112,Assumptions!114:114)*T$108 -> 29.6865 | U112: =LOOKUP(U$107,Assumptions!$112:$112,Assumptions!114:114)*U$108 -> 29.6865 | V112: =LOOKUP(V$107,Assumptions!$112:$112,Assumptions!114:114)*V$108 -> 29.6865 | W112: =LOOKUP(W$107,Assumptions!$112:$112,Assumptions!114:114)*W$108 -> 29.6865 | X112: =LOOKUP(X$107,Assumptions!$112:$112,Assumptions!114:114)*X$108 -> 29.6865 | Y112: =LOOKUP(Y$107,Assumptions!$112:$112,Assumptions!114:114)*Y$108 -> 29.6865 | Z112: =LOOKUP(Z$107,Assumptions!$112:$112,Assumptions!114:114)*Z$108 -> 29.6865 | AA112: =LOOKUP(AA$107,Assumptions!$112:$112,Assumptions!114:114)*AA$108 -> 29.6865 | AB112: =LOOKUP(AB$107,Assumptions!$112:$112,Assumptions!114:114)*AB$108 -> 29.6865 | AC112: =LOOKUP(AC$107,Assumptions!$112:$112,Assumptions!114:114)*AC$108 -> 29.6865 | AD112: =LOOKUP(AD$107,Assumptions!$112:$112,Assumptions!114:114)*AD$108 -> 30.699 | AE112: =LOOKUP(AE$107,Assumptions!$112:$112,Assumptions!114:114)*AE$108 -> 30.699 | AF112: =LOOKUP(AF$107,Assumptions!$112:$112,Assumptions!114:114)*AF$108 -> 30.699 | AG112: =LOOKUP(AG$107,Assumptions!$112:$112,Assumptions!114:114)*AG$108 -> 30.699 | AH112: =LOOKUP(AH$107,Assumptions!$112:$112,Assumptions!114:114)*AH$108 -> 31.401 | AI112: =LOOKUP(AI$107,Assumptions!$112:$112,Assumptions!114:114)*AI$108 -> 31.401 | AJ112: =LOOKUP(AJ$107,Assumptions!$112:$112,Assumptions!114:114)*AJ$108 -> 31.401 | AK112: =LOOKUP(AK$107,Assumptions!$112:$112,Assumptions!114:114)*AK$108 -> 31.401 | AL112: =LOOKUP(AL$107,Assumptions!$112:$112,Assumptions!114:114)*AL$108 -> 3.1536 | AM112: =LOOKUP(AM$107,Assumptions!$112:$112,Assumptions!114:114)*AM$108 -> 3.1536 | AN112: =LOOKUP(AN$107,Assumptions!$112:$112,Assumptions!114:114)*AN$108 -> 3.1536 | AO112: =LOOKUP(AO$107,Assumptions!$112:$112,Assumptions!114:114)*AO$108 -> 3.1536 | AP112: =LOOKUP(AP$107,Assumptions!$112:$112,Assumptions!114:114)*AP$108 -> 6.7689 | AQ112: =LOOKUP(AQ$107,Assumptions!$112:$112,Assumptions!114:114)*AQ$108 -> 6.7689 | AR112: =LOOKUP(AR$107,Assumptions!$112:$112,Assumptions!114:114)*AR$108 -> 6.7689 | AS112: =LOOKUP(AS$107,Assumptions!$112:$112,Assumptions!114:114)*AS$108 -> 6.7689 | AT112: =LOOKUP(AT$107,Assumptions!$112:$112,Assumptions!114:114)*AT$108 -> 17.052525 | AU112: =LOOKUP(AU$107,Assumptions!$112:$112,Assumptions!114:114)*AU$108 -> 17.052525 | AV112: =LOOKUP(AV$107,Assumptions!$112:$112,Assumptions!114:114)*AV$108 -> 17.052525 | AW112: =LOOKUP(AW$107,Assumptions!$112:$112,Assumptions!114:114)*AW$108 -> 17.052525 | AX112: =LOOKUP(AX$107,Assumptions!$112:$112,Assumptions!114:114)*AX$108 -> 39.1095 | AY112: =LOOKUP(AY$107,Assumptions!$112:$112,Assumptions!114:114)*AY$108 -> 39.1095 | AZ112: =LOOKUP(AZ$107,Assumptions!$112:$112,Assumptions!114:114)*AZ$108 -> 39.1095 | BA112: =LOOKUP(BA$107,Assumptions!$112:$112,Assumptions!114:114)*BA$108 -> 39.1095 | BB112: =LOOKUP(BB$107,Assumptions!$112:$112,Assumptions!114:114)*BB$108 -> 39.312 | BC112: =LOOKUP(BC$107,Assumptions!$112:$112,Assumptions!114:114)*BC$108 -> 39.312 | BD112: =LOOKUP(BD$107,Assumptions!$112:$112,Assumptions!114:114)*BD$108 -> 39.312 | BE112: =LOOKUP(BE$107,Assumptions!$112:$112,Assumptions!114:114)*BE$108 -> 39.312 | BF112: =LOOKUP(BF$107,Assumptions!$112:$112,Assumptions!114:114)*BF$108 -> 41.1075 | BG112: =LOOKUP(BG$107,Assumptions!$112:$112,Assumptions!114:114)*BG$108 -> 41.1075 | BH112: =LOOKUP(BH$107,Assumptions!$112:$112,Assumptions!114:114)*BH$108 -> 41.1075 | BI112: =LOOKUP(BI$107,Assumptions!$112:$112,Assumptions!114:114)*BI$108 -> 41.1075 | BJ112: =LOOKUP(BJ$107,Assumptions!$112:$112,Assumptions!114:114)*BJ$108 -> 43.2675 | BK112: =LOOKUP(BK$107,Assumptions!$112:$112,Assumptions!114:114)*BK$108 -> 43.2675 | BL112: =LOOKUP(BL$107,Assumptions!$112:$112,Assumptions!114:114)*BL$108 -> 43.2675 | BM112: =LOOKUP(BM$107,Assumptions!$112:$112,Assumptions!114:114)*BM$108 -> 43.2675 | BN112: =LOOKUP(BN$107,Assumptions!$112:$112,Assumptions!114:114)*BN$108 -> 46.1295 | BO112: =LOOKUP(BO$107,Assumptions!$112:$112,Assumptions!114:114)*BO$108 -> 46.1295 | BP112: =LOOKUP(BP$107,Assumptions!$112:$112,Assumptions!114:114)*BP$108 -> 46.1295 | BQ112: =LOOKUP(BQ$107,Assumptions!$112:$112,Assumptions!114:114)*BQ$108 -> 46.1295 | BR112: =LOOKUP(BR$107,Assumptions!$112:$112,Assumptions!114:114)*BR$108 -> 48.8295 | BS112: =LOOKUP(BS$107,Assumptions!$112:$112,Assumptions!114:114)*BS$108 -> 48.8295 | BT112: =LOOKUP(BT$107,Assumptions!$112:$112,Assumptions!114:114)*BT$108 -> 48.8295 | BU112: =LOOKUP(BU$107,Assumptions!$112:$112,Assumptions!114:114)*BU$108 -> 48.8295 | BV112: =LOOKUP(BV$107,Assumptions!$112:$112,Assumptions!114:114)*BV$108 -> 50.652 | BW112: =LOOKUP(BW$107,Assumptions!$112:$112,Assumptions!114:114)*BW$108 -> 50.652 | BX112: =LOOKUP(BX$107,Assumptions!$112:$112,Assumptions!114:114)*BX$108 -> 50.652 | BY112: =LOOKUP(BY$107,Assumptions!$112:$112,Assumptions!114:114)*BY$108 -> 50.652 | BZ112: =LOOKUP(BZ$107,Assumptions!$112:$112,Assumptions!114:114)*BZ$108 -> 51.6375 | CA112: =LOOKUP(CA$107,Assumptions!$112:$112,Assumptions!114:114)*CA$108 -> 51.6375 | CB112: =LOOKUP(CB$107,Assumptions!$112:$112,Assumptions!114:114)*CB$108 -> 51.6375 | CC112: =LOOKUP(CC$107,Assumptions!$112:$112,Assumptions!114:114)*CC$108 -> 51.6375 | CD112: =LOOKUP(CD$107,Assumptions!$112:$112,Assumptions!114:114)*CD$108 -> 54.513 | CE112: =LOOKUP(CE$107,Assumptions!$112:$112,Assumptions!114:114)*CE$108 -> 54.513 | CF112: =LOOKUP(CF$107,Assumptions!$112:$112,Assumptions!114:114)*CF$108 -> 54.513 | CG112: =LOOKUP(CG$107,Assumptions!$112:$112,Assumptions!114:114)*CG$108 -> 54.513 | CH112: =LOOKUP(CH$107,Assumptions!$112:$112,Assumptions!114:114)*CH$108 -> 56.376 | CI112: =LOOKUP(CI$107,Assumptions!$112:$112,Assumptions!114:114)*CI$108 -> 56.376 | CJ112: =LOOKUP(CJ$107,Assumptions!$112:$112,Assumptions!114:114)*CJ$108 -> 56.376 | CK112: =LOOKUP(CK$107,Assumptions!$112:$112,Assumptions!114:114)*CK$108 -> 56.376 | CL112: =LOOKUP(CL$107,Assumptions!$112:$112,Assumptions!114:114)*CL$108 -> 60.4935 | CM112: =LOOKUP(CM$107,Assumptions!$112:$112,Assumptions!114:114)*CM$108 -> 60.4935 | CN112: =LOOKUP(CN$107,Assumptions!$112:$112,Assumptions!114:114)*CN$108 -> 60.4935 | CO112: =LOOKUP(CO$107,Assumptions!$112:$112,Assumptions!114:114)*CO$108 -> 60.4935 | CP112: =LOOKUP(CP$107,Assumptions!$112:$112,Assumptions!114:114)*CP$108 -> 63.9225 | CQ112: =LOOKUP(CQ$107,Assumptions!$112:$112,Assumptions!114:114)*CQ$108 -> 63.9225 | CR112: =LOOKUP(CR$107,Assumptions!$112:$112,Assumptions!114:114)*CR$108 -> 63.9225 | CS112: =LOOKUP(CS$107,Assumptions!$112:$112,Assumptions!114:114)*CS$108 -> 63.9225 | CT112: =LOOKUP(CT$107,Assumptions!$112:$112,Assumptions!114:114)*CT$108 -> 67.716 | CU112: =LOOKUP(CU$107,Assumptions!$112:$112,Assumptions!114:114)*CU$108 -> 67.716 | CV112: =LOOKUP(CV$107,Assumptions!$112:$112,Assumptions!114:114)*CV$108 -> 67.716 | CW112: =LOOKUP(CW$107,Assumptions!$112:$112,Assumptions!114:114)*CW$108 -> 67.716 | CX112: =LOOKUP(CX$107,Assumptions!$112:$112,Assumptions!114:114)*CX$108 -> 71.3205 | CY112: =LOOKUP(CY$107,Assumptions!$112:$112,Assumptions!114:114)*CY$108 -> 71.3205 | CZ112: =LOOKUP(CZ$107,Assumptions!$112:$112,Assumptions!114:114)*CZ$108 -> 71.3205 | DA112: =LOOKUP(DA$107,Assumptions!$112:$112,Assumptions!114:114)*DA$108 -> 71.3205 | DB112: =LOOKUP(DB$107,Assumptions!$112:$112,Assumptions!114:114)*DB$108 -> 72.3735 | DC112: =LOOKUP(DC$107,Assumptions!$112:$112,Assumptions!114:114)*DC$108 -> 72.3735 | DD112: =LOOKUP(DD$107,Assumptions!$112:$112,Assumptions!114:114)*DD$108 -> 72.3735 | DE112: =LOOKUP(DE$107,Assumptions!$112:$112,Assumptions!114:114)*DE$108 -> 72.3735 | DF112: =LOOKUP(DF$107,Assumptions!$112:$112,Assumptions!114:114)*DF$108 -> 72.954 | DG112: =LOOKUP(DG$107,Assumptions!$112:$112,Assumptions!114:114)*DG$108 -> 72.954 | DH112: =LOOKUP(DH$107,Assumptions!$112:$112,Assumptions!114:114)*DH$108 -> 72.954 | DI112: =LOOKUP(DI$107,Assumptions!$112:$112,Assumptions!114:114)*DI$108 -> 72.954 | DJ112: =LOOKUP(DJ$107,Assumptions!$112:$112,Assumptions!114:114)*DJ$108 -> 73.602 | DK112: =LOOKUP(DK$107,Assumptions!$112:$112,Assumptions!114:114)*DK$108 -> 73.602 | DL112: =LOOKUP(DL$107,Assumptions!$112:$112,Assumptions!114:114)*DL$108 -> 73.602 | DM112: =LOOKUP(DM$107,Assumptions!$112:$112,Assumptions!114:114)*DM$108 -> 73.602 | DN112: =LOOKUP(DN$107,Assumptions!$112:$112,Assumptions!114:114)*DN$108 -> 74.763 | DO112: =LOOKUP(DO$107,Assumptions!$112:$112,Assumptions!114:114)*DO$108 -> 74.763 | DP112: =LOOKUP(DP$107,Assumptions!$112:$112,Assumptions!114:114)*DP$108 -> 74.763 | DQ112: =LOOKUP(DQ$107,Assumptions!$112:$112,Assumptions!114:114)*DQ$108 -> 74.763
E113: March | F113: Euro/MWH | K113: =LOOKUP(K$107,Assumptions!$112:$112,Assumptions!115:115)*K$108 -> 29.6865 | L113: =LOOKUP(L$107,Assumptions!$112:$112,Assumptions!115:115)*L$108 -> 29.6865 | M113: =LOOKUP(M$107,Assumptions!$112:$112,Assumptions!115:115)*M$108 -> 29.6865 | N113: =LOOKUP(N$107,Assumptions!$112:$112,Assumptions!115:115)*N$108 -> 29.6865 | O113: =LOOKUP(O$107,Assumptions!$112:$112,Assumptions!115:115)*O$108 -> 29.6865 | P113: =LOOKUP(P$107,Assumptions!$112:$112,Assumptions!115:115)*P$108 -> 29.6865 | Q113: =LOOKUP(Q$107,Assumptions!$112:$112,Assumptions!115:115)*Q$108 -> 29.6865 | R113: =LOOKUP(R$107,Assumptions!$112:$112,Assumptions!115:115)*R$108 -> 29.6865 | S113: =LOOKUP(S$107,Assumptions!$112:$112,Assumptions!115:115)*S$108 -> 29.6865 | T113: =LOOKUP(T$107,Assumptions!$112:$112,Assumptions!115:115)*T$108 -> 29.6865 | U113: =LOOKUP(U$107,Assumptions!$112:$112,Assumptions!115:115)*U$108 -> 29.6865 | V113: =LOOKUP(V$107,Assumptions!$112:$112,Assumptions!115:115)*V$108 -> 29.6865 | W113: =LOOKUP(W$107,Assumptions!$112:$112,Assumptions!115:115)*W$108 -> 29.6865 | X113: =LOOKUP(X$107,Assumptions!$112:$112,Assumptions!115:115)*X$108 -> 29.6865 | Y113: =LOOKUP(Y$107,Assumptions!$112:$112,Assumptions!115:115)*Y$108 -> 29.6865 | Z113: =LOOKUP(Z$107,Assumptions!$112:$112,Assumptions!115:115)*Z$108 -> 29.6865 | AA113: =LOOKUP(AA$107,Assumptions!$112:$112,Assumptions!115:115)*AA$108 -> 29.6865 | AB113: =LOOKUP(AB$107,Assumptions!$112:$112,Assumptions!115:115)*AB$108 -> 29.6865 | AC113: =LOOKUP(AC$107,Assumptions!$112:$112,Assumptions!115:115)*AC$108 -> 29.6865 | AD113: =LOOKUP(AD$107,Assumptions!$112:$112,Assumptions!115:115)*AD$108 -> 30.699 | AE113: =LOOKUP(AE$107,Assumptions!$112:$112,Assumptions!115:115)*AE$108 -> 30.699 | AF113: =LOOKUP(AF$107,Assumptions!$112:$112,Assumptions!115:115)*AF$108 -> 30.699 | AG113: =LOOKUP(AG$107,Assumptions!$112:$112,Assumptions!115:115)*AG$108 -> 30.699 | AH113: =LOOKUP(AH$107,Assumptions!$112:$112,Assumptions!115:115)*AH$108 -> 15.7005 | AI113: =LOOKUP(AI$107,Assumptions!$112:$112,Assumptions!115:115)*AI$108 -> 15.7005 | AJ113: =LOOKUP(AJ$107,Assumptions!$112:$112,Assumptions!115:115)*AJ$108 -> 15.7005 | AK113: =LOOKUP(AK$107,Assumptions!$112:$112,Assumptions!115:115)*AK$108 -> 15.7005 | AL113: =LOOKUP(AL$107,Assumptions!$112:$112,Assumptions!115:115)*AL$108 -> 3.1536 | AM113: =LOOKUP(AM$107,Assumptions!$112:$112,Assumptions!115:115)*AM$108 -> 3.1536 | AN113: =LOOKUP(AN$107,Assumptions!$112:$112,Assumptions!115:115)*AN$108 -> 3.1536 | AO113: =LOOKUP(AO$107,Assumptions!$112:$112,Assumptions!115:115)*AO$108 -> 3.1536 | AP113: =LOOKUP(AP$107,Assumptions!$112:$112,Assumptions!115:115)*AP$108 -> 6.7689 | AQ113: =LOOKUP(AQ$107,Assumptions!$112:$112,Assumptions!115:115)*AQ$108 -> 6.7689 | AR113: =LOOKUP(AR$107,Assumptions!$112:$112,Assumptions!115:115)*AR$108 -> 6.7689 | AS113: =LOOKUP(AS$107,Assumptions!$112:$112,Assumptions!115:115)*AS$108 -> 6.7689 | AT113: =LOOKUP(AT$107,Assumptions!$112:$112,Assumptions!115:115)*AT$108 -> 17.052525 | AU113: =LOOKUP(AU$107,Assumptions!$112:$112,Assumptions!115:115)*AU$108 -> 17.052525 | AV113: =LOOKUP(AV$107,Assumptions!$112:$112,Assumptions!115:115)*AV$108 -> 17.052525 | AW113: =LOOKUP(AW$107,Assumptions!$112:$112,Assumptions!115:115)*AW$108 -> 17.052525 | AX113: =LOOKUP(AX$107,Assumptions!$112:$112,Assumptions!115:115)*AX$108 -> 39.1095 | AY113: =LOOKUP(AY$107,Assumptions!$112:$112,Assumptions!115:115)*AY$108 -> 39.1095 | AZ113: =LOOKUP(AZ$107,Assumptions!$112:$112,Assumptions!115:115)*AZ$108 -> 39.1095 | BA113: =LOOKUP(BA$107,Assumptions!$112:$112,Assumptions!115:115)*BA$108 -> 39.1095 | BB113: =LOOKUP(BB$107,Assumptions!$112:$112,Assumptions!115:115)*BB$108 -> 39.312 | BC113: =LOOKUP(BC$107,Assumptions!$112:$112,Assumptions!115:115)*BC$108 -> 39.312 | BD113: =LOOKUP(BD$107,Assumptions!$112:$112,Assumptions!115:115)*BD$108 -> 39.312 | BE113: =LOOKUP(BE$107,Assumptions!$112:$112,Assumptions!115:115)*BE$108 -> 39.312 | BF113: =LOOKUP(BF$107,Assumptions!$112:$112,Assumptions!115:115)*BF$108 -> 41.1075 | BG113: =LOOKUP(BG$107,Assumptions!$112:$112,Assumptions!115:115)*BG$108 -> 41.1075 | BH113: =LOOKUP(BH$107,Assumptions!$112:$112,Assumptions!115:115)*BH$108 -> 41.1075 | BI113: =LOOKUP(BI$107,Assumptions!$112:$112,Assumptions!115:115)*BI$108 -> 41.1075 | BJ113: =LOOKUP(BJ$107,Assumptions!$112:$112,Assumptions!115:115)*BJ$108 -> 43.2675 | BK113: =LOOKUP(BK$107,Assumptions!$112:$112,Assumptions!115:115)*BK$108 -> 43.2675 | BL113: =LOOKUP(BL$107,Assumptions!$112:$112,Assumptions!115:115)*BL$108 -> 43.2675 | BM113: =LOOKUP(BM$107,Assumptions!$112:$112,Assumptions!115:115)*BM$108 -> 43.2675 | BN113: =LOOKUP(BN$107,Assumptions!$112:$112,Assumptions!115:115)*BN$108 -> 46.1295 | BO113: =LOOKUP(BO$107,Assumptions!$112:$112,Assumptions!115:115)*BO$108 -> 46.1295 | BP113: =LOOKUP(BP$107,Assumptions!$112:$112,Assumptions!115:115)*BP$108 -> 46.1295 | BQ113: =LOOKUP(BQ$107,Assumptions!$112:$112,Assumptions!115:115)*BQ$108 -> 46.1295 | BR113: =LOOKUP(BR$107,Assumptions!$112:$112,Assumptions!115:115)*BR$108 -> 48.8295 | BS113: =LOOKUP(BS$107,Assumptions!$112:$112,Assumptions!115:115)*BS$108 -> 48.8295 | BT113: =LOOKUP(BT$107,Assumptions!$112:$112,Assumptions!115:115)*BT$108 -> 48.8295 | BU113: =LOOKUP(BU$107,Assumptions!$112:$112,Assumptions!115:115)*BU$108 -> 48.8295 | BV113: =LOOKUP(BV$107,Assumptions!$112:$112,Assumptions!115:115)*BV$108 -> 50.652 | BW113: =LOOKUP(BW$107,Assumptions!$112:$112,Assumptions!115:115)*BW$108 -> 50.652 | BX113: =LOOKUP(BX$107,Assumptions!$112:$112,Assumptions!115:115)*BX$108 -> 50.652 | BY113: =LOOKUP(BY$107,Assumptions!$112:$112,Assumptions!115:115)*BY$108 -> 50.652 | BZ113: =LOOKUP(BZ$107,Assumptions!$112:$112,Assumptions!115:115)*BZ$108 -> 51.6375 | CA113: =LOOKUP(CA$107,Assumptions!$112:$112,Assumptions!115:115)*CA$108 -> 51.6375 | CB113: =LOOKUP(CB$107,Assumptions!$112:$112,Assumptions!115:115)*CB$108 -> 51.6375 | CC113: =LOOKUP(CC$107,Assumptions!$112:$112,Assumptions!115:115)*CC$108 -> 51.6375 | CD113: =LOOKUP(CD$107,Assumptions!$112:$112,Assumptions!115:115)*CD$108 -> 54.513 | CE113: =LOOKUP(CE$107,Assumptions!$112:$112,Assumptions!115:115)*CE$108 -> 54.513 | CF113: =LOOKUP(CF$107,Assumptions!$112:$112,Assumptions!115:115)*CF$108 -> 54.513 | CG113: =LOOKUP(CG$107,Assumptions!$112:$112,Assumptions!115:115)*CG$108 -> 54.513 | CH113: =LOOKUP(CH$107,Assumptions!$112:$112,Assumptions!115:115)*CH$108 -> 56.376 | CI113: =LOOKUP(CI$107,Assumptions!$112:$112,Assumptions!115:115)*CI$108 -> 56.376 | CJ113: =LOOKUP(CJ$107,Assumptions!$112:$112,Assumptions!115:115)*CJ$108 -> 56.376 | CK113: =LOOKUP(CK$107,Assumptions!$112:$112,Assumptions!115:115)*CK$108 -> 56.376 | CL113: =LOOKUP(CL$107,Assumptions!$112:$112,Assumptions!115:115)*CL$108 -> 60.4935 | CM113: =LOOKUP(CM$107,Assumptions!$112:$112,Assumptions!115:115)*CM$108 -> 60.4935 | CN113: =LOOKUP(CN$107,Assumptions!$112:$112,Assumptions!115:115)*CN$108 -> 60.4935 | CO113: =LOOKUP(CO$107,Assumptions!$112:$112,Assumptions!115:115)*CO$108 -> 60.4935 | CP113: =LOOKUP(CP$107,Assumptions!$112:$112,Assumptions!115:115)*CP$108 -> 63.9225 | CQ113: =LOOKUP(CQ$107,Assumptions!$112:$112,Assumptions!115:115)*CQ$108 -> 63.9225 | CR113: =LOOKUP(CR$107,Assumptions!$112:$112,Assumptions!115:115)*CR$108 -> 63.9225 | CS113: =LOOKUP(CS$107,Assumptions!$112:$112,Assumptions!115:115)*CS$108 -> 63.9225 | CT113: =LOOKUP(CT$107,Assumptions!$112:$112,Assumptions!115:115)*CT$108 -> 67.716 | CU113: =LOOKUP(CU$107,Assumptions!$112:$112,Assumptions!115:115)*CU$108 -> 67.716 | CV113: =LOOKUP(CV$107,Assumptions!$112:$112,Assumptions!115:115)*CV$108 -> 67.716 | CW113: =LOOKUP(CW$107,Assumptions!$112:$112,Assumptions!115:115)*CW$108 -> 67.716 | CX113: =LOOKUP(CX$107,Assumptions!$112:$112,Assumptions!115:115)*CX$108 -> 71.3205 | CY113: =LOOKUP(CY$107,Assumptions!$112:$112,Assumptions!115:115)*CY$108 -> 71.3205 | CZ113: =LOOKUP(CZ$107,Assumptions!$112:$112,Assumptions!115:115)*CZ$108 -> 71.3205 | DA113: =LOOKUP(DA$107,Assumptions!$112:$112,Assumptions!115:115)*DA$108 -> 71.3205 | DB113: =LOOKUP(DB$107,Assumptions!$112:$112,Assumptions!115:115)*DB$108 -> 72.3735 | DC113: =LOOKUP(DC$107,Assumptions!$112:$112,Assumptions!115:115)*DC$108 -> 72.3735 | DD113: =LOOKUP(DD$107,Assumptions!$112:$112,Assumptions!115:115)*DD$108 -> 72.3735 | DE113: =LOOKUP(DE$107,Assumptions!$112:$112,Assumptions!115:115)*DE$108 -> 72.3735 | DF113: =LOOKUP(DF$107,Assumptions!$112:$112,Assumptions!115:115)*DF$108 -> 72.954 | DG113: =LOOKUP(DG$107,Assumptions!$112:$112,Assumptions!115:115)*DG$108 -> 72.954 | DH113: =LOOKUP(DH$107,Assumptions!$112:$112,Assumptions!115:115)*DH$108 -> 72.954 | DI113: =LOOKUP(DI$107,Assumptions!$112:$112,Assumptions!115:115)*DI$108 -> 72.954 | DJ113: =LOOKUP(DJ$107,Assumptions!$112:$112,Assumptions!115:115)*DJ$108 -> 73.602 | DK113: =LOOKUP(DK$107,Assumptions!$112:$112,Assumptions!115:115)*DK$108 -> 73.602 | DL113: =LOOKUP(DL$107,Assumptions!$112:$112,Assumptions!115:115)*DL$108 -> 73.602 | DM113: =LOOKUP(DM$107,Assumptions!$112:$112,Assumptions!115:115)*DM$108 -> 73.602 | DN113: =LOOKUP(DN$107,Assumptions!$112:$112,Assumptions!115:115)*DN$108 -> 74.763 | DO113: =LOOKUP(DO$107,Assumptions!$112:$112,Assumptions!115:115)*DO$108 -> 74.763 | DP113: =LOOKUP(DP$107,Assumptions!$112:$112,Assumptions!115:115)*DP$108 -> 74.763 | DQ113: =LOOKUP(DQ$107,Assumptions!$112:$112,Assumptions!115:115)*DQ$108 -> 74.763
E114: April | F114: Euro/MWH | K114: =LOOKUP(K$107,Assumptions!$112:$112,Assumptions!116:116)*K$108 -> 29.6865 | L114: =LOOKUP(L$107,Assumptions!$112:$112,Assumptions!116:116)*L$108 -> 29.6865 | M114: =LOOKUP(M$107,Assumptions!$112:$112,Assumptions!116:116)*M$108 -> 29.6865 | N114: =LOOKUP(N$107,Assumptions!$112:$112,Assumptions!116:116)*N$108 -> 29.6865 | O114: =LOOKUP(O$107,Assumptions!$112:$112,Assumptions!116:116)*O$108 -> 29.6865 | P114: =LOOKUP(P$107,Assumptions!$112:$112,Assumptions!116:116)*P$108 -> 29.6865 | Q114: =LOOKUP(Q$107,Assumptions!$112:$112,Assumptions!116:116)*Q$108 -> 29.6865 | R114: =LOOKUP(R$107,Assumptions!$112:$112,Assumptions!116:116)*R$108 -> 29.6865 | S114: =LOOKUP(S$107,Assumptions!$112:$112,Assumptions!116:116)*S$108 -> 29.6865 | T114: =LOOKUP(T$107,Assumptions!$112:$112,Assumptions!116:116)*T$108 -> 29.6865 | U114: =LOOKUP(U$107,Assumptions!$112:$112,Assumptions!116:116)*U$108 -> 29.6865 | V114: =LOOKUP(V$107,Assumptions!$112:$112,Assumptions!116:116)*V$108 -> 29.6865 | W114: =LOOKUP(W$107,Assumptions!$112:$112,Assumptions!116:116)*W$108 -> 29.6865 | X114: =LOOKUP(X$107,Assumptions!$112:$112,Assumptions!116:116)*X$108 -> 29.6865 | Y114: =LOOKUP(Y$107,Assumptions!$112:$112,Assumptions!116:116)*Y$108 -> 29.6865 | Z114: =LOOKUP(Z$107,Assumptions!$112:$112,Assumptions!116:116)*Z$108 -> 29.6865 | AA114: =LOOKUP(AA$107,Assumptions!$112:$112,Assumptions!116:116)*AA$108 -> 29.6865 | AB114: =LOOKUP(AB$107,Assumptions!$112:$112,Assumptions!116:116)*AB$108 -> 29.6865 | AC114: =LOOKUP(AC$107,Assumptions!$112:$112,Assumptions!116:116)*AC$108 -> 29.6865 | AD114: =LOOKUP(AD$107,Assumptions!$112:$112,Assumptions!116:116)*AD$108 -> 30.699 | AE114: =LOOKUP(AE$107,Assumptions!$112:$112,Assumptions!116:116)*AE$108 -> 30.699 | AF114: =LOOKUP(AF$107,Assumptions!$112:$112,Assumptions!116:116)*AF$108 -> 30.699 | AG114: =LOOKUP(AG$107,Assumptions!$112:$112,Assumptions!116:116)*AG$108 -> 30.699 | AH114: =LOOKUP(AH$107,Assumptions!$112:$112,Assumptions!116:116)*AH$108 -> 0.62802 | AI114: =LOOKUP(AI$107,Assumptions!$112:$112,Assumptions!116:116)*AI$108 -> 0.62802 | AJ114: =LOOKUP(AJ$107,Assumptions!$112:$112,Assumptions!116:116)*AJ$108 -> 0.62802 | AK114: =LOOKUP(AK$107,Assumptions!$112:$112,Assumptions!116:116)*AK$108 -> 0.62802 | AL114: =LOOKUP(AL$107,Assumptions!$112:$112,Assumptions!116:116)*AL$108 -> 3.1536 | AM114: =LOOKUP(AM$107,Assumptions!$112:$112,Assumptions!116:116)*AM$108 -> 3.1536 | AN114: =LOOKUP(AN$107,Assumptions!$112:$112,Assumptions!116:116)*AN$108 -> 3.1536 | AO114: =LOOKUP(AO$107,Assumptions!$112:$112,Assumptions!116:116)*AO$108 -> 3.1536 | AP114: =LOOKUP(AP$107,Assumptions!$112:$112,Assumptions!116:116)*AP$108 -> 6.7689 | AQ114: =LOOKUP(AQ$107,Assumptions!$112:$112,Assumptions!116:116)*AQ$108 -> 6.7689 | AR114: =LOOKUP(AR$107,Assumptions!$112:$112,Assumptions!116:116)*AR$108 -> 6.7689 | AS114: =LOOKUP(AS$107,Assumptions!$112:$112,Assumptions!116:116)*AS$108 -> 6.7689 | AT114: =LOOKUP(AT$107,Assumptions!$112:$112,Assumptions!116:116)*AT$108 -> 17.052525 | AU114: =LOOKUP(AU$107,Assumptions!$112:$112,Assumptions!116:116)*AU$108 -> 17.052525 | AV114: =LOOKUP(AV$107,Assumptions!$112:$112,Assumptions!116:116)*AV$108 -> 17.052525 | AW114: =LOOKUP(AW$107,Assumptions!$112:$112,Assumptions!116:116)*AW$108 -> 17.052525 | AX114: =LOOKUP(AX$107,Assumptions!$112:$112,Assumptions!116:116)*AX$108 -> 39.1095 | AY114: =LOOKUP(AY$107,Assumptions!$112:$112,Assumptions!116:116)*AY$108 -> 39.1095 | AZ114: =LOOKUP(AZ$107,Assumptions!$112:$112,Assumptions!116:116)*AZ$108 -> 39.1095 | BA114: =LOOKUP(BA$107,Assumptions!$112:$112,Assumptions!116:116)*BA$108 -> 39.1095 | BB114: =LOOKUP(BB$107,Assumptions!$112:$112,Assumptions!116:116)*BB$108 -> 39.312 | BC114: =LOOKUP(BC$107,Assumptions!$112:$112,Assumptions!116:116)*BC$108 -> 39.312 | BD114: =LOOKUP(BD$107,Assumptions!$112:$112,Assumptions!116:116)*BD$108 -> 39.312 | BE114: =LOOKUP(BE$107,Assumptions!$112:$112,Assumptions!116:116)*BE$108 -> 39.312 | BF114: =LOOKUP(BF$107,Assumptions!$112:$112,Assumptions!116:116)*BF$108 -> 41.1075 | BG114: =LOOKUP(BG$107,Assumptions!$112:$112,Assumptions!116:116)*BG$108 -> 41.1075 | BH114: =LOOKUP(BH$107,Assumptions!$112:$112,Assumptions!116:116)*BH$108 -> 41.1075 | BI114: =LOOKUP(BI$107,Assumptions!$112:$112,Assumptions!116:116)*BI$108 -> 41.1075 | BJ114: =LOOKUP(BJ$107,Assumptions!$112:$112,Assumptions!116:116)*BJ$108 -> 43.2675 | BK114: =LOOKUP(BK$107,Assumptions!$112:$112,Assumptions!116:116)*BK$108 -> 43.2675 | BL114: =LOOKUP(BL$107,Assumptions!$112:$112,Assumptions!116:116)*BL$108 -> 43.2675 | BM114: =LOOKUP(BM$107,Assumptions!$112:$112,Assumptions!116:116)*BM$108 -> 43.2675 | BN114: =LOOKUP(BN$107,Assumptions!$112:$112,Assumptions!116:116)*BN$108 -> 46.1295 | BO114: =LOOKUP(BO$107,Assumptions!$112:$112,Assumptions!116:116)*BO$108 -> 46.1295 | BP114: =LOOKUP(BP$107,Assumptions!$112:$112,Assumptions!116:116)*BP$108 -> 46.1295 | BQ114: =LOOKUP(BQ$107,Assumptions!$112:$112,Assumptions!116:116)*BQ$108 -> 46.1295 | BR114: =LOOKUP(BR$107,Assumptions!$112:$112,Assumptions!116:116)*BR$108 -> 48.8295 | BS114: =LOOKUP(BS$107,Assumptions!$112:$112,Assumptions!116:116)*BS$108 -> 48.8295 | BT114: =LOOKUP(BT$107,Assumptions!$112:$112,Assumptions!116:116)*BT$108 -> 48.8295 | BU114: =LOOKUP(BU$107,Assumptions!$112:$112,Assumptions!116:116)*BU$108 -> 48.8295 | BV114: =LOOKUP(BV$107,Assumptions!$112:$112,Assumptions!116:116)*BV$108 -> 50.652 | BW114: =LOOKUP(BW$107,Assumptions!$112:$112,Assumptions!116:116)*BW$108 -> 50.652 | BX114: =LOOKUP(BX$107,Assumptions!$112:$112,Assumptions!116:116)*BX$108 -> 50.652 | BY114: =LOOKUP(BY$107,Assumptions!$112:$112,Assumptions!116:116)*BY$108 -> 50.652 | BZ114: =LOOKUP(BZ$107,Assumptions!$112:$112,Assumptions!116:116)*BZ$108 -> 51.6375 | CA114: =LOOKUP(CA$107,Assumptions!$112:$112,Assumptions!116:116)*CA$108 -> 51.6375 | CB114: =LOOKUP(CB$107,Assumptions!$112:$112,Assumptions!116:116)*CB$108 -> 51.6375 | CC114: =LOOKUP(CC$107,Assumptions!$112:$112,Assumptions!116:116)*CC$108 -> 51.6375 | CD114: =LOOKUP(CD$107,Assumptions!$112:$112,Assumptions!116:116)*CD$108 -> 54.513 | CE114: =LOOKUP(CE$107,Assumptions!$112:$112,Assumptions!116:116)*CE$108 -> 54.513 | CF114: =LOOKUP(CF$107,Assumptions!$112:$112,Assumptions!116:116)*CF$108 -> 54.513 | CG114: =LOOKUP(CG$107,Assumptions!$112:$112,Assumptions!116:116)*CG$108 -> 54.513 | CH114: =LOOKUP(CH$107,Assumptions!$112:$112,Assumptions!116:116)*CH$108 -> 56.376 | CI114: =LOOKUP(CI$107,Assumptions!$112:$112,Assumptions!116:116)*CI$108 -> 56.376 | CJ114: =LOOKUP(CJ$107,Assumptions!$112:$112,Assumptions!116:116)*CJ$108 -> 56.376 | CK114: =LOOKUP(CK$107,Assumptions!$112:$112,Assumptions!116:116)*CK$108 -> 56.376 | CL114: =LOOKUP(CL$107,Assumptions!$112:$112,Assumptions!116:116)*CL$108 -> 60.4935 | CM114: =LOOKUP(CM$107,Assumptions!$112:$112,Assumptions!116:116)*CM$108 -> 60.4935 | CN114: =LOOKUP(CN$107,Assumptions!$112:$112,Assumptions!116:116)*CN$108 -> 60.4935 | CO114: =LOOKUP(CO$107,Assumptions!$112:$112,Assumptions!116:116)*CO$108 -> 60.4935 | CP114: =LOOKUP(CP$107,Assumptions!$112:$112,Assumptions!116:116)*CP$108 -> 63.9225 | CQ114: =LOOKUP(CQ$107,Assumptions!$112:$112,Assumptions!116:116)*CQ$108 -> 63.9225 | CR114: =LOOKUP(CR$107,Assumptions!$112:$112,Assumptions!116:116)*CR$108 -> 63.9225 | CS114: =LOOKUP(CS$107,Assumptions!$112:$112,Assumptions!116:116)*CS$108 -> 63.9225 | CT114: =LOOKUP(CT$107,Assumptions!$112:$112,Assumptions!116:116)*CT$108 -> 67.716 | CU114: =LOOKUP(CU$107,Assumptions!$112:$112,Assumptions!116:116)*CU$108 -> 67.716 | CV114: =LOOKUP(CV$107,Assumptions!$112:$112,Assumptions!116:116)*CV$108 -> 67.716 | CW114: =LOOKUP(CW$107,Assumptions!$112:$112,Assumptions!116:116)*CW$108 -> 67.716 | CX114: =LOOKUP(CX$107,Assumptions!$112:$112,Assumptions!116:116)*CX$108 -> 71.3205 | CY114: =LOOKUP(CY$107,Assumptions!$112:$112,Assumptions!116:116)*CY$108 -> 71.3205 | CZ114: =LOOKUP(CZ$107,Assumptions!$112:$112,Assumptions!116:116)*CZ$108 -> 71.3205 | DA114: =LOOKUP(DA$107,Assumptions!$112:$112,Assumptions!116:116)*DA$108 -> 71.3205 | DB114: =LOOKUP(DB$107,Assumptions!$112:$112,Assumptions!116:116)*DB$108 -> 72.3735 | DC114: =LOOKUP(DC$107,Assumptions!$112:$112,Assumptions!116:116)*DC$108 -> 72.3735 | DD114: =LOOKUP(DD$107,Assumptions!$112:$112,Assumptions!116:116)*DD$108 -> 72.3735 | DE114: =LOOKUP(DE$107,Assumptions!$112:$112,Assumptions!116:116)*DE$108 -> 72.3735 | DF114: =LOOKUP(DF$107,Assumptions!$112:$112,Assumptions!116:116)*DF$108 -> 72.954 | DG114: =LOOKUP(DG$107,Assumptions!$112:$112,Assumptions!116:116)*DG$108 -> 72.954 | DH114: =LOOKUP(DH$107,Assumptions!$112:$112,Assumptions!116:116)*DH$108 -> 72.954 | DI114: =LOOKUP(DI$107,Assumptions!$112:$112,Assumptions!116:116)*DI$108 -> 72.954 | DJ114: =LOOKUP(DJ$107,Assumptions!$112:$112,Assumptions!116:116)*DJ$108 -> 73.602 | DK114: =LOOKUP(DK$107,Assumptions!$112:$112,Assumptions!116:116)*DK$108 -> 73.602 | DL114: =LOOKUP(DL$107,Assumptions!$112:$112,Assumptions!116:116)*DL$108 -> 73.602 | DM114: =LOOKUP(DM$107,Assumptions!$112:$112,Assumptions!116:116)*DM$108 -> 73.602 | DN114: =LOOKUP(DN$107,Assumptions!$112:$112,Assumptions!116:116)*DN$108 -> 74.763 | DO114: =LOOKUP(DO$107,Assumptions!$112:$112,Assumptions!116:116)*DO$108 -> 74.763 | DP114: =LOOKUP(DP$107,Assumptions!$112:$112,Assumptions!116:116)*DP$108 -> 74.763 | DQ114: =LOOKUP(DQ$107,Assumptions!$112:$112,Assumptions!116:116)*DQ$108 -> 74.763
E115: May | F115: Euro/MWH | K115: =LOOKUP(K$107,Assumptions!$112:$112,Assumptions!117:117)*K$108 -> 29.6865 | L115: =LOOKUP(L$107,Assumptions!$112:$112,Assumptions!117:117)*L$108 -> 29.6865 | M115: =LOOKUP(M$107,Assumptions!$112:$112,Assumptions!117:117)*M$108 -> 29.6865 | N115: =LOOKUP(N$107,Assumptions!$112:$112,Assumptions!117:117)*N$108 -> 29.6865 | O115: =LOOKUP(O$107,Assumptions!$112:$112,Assumptions!117:117)*O$108 -> 29.6865 | P115: =LOOKUP(P$107,Assumptions!$112:$112,Assumptions!117:117)*P$108 -> 29.6865 | Q115: =LOOKUP(Q$107,Assumptions!$112:$112,Assumptions!117:117)*Q$108 -> 29.6865 | R115: =LOOKUP(R$107,Assumptions!$112:$112,Assumptions!117:117)*R$108 -> 29.6865 | S115: =LOOKUP(S$107,Assumptions!$112:$112,Assumptions!117:117)*S$108 -> 29.6865 | T115: =LOOKUP(T$107,Assumptions!$112:$112,Assumptions!117:117)*T$108 -> 29.6865 | U115: =LOOKUP(U$107,Assumptions!$112:$112,Assumptions!117:117)*U$108 -> 29.6865 | V115: =LOOKUP(V$107,Assumptions!$112:$112,Assumptions!117:117)*V$108 -> 29.6865 | W115: =LOOKUP(W$107,Assumptions!$112:$112,Assumptions!117:117)*W$108 -> 29.6865 | X115: =LOOKUP(X$107,Assumptions!$112:$112,Assumptions!117:117)*X$108 -> 29.6865 | Y115: =LOOKUP(Y$107,Assumptions!$112:$112,Assumptions!117:117)*Y$108 -> 29.6865 | Z115: =LOOKUP(Z$107,Assumptions!$112:$112,Assumptions!117:117)*Z$108 -> 29.6865 | AA115: =LOOKUP(AA$107,Assumptions!$112:$112,Assumptions!117:117)*AA$108 -> 29.6865 | AB115: =LOOKUP(AB$107,Assumptions!$112:$112,Assumptions!117:117)*AB$108 -> 29.6865 | AC115: =LOOKUP(AC$107,Assumptions!$112:$112,Assumptions!117:117)*AC$108 -> 29.6865 | AD115: =LOOKUP(AD$107,Assumptions!$112:$112,Assumptions!117:117)*AD$108 -> 30.699 | AE115: =LOOKUP(AE$107,Assumptions!$112:$112,Assumptions!117:117)*AE$108 -> 30.699 | AF115: =LOOKUP(AF$107,Assumptions!$112:$112,Assumptions!117:117)*AF$108 -> 30.699 | AG115: =LOOKUP(AG$107,Assumptions!$112:$112,Assumptions!117:117)*AG$108 -> 30.699 | AH115: =LOOKUP(AH$107,Assumptions!$112:$112,Assumptions!117:117)*AH$108 -> 0.62802 | AI115: =LOOKUP(AI$107,Assumptions!$112:$112,Assumptions!117:117)*AI$108 -> 0.62802 | AJ115: =LOOKUP(AJ$107,Assumptions!$112:$112,Assumptions!117:117)*AJ$108 -> 0.62802 | AK115: =LOOKUP(AK$107,Assumptions!$112:$112,Assumptions!117:117)*AK$108 -> 0.62802 | AL115: =LOOKUP(AL$107,Assumptions!$112:$112,Assumptions!117:117)*AL$108 -> 3.1536 | AM115: =LOOKUP(AM$107,Assumptions!$112:$112,Assumptions!117:117)*AM$108 -> 3.1536 | AN115: =LOOKUP(AN$107,Assumptions!$112:$112,Assumptions!117:117)*AN$108 -> 3.1536 | AO115: =LOOKUP(AO$107,Assumptions!$112:$112,Assumptions!117:117)*AO$108 -> 3.1536 | AP115: =LOOKUP(AP$107,Assumptions!$112:$112,Assumptions!117:117)*AP$108 -> 6.7689 | AQ115: =LOOKUP(AQ$107,Assumptions!$112:$112,Assumptions!117:117)*AQ$108 -> 6.7689 | AR115: =LOOKUP(AR$107,Assumptions!$112:$112,Assumptions!117:117)*AR$108 -> 6.7689 | AS115: =LOOKUP(AS$107,Assumptions!$112:$112,Assumptions!117:117)*AS$108 -> 6.7689 | AT115: =LOOKUP(AT$107,Assumptions!$112:$112,Assumptions!117:117)*AT$108 -> 17.052525 | AU115: =LOOKUP(AU$107,Assumptions!$112:$112,Assumptions!117:117)*AU$108 -> 17.052525 | AV115: =LOOKUP(AV$107,Assumptions!$112:$112,Assumptions!117:117)*AV$108 -> 17.052525 | AW115: =LOOKUP(AW$107,Assumptions!$112:$112,Assumptions!117:117)*AW$108 -> 17.052525 | AX115: =LOOKUP(AX$107,Assumptions!$112:$112,Assumptions!117:117)*AX$108 -> 39.1095 | AY115: =LOOKUP(AY$107,Assumptions!$112:$112,Assumptions!117:117)*AY$108 -> 39.1095 | AZ115: =LOOKUP(AZ$107,Assumptions!$112:$112,Assumptions!117:117)*AZ$108 -> 39.1095 | BA115: =LOOKUP(BA$107,Assumptions!$112:$112,Assumptions!117:117)*BA$108 -> 39.1095 | BB115: =LOOKUP(BB$107,Assumptions!$112:$112,Assumptions!117:117)*BB$108 -> 39.312 | BC115: =LOOKUP(BC$107,Assumptions!$112:$112,Assumptions!117:117)*BC$108 -> 39.312 | BD115: =LOOKUP(BD$107,Assumptions!$112:$112,Assumptions!117:117)*BD$108 -> 39.312 | BE115: =LOOKUP(BE$107,Assumptions!$112:$112,Assumptions!117:117)*BE$108 -> 39.312 | BF115: =LOOKUP(BF$107,Assumptions!$112:$112,Assumptions!117:117)*BF$108 -> 41.1075 | BG115: =LOOKUP(BG$107,Assumptions!$112:$112,Assumptions!117:117)*BG$108 -> 41.1075 | BH115: =LOOKUP(BH$107,Assumptions!$112:$112,Assumptions!117:117)*BH$108 -> 41.1075 | BI115: =LOOKUP(BI$107,Assumptions!$112:$112,Assumptions!117:117)*BI$108 -> 41.1075 | BJ115: =LOOKUP(BJ$107,Assumptions!$112:$112,Assumptions!117:117)*BJ$108 -> 43.2675 | BK115: =LOOKUP(BK$107,Assumptions!$112:$112,Assumptions!117:117)*BK$108 -> 43.2675 | BL115: =LOOKUP(BL$107,Assumptions!$112:$112,Assumptions!117:117)*BL$108 -> 43.2675 | BM115: =LOOKUP(BM$107,Assumptions!$112:$112,Assumptions!117:117)*BM$108 -> 43.2675 | BN115: =LOOKUP(BN$107,Assumptions!$112:$112,Assumptions!117:117)*BN$108 -> 46.1295 | BO115: =LOOKUP(BO$107,Assumptions!$112:$112,Assumptions!117:117)*BO$108 -> 46.1295 | BP115: =LOOKUP(BP$107,Assumptions!$112:$112,Assumptions!117:117)*BP$108 -> 46.1295 | BQ115: =LOOKUP(BQ$107,Assumptions!$112:$112,Assumptions!117:117)*BQ$108 -> 46.1295 | BR115: =LOOKUP(BR$107,Assumptions!$112:$112,Assumptions!117:117)*BR$108 -> 48.8295 | BS115: =LOOKUP(BS$107,Assumptions!$112:$112,Assumptions!117:117)*BS$108 -> 48.8295 | BT115: =LOOKUP(BT$107,Assumptions!$112:$112,Assumptions!117:117)*BT$108 -> 48.8295 | BU115: =LOOKUP(BU$107,Assumptions!$112:$112,Assumptions!117:117)*BU$108 -> 48.8295 | BV115: =LOOKUP(BV$107,Assumptions!$112:$112,Assumptions!117:117)*BV$108 -> 50.652 | BW115: =LOOKUP(BW$107,Assumptions!$112:$112,Assumptions!117:117)*BW$108 -> 50.652 | BX115: =LOOKUP(BX$107,Assumptions!$112:$112,Assumptions!117:117)*BX$108 -> 50.652 | BY115: =LOOKUP(BY$107,Assumptions!$112:$112,Assumptions!117:117)*BY$108 -> 50.652 | BZ115: =LOOKUP(BZ$107,Assumptions!$112:$112,Assumptions!117:117)*BZ$108 -> 51.6375 | CA115: =LOOKUP(CA$107,Assumptions!$112:$112,Assumptions!117:117)*CA$108 -> 51.6375 | CB115: =LOOKUP(CB$107,Assumptions!$112:$112,Assumptions!117:117)*CB$108 -> 51.6375 | CC115: =LOOKUP(CC$107,Assumptions!$112:$112,Assumptions!117:117)*CC$108 -> 51.6375 | CD115: =LOOKUP(CD$107,Assumptions!$112:$112,Assumptions!117:117)*CD$108 -> 54.513 | CE115: =LOOKUP(CE$107,Assumptions!$112:$112,Assumptions!117:117)*CE$108 -> 54.513 | CF115: =LOOKUP(CF$107,Assumptions!$112:$112,Assumptions!117:117)*CF$108 -> 54.513 | CG115: =LOOKUP(CG$107,Assumptions!$112:$112,Assumptions!117:117)*CG$108 -> 54.513 | CH115: =LOOKUP(CH$107,Assumptions!$112:$112,Assumptions!117:117)*CH$108 -> 56.376 | CI115: =LOOKUP(CI$107,Assumptions!$112:$112,Assumptions!117:117)*CI$108 -> 56.376 | CJ115: =LOOKUP(CJ$107,Assumptions!$112:$112,Assumptions!117:117)*CJ$108 -> 56.376 | CK115: =LOOKUP(CK$107,Assumptions!$112:$112,Assumptions!117:117)*CK$108 -> 56.376 | CL115: =LOOKUP(CL$107,Assumptions!$112:$112,Assumptions!117:117)*CL$108 -> 60.4935 | CM115: =LOOKUP(CM$107,Assumptions!$112:$112,Assumptions!117:117)*CM$108 -> 60.4935 | CN115: =LOOKUP(CN$107,Assumptions!$112:$112,Assumptions!117:117)*CN$108 -> 60.4935 | CO115: =LOOKUP(CO$107,Assumptions!$112:$112,Assumptions!117:117)*CO$108 -> 60.4935 | CP115: =LOOKUP(CP$107,Assumptions!$112:$112,Assumptions!117:117)*CP$108 -> 63.9225 | CQ115: =LOOKUP(CQ$107,Assumptions!$112:$112,Assumptions!117:117)*CQ$108 -> 63.9225 | CR115: =LOOKUP(CR$107,Assumptions!$112:$112,Assumptions!117:117)*CR$108 -> 63.9225 | CS115: =LOOKUP(CS$107,Assumptions!$112:$112,Assumptions!117:117)*CS$108 -> 63.9225 | CT115: =LOOKUP(CT$107,Assumptions!$112:$112,Assumptions!117:117)*CT$108 -> 67.716 | CU115: =LOOKUP(CU$107,Assumptions!$112:$112,Assumptions!117:117)*CU$108 -> 67.716 | CV115: =LOOKUP(CV$107,Assumptions!$112:$112,Assumptions!117:117)*CV$108 -> 67.716 | CW115: =LOOKUP(CW$107,Assumptions!$112:$112,Assumptions!117:117)*CW$108 -> 67.716 | CX115: =LOOKUP(CX$107,Assumptions!$112:$112,Assumptions!117:117)*CX$108 -> 71.3205 | CY115: =LOOKUP(CY$107,Assumptions!$112:$112,Assumptions!117:117)*CY$108 -> 71.3205 | CZ115: =LOOKUP(CZ$107,Assumptions!$112:$112,Assumptions!117:117)*CZ$108 -> 71.3205 | DA115: =LOOKUP(DA$107,Assumptions!$112:$112,Assumptions!117:117)*DA$108 -> 71.3205 | DB115: =LOOKUP(DB$107,Assumptions!$112:$112,Assumptions!117:117)*DB$108 -> 72.3735 | DC115: =LOOKUP(DC$107,Assumptions!$112:$112,Assumptions!117:117)*DC$108 -> 72.3735 | DD115: =LOOKUP(DD$107,Assumptions!$112:$112,Assumptions!117:117)*DD$108 -> 72.3735 | DE115: =LOOKUP(DE$107,Assumptions!$112:$112,Assumptions!117:117)*DE$108 -> 72.3735 | DF115: =LOOKUP(DF$107,Assumptions!$112:$112,Assumptions!117:117)*DF$108 -> 72.954 | DG115: =LOOKUP(DG$107,Assumptions!$112:$112,Assumptions!117:117)*DG$108 -> 72.954 | DH115: =LOOKUP(DH$107,Assumptions!$112:$112,Assumptions!117:117)*DH$108 -> 72.954 | DI115: =LOOKUP(DI$107,Assumptions!$112:$112,Assumptions!117:117)*DI$108 -> 72.954 | DJ115: =LOOKUP(DJ$107,Assumptions!$112:$112,Assumptions!117:117)*DJ$108 -> 73.602 | DK115: =LOOKUP(DK$107,Assumptions!$112:$112,Assumptions!117:117)*DK$108 -> 73.602 | DL115: =LOOKUP(DL$107,Assumptions!$112:$112,Assumptions!117:117)*DL$108 -> 73.602 | DM115: =LOOKUP(DM$107,Assumptions!$112:$112,Assumptions!117:117)*DM$108 -> 73.602 | DN115: =LOOKUP(DN$107,Assumptions!$112:$112,Assumptions!117:117)*DN$108 -> 74.763 | DO115: =LOOKUP(DO$107,Assumptions!$112:$112,Assumptions!117:117)*DO$108 -> 74.763 | DP115: =LOOKUP(DP$107,Assumptions!$112:$112,Assumptions!117:117)*DP$108 -> 74.763 | DQ115: =LOOKUP(DQ$107,Assumptions!$112:$112,Assumptions!117:117)*DQ$108 -> 74.763
E116: June | F116: Euro/MWH | K116: =LOOKUP(K$107,Assumptions!$112:$112,Assumptions!118:118)*K$108 -> 29.6865 | L116: =LOOKUP(L$107,Assumptions!$112:$112,Assumptions!118:118)*L$108 -> 29.6865 | M116: =LOOKUP(M$107,Assumptions!$112:$112,Assumptions!118:118)*M$108 -> 29.6865 | N116: =LOOKUP(N$107,Assumptions!$112:$112,Assumptions!118:118)*N$108 -> 29.6865 | O116: =LOOKUP(O$107,Assumptions!$112:$112,Assumptions!118:118)*O$108 -> 29.6865 | P116: =LOOKUP(P$107,Assumptions!$112:$112,Assumptions!118:118)*P$108 -> 29.6865 | Q116: =LOOKUP(Q$107,Assumptions!$112:$112,Assumptions!118:118)*Q$108 -> 29.6865 | R116: =LOOKUP(R$107,Assumptions!$112:$112,Assumptions!118:118)*R$108 -> 29.6865 | S116: =LOOKUP(S$107,Assumptions!$112:$112,Assumptions!118:118)*S$108 -> 29.6865 | T116: =LOOKUP(T$107,Assumptions!$112:$112,Assumptions!118:118)*T$108 -> 29.6865 | U116: =LOOKUP(U$107,Assumptions!$112:$112,Assumptions!118:118)*U$108 -> 29.6865 | V116: =LOOKUP(V$107,Assumptions!$112:$112,Assumptions!118:118)*V$108 -> 29.6865 | W116: =LOOKUP(W$107,Assumptions!$112:$112,Assumptions!118:118)*W$108 -> 29.6865 | X116: =LOOKUP(X$107,Assumptions!$112:$112,Assumptions!118:118)*X$108 -> 29.6865 | Y116: =LOOKUP(Y$107,Assumptions!$112:$112,Assumptions!118:118)*Y$108 -> 29.6865 | Z116: =LOOKUP(Z$107,Assumptions!$112:$112,Assumptions!118:118)*Z$108 -> 29.6865 | AA116: =LOOKUP(AA$107,Assumptions!$112:$112,Assumptions!118:118)*AA$108 -> 29.6865 | AB116: =LOOKUP(AB$107,Assumptions!$112:$112,Assumptions!118:118)*AB$108 -> 29.6865 | AC116: =LOOKUP(AC$107,Assumptions!$112:$112,Assumptions!118:118)*AC$108 -> 29.6865 | AD116: =LOOKUP(AD$107,Assumptions!$112:$112,Assumptions!118:118)*AD$108 -> 30.699 | AE116: =LOOKUP(AE$107,Assumptions!$112:$112,Assumptions!118:118)*AE$108 -> 30.699 | AF116: =LOOKUP(AF$107,Assumptions!$112:$112,Assumptions!118:118)*AF$108 -> 30.699 | AG116: =LOOKUP(AG$107,Assumptions!$112:$112,Assumptions!118:118)*AG$108 -> 30.699 | AH116: =LOOKUP(AH$107,Assumptions!$112:$112,Assumptions!118:118)*AH$108 -> 0.62802 | AI116: =LOOKUP(AI$107,Assumptions!$112:$112,Assumptions!118:118)*AI$108 -> 0.62802 | AJ116: =LOOKUP(AJ$107,Assumptions!$112:$112,Assumptions!118:118)*AJ$108 -> 0.62802 | AK116: =LOOKUP(AK$107,Assumptions!$112:$112,Assumptions!118:118)*AK$108 -> 0.62802 | AL116: =LOOKUP(AL$107,Assumptions!$112:$112,Assumptions!118:118)*AL$108 -> 3.1536 | AM116: =LOOKUP(AM$107,Assumptions!$112:$112,Assumptions!118:118)*AM$108 -> 3.1536 | AN116: =LOOKUP(AN$107,Assumptions!$112:$112,Assumptions!118:118)*AN$108 -> 3.1536 | AO116: =LOOKUP(AO$107,Assumptions!$112:$112,Assumptions!118:118)*AO$108 -> 3.1536 | AP116: =LOOKUP(AP$107,Assumptions!$112:$112,Assumptions!118:118)*AP$108 -> 6.7689 | AQ116: =LOOKUP(AQ$107,Assumptions!$112:$112,Assumptions!118:118)*AQ$108 -> 6.7689 | AR116: =LOOKUP(AR$107,Assumptions!$112:$112,Assumptions!118:118)*AR$108 -> 6.7689 | AS116: =LOOKUP(AS$107,Assumptions!$112:$112,Assumptions!118:118)*AS$108 -> 6.7689 | AT116: =LOOKUP(AT$107,Assumptions!$112:$112,Assumptions!118:118)*AT$108 -> 17.052525 | AU116: =LOOKUP(AU$107,Assumptions!$112:$112,Assumptions!118:118)*AU$108 -> 17.052525 | AV116: =LOOKUP(AV$107,Assumptions!$112:$112,Assumptions!118:118)*AV$108 -> 17.052525 | AW116: =LOOKUP(AW$107,Assumptions!$112:$112,Assumptions!118:118)*AW$108 -> 17.052525 | AX116: =LOOKUP(AX$107,Assumptions!$112:$112,Assumptions!118:118)*AX$108 -> 39.1095 | AY116: =LOOKUP(AY$107,Assumptions!$112:$112,Assumptions!118:118)*AY$108 -> 39.1095 | AZ116: =LOOKUP(AZ$107,Assumptions!$112:$112,Assumptions!118:118)*AZ$108 -> 39.1095 | BA116: =LOOKUP(BA$107,Assumptions!$112:$112,Assumptions!118:118)*BA$108 -> 39.1095 | BB116: =LOOKUP(BB$107,Assumptions!$112:$112,Assumptions!118:118)*BB$108 -> 39.312 | BC116: =LOOKUP(BC$107,Assumptions!$112:$112,Assumptions!118:118)*BC$108 -> 39.312 | BD116: =LOOKUP(BD$107,Assumptions!$112:$112,Assumptions!118:118)*BD$108 -> 39.312 | BE116: =LOOKUP(BE$107,Assumptions!$112:$112,Assumptions!118:118)*BE$108 -> 39.312 | BF116: =LOOKUP(BF$107,Assumptions!$112:$112,Assumptions!118:118)*BF$108 -> 41.1075 | BG116: =LOOKUP(BG$107,Assumptions!$112:$112,Assumptions!118:118)*BG$108 -> 41.1075 | BH116: =LOOKUP(BH$107,Assumptions!$112:$112,Assumptions!118:118)*BH$108 -> 41.1075 | BI116: =LOOKUP(BI$107,Assumptions!$112:$112,Assumptions!118:118)*BI$108 -> 41.1075 | BJ116: =LOOKUP(BJ$107,Assumptions!$112:$112,Assumptions!118:118)*BJ$108 -> 43.2675 | BK116: =LOOKUP(BK$107,Assumptions!$112:$112,Assumptions!118:118)*BK$108 -> 43.2675 | BL116: =LOOKUP(BL$107,Assumptions!$112:$112,Assumptions!118:118)*BL$108 -> 43.2675 | BM116: =LOOKUP(BM$107,Assumptions!$112:$112,Assumptions!118:118)*BM$108 -> 43.2675 | BN116: =LOOKUP(BN$107,Assumptions!$112:$112,Assumptions!118:118)*BN$108 -> 46.1295 | BO116: =LOOKUP(BO$107,Assumptions!$112:$112,Assumptions!118:118)*BO$108 -> 46.1295 | BP116: =LOOKUP(BP$107,Assumptions!$112:$112,Assumptions!118:118)*BP$108 -> 46.1295 | BQ116: =LOOKUP(BQ$107,Assumptions!$112:$112,Assumptions!118:118)*BQ$108 -> 46.1295 | BR116: =LOOKUP(BR$107,Assumptions!$112:$112,Assumptions!118:118)*BR$108 -> 48.8295 | BS116: =LOOKUP(BS$107,Assumptions!$112:$112,Assumptions!118:118)*BS$108 -> 48.8295 | BT116: =LOOKUP(BT$107,Assumptions!$112:$112,Assumptions!118:118)*BT$108 -> 48.8295 | BU116: =LOOKUP(BU$107,Assumptions!$112:$112,Assumptions!118:118)*BU$108 -> 48.8295 | BV116: =LOOKUP(BV$107,Assumptions!$112:$112,Assumptions!118:118)*BV$108 -> 50.652 | BW116: =LOOKUP(BW$107,Assumptions!$112:$112,Assumptions!118:118)*BW$108 -> 50.652 | BX116: =LOOKUP(BX$107,Assumptions!$112:$112,Assumptions!118:118)*BX$108 -> 50.652 | BY116: =LOOKUP(BY$107,Assumptions!$112:$112,Assumptions!118:118)*BY$108 -> 50.652 | BZ116: =LOOKUP(BZ$107,Assumptions!$112:$112,Assumptions!118:118)*BZ$108 -> 51.6375 | CA116: =LOOKUP(CA$107,Assumptions!$112:$112,Assumptions!118:118)*CA$108 -> 51.6375 | CB116: =LOOKUP(CB$107,Assumptions!$112:$112,Assumptions!118:118)*CB$108 -> 51.6375 | CC116: =LOOKUP(CC$107,Assumptions!$112:$112,Assumptions!118:118)*CC$108 -> 51.6375 | CD116: =LOOKUP(CD$107,Assumptions!$112:$112,Assumptions!118:118)*CD$108 -> 54.513 | CE116: =LOOKUP(CE$107,Assumptions!$112:$112,Assumptions!118:118)*CE$108 -> 54.513 | CF116: =LOOKUP(CF$107,Assumptions!$112:$112,Assumptions!118:118)*CF$108 -> 54.513 | CG116: =LOOKUP(CG$107,Assumptions!$112:$112,Assumptions!118:118)*CG$108 -> 54.513 | CH116: =LOOKUP(CH$107,Assumptions!$112:$112,Assumptions!118:118)*CH$108 -> 56.376 | CI116: =LOOKUP(CI$107,Assumptions!$112:$112,Assumptions!118:118)*CI$108 -> 56.376 | CJ116: =LOOKUP(CJ$107,Assumptions!$112:$112,Assumptions!118:118)*CJ$108 -> 56.376 | CK116: =LOOKUP(CK$107,Assumptions!$112:$112,Assumptions!118:118)*CK$108 -> 56.376 | CL116: =LOOKUP(CL$107,Assumptions!$112:$112,Assumptions!118:118)*CL$108 -> 60.4935 | CM116: =LOOKUP(CM$107,Assumptions!$112:$112,Assumptions!118:118)*CM$108 -> 60.4935 | CN116: =LOOKUP(CN$107,Assumptions!$112:$112,Assumptions!118:118)*CN$108 -> 60.4935 | CO116: =LOOKUP(CO$107,Assumptions!$112:$112,Assumptions!118:118)*CO$108 -> 60.4935 | CP116: =LOOKUP(CP$107,Assumptions!$112:$112,Assumptions!118:118)*CP$108 -> 63.9225 | CQ116: =LOOKUP(CQ$107,Assumptions!$112:$112,Assumptions!118:118)*CQ$108 -> 63.9225 | CR116: =LOOKUP(CR$107,Assumptions!$112:$112,Assumptions!118:118)*CR$108 -> 63.9225 | CS116: =LOOKUP(CS$107,Assumptions!$112:$112,Assumptions!118:118)*CS$108 -> 63.9225 | CT116: =LOOKUP(CT$107,Assumptions!$112:$112,Assumptions!118:118)*CT$108 -> 67.716 | CU116: =LOOKUP(CU$107,Assumptions!$112:$112,Assumptions!118:118)*CU$108 -> 67.716 | CV116: =LOOKUP(CV$107,Assumptions!$112:$112,Assumptions!118:118)*CV$108 -> 67.716 | CW116: =LOOKUP(CW$107,Assumptions!$112:$112,Assumptions!118:118)*CW$108 -> 67.716 | CX116: =LOOKUP(CX$107,Assumptions!$112:$112,Assumptions!118:118)*CX$108 -> 71.3205 | CY116: =LOOKUP(CY$107,Assumptions!$112:$112,Assumptions!118:118)*CY$108 -> 71.3205 | CZ116: =LOOKUP(CZ$107,Assumptions!$112:$112,Assumptions!118:118)*CZ$108 -> 71.3205 | DA116: =LOOKUP(DA$107,Assumptions!$112:$112,Assumptions!118:118)*DA$108 -> 71.3205 | DB116: =LOOKUP(DB$107,Assumptions!$112:$112,Assumptions!118:118)*DB$108 -> 72.3735 | DC116: =LOOKUP(DC$107,Assumptions!$112:$112,Assumptions!118:118)*DC$108 -> 72.3735 | DD116: =LOOKUP(DD$107,Assumptions!$112:$112,Assumptions!118:118)*DD$108 -> 72.3735 | DE116: =LOOKUP(DE$107,Assumptions!$112:$112,Assumptions!118:118)*DE$108 -> 72.3735 | DF116: =LOOKUP(DF$107,Assumptions!$112:$112,Assumptions!118:118)*DF$108 -> 72.954 | DG116: =LOOKUP(DG$107,Assumptions!$112:$112,Assumptions!118:118)*DG$108 -> 72.954 | DH116: =LOOKUP(DH$107,Assumptions!$112:$112,Assumptions!118:118)*DH$108 -> 72.954 | DI116: =LOOKUP(DI$107,Assumptions!$112:$112,Assumptions!118:118)*DI$108 -> 72.954 | DJ116: =LOOKUP(DJ$107,Assumptions!$112:$112,Assumptions!118:118)*DJ$108 -> 73.602 | DK116: =LOOKUP(DK$107,Assumptions!$112:$112,Assumptions!118:118)*DK$108 -> 73.602 | DL116: =LOOKUP(DL$107,Assumptions!$112:$112,Assumptions!118:118)*DL$108 -> 73.602 | DM116: =LOOKUP(DM$107,Assumptions!$112:$112,Assumptions!118:118)*DM$108 -> 73.602 | DN116: =LOOKUP(DN$107,Assumptions!$112:$112,Assumptions!118:118)*DN$108 -> 74.763 | DO116: =LOOKUP(DO$107,Assumptions!$112:$112,Assumptions!118:118)*DO$108 -> 74.763 | DP116: =LOOKUP(DP$107,Assumptions!$112:$112,Assumptions!118:118)*DP$108 -> 74.763 | DQ116: =LOOKUP(DQ$107,Assumptions!$112:$112,Assumptions!118:118)*DQ$108 -> 74.763
E117: July | F117: Euro/MWH | K117: =LOOKUP(K$107,Assumptions!$112:$112,Assumptions!119:119)*K$108 -> 29.6865 | L117: =LOOKUP(L$107,Assumptions!$112:$112,Assumptions!119:119)*L$108 -> 29.6865 | M117: =LOOKUP(M$107,Assumptions!$112:$112,Assumptions!119:119)*M$108 -> 29.6865 | N117: =LOOKUP(N$107,Assumptions!$112:$112,Assumptions!119:119)*N$108 -> 29.6865 | O117: =LOOKUP(O$107,Assumptions!$112:$112,Assumptions!119:119)*O$108 -> 29.6865 | P117: =LOOKUP(P$107,Assumptions!$112:$112,Assumptions!119:119)*P$108 -> 29.6865 | Q117: =LOOKUP(Q$107,Assumptions!$112:$112,Assumptions!119:119)*Q$108 -> 29.6865 | R117: =LOOKUP(R$107,Assumptions!$112:$112,Assumptions!119:119)*R$108 -> 29.6865 | S117: =LOOKUP(S$107,Assumptions!$112:$112,Assumptions!119:119)*S$108 -> 29.6865 | T117: =LOOKUP(T$107,Assumptions!$112:$112,Assumptions!119:119)*T$108 -> 29.6865 | U117: =LOOKUP(U$107,Assumptions!$112:$112,Assumptions!119:119)*U$108 -> 29.6865 | V117: =LOOKUP(V$107,Assumptions!$112:$112,Assumptions!119:119)*V$108 -> 29.6865 | W117: =LOOKUP(W$107,Assumptions!$112:$112,Assumptions!119:119)*W$108 -> 29.6865 | X117: =LOOKUP(X$107,Assumptions!$112:$112,Assumptions!119:119)*X$108 -> 29.6865 | Y117: =LOOKUP(Y$107,Assumptions!$112:$112,Assumptions!119:119)*Y$108 -> 29.6865 | Z117: =LOOKUP(Z$107,Assumptions!$112:$112,Assumptions!119:119)*Z$108 -> 29.6865 | AA117: =LOOKUP(AA$107,Assumptions!$112:$112,Assumptions!119:119)*AA$108 -> 29.6865 | AB117: =LOOKUP(AB$107,Assumptions!$112:$112,Assumptions!119:119)*AB$108 -> 29.6865 | AC117: =LOOKUP(AC$107,Assumptions!$112:$112,Assumptions!119:119)*AC$108 -> 29.6865 | AD117: =LOOKUP(AD$107,Assumptions!$112:$112,Assumptions!119:119)*AD$108 -> 30.699 | AE117: =LOOKUP(AE$107,Assumptions!$112:$112,Assumptions!119:119)*AE$108 -> 30.699 | AF117: =LOOKUP(AF$107,Assumptions!$112:$112,Assumptions!119:119)*AF$108 -> 30.699 | AG117: =LOOKUP(AG$107,Assumptions!$112:$112,Assumptions!119:119)*AG$108 -> 30.699 | AH117: =LOOKUP(AH$107,Assumptions!$112:$112,Assumptions!119:119)*AH$108 -> 0.62802 | AI117: =LOOKUP(AI$107,Assumptions!$112:$112,Assumptions!119:119)*AI$108 -> 0.62802 | AJ117: =LOOKUP(AJ$107,Assumptions!$112:$112,Assumptions!119:119)*AJ$108 -> 0.62802 | AK117: =LOOKUP(AK$107,Assumptions!$112:$112,Assumptions!119:119)*AK$108 -> 0.62802 | AL117: =LOOKUP(AL$107,Assumptions!$112:$112,Assumptions!119:119)*AL$108 -> 3.1536 | AM117: =LOOKUP(AM$107,Assumptions!$112:$112,Assumptions!119:119)*AM$108 -> 3.1536 | AN117: =LOOKUP(AN$107,Assumptions!$112:$112,Assumptions!119:119)*AN$108 -> 3.1536 | AO117: =LOOKUP(AO$107,Assumptions!$112:$112,Assumptions!119:119)*AO$108 -> 3.1536 | AP117: =LOOKUP(AP$107,Assumptions!$112:$112,Assumptions!119:119)*AP$108 -> 10.15335 | AQ117: =LOOKUP(AQ$107,Assumptions!$112:$112,Assumptions!119:119)*AQ$108 -> 10.15335 | AR117: =LOOKUP(AR$107,Assumptions!$112:$112,Assumptions!119:119)*AR$108 -> 10.15335 | AS117: =LOOKUP(AS$107,Assumptions!$112:$112,Assumptions!119:119)*AS$108 -> 10.15335 | AT117: =LOOKUP(AT$107,Assumptions!$112:$112,Assumptions!119:119)*AT$108 -> 17.052525 | AU117: =LOOKUP(AU$107,Assumptions!$112:$112,Assumptions!119:119)*AU$108 -> 17.052525 | AV117: =LOOKUP(AV$107,Assumptions!$112:$112,Assumptions!119:119)*AV$108 -> 17.052525 | AW117: =LOOKUP(AW$107,Assumptions!$112:$112,Assumptions!119:119)*AW$108 -> 17.052525 | AX117: =LOOKUP(AX$107,Assumptions!$112:$112,Assumptions!119:119)*AX$108 -> 39.1095 | AY117: =LOOKUP(AY$107,Assumptions!$112:$112,Assumptions!119:119)*AY$108 -> 39.1095 | AZ117: =LOOKUP(AZ$107,Assumptions!$112:$112,Assumptions!119:119)*AZ$108 -> 39.1095 | BA117: =LOOKUP(BA$107,Assumptions!$112:$112,Assumptions!119:119)*BA$108 -> 39.1095 | BB117: =LOOKUP(BB$107,Assumptions!$112:$112,Assumptions!119:119)*BB$108 -> 39.312 | BC117: =LOOKUP(BC$107,Assumptions!$112:$112,Assumptions!119:119)*BC$108 -> 39.312 | BD117: =LOOKUP(BD$107,Assumptions!$112:$112,Assumptions!119:119)*BD$108 -> 39.312 | BE117: =LOOKUP(BE$107,Assumptions!$112:$112,Assumptions!119:119)*BE$108 -> 39.312 | BF117: =LOOKUP(BF$107,Assumptions!$112:$112,Assumptions!119:119)*BF$108 -> 41.1075 | BG117: =LOOKUP(BG$107,Assumptions!$112:$112,Assumptions!119:119)*BG$108 -> 41.1075 | BH117: =LOOKUP(BH$107,Assumptions!$112:$112,Assumptions!119:119)*BH$108 -> 41.1075 | BI117: =LOOKUP(BI$107,Assumptions!$112:$112,Assumptions!119:119)*BI$108 -> 41.1075 | BJ117: =LOOKUP(BJ$107,Assumptions!$112:$112,Assumptions!119:119)*BJ$108 -> 43.2675 | BK117: =LOOKUP(BK$107,Assumptions!$112:$112,Assumptions!119:119)*BK$108 -> 43.2675 | BL117: =LOOKUP(BL$107,Assumptions!$112:$112,Assumptions!119:119)*BL$108 -> 43.2675 | BM117: =LOOKUP(BM$107,Assumptions!$112:$112,Assumptions!119:119)*BM$108 -> 43.2675 | BN117: =LOOKUP(BN$107,Assumptions!$112:$112,Assumptions!119:119)*BN$108 -> 46.1295 | BO117: =LOOKUP(BO$107,Assumptions!$112:$112,Assumptions!119:119)*BO$108 -> 46.1295 | BP117: =LOOKUP(BP$107,Assumptions!$112:$112,Assumptions!119:119)*BP$108 -> 46.1295 | BQ117: =LOOKUP(BQ$107,Assumptions!$112:$112,Assumptions!119:119)*BQ$108 -> 46.1295 | BR117: =LOOKUP(BR$107,Assumptions!$112:$112,Assumptions!119:119)*BR$108 -> 48.8295 | BS117: =LOOKUP(BS$107,Assumptions!$112:$112,Assumptions!119:119)*BS$108 -> 48.8295 | BT117: =LOOKUP(BT$107,Assumptions!$112:$112,Assumptions!119:119)*BT$108 -> 48.8295 | BU117: =LOOKUP(BU$107,Assumptions!$112:$112,Assumptions!119:119)*BU$108 -> 48.8295 | BV117: =LOOKUP(BV$107,Assumptions!$112:$112,Assumptions!119:119)*BV$108 -> 50.652 | BW117: =LOOKUP(BW$107,Assumptions!$112:$112,Assumptions!119:119)*BW$108 -> 50.652 | BX117: =LOOKUP(BX$107,Assumptions!$112:$112,Assumptions!119:119)*BX$108 -> 50.652 | BY117: =LOOKUP(BY$107,Assumptions!$112:$112,Assumptions!119:119)*BY$108 -> 50.652 | BZ117: =LOOKUP(BZ$107,Assumptions!$112:$112,Assumptions!119:119)*BZ$108 -> 51.6375 | CA117: =LOOKUP(CA$107,Assumptions!$112:$112,Assumptions!119:119)*CA$108 -> 51.6375 | CB117: =LOOKUP(CB$107,Assumptions!$112:$112,Assumptions!119:119)*CB$108 -> 51.6375 | CC117: =LOOKUP(CC$107,Assumptions!$112:$112,Assumptions!119:119)*CC$108 -> 51.6375 | CD117: =LOOKUP(CD$107,Assumptions!$112:$112,Assumptions!119:119)*CD$108 -> 54.513 | CE117: =LOOKUP(CE$107,Assumptions!$112:$112,Assumptions!119:119)*CE$108 -> 54.513 | CF117: =LOOKUP(CF$107,Assumptions!$112:$112,Assumptions!119:119)*CF$108 -> 54.513 | CG117: =LOOKUP(CG$107,Assumptions!$112:$112,Assumptions!119:119)*CG$108 -> 54.513 | CH117: =LOOKUP(CH$107,Assumptions!$112:$112,Assumptions!119:119)*CH$108 -> 56.376 | CI117: =LOOKUP(CI$107,Assumptions!$112:$112,Assumptions!119:119)*CI$108 -> 56.376 | CJ117: =LOOKUP(CJ$107,Assumptions!$112:$112,Assumptions!119:119)*CJ$108 -> 56.376 | CK117: =LOOKUP(CK$107,Assumptions!$112:$112,Assumptions!119:119)*CK$108 -> 56.376 | CL117: =LOOKUP(CL$107,Assumptions!$112:$112,Assumptions!119:119)*CL$108 -> 60.4935 | CM117: =LOOKUP(CM$107,Assumptions!$112:$112,Assumptions!119:119)*CM$108 -> 60.4935 | CN117: =LOOKUP(CN$107,Assumptions!$112:$112,Assumptions!119:119)*CN$108 -> 60.4935 | CO117: =LOOKUP(CO$107,Assumptions!$112:$112,Assumptions!119:119)*CO$108 -> 60.4935 | CP117: =LOOKUP(CP$107,Assumptions!$112:$112,Assumptions!119:119)*CP$108 -> 63.9225 | CQ117: =LOOKUP(CQ$107,Assumptions!$112:$112,Assumptions!119:119)*CQ$108 -> 63.9225 | CR117: =LOOKUP(CR$107,Assumptions!$112:$112,Assumptions!119:119)*CR$108 -> 63.9225 | CS117: =LOOKUP(CS$107,Assumptions!$112:$112,Assumptions!119:119)*CS$108 -> 63.9225 | CT117: =LOOKUP(CT$107,Assumptions!$112:$112,Assumptions!119:119)*CT$108 -> 67.716 | CU117: =LOOKUP(CU$107,Assumptions!$112:$112,Assumptions!119:119)*CU$108 -> 67.716 | CV117: =LOOKUP(CV$107,Assumptions!$112:$112,Assumptions!119:119)*CV$108 -> 67.716 | CW117: =LOOKUP(CW$107,Assumptions!$112:$112,Assumptions!119:119)*CW$108 -> 67.716 | CX117: =LOOKUP(CX$107,Assumptions!$112:$112,Assumptions!119:119)*CX$108 -> 71.3205 | CY117: =LOOKUP(CY$107,Assumptions!$112:$112,Assumptions!119:119)*CY$108 -> 71.3205 | CZ117: =LOOKUP(CZ$107,Assumptions!$112:$112,Assumptions!119:119)*CZ$108 -> 71.3205 | DA117: =LOOKUP(DA$107,Assumptions!$112:$112,Assumptions!119:119)*DA$108 -> 71.3205 | DB117: =LOOKUP(DB$107,Assumptions!$112:$112,Assumptions!119:119)*DB$108 -> 72.3735 | DC117: =LOOKUP(DC$107,Assumptions!$112:$112,Assumptions!119:119)*DC$108 -> 72.3735 | DD117: =LOOKUP(DD$107,Assumptions!$112:$112,Assumptions!119:119)*DD$108 -> 72.3735 | DE117: =LOOKUP(DE$107,Assumptions!$112:$112,Assumptions!119:119)*DE$108 -> 72.3735 | DF117: =LOOKUP(DF$107,Assumptions!$112:$112,Assumptions!119:119)*DF$108 -> 72.954 | DG117: =LOOKUP(DG$107,Assumptions!$112:$112,Assumptions!119:119)*DG$108 -> 72.954 | DH117: =LOOKUP(DH$107,Assumptions!$112:$112,Assumptions!119:119)*DH$108 -> 72.954 | DI117: =LOOKUP(DI$107,Assumptions!$112:$112,Assumptions!119:119)*DI$108 -> 72.954 | DJ117: =LOOKUP(DJ$107,Assumptions!$112:$112,Assumptions!119:119)*DJ$108 -> 73.602 | DK117: =LOOKUP(DK$107,Assumptions!$112:$112,Assumptions!119:119)*DK$108 -> 73.602 | DL117: =LOOKUP(DL$107,Assumptions!$112:$112,Assumptions!119:119)*DL$108 -> 73.602 | DM117: =LOOKUP(DM$107,Assumptions!$112:$112,Assumptions!119:119)*DM$108 -> 73.602 | DN117: =LOOKUP(DN$107,Assumptions!$112:$112,Assumptions!119:119)*DN$108 -> 74.763 | DO117: =LOOKUP(DO$107,Assumptions!$112:$112,Assumptions!119:119)*DO$108 -> 74.763 | DP117: =LOOKUP(DP$107,Assumptions!$112:$112,Assumptions!119:119)*DP$108 -> 74.763 | DQ117: =LOOKUP(DQ$107,Assumptions!$112:$112,Assumptions!119:119)*DQ$108 -> 74.763
E118: August | F118: Euro/MWH | K118: =LOOKUP(K$107,Assumptions!$112:$112,Assumptions!120:120)*K$108 -> 29.6865 | L118: =LOOKUP(L$107,Assumptions!$112:$112,Assumptions!120:120)*L$108 -> 29.6865 | M118: =LOOKUP(M$107,Assumptions!$112:$112,Assumptions!120:120)*M$108 -> 29.6865 | N118: =LOOKUP(N$107,Assumptions!$112:$112,Assumptions!120:120)*N$108 -> 29.6865 | O118: =LOOKUP(O$107,Assumptions!$112:$112,Assumptions!120:120)*O$108 -> 29.6865 | P118: =LOOKUP(P$107,Assumptions!$112:$112,Assumptions!120:120)*P$108 -> 29.6865 | Q118: =LOOKUP(Q$107,Assumptions!$112:$112,Assumptions!120:120)*Q$108 -> 29.6865 | R118: =LOOKUP(R$107,Assumptions!$112:$112,Assumptions!120:120)*R$108 -> 29.6865 | S118: =LOOKUP(S$107,Assumptions!$112:$112,Assumptions!120:120)*S$108 -> 29.6865 | T118: =LOOKUP(T$107,Assumptions!$112:$112,Assumptions!120:120)*T$108 -> 29.6865 | U118: =LOOKUP(U$107,Assumptions!$112:$112,Assumptions!120:120)*U$108 -> 29.6865 | V118: =LOOKUP(V$107,Assumptions!$112:$112,Assumptions!120:120)*V$108 -> 29.6865 | W118: =LOOKUP(W$107,Assumptions!$112:$112,Assumptions!120:120)*W$108 -> 29.6865 | X118: =LOOKUP(X$107,Assumptions!$112:$112,Assumptions!120:120)*X$108 -> 29.6865 | Y118: =LOOKUP(Y$107,Assumptions!$112:$112,Assumptions!120:120)*Y$108 -> 29.6865 | Z118: =LOOKUP(Z$107,Assumptions!$112:$112,Assumptions!120:120)*Z$108 -> 29.6865 | AA118: =LOOKUP(AA$107,Assumptions!$112:$112,Assumptions!120:120)*AA$108 -> 29.6865 | AB118: =LOOKUP(AB$107,Assumptions!$112:$112,Assumptions!120:120)*AB$108 -> 29.6865 | AC118: =LOOKUP(AC$107,Assumptions!$112:$112,Assumptions!120:120)*AC$108 -> 29.6865 | AD118: =LOOKUP(AD$107,Assumptions!$112:$112,Assumptions!120:120)*AD$108 -> 30.699 | AE118: =LOOKUP(AE$107,Assumptions!$112:$112,Assumptions!120:120)*AE$108 -> 30.699 | AF118: =LOOKUP(AF$107,Assumptions!$112:$112,Assumptions!120:120)*AF$108 -> 30.699 | AG118: =LOOKUP(AG$107,Assumptions!$112:$112,Assumptions!120:120)*AG$108 -> 30.699 | AH118: =LOOKUP(AH$107,Assumptions!$112:$112,Assumptions!120:120)*AH$108 -> 0.62802 | AI118: =LOOKUP(AI$107,Assumptions!$112:$112,Assumptions!120:120)*AI$108 -> 0.62802 | AJ118: =LOOKUP(AJ$107,Assumptions!$112:$112,Assumptions!120:120)*AJ$108 -> 0.62802 | AK118: =LOOKUP(AK$107,Assumptions!$112:$112,Assumptions!120:120)*AK$108 -> 0.62802 | AL118: =LOOKUP(AL$107,Assumptions!$112:$112,Assumptions!120:120)*AL$108 -> 3.1536 | AM118: =LOOKUP(AM$107,Assumptions!$112:$112,Assumptions!120:120)*AM$108 -> 3.1536 | AN118: =LOOKUP(AN$107,Assumptions!$112:$112,Assumptions!120:120)*AN$108 -> 3.1536 | AO118: =LOOKUP(AO$107,Assumptions!$112:$112,Assumptions!120:120)*AO$108 -> 3.1536 | AP118: =LOOKUP(AP$107,Assumptions!$112:$112,Assumptions!120:120)*AP$108 -> 10.15335 | AQ118: =LOOKUP(AQ$107,Assumptions!$112:$112,Assumptions!120:120)*AQ$108 -> 10.15335 | AR118: =LOOKUP(AR$107,Assumptions!$112:$112,Assumptions!120:120)*AR$108 -> 10.15335 | AS118: =LOOKUP(AS$107,Assumptions!$112:$112,Assumptions!120:120)*AS$108 -> 10.15335 | AT118: =LOOKUP(AT$107,Assumptions!$112:$112,Assumptions!120:120)*AT$108 -> 18.94725 | AU118: =LOOKUP(AU$107,Assumptions!$112:$112,Assumptions!120:120)*AU$108 -> 18.94725 | AV118: =LOOKUP(AV$107,Assumptions!$112:$112,Assumptions!120:120)*AV$108 -> 18.94725 | AW118: =LOOKUP(AW$107,Assumptions!$112:$112,Assumptions!120:120)*AW$108 -> 18.94725 | AX118: =LOOKUP(AX$107,Assumptions!$112:$112,Assumptions!120:120)*AX$108 -> 39.1095 | AY118: =LOOKUP(AY$107,Assumptions!$112:$112,Assumptions!120:120)*AY$108 -> 39.1095 | AZ118: =LOOKUP(AZ$107,Assumptions!$112:$112,Assumptions!120:120)*AZ$108 -> 39.1095 | BA118: =LOOKUP(BA$107,Assumptions!$112:$112,Assumptions!120:120)*BA$108 -> 39.1095 | BB118: =LOOKUP(BB$107,Assumptions!$112:$112,Assumptions!120:120)*BB$108 -> 39.312 | BC118: =LOOKUP(BC$107,Assumptions!$112:$112,Assumptions!120:120)*BC$108 -> 39.312 | BD118: =LOOKUP(BD$107,Assumptions!$112:$112,Assumptions!120:120)*BD$108 -> 39.312 | BE118: =LOOKUP(BE$107,Assumptions!$112:$112,Assumptions!120:120)*BE$108 -> 39.312 | BF118: =LOOKUP(BF$107,Assumptions!$112:$112,Assumptions!120:120)*BF$108 -> 41.1075 | BG118: =LOOKUP(BG$107,Assumptions!$112:$112,Assumptions!120:120)*BG$108 -> 41.1075 | BH118: =LOOKUP(BH$107,Assumptions!$112:$112,Assumptions!120:120)*BH$108 -> 41.1075 | BI118: =LOOKUP(BI$107,Assumptions!$112:$112,Assumptions!120:120)*BI$108 -> 41.1075 | BJ118: =LOOKUP(BJ$107,Assumptions!$112:$112,Assumptions!120:120)*BJ$108 -> 43.2675 | BK118: =LOOKUP(BK$107,Assumptions!$112:$112,Assumptions!120:120)*BK$108 -> 43.2675 | BL118: =LOOKUP(BL$107,Assumptions!$112:$112,Assumptions!120:120)*BL$108 -> 43.2675 | BM118: =LOOKUP(BM$107,Assumptions!$112:$112,Assumptions!120:120)*BM$108 -> 43.2675 | BN118: =LOOKUP(BN$107,Assumptions!$112:$112,Assumptions!120:120)*BN$108 -> 46.1295 | BO118: =LOOKUP(BO$107,Assumptions!$112:$112,Assumptions!120:120)*BO$108 -> 46.1295 | BP118: =LOOKUP(BP$107,Assumptions!$112:$112,Assumptions!120:120)*BP$108 -> 46.1295 | BQ118: =LOOKUP(BQ$107,Assumptions!$112:$112,Assumptions!120:120)*BQ$108 -> 46.1295 | BR118: =LOOKUP(BR$107,Assumptions!$112:$112,Assumptions!120:120)*BR$108 -> 48.8295 | BS118: =LOOKUP(BS$107,Assumptions!$112:$112,Assumptions!120:120)*BS$108 -> 48.8295 | BT118: =LOOKUP(BT$107,Assumptions!$112:$112,Assumptions!120:120)*BT$108 -> 48.8295 | BU118: =LOOKUP(BU$107,Assumptions!$112:$112,Assumptions!120:120)*BU$108 -> 48.8295 | BV118: =LOOKUP(BV$107,Assumptions!$112:$112,Assumptions!120:120)*BV$108 -> 50.652 | BW118: =LOOKUP(BW$107,Assumptions!$112:$112,Assumptions!120:120)*BW$108 -> 50.652 | BX118: =LOOKUP(BX$107,Assumptions!$112:$112,Assumptions!120:120)*BX$108 -> 50.652 | BY118: =LOOKUP(BY$107,Assumptions!$112:$112,Assumptions!120:120)*BY$108 -> 50.652 | BZ118: =LOOKUP(BZ$107,Assumptions!$112:$112,Assumptions!120:120)*BZ$108 -> 51.6375 | CA118: =LOOKUP(CA$107,Assumptions!$112:$112,Assumptions!120:120)*CA$108 -> 51.6375 | CB118: =LOOKUP(CB$107,Assumptions!$112:$112,Assumptions!120:120)*CB$108 -> 51.6375 | CC118: =LOOKUP(CC$107,Assumptions!$112:$112,Assumptions!120:120)*CC$108 -> 51.6375 | CD118: =LOOKUP(CD$107,Assumptions!$112:$112,Assumptions!120:120)*CD$108 -> 54.513 | CE118: =LOOKUP(CE$107,Assumptions!$112:$112,Assumptions!120:120)*CE$108 -> 54.513 | CF118: =LOOKUP(CF$107,Assumptions!$112:$112,Assumptions!120:120)*CF$108 -> 54.513 | CG118: =LOOKUP(CG$107,Assumptions!$112:$112,Assumptions!120:120)*CG$108 -> 54.513 | CH118: =LOOKUP(CH$107,Assumptions!$112:$112,Assumptions!120:120)*CH$108 -> 56.376 | CI118: =LOOKUP(CI$107,Assumptions!$112:$112,Assumptions!120:120)*CI$108 -> 56.376 | CJ118: =LOOKUP(CJ$107,Assumptions!$112:$112,Assumptions!120:120)*CJ$108 -> 56.376 | CK118: =LOOKUP(CK$107,Assumptions!$112:$112,Assumptions!120:120)*CK$108 -> 56.376 | CL118: =LOOKUP(CL$107,Assumptions!$112:$112,Assumptions!120:120)*CL$108 -> 60.4935 | CM118: =LOOKUP(CM$107,Assumptions!$112:$112,Assumptions!120:120)*CM$108 -> 60.4935 | CN118: =LOOKUP(CN$107,Assumptions!$112:$112,Assumptions!120:120)*CN$108 -> 60.4935 | CO118: =LOOKUP(CO$107,Assumptions!$112:$112,Assumptions!120:120)*CO$108 -> 60.4935 | CP118: =LOOKUP(CP$107,Assumptions!$112:$112,Assumptions!120:120)*CP$108 -> 63.9225 | CQ118: =LOOKUP(CQ$107,Assumptions!$112:$112,Assumptions!120:120)*CQ$108 -> 63.9225 | CR118: =LOOKUP(CR$107,Assumptions!$112:$112,Assumptions!120:120)*CR$108 -> 63.9225 | CS118: =LOOKUP(CS$107,Assumptions!$112:$112,Assumptions!120:120)*CS$108 -> 63.9225 | CT118: =LOOKUP(CT$107,Assumptions!$112:$112,Assumptions!120:120)*CT$108 -> 67.716 | CU118: =LOOKUP(CU$107,Assumptions!$112:$112,Assumptions!120:120)*CU$108 -> 67.716 | CV118: =LOOKUP(CV$107,Assumptions!$112:$112,Assumptions!120:120)*CV$108 -> 67.716 | CW118: =LOOKUP(CW$107,Assumptions!$112:$112,Assumptions!120:120)*CW$108 -> 67.716 | CX118: =LOOKUP(CX$107,Assumptions!$112:$112,Assumptions!120:120)*CX$108 -> 71.3205 | CY118: =LOOKUP(CY$107,Assumptions!$112:$112,Assumptions!120:120)*CY$108 -> 71.3205 | CZ118: =LOOKUP(CZ$107,Assumptions!$112:$112,Assumptions!120:120)*CZ$108 -> 71.3205 | DA118: =LOOKUP(DA$107,Assumptions!$112:$112,Assumptions!120:120)*DA$108 -> 71.3205 | DB118: =LOOKUP(DB$107,Assumptions!$112:$112,Assumptions!120:120)*DB$108 -> 72.3735 | DC118: =LOOKUP(DC$107,Assumptions!$112:$112,Assumptions!120:120)*DC$108 -> 72.3735 | DD118: =LOOKUP(DD$107,Assumptions!$112:$112,Assumptions!120:120)*DD$108 -> 72.3735 | DE118: =LOOKUP(DE$107,Assumptions!$112:$112,Assumptions!120:120)*DE$108 -> 72.3735 | DF118: =LOOKUP(DF$107,Assumptions!$112:$112,Assumptions!120:120)*DF$108 -> 72.954 | DG118: =LOOKUP(DG$107,Assumptions!$112:$112,Assumptions!120:120)*DG$108 -> 72.954 | DH118: =LOOKUP(DH$107,Assumptions!$112:$112,Assumptions!120:120)*DH$108 -> 72.954 | DI118: =LOOKUP(DI$107,Assumptions!$112:$112,Assumptions!120:120)*DI$108 -> 72.954 | DJ118: =LOOKUP(DJ$107,Assumptions!$112:$112,Assumptions!120:120)*DJ$108 -> 73.602 | DK118: =LOOKUP(DK$107,Assumptions!$112:$112,Assumptions!120:120)*DK$108 -> 73.602 | DL118: =LOOKUP(DL$107,Assumptions!$112:$112,Assumptions!120:120)*DL$108 -> 73.602 | DM118: =LOOKUP(DM$107,Assumptions!$112:$112,Assumptions!120:120)*DM$108 -> 73.602 | DN118: =LOOKUP(DN$107,Assumptions!$112:$112,Assumptions!120:120)*DN$108 -> 74.763 | DO118: =LOOKUP(DO$107,Assumptions!$112:$112,Assumptions!120:120)*DO$108 -> 74.763 | DP118: =LOOKUP(DP$107,Assumptions!$112:$112,Assumptions!120:120)*DP$108 -> 74.763 | DQ118: =LOOKUP(DQ$107,Assumptions!$112:$112,Assumptions!120:120)*DQ$108 -> 74.763
